Workbook

Sheet Price
A1: Name | B1: Price | C1: Volume | D1: Avg.Volume
A2: ตารางเวลา | B2: N/A | C2: N/A | D2: N/A
A3: ICHI | B3: 12.8 | C3: 8806010 | D3: 5869120
A4: HMPRO | B4: 6.15 | C4: 7426267 | D4: 49027976
A5: DOHOME | B5: 3.18 | C5: 1322400 | D5: 20452081
A6: WASH | B6: 5.15 | C6: 9400 | D6: 2034288
A7: TURBO | B7: 1.58 | C7: 676500 | D7: 19685747
A8: 2 | B8: 1.58 | C8: 676500 | D8: 19685747
A9: 1 | B9: 1.58 | C9: 676500 | D9: 19685747
A10: ADVICE | B10: 5.55 | C10: 111800 | D10: 2063269
A11: SABINA | B11: 15.6 | C11: 12300 | D11: 484076
A12: READY | B12: 3.16 | C12: 116601 | D12: 94400
A13: XO | B13: 14 | C13: 200 | D13: 482864
A14: KCG | B14: 9.65 | C14: 141600 | D14: 900272
A15: MTC | B15: 28.75 | C15: 5187078 | D15: 13093738
A16: MC | B16: 11 | C16: 28943 | D16: 1753210
A17: TFMAMA | B17: 189 | C17: 504 | D17: 3528
A18: KTC | B18: 29.25 | C18: 2194708 | D18: 20025311

Sheet Template
C1: 2008 | D1: 2009 | E1: 2010 | F1: 2011 | G1: 2012 | H1: 2013 | I1: 2014 | J1: 2015 | K1: 2016 | L1: 2017 | M1: 2018 | N1: 2019 | O1: 2020 | P1: 2021 | Q1: 2022 | R1: 2023 | S1: 2024 | T1: 2025 | U1: 2026
C2: Asset
C3: Cash And Cash Equivalents
A4: BS | B4: Cash And Cash Equivalents | W4: Q1
W5: Q2
W6: Q3
W7: Yearly
C8: =IFERROR(C7/C55,IFERROR(C6/C54,IFERROR(C5/C53,IFERROR(C4/C52,"-")))) -> - | D8: - | E8: - | F8: - | G8: - | H8: - | I8: - | J8: - | K8: - | L8: - | M8: - | N8: - | O8: - | P8: - | Q8: - | R8: - | S8: - | T8: =IFERROR(T7/T55,IFERROR(T6/T54,IFERROR(T5/T53,IFERROR(T4/T52,"-")))) -> - | U8: - | W8: %Common Size
C9: Short-Term Investments - Net
A10: BS | B10: Short-Term Investments - Net | W10: Q1
W11: Q2
W12: Q3
W13: Yearly
C14: =IFERROR(C13/C55,IFERROR(C12/C54,IFERROR(C11/C53,IFERROR(C10/C52,"-")))) -> - | D14: - | E14: - | F14: - | G14: - | H14: - | I14: - | J14: - | K14: - | L14: - | M14: - | N14: - | O14: - | P14: - | Q14: - | R14: - | S14: - | T14: =IFERROR(T13/T55,IFERROR(T12/T54,IFERROR(T11/T53,IFERROR(T10/T52,"-")))) -> - | U14: - | W14: %Common Size
C15: Trade And Other Receivables - Current - Net
A16: BS | B16: Trade And Other Receivables - Current - Net | W16: Q1
W17: Q2
W18: Q3
W19: Yearly
C20: =IFERROR(C19/C55,IFERROR(C18/C54,IFERROR(C17/C53,IFERROR(C16/C52,"-")))) -> - | D20: - | E20: - | F20: - | G20: - | H20: - | I20: - | J20: - | K20: - | L20: - | M20: - | N20: - | O20: - | P20: - | Q20: - | R20: - | S20: - | T20: =IFERROR(T19/T55,IFERROR(T18/T54,IFERROR(T17/T53,IFERROR(T16/T52,"-")))) -> - | U20: - | W20: %Common Size
C21: Inventories - Net
A22: BS | B22: Inventories - Net | W22: Q1
W23: Q2
W24: Q3
W25: Yearly
C26: =IFERROR(C25/C55,IFERROR(C24/C54,IFERROR(C23/C53,IFERROR(C22/C52,"-")))) -> - | D26: - | E26: - | F26: - | G26: - | H26: - | I26: - | J26: - | K26: - | L26: - | M26: - | N26: - | O26: - | P26: - | Q26: - | R26: - | S26: - | T26: =IFERROR(T25/T55,IFERROR(T24/T54,IFERROR(T23/T53,IFERROR(T22/T52,"-")))) -> - | U26: - | W26: %Common Size
C27: Total Current Assets
A28: BS | B28: Total Current Assets | W28: Q1
W29: Q2
W30: Q3
W31: Yearly
C32: =IFERROR(C31/C55,IFERROR(C30/C54,IFERROR(C29/C53,IFERROR(C28/C52,"-")))) -> - | D32: - | E32: - | F32: - | G32: - | H32: - | I32: - | J32: - | K32: - | L32: - | M32: - | N32: - | O32: - | P32: - | Q32: - | R32: - | S32: - | T32: =IFERROR(T31/T55,IFERROR(T30/T54,IFERROR(T29/T53,IFERROR(T28/T52,"-")))) -> - | U32: - | W32: %Common Size
C33: Property, Plant And Equipment - Net
A34: BS | B34: Property, Plant And Equipment - Net | W34: Q1
W35: Q2
W36: Q3
W37: Yearly
C38: =IFERROR(C37/C55,IFERROR(C36/C54,IFERROR(C35/C53,IFERROR(C34/C52,"-")))) -> - | D38: - | E38: - | F38: - | G38: - | H38: - | I38: - | J38: - | K38: - | L38: - | M38: - | N38: - | O38: - | P38: - | Q38: - | R38: - | S38: - | T38: =IFERROR(T37/T55,IFERROR(T36/T54,IFERROR(T35/T53,IFERROR(T34/T52,"-")))) -> - | U38: - | W38: %Common Size
C39: Intangible Assets - Net
A40: BS | B40: Intangible Assets - Net | W40: Q1
W41: Q2
W42: Q3
W43: Yearly
C44: =IFERROR(C43/C55,IFERROR(C42/C54,IFERROR(C41/C53,IFERROR(C40/C52,"-")))) -> - | D44: - | E44: - | F44: - | G44: - | H44: - | I44: - | J44: - | K44: - | L44: - | M44: - | N44: - | O44: - | P44: - | Q44: - | R44: - | S44: - | T44: =IFERROR(T43/T55,IFERROR(T42/T54,IFERROR(T41/T53,IFERROR(T40/T52,"-")))) -> - | U44: - | W44: %Common Size
C45: Total Non-Current Assets
A46: BS | B46: Total Non-Current Assets | W46: Q1
W47: Q2
W48: Q3
W49: Yearly
C50: =IFERROR(C49/C55,IFERROR(C48/C54,IFERROR(C47/C53,IFERROR(C46/C52,"-")))) -> - | D50: - | E50: - | F50: - | G50: - | H50: - | I50: - | J50: - | K50: - | L50: - | M50: - | N50: - | O50: - | P50: - | Q50: - | R50: - | S50: - | T50: =IFERROR(T49/T55,IFERROR(T48/T54,IFERROR(T47/T53,IFERROR(T46/T52,"-")))) -> - | U50: - | W50: %Common Size
C51: Total Assets
A52: BS | B52: Total Assets | W52: Q1
W53: Q2
W54: Q3
W55: Yearly
C56: Liabilities
C57: Trade And Other Payables - Current
A58: BS | B58: Trade And Other Payables - Current | W58: Q1
W59: Q2
W60: Q3
W61: Yearly
C62: =IFERROR(C61/C55,"-") -> - | D62: - | E62: - | F62: - | G62: - | H62: - | I62: - | J62: - | K62: - | L62: - | M62: - | N62: - | O62: - | P62: - | Q62: - | R62: - | S62: =IFERROR(S61/S55,"-") -> - | T62: =IFERROR(T61/T55,"-") -> - | U62: - | W62: %Common Size
C63: Total Current Liabilities
A64: BS | B64: Total Current Liabilities | W64: Q1
W65: Q2
W66: Q3
W67: Yearly
C68: =IFERROR(C67/C55,IFERROR(C66/C54,IFERROR(C65/C53,IFERROR(C64/C52,"-")))) -> - | D68: - | E68: - | F68: - | G68: - | H68: - | I68: - | J68: - | K68: - | L68: - | M68: - | N68: - | O68: - | P68: - | Q68: - | R68: - | S68: - | T68: =IFERROR(T67/T55,IFERROR(T66/T54,IFERROR(T65/T53,IFERROR(T64/T52,"-")))) -> - | U68: - | W68: %Common Size
C69: Bank Overdrafts And Short-Term Borrowings From Financial Institutions
A70: BS | B70: Bank Overdrafts And Short-Term Borrowings From Financial Institutions | W70: Q1
W71: Q2
W72: Q3
W73: Yearly
C74: =IFERROR(C73/C55,IFERROR(C72/C54,IFERROR(C71/C53,IFERROR(C70/C52,"-")))) -> - | D74: - | E74: - | F74: - | G74: - | H74: - | I74: - | J74: - | K74: - | L74: - | M74: - | N74: - | O74: - | P74: - | Q74: - | R74: - | S74: - | T74: =IFERROR(T73/T55,IFERROR(T72/T54,IFERROR(T71/T53,IFERROR(T70/T52,"-")))) -> - | U74: - | W74: %Common Size
C75: Current Portion Of Long-Term Debts
A76: BS | B76: Current Portion Of Long-Term Debts | W76: Q1
W77: Q2
W78: Q3
W79: Yearly
C80: =IFERROR(C79/C55,IFERROR(C78/C54,IFERROR(C77/C53,IFERROR(C76/C52,"-")))) -> - | D80: - | E80: - | F80: - | G80: - | H80: - | I80: - | J80: - | K80: - | L80: - | M80: - | N80: - | O80: - | P80: - | Q80: - | R80: - | S80: - | T80: =IFERROR(T79/T55,IFERROR(T78/T54,IFERROR(T77/T53,IFERROR(T76/T52,"-")))) -> - | U80: - | W80: %Common Size
C81: Short-Term Debts
C82: =IF(AND(ISBLANK(C76), ISBLANK(C70)), "", C76 + C70) ->  | H82: =IF(AND(ISBLANK(H76), ISBLANK(H70)), "", H76 + H70) ->  | I82: =IF(AND(ISBLANK(I76), ISBLANK(I70)), "", I76 + I70) ->  | S82: =IF(AND(ISBLANK(S76), ISBLANK(S70)), "", S76 + S70) ->  | T82: =IF(AND(ISBLANK(T76), ISBLANK(T70)), "", T76 + T70) ->  | W82: Q1
S83: =IF(AND(ISBLANK(S77), ISBLANK(S71)), "", S77 + S71) ->  | W83: Q2
W84: Q3
W85: Yearly
C86: =IFERROR(C85/C55,IFERROR(C84/C54,IFERROR(C83/C53,IFERROR(C82/C52,"-")))) -> - | D86: - | E86: - | F86: - | G86: - | H86: - | I86: - | J86: - | K86: - | L86: - | M86: - | N86: - | O86: - | P86: - | Q86: - | R86: - | S86: - | T86: =IFERROR(T85/T55,IFERROR(T84/T54,IFERROR(T83/T53,IFERROR(T82/T52,"-")))) -> - | U86: - | W86: %Common Size
C87: Long-Term Debts
A88: BS | B88: Non-Current Portion Of Long-Term Debts | W88: Q1
W89: Q2
W90: Q3
W91: Yearly
C92: =IFERROR(C91/C55,IFERROR(C90/C54,IFERROR(C89/C53,IFERROR(C88/C52,"-")))) -> - | D92: - | E92: - | F92: - | G92: - | H92: - | I92: - | J92: - | K92: - | L92: - | M92: - | N92: - | O92: - | P92: - | Q92: - | R92: - | S92: - | T92: =IFERROR(T91/T55,IFERROR(T90/T54,IFERROR(T89/T53,IFERROR(T88/T52,"-")))) -> - | U92: - | W92: %Common Size
C93: Total Debts
C94: =IF(AND(ISBLANK(C76), ISBLANK(C70), ISBLANK(C88)), "", C76 + C70+C88) ->  | S94: =IF(AND(ISBLANK(S76), ISBLANK(S70), ISBLANK(S88)), "", S76 + S70+S88) ->  | T94: =IF(AND(ISBLANK(T76), ISBLANK(T70), ISBLANK(T88)), "", T76 + T70+T88) ->  | W94: Q1
S95: =IF(AND(ISBLANK(S77), ISBLANK(S71), ISBLANK(S89)), "", S77 + S71+S89) ->  | W95: Q2
W96: Q3
Q97: =IF(AND(ISBLANK(Q79), ISBLANK(Q73), ISBLANK(Q91)), "", Q79 + Q73+Q91) ->  | W97: Yearly
C98: =IFERROR(C97/C122,IFERROR(C96/C121,IFERROR(C95/C120,IFERROR(C94/C119,"-")))) -> - | D98: - | E98: - | F98: - | G98: - | H98: - | I98: - | J98: - | K98: - | L98: - | M98: - | N98: - | O98: - | P98: - | Q98: - | R98: - | S98: =IFERROR(S97/S122,IFERROR(S96/S121,IFERROR(S95/S120,IFERROR(S94/S119,"-")))) -> - | T98: =IFERROR(T97/T122,IFERROR(T96/T121,IFERROR(T95/T120,IFERROR(T94/T119,"-")))) -> - | U98: - | W98: D/E Ratio
C99: Total Non-Current Liabilities
A100: BS | B100: Total Non-Current Liabilities | W100: Q1
W101: Q2
W102: Q3
W103: Yearly
C104: =IFERROR(C103/C55,IFERROR(C102/C54,IFERROR(C101/C53,IFERROR(C100/C52,"-")))) -> - | D104: - | E104: - | F104: - | G104: - | H104: - | I104: - | J104: - | K104: - | L104: - | M104: - | N104: - | O104: - | P104: - | Q104: - | R104: - | S104: - | T104: =IFERROR(T103/T55,IFERROR(T102/T54,IFERROR(T101/T53,IFERROR(T100/T52,"-")))) -> - | U104: - | W104: %Common Size
C105: Total Liabilities
A106: BS | B106: Total Liabilities | W106: Q1
W107: Q2
W108: Q3
W109: Yearly
C110: =IFERROR(C109/C55,IFERROR(C108/C54,IFERROR(C107/C53,IFERROR(C106/C52,"-")))) -> - | D110: - | E110: - | F110: - | G110: - | H110: - | I110: - | J110: - | K110: - | L110: - | M110: - | N110: - | O110: - | P110: - | Q110: - | R110: - | S110: - | T110: =IFERROR(T109/T55,IFERROR(T108/T54,IFERROR(T107/T53,IFERROR(T106/T52,"-")))) -> - | U110: - | W110: %Common Size
C111: Equity
C112: Retained Earnings (Deficits) - Unappropriated
A113: BS | B113: Retained Earnings (Deficits) - Unappropriated | W113: Q1
W114: Q2
W115: Q3
W116: Yearly
C117: =IFERROR(C116/C55,IFERROR(C115/C54,IFERROR(C114/C53,IFERROR(C113/C52,"-")))) -> - | D117: - | E117: - | F117: - | G117: - | H117: - | I117: - | J117: - | K117: - | L117: - | M117: - | N117: - | O117: - | P117: - | Q117: - | R117: - | S117: - | T117: =IFERROR(T116/T55,IFERROR(T115/T54,IFERROR(T114/T53,IFERROR(T113/T52,"-")))) -> - | U117: - | W117: %Common Size
C118: Equity Attributable To Owners Of The Parent
A119: BS | B119: Equity Attributable To Owners Of The Parent | W119: Q1
W120: Q2
W121: Q3
W122: Yearly
C123: =IFERROR(C122/C55,IFERROR(C121/C54,IFERROR(C120/C53,IFERROR(C119/C52,"-")))) -> - | D123: - | E123: - | F123: - | G123: - | H123: - | I123: - | J123: - | K123: - | L123: - | M123: - | N123: - | O123: - | P123: - | Q123: - | R123: - | S123: - | T123: =IFERROR(T122/T55,IFERROR(T121/T54,IFERROR(T120/T53,IFERROR(T119/T52,"-")))) -> - | U123: - | W123: %Common Size
C124: Revenue Structure
C125: Revenue From Operations
A126: PL | B126: Revenue From Operations | W126: Q1
W127: Q2
W128: Q3
W129: Q4
C130: =IF(COUNT(C126:C129)=4,SUM(C126:C129),IF(COUNT(C126:C129)=0,"",SUM(C126:C129)*4/COUNT(C126:C129))) ->  | R130: =IF(COUNT(R126:R129)=4,SUM(R126:R129),IF(COUNT(R126:R129)=0,"",SUM(R126:R129)*4/COUNT(R126:R129))) ->  | S130: =IF(COUNT(S126:S129)=4,SUM(S126:S129),IF(COUNT(S126:S129)=0,"",SUM(S126:S129)*4/COUNT(S126:S129))) ->  | T130: =IF(COUNT(T126:T129)=4,SUM(T126:T129),IF(COUNT(T126:T129)=0,"",SUM(T126:T129)*4/COUNT(T126:T129))) ->  | W130: Yearly
C131: =IFERROR((C130-B130)/B130,"-") -> - | D131: =IFERROR((D130-C130)/C130,"-") -> - | E131: - | F131: - | G131: - | H131: - | I131: - | J131: - | K131: - | L131: - | M131: - | N131: - | O131: - | P131: =IFERROR((P130-O130)/O130,"-") -> - | Q131: =IFERROR((Q130-P130)/P130,"-") -> - | R131: =IFERROR((R130-Q130)/Q130,"-") -> - | S131: =IFERROR((S130-R130)/R130,"-") -> - | T131: =IFERROR((T130-S130)/S130,"-") -> - | U131: - | W131: %YoY Growth
C132: Other Income
A133: PL | B133: Other Income | W133: Q1
W134: Q2
W135: Q3
W136: Q4
C137: =IF(COUNT(C133:C136)=4,SUM(C133:C136),IF(COUNT(C133:C136)=0,"",SUM(C133:C136)*4/COUNT(C133:C136))) ->  | D137: =IF(COUNT(D133:D136)=4,SUM(D133:D136),IF(COUNT(D133:D136)=0,"",SUM(D133:D136)*4/COUNT(D133:D136))) ->  | R137: =IF(COUNT(R133:R136)=4,SUM(R133:R136),IF(COUNT(R133:R136)=0,"",SUM(R133:R136)*4/COUNT(R133:R136))) ->  | S137: =IF(COUNT(S133:S136)=4,SUM(S133:S136),IF(COUNT(S133:S136)=0,"",SUM(S133:S136)*4/COUNT(S133:S136))) ->  | T137: =IF(COUNT(T133:T136)=4,SUM(T133:T136),IF(COUNT(T133:T136)=0,"",SUM(T133:T136)*4/COUNT(T133:T136))) ->  | W137: Yearly
C138: Interest And Dividend Income
A139: PL | B139: Interest And Dividend Income | W139: Q1
W140: Q2
W141: Q3
W142: Q4
C143: =IF(COUNT(C139:C142)=4,SUM(C139:C142),IF(COUNT(C139:C142)=0,"",SUM(C139:C142)*4/COUNT(C139:C142))) ->  | D143: =IF(COUNT(D139:D142)=4,SUM(D139:D142),IF(COUNT(D139:D142)=0,"",SUM(D139:D142)*4/COUNT(D139:D142))) ->  | R143: =IF(COUNT(R139:R142)=4,SUM(R139:R142),IF(COUNT(R139:R142)=0,"",SUM(R139:R142)*4/COUNT(R139:R142))) ->  | S143: =IF(COUNT(S139:S142)=4,SUM(S139:S142),IF(COUNT(S139:S142)=0,"",SUM(S139:S142)*4/COUNT(S139:S142))) ->  | T143: =IF(COUNT(T139:T142)=4,SUM(T139:T142),IF(COUNT(T139:T142)=0,"",SUM(T139:T142)*4/COUNT(T139:T142))) ->  | W143: Yearly
C144: Total Revenue
A145: PL | B145: Total Revenue | W145: Q1
W146: Q2
W147: Q3
W148: Q4
C149: =IF(COUNT(C145:C148)=4,SUM(C145:C148),IF(COUNT(C145:C148)=0,"",SUM(C145:C148)*4/COUNT(C145:C148))) ->  | D149: =IF(COUNT(D145:D148)=4,SUM(D145:D148),IF(COUNT(D145:D148)=0,"",SUM(D145:D148)*4/COUNT(D145:D148))) ->  | R149: =IF(COUNT(R145:R148)=4,SUM(R145:R148),IF(COUNT(R145:R148)=0,"",SUM(R145:R148)*4/COUNT(R145:R148))) ->  | S149: =IF(COUNT(S145:S148)=4,SUM(S145:S148),IF(COUNT(S145:S148)=0,"",SUM(S145:S148)*4/COUNT(S145:S148))) ->  | T149: =IF(COUNT(T145:T148)=4,SUM(T145:T148),IF(COUNT(T145:T148)=0,"",SUM(T145:T148)*4/COUNT(T145:T148))) ->  | W149: Yearly
C150: COGS Breakdown
C151: Costs
A152: PL | B152: Costs | W152: Q1
W153: Q2
W154: Q3
W155: Q4
C156: =IF(COUNT(C152:C155)=4,SUM(C152:C155),IF(COUNT(C152:C155)=0,"",SUM(C152:C155)*4/COUNT(C152:C155))) ->  | S156: =IF(COUNT(S152:S155)=4,SUM(S152:S155),IF(COUNT(S152:S155)=0,"",SUM(S152:S155)*4/COUNT(S152:S155))) ->  | T156: =IF(COUNT(T152:T155)=4,SUM(T152:T155),IF(COUNT(T152:T155)=0,"",SUM(T152:T155)*4/COUNT(T152:T155))) ->  | W156: Yearly
C157: =IFERROR(C156/C130, "-") -> - | D157: - | E157: - | F157: - | G157: - | H157: - | I157: - | J157: - | K157: - | L157: - | M157: - | N157: - | O157: - | P157: - | Q157: - | R157: - | S157: - | T157: =IFERROR(T156/T130, "-") -> - | U157: - | W157: %Common Size
C158: =IFERROR((C156-B156)/B156,"-") -> - | D158: - | E158: - | F158: - | G158: - | H158: - | I158: - | J158: - | K158: - | L158: - | M158: - | N158: - | O158: - | P158: - | Q158: - | R158: - | S158: - | T158: =IFERROR((T156-S156)/S156,"-") -> - | U158: =IFERROR((U156-T156)/T156,"-") -> - | W158: %YoY Growth
C159: Gross Profit
C160: =IF(AND(ISBLANK(C126),ISBLANK(C152)),"",C126-C152) ->  | T160: =IF(AND(ISBLANK(T126),ISBLANK(T152)),"",T126-T152) ->  | W160: Q1
T161: =IF(AND(ISBLANK(T127),ISBLANK(T153)),"",T127-T153) ->  | W161: Q2
T162: =IF(AND(ISBLANK(T128),ISBLANK(T154)),"",T128-T154) ->  | W162: Q3
T163: =IF(AND(ISBLANK(T129),ISBLANK(T155)),"",T129-T155) ->  | W163: Q4
C164: =IF(COUNT(C160:C163)=4,SUM(C160:C163),IF(COUNT(C160:C163)=0,"",SUM(C160:C163)*4/COUNT(C160:C163))) ->  | D164: =IF(COUNT(D160:D163)=4,SUM(D160:D163),IF(COUNT(D160:D163)=0,"",SUM(D160:D163)*4/COUNT(D160:D163))) ->  | G164: =IF(COUNT(G160:G163)=4,SUM(G160:G163),IF(COUNT(G160:G163)=0,"",SUM(G160:G163)*4/COUNT(G160:G163))) ->  | H164: =IF(COUNT(H160:H163)=4,SUM(H160:H163),IF(COUNT(H160:H163)=0,"",SUM(H160:H163)*4/COUNT(H160:H163))) ->  | I164: =IF(COUNT(I160:I163)=4,SUM(I160:I163),IF(COUNT(I160:I163)=0,"",SUM(I160:I163)*4/COUNT(I160:I163))) ->  | S164: =IF(COUNT(S160:S163)=4,SUM(S160:S163),IF(COUNT(S160:S163)=0,"",SUM(S160:S163)*4/COUNT(S160:S163))) ->  | T164: =IF(COUNT(T160:T163)=4,SUM(T160:T163),IF(COUNT(T160:T163)=0,"",SUM(T160:T163)*4/COUNT(T160:T163))) ->  | W164: Yearly
C165: =IFERROR(C164/C130, "-") -> - | D165: - | E165: - | F165: - | G165: - | H165: - | I165: - | J165: - | K165: - | L165: - | M165: - | N165: - | O165: - | P165: - | Q165: - | R165: - | S165: - | T165: =IFERROR(T164/T130, "-") -> - | U165: - | W165: %GPM
C166: =IFERROR((C164-B164)/B164,"-") -> - | D166: - | E166: - | F166: - | G166: - | H166: - | I166: =IFERROR((I164-H164)/H164,"-") -> - | J166: - | K166: - | L166: - | M166: - | N166: - | O166: - | P166: - | Q166: - | R166: - | S166: - | T166: =IFERROR((T164-S164)/S164,"-") -> - | U166: =IFERROR((U164-T164)/T164,"-") -> - | W166: %YoY Growth
C167: SG&A
C168: Selling Expenses
A169: PL | B169: Selling Expenses | W169: Q1
W170: Q2
W171: Q3
W172: Q4
C173: =IF(COUNT(C169:C172)=4,SUM(C169:C172),IF(COUNT(C169:C172)=0,"",SUM(C169:C172)*4/COUNT(C169:C172))) ->  | D173: =IF(COUNT(D169:D172)=4,SUM(D169:D172),IF(COUNT(D169:D172)=0,"",SUM(D169:D172)*4/COUNT(D169:D172))) ->  | S173: =IF(COUNT(S169:S172)=4,SUM(S169:S172),IF(COUNT(S169:S172)=0,"",SUM(S169:S172)*4/COUNT(S169:S172))) ->  | T173: =IF(COUNT(T169:T172)=4,SUM(T169:T172),IF(COUNT(T169:T172)=0,"",SUM(T169:T172)*4/COUNT(T169:T172))) ->  | W173: Yearly
C174: =IFERROR(C173/C130, "-") -> - | D174: - | E174: - | F174: - | G174: - | H174: - | I174: - | J174: - | K174: - | L174: - | M174: - | N174: - | O174: - | P174: - | Q174: - | R174: - | S174: - | T174: =IFERROR(T173/T130, "-") -> - | U174: - | W174: %Common Size
C175: =IFERROR((C173-B173)/B173,"-") -> - | D175: - | E175: - | F175: - | G175: - | H175: - | I175: - | J175: - | K175: - | L175: - | M175: - | N175: - | O175: - | P175: - | Q175: - | R175: - | S175: - | T175: =IFERROR((T173-S173)/S173,"-") -> - | U175: =IFERROR((U173-T173)/T173,"-") -> - | W175: %YoY Growth
C176: Administrative Expenses
A177: PL | B177: Administrative Expenses | W177: Q1
W178: Q2
W179: Q3
W180: Q4
C181: =IF(COUNT(C177:C180)=4,SUM(C177:C180),IF(COUNT(C177:C180)=0,"",SUM(C177:C180)*4/COUNT(C177:C180))) ->  | D181: =IF(COUNT(D177:D180)=4,SUM(D177:D180),IF(COUNT(D177:D180)=0,"",SUM(D177:D180)*4/COUNT(D177:D180))) ->  | S181: =IF(COUNT(S177:S180)=4,SUM(S177:S180),IF(COUNT(S177:S180)=0,"",SUM(S177:S180)*4/COUNT(S177:S180))) ->  | T181: =IF(COUNT(T177:T180)=4,SUM(T177:T180),IF(COUNT(T177:T180)=0,"",SUM(T177:T180)*4/COUNT(T177:T180))) ->  | W181: Yearly
C182: =IFERROR(C181/C130, "-") -> - | D182: - | E182: - | F182: - | G182: - | H182: - | I182: - | J182: - | K182: - | L182: - | M182: - | N182: - | O182: - | P182: - | Q182: - | R182: - | S182: - | T182: =IFERROR(T181/T130, "-") -> - | U182: - | W182: %Common Size
C183: =IFERROR((C181-B181)/B181,"-") -> - | D183: - | E183: - | F183: - | G183: - | H183: - | I183: - | J183: - | K183: - | L183: - | M183: - | N183: - | O183: - | P183: - | Q183: - | R183: - | S183: - | T183: =IFERROR((T181-S181)/S181,"-") -> - | U183: =IFERROR((U181-T181)/T181,"-") -> - | W183: %YoY Growth
C184: Selling And Administrative Expenses
A185: PL | B185: Selling And Administrative Expenses | W185: Q1
W186: Q2
W187: Q3
W188: Q4
C189: =IF(COUNT(C185:C188)=4,SUM(C185:C188),IF(COUNT(C185:C188)=0,"",SUM(C185:C188)*4/COUNT(C185:C188))) ->  | D189: =IF(COUNT(D185:D188)=4,SUM(D185:D188),IF(COUNT(D185:D188)=0,"",SUM(D185:D188)*4/COUNT(D185:D188))) ->  | S189: =IF(COUNT(S185:S188)=4,SUM(S185:S188),IF(COUNT(S185:S188)=0,"",SUM(S185:S188)*4/COUNT(S185:S188))) ->  | T189: =IF(COUNT(T185:T188)=4,SUM(T185:T188),IF(COUNT(T185:T188)=0,"",SUM(T185:T188)*4/COUNT(T185:T188))) ->  | W189: Yearly
C190: =IFERROR(C189/C130, "-") -> - | D190: - | E190: - | F190: - | G190: - | H190: - | I190: - | J190: - | K190: - | L190: - | M190: - | N190: - | O190: - | P190: - | Q190: - | R190: - | S190: =IFERROR(S189/S130, "-") -> - | T190: =IFERROR(T189/T130, "-") -> - | U190: - | W190: %Common Size
C191: =IFERROR((C189-B189)/B189,"-") -> - | D191: - | E191: - | F191: - | G191: - | H191: - | I191: - | J191: - | K191: - | L191: - | M191: - | N191: - | O191: - | P191: - | Q191: - | R191: - | S191: - | T191: =IFERROR((T189-S189)/S189,"-") -> - | U191: =IFERROR((U189-T189)/T189,"-") -> - | W191: %YoY Growth
C192: Other Gains (Losses)
A193: PL | B193: Other Gains (Losses) | W193: Q1
W194: Q2
W195: Q3
W196: Q4
C197: =IF(COUNT(C193:C196)=4,SUM(C193:C196),IF(COUNT(C193:C196)=0,"",SUM(C193:C196)*4/COUNT(C193:C196))) ->  | D197: =IF(COUNT(D193:D196)=4,SUM(D193:D196),IF(COUNT(D193:D196)=0,"",SUM(D193:D196)*4/COUNT(D193:D196))) ->  | R197: =IF(COUNT(R193:R196)=4,SUM(R193:R196),IF(COUNT(R193:R196)=0,"",SUM(R193:R196)*4/COUNT(R193:R196))) ->  | S197: =IF(COUNT(S193:S196)=4,SUM(S193:S196),IF(COUNT(S193:S196)=0,"",SUM(S193:S196)*4/COUNT(S193:S196))) ->  | T197: =IF(COUNT(T193:T196)=4,SUM(T193:T196),IF(COUNT(T193:T196)=0,"",SUM(T193:T196)*4/COUNT(T193:T196))) ->  | W197: Yearly
C198: EBIT
C199: =IFERROR(C160+C133-C185, "") ->  | T199: =IFERROR(T160+T133-T185, "") ->  | W199: Q1
T200: =IFERROR(T161+T134-T186, "") ->  | W200: Q2
... 145 more rows

Sheet Template-Finance
D1: 2008 | E1: 2009 | F1: 2010 | G1: 2011 | H1: 2012 | I1: 2013 | J1: 2014 | K1: 2015 | L1: 2016 | M1: 2017 | N1: 2018 | O1: 2019 | P1: 2020 | Q1: 2021 | R1: 2022 | S1: 2023 | T1: 2024
D2: Asset
D3: Cash And Cash Equivalents
A4: BS | B4: Cash And Cash Equivalents | C4: Cash | V4: Q1
V5: Q2
V6: Q3
V7: Yearly
D8: =IFERROR(D7/D80,IFERROR(D6/D79,IFERROR(D5/D78,IFERROR(D4/D77,"-")))) -> - | E8: - | F8: - | G8: - | H8: - | I8: - | J8: - | K8: - | L8: - | M8: - | N8: - | O8: - | P8: - | Q8: - | R8: - | S8: - | T8: - | V8: %Common Size
D9: Current Portion Of Trade And Loan Receivables - Net - Raw
A10: BS | B10: Current Portion Of Trade And Loan Receivables - Net | V10: Q1
V11: Q2
V12: Q3
V13: Yearly
D14: Current Portion Of Lease Receivables - Net - Raw
A15: BS | B15: Current Portion Of Lease Receivables - Net | V15: Q1
V16: Q2
V17: Q3
V18: Yearly
D19: Current Portion Of Trade And Loan Receivables - Net
D20: =IF(D10+D15 = 0, "", D10+D15) ->  | T20: =IF(T10+T15 = 0, "", T10+T15) ->  | V20: Q1
T21: =IF(T11+T16 = 0, "", T11+T16) ->  | V21: Q2
V22: Q3
V23: Yearly
D24: =IFERROR(D23/D80,IFERROR(D22/D79,IFERROR(D21/D78,IFERROR(D20/D77,"-")))) -> - | E24: - | F24: - | G24: - | H24: - | I24: - | J24: - | K24: - | L24: - | M24: - | N24: - | O24: - | P24: - | Q24: - | R24: - | S24: - | T24: - | V24: %Common Size
D25: Total Current Assets
A26: BS | B26: Total Current Assets | V26: Q1
V27: Q2
V28: Q3
V29: Yearly
D30: =IFERROR(D29/D80,IFERROR(D28/D79,IFERROR(D27/D78,IFERROR(D26/D77,"-")))) -> - | E30: - | F30: - | G30: - | H30: - | I30: - | J30: - | K30: - | L30: - | M30: - | N30: - | O30: - | P30: - | Q30: - | R30: - | S30: - | T30: - | V30: %Common Size
D31: Non-Current Portion Of Trade And Loan Receivables - Net
A32: BS | B32: Non-Current Portion Of Trade And Loan Receivables - Net | V32: Q1
V33: Q2
V34: Q3
V35: Yearly
D36: Current Portion Of Lease Receivables - Net - Raw
A37: BS | B37: Non-Current Portion Of Lease Receivables - Net | V37: Q1
V38: Q2
V39: Q3
V40: Yearly
D41: Non-Current Portion Of Trade And Loan Receivables - Net
D42: =IF(D32+D37 = 0, "", D32+D37) ->  | O42: =IF(O32+O37 = 0, "", O32+O37) ->  | T42: =IF(T32+T37 = 0, "", T32+T37) ->  | V42: Q1
T43: =IF(T33+T38 = 0, "", T33+T38) ->  | V43: Q2
V44: Q3
V45: Yearly
D46: =IFERROR(D45/D80,IFERROR(D44/D79,IFERROR(D43/D78,IFERROR(D42/D77,"-")))) -> - | E46: - | F46: - | G46: - | H46: - | I46: - | J46: - | K46: - | L46: - | M46: - | N46: - | O46: - | P46: - | Q46: - | R46: - | S46: - | T46: =IFERROR(T45/T80,IFERROR(T44/T79,IFERROR(T43/T78,IFERROR(T42/T77,"-")))) -> - | V46: %Common Size
D47: Total Loan Receivables - Old
A48: BS | C48: Loans To Customers And Accrued Interest Receivables - Net | V48: Q1
V49: Q2
V50: Q3
V51: Yearly
D52: Total Loan Receivables
D53: =IF(AND(D20="", D42=""), IF(D48="", "", D48), D20+D42) ->  | O53: =IF(AND(O20="", O42=""), IF(O48="", "", O48), O20+O42) ->  | P53: =IF(AND(P20="", P42=""), IF(P48="", "", P48), P20+P42) ->  | V53: Q1
V54: Q2
V55: Q3
V56: Yearly
D57: =IFERROR(D56/D80,IFERROR(D55/D79,IFERROR(D54/D78,IFERROR(D53/D77,"-")))) -> - | E57: - | F57: - | G57: - | H57: - | I57: - | J57: - | K57: - | L57: - | M57: - | N57: - | O57: - | P57: - | Q57: - | R57: - | S57: - | T57: =IFERROR(T56/T80,IFERROR(T55/T79,IFERROR(T54/T78,IFERROR(T53/T77,"-")))) -> - | V57: %Common Size
D58: Property, Plant And Equipment - Net
A59: BS | B59: Property, Plant And Equipment - Net | C59: Property, Plant And Equipment - Net | V59: Q1
V60: Q2
V61: Q3
V62: Yearly
D63: =IFERROR(D62/D80,IFERROR(D61/D79,IFERROR(D60/D78,IFERROR(D59/D77,"-")))) -> - | E63: - | F63: - | G63: - | H63: - | I63: - | J63: - | K63: - | L63: - | M63: - | N63: - | O63: - | P63: - | Q63: - | R63: - | S63: - | T63: - | V63: %Common Size
D64: Intangible Assets - Net
A65: BS | B65: Intangible Assets - Net | C65: Goodwill And Other Intangible Assets - Net | V65: Q1
V66: Q2
V67: Q3
V68: Yearly
D69: =IFERROR(D68/D80,IFERROR(D67/D79,IFERROR(D66/D78,IFERROR(D65/D77,"-")))) -> - | E69: - | F69: - | G69: - | H69: - | I69: - | J69: - | K69: - | L69: - | M69: - | N69: - | O69: - | P69: - | Q69: - | R69: - | S69: - | T69: - | V69: %Common Size
D70: Total Non-Current Assets
A71: BS | B71: Total Non-Current Assets | V71: Q1
V72: Q2
V73: Q3
V74: Yearly
D75: =IFERROR(D74/D80,IFERROR(D73/D79,IFERROR(D72/D78,IFERROR(D71/D77,"-")))) -> - | E75: - | F75: - | G75: - | H75: - | I75: - | J75: - | K75: - | L75: - | M75: - | N75: - | O75: - | P75: - | Q75: - | R75: - | S75: - | T75: - | V75: %Common Size
D76: Total Assets
A77: BS | B77: Total Assets | C77: Total Assets | V77: Q1
V78: Q2
V79: Q3
V80: Yearly
D81: Liabilities
D82: Bank Overdrafts And Short-Term Borrowings From Financial Institutions
A83: BS | B83: Bank Overdrafts And Short-Term Borrowings From Financial Institutions | V83: Q1
V84: Q2
V85: Q3
V86: Yearly
D87: =IFERROR(D86/D80,IFERROR(D85/D79,IFERROR(D84/D78,IFERROR(D83/D77,"-")))) -> - | E87: - | F87: - | G87: - | H87: - | I87: - | J87: - | K87: - | L87: - | M87: - | N87: - | O87: - | P87: - | Q87: - | R87: - | S87: - | T87: - | V87: %Common Size
D88: Current Portion Of Long-Term Debts
A89: BS | B89: Current Portion Of Long-Term Debts | V89: Q1
V90: Q2
V91: Q3
V92: Yearly
D93: =IFERROR(D92/D80,IFERROR(D91/D79,IFERROR(D90/D78,IFERROR(D89/D77,"-")))) -> - | E93: - | F93: - | G93: - | H93: - | I93: - | J93: - | K93: - | L93: - | M93: - | N93: - | O93: - | P93: - | Q93: - | R93: - | S93: - | T93: - | V93: %Common Size
D94: Short-Term Debts
D95: =IF(AND(ISBLANK(D89), ISBLANK(D83)), "", D89 + D83) ->  | J95: =IF(AND(ISBLANK(J89), ISBLANK(J83)), "", J89 + J83) ->  | P95: =IF(AND(ISBLANK(P89), ISBLANK(P83)), "", P89 + P83) ->  | T95: =IF(AND(ISBLANK(T89), ISBLANK(T83)), "", T89 + T83) ->  | V95: Q1
T96: =IF(AND(ISBLANK(T90), ISBLANK(T84)), "", T90 + T84) ->  | V96: Q2
V97: Q3
V98: Yearly
D99: =IFERROR(D98/D80,IFERROR(D97/D79,IFERROR(D96/D78,IFERROR(D95/D77,"-")))) -> - | E99: - | F99: - | G99: - | H99: - | I99: - | J99: - | K99: - | L99: - | M99: - | N99: - | O99: - | P99: - | Q99: - | R99: - | S99: - | T99: - | V99: %Common Size
D100: Long-Term Debts
A101: BS | B101: Non-Current Portion Of Long-Term Debts | V101: Q1
V102: Q2
V103: Q3
V104: Yearly
D105: =IFERROR(D104/D80,IFERROR(D103/D79,IFERROR(D102/D78,IFERROR(D101/D77,"-")))) -> - | E105: - | F105: - | G105: - | H105: - | I105: - | J105: - | K105: - | L105: - | M105: - | N105: - | O105: - | P105: - | Q105: - | R105: - | S105: - | T105: - | V105: %Common Size
D106: Debts Issued And Borrowings - Old
A107: BS | C107: Debts Issued And Borrowings | V107: Q1
V108: Q2
V109: Q3
V110: Yearly
D111: =IFERROR(D110/D86,IFERROR(D109/D85,IFERROR(D108/D84,IFERROR(D107/D83,"-")))) -> - | E111: - | F111: - | G111: - | H111: - | I111: - | J111: - | K111: - | L111: - | M111: - | N111: - | O111: - | P111: - | Q111: - | R111: - | S111: - | T111: - | V111: %Common Size
D112: Total Debts
D113: =IF(AND(ISBLANK(D89), ISBLANK(D83), ISBLANK(D101)), IF(ISBLANK(D107), "", D107), D89 + D83+D101) ->  | T113: =IF(AND(ISBLANK(T89), ISBLANK(T83), ISBLANK(T101)), IF(ISBLANK(T107), "", T107), T89 + T83+T101) ->  | V113: Q1
T114: =IF(AND(ISBLANK(T90), ISBLANK(T84), ISBLANK(T102)), IF(ISBLANK(T108), "", T108), T90 + T84+T102) ->  | V114: Q2
V115: Q3
V116: Yearly
D117: =IFERROR(D116/D80,IFERROR(D115/D79,IFERROR(D114/D78,IFERROR(D113/D77,"-")))) -> - | E117: - | F117: - | G117: - | H117: - | I117: - | J117: - | K117: - | L117: - | M117: - | N117: - | O117: - | P117: - | Q117: - | R117: - | S117: - | T117: - | V117: %Common Size
D118: Total Liabilities
A119: BS | B119: Total Liabilities | C119: Total Liabilities | V119: Q1
V120: Q2
V121: Q3
V122: Yearly
D123: =IFERROR(D122/D80,IFERROR(D121/D79,IFERROR(D120/D78,IFERROR(D119/D77,"-")))) -> - | E123: - | F123: - | G123: - | H123: - | I123: - | J123: - | K123: - | L123: - | M123: - | N123: - | O123: - | P123: - | Q123: - | R123: - | S123: - | T123: - | V123: %Common Size
D124: Equity
D125: Retained Earnings (Deficits) - Unappropriated
A126: BS | B126: Retained Earnings (Deficits) - Unappropriated | C126: Retained Earnings (Deficits) - Unappropriated | V126: Q1
V127: Q2
V128: Q3
V129: Yearly
D130: =IFERROR(D129/D80,IFERROR(D128/D79,IFERROR(D127/D78,IFERROR(D126/D77,"-")))) -> - | E130: - | F130: - | G130: - | H130: - | I130: - | J130: - | K130: - | L130: - | M130: - | N130: - | O130: - | P130: - | Q130: - | R130: - | S130: - | T130: - | V130: %Common Size
D131: Equity Attributable To Owners Of The Parent
A132: BS | B132: Equity Attributable To Owners Of The Parent | C132: Equity Attributable To Owners Of The Parent | V132: Q1
V133: Q2
V134: Q3
V135: Yearly
D136: =IFERROR(D135/D80,IFERROR(D134/D79,IFERROR(D133/D78,IFERROR(D132/D77,"-")))) -> - | E136: - | F136: - | G136: - | H136: - | I136: - | J136: - | K136: - | L136: - | M136: - | N136: - | O136: - | P136: - | Q136: - | R136: - | S136: - | T136: - | V136: %Common Size
D137: Revenue Structure
D138: Interest Income
A139: PL | B139: Interest Income | C139: Interest Income | V139: Q1
V140: Q2
V141: Q3
V142: Q4
D143: =IF(COUNT(D139:D142)=4,SUM(D139:D142),IF(COUNT(D139:D142)=0,"",SUM(D139:D142)*4/COUNT(D139:D142))) ->  | S143: =IF(COUNT(S139:S142)=4,SUM(S139:S142),IF(COUNT(S139:S142)=0,"",SUM(S139:S142)*4/COUNT(S139:S142))) ->  | T143: =IF(COUNT(T139:T142)=4,SUM(T139:T142),IF(COUNT(T139:T142)=0,"",SUM(T139:T142)*4/COUNT(T139:T142))) ->  | V143: Yearly
D144: =IFERROR((D143-C143)/C143,"-") -> - | E144: - | F144: - | G144: - | H144: - | I144: - | J144: - | K144: - | L144: - | M144: - | N144: - | O144: - | P144: - | Q144: - | R144: - | S144: - | T144: =IFERROR((T143-S143)/S143,"-") -> - | V144: %YoY Growth
D145: =IFERROR(D143/D174, "") ->  | V145: %Common Size
D146: Fees And Service Income
A147: PL | B147: Fees And Service Income | C147: Fees And Service Income | V147: Q1
V148: Q2
V149: Q3
V150: Q4
D151: =IF(COUNT(D147:D150)=4,SUM(D147:D150),IF(COUNT(D147:D150)=0,"",SUM(D147:D150)*4/COUNT(D147:D150))) ->  | S151: =IF(COUNT(S147:S150)=4,SUM(S147:S150),IF(COUNT(S147:S150)=0,"",SUM(S147:S150)*4/COUNT(S147:S150))) ->  | T151: =IF(COUNT(T147:T150)=4,SUM(T147:T150),IF(COUNT(T147:T150)=0,"",SUM(T147:T150)*4/COUNT(T147:T150))) ->  | V151: Yearly
D152: =IFERROR((D151-B151)/B151,"-") -> - | E152: =IFERROR((E151-D151)/D151,"-") -> - | F152: - | G152: - | H152: - | I152: - | J152: - | K152: - | L152: - | M152: - | N152: - | O152: - | P152: - | Q152: - | R152: - | S152: - | T152: =IFERROR((T151-S151)/S151,"-") -> - | V152: %YoY Growth
D153: =IFERROR(D151/D174, "") ->  | V153: %Common Size
D154: Other Income
A155: PL | B155: Other Income | C155: Other Operating Income | V155: Q1
V156: Q2
V157: Q3
V158: Q4
D159: =IF(COUNT(D155:D158)=4,SUM(D155:D158),IF(COUNT(D155:D158)=0,"",SUM(D155:D158)*4/COUNT(D155:D158))) ->  | E159: =IF(COUNT(E155:E158)=4,SUM(E155:E158),IF(COUNT(E155:E158)=0,"",SUM(E155:E158)*4/COUNT(E155:E158))) ->  | S159: =IF(COUNT(S155:S158)=4,SUM(S155:S158),IF(COUNT(S155:S158)=0,"",SUM(S155:S158)*4/COUNT(S155:S158))) ->  | T159: =IF(COUNT(T155:T158)=4,SUM(T155:T158),IF(COUNT(T155:T158)=0,"",SUM(T155:T158)*4/COUNT(T155:T158))) ->  | V159: Yearly
D160: =IFERROR(D159/C159-1, "") ->  | T160: =IFERROR(T159/S159-1, "") ->  | V160: YoY Growth
D161: =IFERROR(D159/D174, "") ->  | V161: %Common Size
D162: Total Revenue - New
A163: PL | B163: Total Revenue | V163: Q1
V164: Q2
V165: Q3
V166: Q4
D167: =IF(COUNT(D163:D166)=4,SUM(D163:D166),IF(COUNT(D163:D166)=0,"",SUM(D163:D166)*4/COUNT(D163:D166))) ->  | E167: =IF(COUNT(E163:E166)=4,SUM(E163:E166),IF(COUNT(E163:E166)=0,"",SUM(E163:E166)*4/COUNT(E163:E166))) ->  | S167: =IF(COUNT(S163:S166)=4,SUM(S163:S166),IF(COUNT(S163:S166)=0,"",SUM(S163:S166)*4/COUNT(S163:S166))) ->  | T167: =IF(COUNT(T163:T166)=4,SUM(T163:T166),IF(COUNT(T163:T166)=0,"",SUM(T163:T166)*4/COUNT(T163:T166))) ->  | V167: Yearly
D168: =IFERROR(D167/C167-1, "") ->  | T168: =IFERROR(T167/S167-1, "") ->  | V168: %YoY Growth
D169: Total Revenue
D170: =IF(ISBLANK(D163), IF(D139+D147+D155 = 0, "", D139+D147+D155), D163) ->  | T170: =IF(ISBLANK(T163), IF(T139+T147+T155 = 0, "", T139+T147+T155), T163) ->  | V170: Q1
T171: =IF(ISBLANK(T164), IF(T140+T148+T156 = 0, "", T140+T148+T156), T164) ->  | V171: Q2
V172: Q3
V173: Q4
D174: =IF(COUNT(D170:D173)=4,SUM(D170:D173),IF(COUNT(D170:D173)=0,"",SUM(D170:D173)*4/COUNT(D170:D173))) ->  | E174: =IF(COUNT(E170:E173)=4,SUM(E170:E173),IF(COUNT(E170:E173)=0,"",SUM(E170:E173)*4/COUNT(E170:E173))) ->  | S174: =IF(COUNT(S170:S173)=4,SUM(S170:S173),IF(COUNT(S170:S173)=0,"",SUM(S170:S173)*4/COUNT(S170:S173))) ->  | T174: =IF(COUNT(T170:T173)=4,SUM(T170:T173),IF(COUNT(T170:T173)=0,"",SUM(T170:T173)*4/COUNT(T170:T173))) ->  | V174: Yearly
D175: =IFERROR(D174/C174-1, "") ->  | T175: =IFERROR(T174/S174-1, "") ->  | V175: %YoY Growth
D176: COGS Breakdown
D177: Finance Costs
A178: PL | B178: Finance Costs | C178: Interest Expenses | V178: Q1
V179: Q2
V180: Q3
V181: Q4
D182: =IF(COUNT(D178:D181)=4,SUM(D178:D181),IF(COUNT(D178:D181)=0,"",SUM(D178:D181)*4/COUNT(D178:D181))) ->  | T182: =IF(COUNT(T178:T181)=4,SUM(T178:T181),IF(COUNT(T178:T181)=0,"",SUM(T178:T181)*4/COUNT(T178:T181))) ->  | V182: Yearly
D183: =IFERROR(D182/D143, "-") -> - | E183: - | F183: - | G183: - | H183: - | I183: - | J183: - | K183: - | L183: - | M183: - | N183: - | O183: - | P183: - | Q183: - | R183: - | S183: - | T183: =IFERROR(T182/T143, "-") -> - | V183: %Common Size
D184: =IFERROR((D182-B182)/B182,"-") -> - | E184: =IFERROR((E182-D182)/D182,"-") -> - | F184: - | G184: - | H184: - | I184: - | J184: - | K184: - | L184: - | M184: - | N184: - | O184: - | P184: - | Q184: - | R184: - | S184: =IFERROR((S182-R182)/R182,"-") -> - | T184: =IFERROR((T182-S182)/S182,"-") -> - | V184: %YoY Growth
D185: Net Interest Income
D186: =IF(AND(ISBLANK(D139),ISBLANK(D178)),"",D139-D178) ->  | V186: Q1
V187: Q2
V188: Q3
V189: Q4
D190: =IF(COUNT(D186:D189)=4,SUM(D186:D189),IF(COUNT(D186:D189)=0,"",SUM(D186:D189)*4/COUNT(D186:D189))) ->  | E190: =IF(COUNT(E186:E189)=4,SUM(E186:E189),IF(COUNT(E186:E189)=0,"",SUM(E186:E189)*4/COUNT(E186:E189))) ->  | H190: =IF(COUNT(H186:H189)=4,SUM(H186:H189),IF(COUNT(H186:H189)=0,"",SUM(H186:H189)*4/COUNT(H186:H189))) ->  | I190: =IF(COUNT(I186:I189)=4,SUM(I186:I189),IF(COUNT(I186:I189)=0,"",SUM(I186:I189)*4/COUNT(I186:I189))) ->  | J190: =IF(COUNT(J186:J189)=4,SUM(J186:J189),IF(COUNT(J186:J189)=0,"",SUM(J186:J189)*4/COUNT(J186:J189))) ->  | T190: =IF(COUNT(T186:T189)=4,SUM(T186:T189),IF(COUNT(T186:T189)=0,"",SUM(T186:T189)*4/COUNT(T186:T189))) ->  | V190: Yearly
D191: =IFERROR(D190/D143, "-") -> - | E191: - | F191: - | G191: - | H191: - | I191: - | J191: - | K191: - | L191: - | M191: - | N191: - | O191: - | P191: - | Q191: - | R191: - | S191: - | T191: - | V191: %GPM
D192: =IFERROR((D190-B190)/B190,"-") -> - | E192: =IFERROR((E190-D190)/D190,"-") -> - | F192: - | G192: - | H192: - | I192: - | J192: =IFERROR((J190-I190)/I190,"-") -> - | K192: - | L192: - | M192: - | N192: - | O192: - | P192: - | Q192: - | R192: - | S192: - | T192: - | V192: %YoY Growth
D193: Selling And Administrative Expenses
A194: PL | B194: Selling And Administrative Expenses | C194: Fees And Service Expenses | V194: Q1
V195: Q2
V196: Q3
V197: Q4
D198: =IF(COUNT(D194:D197)=4,SUM(D194:D197),IF(COUNT(D194:D197)=0,"",SUM(D194:D197)*4/COUNT(D194:D197))) ->  | V198: Yearly
D199: =IFERROR(D198/D143, "-") -> - | E199: - | F199: - | G199: - | H199: - | I199: - | J199: - | K199: - | L199: - | M199: - | N199: - | O199: - | P199: - | Q199: - | R199: - | S199: - | T199: =IFERROR(T198/T143, "-") -> - | V199: %Common Size
D200: =IFERROR((D198-B198)/B198,"-") -> - | E200: =IFERROR((E198-D198)/D198,"-") -> - | F200: - | G200: - | H200: - | I200: - | J200: - | K200: - | L200: - | M200: - | N200: - | O200: - | P200: - | Q200: - | R200: - | S200: - | T200: - | V200: %YoY Growth
... 136 more rows

Sheet ตารางเวลา
A1: หุ้น | B1: เรื่อง | C1: วันเวลา
A2: ICHI | B2: ประกาศงบปีที่แล้ว | C2: 2025-11-11T18:00:00
B3: OPP DAY | C3: 25/11/2025 11:15 - 12:00
A4: HMPRO | B4: ประกาศงบปีที่แล้ว | C4: 2025-10-29T07:00:00
B5: OPP DAY | C5: 14/11/2025 16:15 - 17:00
A6: READY | B6: ประกาศงบปีที่แล้ว | C6: 611/2025 20:30
B7: OPP DAY | C7: 10/11/2025 11:15 - 12:00
A8: TURBO | B8: ประกาศงบปีที่แล้ว
B9: OPP DAY
A10: DOHOME | B10: ประกาศงบปีที่แล้ว | C10: 2025-11-05T21:00:00
B11: OPP DAY | C11: 12/11/2025 16:15 - 17:00
A12: ADVICE | B12: ประกาศงบปีที่แล้ว | C12: 2025-11-11T18:00:00
B13: OPP DAY | C13: 25/11/2025 16:15 - 17:00
A14: SABINA | B14: ประกาศงบปีที่แล้ว | C14: 2025-11-14T17:15:00
B15: OPP DAY | C15: 18/11/2025 10:15 - 11:00

Sheet ICHI
C1: 2008 | D1: 2009 | E1: 2010 | F1: 2011 | G1: 2012 | H1: 2013 | I1: 2014 | J1: 2015 | K1: 2016 | L1: 2017 | M1: 2018 | N1: 2019 | O1: 2020 | P1: 2021 | Q1: 2022 | R1: 2023 | S1: 2024 | T1: 2025 | U1: 2026
C2: Asset
C3: Cash And Cash Equivalents
A4: BS | B4: Cash And Cash Equivalents | L4: 132.385 | M4: 114.104 | N4: 130.83 | O4: 101.986 | P4: 50.653 | Q4: 46.465 | R4: 142.689 | S4: 348.369 | T4: 352.398 | U4: 397.783 | W4: Q1
L5: 139.457 | M5: 146.128 | N5: 62.298 | O5: 54.641 | P5: 28.058 | Q5: 96.972 | R5: 209.673 | S5: 646.681 | T5: 494.598 | W5: Q2
L6: 107.652 | M6: 64.974 | N6: 53.182 | O6: 44.619 | P6: 31.362 | Q6: 158.693 | R6: 211.745 | S6: 822.992 | T6: 283.937 | W6: Q3
L7: 109.84647 | M7: 114.55814 | N7: 97.68319 | O7: 17.8692 | P7: 41.30404 | Q7: 162.21769 | R7: 549.3554 | S7: 420.72079 | T7: 231.63261 | W7: Yearly
C8: =IFERROR(C7/C55,IFERROR(C6/C54,IFERROR(C5/C53,IFERROR(C4/C52,"-")))) -> - | D8: - | E8: - | F8: - | G8: - | H8: - | I8: - | J8: - | K8: - | L8: 0.01273390056 | M8: 0.01401018493 | N8: 0.01270767665 | O8: 0.00241327265 | P8: 0.005812337866 | Q8: 0.02196371549 | R8: 0.07624444552 | S8: 0.05941214174 | T8: =IFERROR(T7/T55,IFERROR(T6/T54,IFERROR(T5/T53,IFERROR(T4/T52,"-")))) -> 0.03411110152 | U8: 0.05526780396 | W8: %Common Size
C9: Short-Term Investments - Net
A10: BS | B10: Short-Term Investments - Net | L10: 0 | M10: 0.01 | N10: 0.01 | O10: 0 | P10: 208.355 | Q10: 481.478 | R10: 909.893 | S10: 968.898 | T10: 770.032 | U10: 1168.609 | W10: Q1
L11: 0 | M11: 0.01 | N11: 0.01 | O11: 0 | P11: 0 | Q11: 154.973 | R11: 477.476 | S11: 312.756 | T11: 142.369 | W11: Q2
L12: 0 | M12: 0.01 | N12: 0.01 | O12: 0 | P12: 95.914 | Q12: 332.037 | R12: 1030.521 | S12: 314.512 | T12: 615.256 | W12: Q3
L13: 0 | M13: 0.01 | N13: 0.01 | O13: 184.7955 | P13: 296.36195 | Q13: 572.72661 | R13: 411.06976 | S13: 487.55117 | T13: 366.48329 | W13: Yearly
C14: =IFERROR(C13/C55,IFERROR(C12/C54,IFERROR(C11/C53,IFERROR(C10/C52,"-")))) -> - | D14: - | E14: - | F14: - | G14: - | H14: - | I14: - | J14: - | K14: - | L14: 0 | M14: 1.222975943e-06 | N14: 1.300907213e-06 | O14: 0.02495701687 | P14: 0.04170429295 | Q14: 0.07754520678 | R14: 0.05705193017 | S14: 0.06884960265 | T14: =IFERROR(T13/T55,IFERROR(T12/T54,IFERROR(T11/T53,IFERROR(T10/T52,"-")))) -> 0.05396972693 | U14: 0.1623660466 | W14: %Common Size
C15: Trade And Other Receivables - Current - Net
A16: BS | B16: Trade And Other Receivables - Current - Net | L16: 1099.32 | M16: 1025.477 | N16: 903.063 | O16: 835.105 | P16: 1044.314 | Q16: 1336.327 | R16: 1559.649 | S16: 1758.22 | T16: 1554.417 | U16: 1808.063 | W16: Q1
L17: 819.425 | M17: 730.614 | N17: 1050.564 | O17: 892.587 | P17: 1006.575 | Q17: 1334.839 | R17: 1708.601 | S17: 1903.77 | T17: 2325.584 | W17: Q2
L18: 885.596 | M18: 730.367 | N18: 726.424 | O18: 878.955 | P18: 904.6 | Q18: 1278.52 | R18: 1548.149 | S18: 1693.494 | T18: 1707.576 | W18: Q3
L19: 726.3119 | M19: 796.88076 | N19: 811.21366 | O19: 870.5339 | P19: 1053.95503 | Q19: 1303.98094 | R19: 1532.8727 | S19: 1592.38833 | T19: 2205.43048 | W19: Yearly
C20: =IFERROR(C19/C55,IFERROR(C18/C54,IFERROR(C17/C53,IFERROR(C16/C52,"-")))) -> - | D20: - | E20: - | F20: - | G20: - | H20: - | I20: - | J20: - | K20: - | L20: 0.08419736669 | M20: 0.09745659992 | N20: 0.1055313702 | O20: 0.117567415 | P20: 0.148313403 | Q20: 0.1765545198 | R20: 0.2127457545 | S20: 0.2248693276 | T20: =IFERROR(T19/T55,IFERROR(T18/T54,IFERROR(T17/T53,IFERROR(T16/T52,"-")))) -> 0.3247801033 | U20: 0.2512115184 | W20: %Common Size
C21: Inventories - Net
A22: BS | B22: Inventories - Net | L22: 532.441 | M22: 786.576 | N22: 690.983 | O22: 611.363 | P22: 456.803 | Q22: 450.468 | R22: 467.659 | S22: 841.979 | T22: 1034.297 | U22: 659.171 | W22: Q1
L23: 656.366 | M23: 755.432 | N23: 527.069 | O23: 629.719 | P23: 510.597 | Q23: 433.462 | R23: 412.853 | S23: 837.395 | T23: 682.56 | W23: Q2
L24: 600.027 | M24: 669.199 | N24: 694.429 | O24: 563.266 | P24: 598.573 | Q24: 488.106 | R24: 475.461 | S24: 963.812 | T24: 713.798 | W24: Q3
L25: 736.82945 | M25: 654.35665 | N25: 546.64792 | O25: 590.12169 | P25: 531.12714 | Q25: 587.78435 | R25: 750.06022 | S25: 948.25983 | T25: 727.29262 | W25: Yearly
C26: =IFERROR(C25/C55,IFERROR(C24/C54,IFERROR(C23/C53,IFERROR(C22/C52,"-")))) -> - | D26: - | E26: - | F26: - | G26: - | H26: - | I26: - | J26: - | K26: - | L26: 0.08541660874 | M26: 0.08002624413 | N26: 0.07111382222 | O26: 0.0796971624 | P26: 0.07474064008 | Q26: 0.07958397282 | R26: 0.1041000518 | S26: 0.1339086367 | T26: =IFERROR(T25/T55,IFERROR(T24/T54,IFERROR(T23/T53,IFERROR(T22/T52,"-")))) -> 0.1071038849 | U26: 0.09158494356 | W26: %Common Size
C27: Total Current Assets
A28: BS | B28: Total Current Assets | L28: 1764.259 | M28: 1926.28 | N28: 1724.999 | O28: 1548.454 | P28: 1760.125 | Q28: 2314.787 | R28: 3079.925 | S28: 3917.531 | T28: 3711.216 | U28: 4033.659 | W28: Q1
L29: 1615.361 | M29: 1632.297 | N29: 1640.007 | O29: 1576.947 | P29: 1545.23 | Q29: 2020.288 | R29: 2808.676 | S29: 3700.667 | T29: 3645.177 | W29: Q2
L30: 1593.388 | M30: 1464.663 | N30: 1474.045 | O30: 1486.84 | P30: 1630.449 | Q30: 2257.398 | R30: 3265.942 | S30: 3794.856 | T30: 3320.619 | W30: Q3
L31: 1573.10043 | M31: 1565.91816 | N31: 1455.55476 | O31: 1663.32028 | P31: 1922.84816 | Q31: 2626.75134 | R31: 3243.42355 | S31: 3448.96617 | T31: 3530.88122 | W31: Yearly
C32: =IFERROR(C31/C55,IFERROR(C30/C54,IFERROR(C29/C53,IFERROR(C28/C52,"-")))) -> - | D32: - | E32: - | F32: - | G32: - | H32: - | I32: - | J32: - | K32: - | L32: 0.1823609303 | M32: 0.1915080239 | N32: 0.1893541687 | O32: 0.2246348655 | P32: 0.270584746 | Q32: 0.3556530677 | R32: 0.4501512685 | S32: 0.4870462117 | T32: =IFERROR(T31/T55,IFERROR(T30/T54,IFERROR(T29/T53,IFERROR(T28/T52,"-")))) -> 0.5199710341 | U32: 0.5604348976 | W32: %Common Size
C33: Property, Plant And Equipment - Net
A34: BS | B34: Property, Plant And Equipment - Net | L34: 6383.385 | M34: 6676.144 | N34: 6137.691 | O34: 5663.515 | P34: 5111.898 | Q34: 4554.596 | R34: 4129.953 | S34: 3432.041 | T34: 3368.687 | U34: 2904.03 | W34: Q1
L35: 6885.809 | M35: 6536.413 | N35: 6037.071 | O35: 5529.436 | P35: 4984.557 | Q35: 4444.037 | R35: 4002.108 | S35: 3336.13 | T35: 3237.815 | W35: Q2
L36: 6843.817 | M36: 6400.314 | N36: 5939.728 | O36: 5392.938 | P36: 4844.211 | Q36: 4375.554 | R36: 3894.589 | S36: 3390.466 | T36: 3116.444 | W36: Q3
L37: 6808.96762 | M37: 6264.043 | N37: 5794.2335 | O37: 5253.80054 | P37: 4692.52425 | Q37: 4262.12541 | R37: 3545.59059 | S37: 3308.19137 | T37: 2997.29839 | W37: Yearly
C38: =IFERROR(C37/C55,IFERROR(C36/C54,IFERROR(C35/C53,IFERROR(C34/C52,"-")))) -> - | D38: - | E38: - | F38: - | G38: - | H38: - | I38: - | J38: - | K38: - | L38: 0.7893263809 | M38: 0.7660773897 | N38: 0.7537760156 | O38: 0.7095366972 | P38: 0.6603358022 | Q38: 0.5770770739 | R38: 0.4920887072 | S38: 0.4671666798 | T38: =IFERROR(T37/T55,IFERROR(T36/T54,IFERROR(T35/T53,IFERROR(T34/T52,"-")))) -> 0.4413935916 | U38: 0.4034847159 | W38: %Common Size
C39: Intangible Assets - Net
A40: BS | B40: Intangible Assets - Net | L40: 56.507 | M40: 25.85 | N40: 20.94 | O40: 10.149 | P40: 10.673 | Q40: 11.43 | R40: 9.438 | S40: 7.486 | T40: 5.93 | U40: 4.265 | W40: Q1
L41: 56.388 | M41: 26.174 | N41: 20.862 | O41: 9.815 | P41: 10.215 | Q41: 10.91 | R41: 8.952 | S41: 7.382 | T41: 5.445 | W41: Q2
L42: 56.066 | M42: 26.023 | N42: 20.443 | O42: 11.343 | P42: 12.49 | Q42: 10.413 | R42: 8.461 | S42: 6.889 | T42: 5.016 | W42: Q3
L43: 26.08047 | M43: 21.34539 | N43: 9.99446 | O43: 10.85409 | P43: 11.95263 | Q43: 9.91952 | R43: 7.97081 | S43: 6.39594 | T43: 4.69662 | W43: Yearly
C44: =IFERROR(C43/C55,IFERROR(C42/C54,IFERROR(C41/C53,IFERROR(C40/C52,"-")))) -> - | D44: - | E44: - | F44: - | G44: - | H44: - | I44: - | J44: - | K44: - | L44: 0.003023366264 | M44: 0.002610489847 | N44: 0.001300186511 | O44: 0.001465867444 | P44: 0.001681983747 | Q44: 0.00134306878 | R44: 0.001106260153 | S44: 0.000903203509 | T44: =IFERROR(T43/T55,IFERROR(T42/T54,IFERROR(T41/T53,IFERROR(T40/T52,"-")))) -> 0.0006916421726 | U44: 0.0005925773195 | W44: %Common Size
C45: Total Non-Current Assets
A46: BS | B46: Total Non-Current Assets | L46: 7040.464 | M46: 7049.45 | N46: 6578.103 | O46: 6207.8 | P46: 5592.327 | Q46: 5045.343 | R46: 4642.615 | S46: 3778.709 | T46: 3596.641 | U46: 3163.714 | W46: Q1
L47: 7128.563 | M47: 6889.17 | N47: 6485.552 | O47: 6031.028 | P47: 5433.887 | Q47: 4943.615 | R47: 4518.059 | S47: 3676.869 | T47: 3463.042 | W47: Q2
L48: 7193.154 | M48: 6755.115 | N48: 6382.618 | O48: 5881.364 | P48: 5312.65 | Q48: 4900.354 | R48: 4326.131 | S48: 3722.717 | T48: 3372.527 | W48: Q3
L49: 7053.20141 | M49: 6610.85756 | N49: 6231.38855 | O49: 5741.23055 | P49: 5183.42146 | Q49: 4758.96125 | R49: 3961.7623 | S49: 3632.42793 | T49: 3259.65323 | W49: Yearly
C50: =IFERROR(C49/C55,IFERROR(C48/C54,IFERROR(C47/C53,IFERROR(C46/C52,"-")))) -> - | D50: - | E50: - | F50: - | G50: - | H50: - | I50: - | J50: - | K50: - | L50: 0.8176390686 | M50: 0.8084919761 | N50: 0.8106458313 | O50: 0.7753651345 | P50: 0.729415254 | Q50: 0.6443469323 | R50: 0.5498487315 | S50: 0.5129537883 | T50: =IFERROR(T49/T55,IFERROR(T48/T54,IFERROR(T47/T53,IFERROR(T46/T52,"-")))) -> 0.4800289659 | U50: 0.4395651024 | W50: %Common Size
C51: Total Assets
A52: BS | B52: Total Assets | L52: 8804.723 | M52: 8975.73 | N52: 8303.102 | O52: 7756.254 | P52: 7352.452 | Q52: 7360.13 | R52: 7722.54 | S52: 7696.24 | T52: 7307.857 | U52: 7197.373 | W52: Q1
L53: 8743.924 | M53: 8521.467 | N53: 8125.559 | O53: 7607.975 | P53: 6979.117 | Q53: 6963.903 | R53: 7326.735 | S53: 7377.536 | T53: 7108.219 | W53: Q2
L54: 8786.542 | M54: 8219.778 | N54: 7856.663 | O54: 7368.204 | P54: 6943.099 | Q54: 7157.752 | R54: 7592.073 | S54: 7517.573 | T54: 6693.146 | W54: Q3
L55: 8626.30185 | M55: 8176.77572 | N55: 7686.94331 | O55: 7404.55083 | P55: 7106.26962 | Q55: 7385.71259 | R55: 7205.18585 | S55: 7081.3941 | T55: 6790.53445 | W55: Yearly
C56: Liabilities
C57: Trade And Other Payables - Current
A58: BS | B58: Trade And Other Payables - Current | L58: 684.44 | M58: 746.768 | N58: 669.943 | O58: 700.413 | P58: 673.62 | Q58: 712.868 | R58: 832.268 | S58: 942.116 | T58: 837.202 | U58: 767.693 | W58: Q1
L59: 804.977 | M59: 709.243 | N59: 684.814 | O59: 591.214 | P59: 726.493 | Q59: 776.401 | R59: 928.12 | S59: 926.264 | T59: 882.466 | W59: Q2
L60: 705.407 | M60: 599.318 | N60: 706.771 | O60: 545.253 | P60: 620.148 | Q60: 828.73 | R60: 942.423 | S60: 878.158 | T60: 866.445 | W60: Q3
L61: 674.19229 | M61: 633.59413 | N61: 483.09403 | O61: 597.65161 | P61: 609.47636 | Q61: 790.71544 | R61: 896.91893 | S61: 896.7501 | T61: 746.14984 | W61: Yearly
C62: =IFERROR(C61/C55,"-") -> - | D62: - | E62: - | F62: - | G62: - | H62: - | I62: - | J62: - | K62: - | L62: 0.07815542532 | M62: 0.07748703789 | N62: 0.06284605083 | O62: 0.08071409377 | P62: 0.0857660056 | Q62: 0.1070601422 | R62: 0.1244824143 | S62: =IFERROR(S61/S55,"-") -> 0.1266346834 | T62: =IFERROR(T61/T55,"-") -> 0.109880871 | U62: =IFERROR(U61/U55,"-") -> - | W62: %Common Size
C63: Total Current Liabilities
A64: BS | B64: Total Current Liabilities | L64: 2053.308 | M64: 2267.547 | N64: 1803.101 | O64: 961.818 | P64: 828.068 | Q64: 957.442 | R64: 1215.791 | S64: 1392.547 | T64: 1274.632 | U64: 1135.895 | W64: Q1
L65: 2053.503 | M65: 1949.084 | N65: 1629.071 | O65: 1188.725 | P65: 939.053 | Q65: 1057.559 | R65: 1338.706 | S65: 1350.199 | T65: 1322.528 | W65: Q2
L66: 2208.939 | M66: 1710.353 | N66: 1333.103 | O66: 891.156 | P66: 762.013 | Q66: 1047.707 | R66: 1279.362 | S66: 1141.297 | T66: 1226.47 | W66: Q3
L67: 1772.84812 | M67: 1721.26366 | N67: 1105.50669 | O67: 870.18791 | P67: 796.02039 | Q67: 1110.43794 | R67: 1261.84769 | S67: 1282.64657 | T67: 1006.34619 | W67: Yearly
C68: =IFERROR(C67/C55,IFERROR(C66/C54,IFERROR(C65/C53,IFERROR(C64/C52,"-")))) -> - | D68: - | E68: - | F68: - | G68: - | H68: - | I68: - | J68: - | K68: - | L68: 0.2055165876 | M68: 0.2105064048 | N68: 0.1438161627 | O68: 0.1175206883 | P68: 0.1120166322 | Q68: 0.1503494655 | R68: 0.1751304847 | S68: 0.1811291042 | T68: =IFERROR(T67/T55,IFERROR(T66/T54,IFERROR(T65/T53,IFERROR(T64/T52,"-")))) -> 0.1481983778 | U68: 0.1578207771 | W68: %Common Size
C69: Bank Overdrafts And Short-Term Borrowings From Financial Institutions
A70: BS | B70: Bank Overdrafts And Short-Term Borrowings From Financial Institutions | L70: 553.718 | M70: 630 | N70: 580 | O70: 0 | P70: 0 | Q70: 0 | R70: 0 | S70: 0 | T70: 0 | U70: 0 | W70: Q1
L71: 443.717 | M71: 370 | N71: 400 | O71: 330 | P71: 0 | Q71: 0 | R71: 0 | S71: 0 | T71: 0 | W71: Q2
L72: 643.718 | M72: 390 | N72: 150 | O72: 100 | P72: 0 | Q72: 0 | R72: 0 | S72: 0 | T72: 0 | W72: Q3
L73: 240 | M73: 460 | N73: 260 | O73: 0 | P73: 0 | Q73: 0 | R73: 0 | S73: 0 | T73: 0 | W73: Yearly
C74: =IFERROR(C73/C55,IFERROR(C72/C54,IFERROR(C71/C53,IFERROR(C70/C52,"-")))) -> - | D74: - | E74: - | F74: - | G74: - | H74: - | I74: - | J74: - | K74: - | L74: 0.02782188755 | M74: 0.0562568934 | N74: 0.03382358755 | O74: 0 | P74: 0 | Q74: 0 | R74: 0 | S74: 0 | T74: =IFERROR(T73/T55,IFERROR(T72/T54,IFERROR(T71/T53,IFERROR(T70/T52,"-")))) -> 0 | U74: 0 | W74: %Common Size
C75: Current Portion Of Long-Term Debts
A76: BS | B76: Current Portion Of Long-Term Debts | L76: 524.021 | M76: 673.232 | N76: 368.605 | O76: 108.225 | P76: 0 | Q76: 0 | R76: 0 | S76: 0 | T76: 0 | U76: 0 | W76: Q1
L77: 545.356 | M77: 656.99 | N77: 300.785 | O77: 108.225 | P77: 0 | Q77: 0 | R77: 0 | S77: 0 | T77: 0 | W77: Q2
L78: 589.456 | M78: 563.545 | N78: 262.189 | O78: 98.038 | P78: 0 | Q78: 0 | R78: 0 | S78: 0 | T78: 0 | W78: Q3
L79: 647.53072 | M79: 444.22479 | N79: 215.98958 | O79: 98.03784 | P79: 0 | Q79: 0 | R79: 0 | S79: 0 | T79: 0 | W79: Yearly
C80: =IFERROR(C79/C55,IFERROR(C78/C54,IFERROR(C77/C53,IFERROR(C76/C52,"-")))) -> - | D80: - | E80: - | F80: - | G80: - | H80: - | I80: - | J80: - | K80: - | L80: 0.07506469531 | M80: 0.05432762316 | N80: 0.02809824026 | O80: 0.01324021433 | P80: 0 | Q80: 0 | R80: 0 | S80: 0 | T80: =IFERROR(T79/T55,IFERROR(T78/T54,IFERROR(T77/T53,IFERROR(T76/T52,"-")))) -> 0 | U80: 0 | W80: %Common Size
C81: Short-Term Debts
C82: =IF(AND(ISBLANK(C76), ISBLANK(C70)), "", C76 + C70) ->  | H82: =IF(AND(ISBLANK(H76), ISBLANK(H70)), "", H76 + H70) ->  | I82: =IF(AND(ISBLANK(I76), ISBLANK(I70)), "", I76 + I70) ->  | L82: 1077.739 | M82: 1303.232 | N82: 948.605 | O82: 108.225 | P82: 0 | Q82: 0 | R82: 0 | S82: =IF(AND(ISBLANK(S76), ISBLANK(S70)), "", S76 + S70) -> 0 | T82: =IF(AND(ISBLANK(T76), ISBLANK(T70)), "", T76 + T70) -> 0 | U82: =IF(AND(ISBLANK(U76), ISBLANK(U70)), "", U76 + U70) -> 0 | W82: Q1
L83: 989.073 | M83: 1026.99 | N83: 700.785 | O83: 438.225 | P83: 0 | Q83: 0 | R83: 0 | S83: =IF(AND(ISBLANK(S77), ISBLANK(S71)), "", S77 + S71) -> 0 | T83: 0 | U83: =IF(AND(ISBLANK(U77), ISBLANK(U71)), "", U77 + U71) ->  | W83: Q2
L84: 1233.174 | M84: 953.545 | N84: 412.189 | O84: 198.038 | P84: 0 | Q84: 0 | R84: 0 | S84: 0 | T84: 0 | U84: =IF(AND(ISBLANK(U78), ISBLANK(U72)), "", U78 + U72) ->  | W84: Q3
L85: 887.53072 | M85: 904.22479 | N85: 475.98958 | O85: 98.03784 | P85: 0 | Q85: 0 | R85: 0 | S85: 0 | T85: 0 | U85: =IF(AND(ISBLANK(U79), ISBLANK(U73)), "", U79 + U73) ->  | W85: Yearly
C86: =IFERROR(C85/C55,IFERROR(C84/C54,IFERROR(C83/C53,IFERROR(C82/C52,"-")))) -> - | D86: - | E86: - | F86: - | G86: - | H86: - | I86: - | J86: - | K86: - | L86: 0.1028865829 | M86: 0.1105845166 | N86: 0.06192182781 | O86: 0.01324021433 | P86: 0 | Q86: 0 | R86: 0 | S86: 0 | T86: =IFERROR(T85/T55,IFERROR(T84/T54,IFERROR(T83/T53,IFERROR(T82/T52,"-")))) -> 0 | U86: 0 | W86: %Common Size
C87: Long-Term Debts
A88: BS | B88: Non-Current Portion Of Long-Term Debts | L88: 911.73 | M88: 610.791 | N88: 473.708 | O88: 297.618 | P88: 0 | Q88: 0 | R88: 0 | S88: 0 | T88: 0 | U88: 0 | W88: Q1
L89: 759.39 | M89: 697.636 | N89: 396.852 | O89: 220.562 | P89: 0 | Q89: 0 | R89: 0 | S89: 0 | T89: 0 | W89: Q2
L90: 584.285 | M90: 613.92 | N90: 351.731 | O90: 156.24 | P90: 0 | Q90: 0 | R90: 0 | S90: 0 | T90: 0 | W90: Q3
L91: 767.49745 | M91: 540.66397 | N91: 324.67439 | O91: 131.73003 | P91: 0 | Q91: 0 | R91: 0 | S91: 0 | T91: 0 | W91: Yearly
C92: =IFERROR(C91/C55,IFERROR(C90/C54,IFERROR(C89/C53,IFERROR(C88/C52,"-")))) -> - | D92: - | E92: - | F92: - | G92: - | H92: - | I92: - | J92: - | K92: - | L92: 0.08897178227 | M92: 0.06612190288 | N92: 0.04223712559 | O92: 0.01779041471 | P92: 0 | Q92: 0 | R92: 0 | S92: 0 | T92: =IFERROR(T91/T55,IFERROR(T90/T54,IFERROR(T89/T53,IFERROR(T88/T52,"-")))) -> 0 | U92: 0 | W92: %Common Size
C93: Total Debts
C94: =IF(AND(ISBLANK(C76), ISBLANK(C70), ISBLANK(C88)), "", C76 + C70+C88) ->  | L94: 1989.469 | M94: 1914.023 | N94: 1422.313 | O94: 405.843 | P94: 0 | Q94: 0 | R94: 0 | S94: =IF(AND(ISBLANK(S76), ISBLANK(S70), ISBLANK(S88)), "", S76 + S70+S88) -> 0 | T94: =IF(AND(ISBLANK(T76), ISBLANK(T70), ISBLANK(T88)), "", T76 + T70+T88) -> 0 | U94: =IF(AND(ISBLANK(U76), ISBLANK(U70), ISBLANK(U88)), "", U76 + U70+U88) -> 0 | W94: Q1
L95: 1748.463 | M95: 1724.626 | N95: 1097.637 | O95: 658.787 | P95: 0 | Q95: 0 | R95: 0 | S95: =IF(AND(ISBLANK(S77), ISBLANK(S71), ISBLANK(S89)), "", S77 + S71+S89) -> 0 | T95: 0 | U95: =IF(AND(ISBLANK(U77), ISBLANK(U71), ISBLANK(U89)), "", U77 + U71+U89) ->  | W95: Q2
L96: 1817.459 | M96: 1567.465 | N96: 763.92 | O96: 354.278 | P96: 0 | Q96: 0 | R96: 0 | S96: 0 | T96: 0 | U96: =IF(AND(ISBLANK(U78), ISBLANK(U72), ISBLANK(U90)), "", U78 + U72+U90) ->  | W96: Q3
L97: 1655.02817 | M97: 1444.88876 | N97: 800.66397 | O97: 229.76787 | P97: 0 | Q97: =IF(AND(ISBLANK(Q79), ISBLANK(Q73), ISBLANK(Q91)), "", Q79 + Q73+Q91) -> 0 | R97: 0 | S97: 0 | T97: 0 | U97: =IF(AND(ISBLANK(U79), ISBLANK(U73), ISBLANK(U91)), "", U79 + U73+U91) ->  | W97: Yearly
C98: =IFERROR(C97/C122,IFERROR(C96/C121,IFERROR(C95/C120,IFERROR(C94/C119,"-")))) -> - | D98: - | E98: - | F98: - | G98: - | H98: - | I98: - | J98: - | K98: - | L98: 0.2732794766 | M98: 0.2455003875 | N98: 0.128716711 | O98: 0.03659495715 | P98: 0 | Q98: 0 | R98: 0 | S98: =IFERROR(S97/S122,IFERROR(S96/S121,IFERROR(S95/S120,IFERROR(S94/S119,"-")))) -> 0 | T98: =IFERROR(T97/T122,IFERROR(T96/T121,IFERROR(T95/T120,IFERROR(T94/T119,"-")))) -> 0 | U98: =IFERROR(U97/U122,IFERROR(U96/U121,IFERROR(U95/U120,IFERROR(U94/U119,"-")))) -> 0 | W98: D/E Ratio
C99: Total Non-Current Liabilities
A100: BS | B100: Total Non-Current Liabilities | L100: 938.74 | M100: 641.556 | N100: 503.825 | O100: 423.783 | P100: 121.973 | Q100: 116.924 | R100: 109.959 | S100: 95.165 | T100: 79.532 | U100: 129.843 | W100: Q1
L101: 787.349 | M101: 729.385 | N101: 431.84 | O101: 345.27 | P101: 119.97 | Q101: 115.008 | R101: 107.272 | S101: 92.46 | T101: 76.966 | W101: Q2
L102: 613.193 | M102: 646.653 | N102: 387.603 | O102: 282.428 | P102: 120.989 | Q102: 119.011 | R102: 104.562 | S102: 90.011 | T102: 118.299 | W102: Q3
L103: 797.27932 | M103: 570.02743 | N103: 361.07903 | O103: 255.68717 | P103: 119.27532 | Q103: 105.25479 | R103: 101.82769 | S103: 87.59547 | T103: 131.4513 | W103: Yearly
C104: =IFERROR(C103/C55,IFERROR(C102/C54,IFERROR(C101/C53,IFERROR(C100/C52,"-")))) -> - | D104: - | E104: - | F104: - | G104: - | H104: - | I104: - | J104: - | K104: - | L104: 0.0924242316 | M104: 0.0697129834 | N104: 0.04697303147 | O104: 0.03453108445 | P104: 0.01678451936 | Q104: 0.01425113538 | R104: 0.01413255565 | S104: 0.01236980583 | T104: =IFERROR(T103/T55,IFERROR(T102/T54,IFERROR(T101/T53,IFERROR(T100/T52,"-")))) -> 0.01935801975 | U104: 0.01804033222 | W104: %Common Size
C105: Total Liabilities
A106: BS | B106: Total Liabilities | L106: 2992.048 | M106: 2909.103 | N106: 2306.926 | O106: 1385.601 | P106: 950.041 | Q106: 1074.366 | R106: 1325.75 | S106: 1487.712 | T106: 1354.164 | U106: 1265.738 | W106: Q1
L107: 2840.852 | M107: 2678.469 | N107: 2060.911 | O107: 1533.995 | P107: 1059.023 | Q107: 1172.567 | R107: 1445.978 | S107: 1442.659 | T107: 1399.494 | W107: Q2
L108: 2822.132 | M108: 2357.006 | N108: 1720.706 | O108: 1173.584 | P108: 883.002 | Q108: 1166.718 | R108: 1383.924 | S108: 1231.308 | T108: 1344.769 | W108: Q3
L109: 2570.12744 | M109: 2291.29108 | N109: 1466.58572 | O109: 1125.87508 | P109: 915.2957 | Q109: 1215.69272 | R109: 1363.67539 | S109: 1370.24204 | T109: 1137.79749 | W109: Yearly
C110: =IFERROR(C109/C55,IFERROR(C108/C54,IFERROR(C107/C53,IFERROR(C106/C52,"-")))) -> - | D110: - | E110: - | F110: - | G110: - | H110: - | I110: - | J110: - | K110: - | L110: 0.2979408192 | M110: 0.280219387 | N110: 0.1907891942 | O110: 0.1520517727 | P110: 0.1288011501 | Q110: 0.1646005995 | R110: 0.1892630417 | S110: 0.1934989101 | T110: =IFERROR(T109/T55,IFERROR(T108/T54,IFERROR(T107/T53,IFERROR(T106/T52,"-")))) -> 0.1675563976 | U110: 0.1758611093 | W110: %Common Size
C111: Equity
C112: Retained Earnings (Deficits) - Unappropriated
A113: BS | B113: Retained Earnings (Deficits) - Unappropriated | L113: 824.261 | M113: 1109.862 | N113: 1043.517 | O113: 1431.206 | P113: 1454.119 | Q113: 1333.243 | R113: 1449.144 | S113: 1261.605 | T113: 1019.33 | U113: 1014.24 | W113: Q1
L114: 914.501 | M114: 884.491 | N114: 1115.267 | O114: 1125.536 | P114: 968.413 | Q114: 835.786 | R114: 924.704 | S114: 990.47 | T114: 776.506 | W114: Q2
L115: 983.749 | M115: 908.197 | N115: 1187.878 | O115: 1248.473 | P115: 1096.668 | Q115: 1028.018 | R115: 1252.717 | S115: 1347.722 | T115: 419.818 | W115: Q3
L116: 1076.95249 | M116: 929.27569 | N116: 1272.0084 | O116: 1332.54144 | P116: 1229.31261 | Q116: 1227.41498 | R116: 897.83529 | S116: 774.10023 | T116: 727.66396 | W116: Yearly
C117: =IFERROR(C116/C55,IFERROR(C115/C54,IFERROR(C114/C53,IFERROR(C113/C52,"-")))) -> - | D117: - | E117: - | F117: - | G117: - | H117: - | I117: - | J117: - | K117: - | L117: 0.1248452128 | M117: 0.1136481814 | N117: 0.1654764903 | O117: 0.1799624948 | P117: 0.1729898633 | Q117: 0.166187753 | R117: 0.1246095949 | S117: 0.1093146659 | T117: =IFERROR(T116/T55,IFERROR(T115/T54,IFERROR(T114/T53,IFERROR(T113/T52,"-")))) -> 0.1071585698 | U117: 0.1409180822 | W117: %Common Size
C118: Equity Attributable To Owners Of The Parent
A119: BS | B119: Equity Attributable To Owners Of The Parent | L119: 5812.675 | M119: 6066.627 | N119: 5996.176 | O119: 6370.653 | P119: 6402.411 | Q119: 6285.764 | R119: 6396.79 | S119: 6208.528 | T119: 5953.693 | U119: 5931.635 | W119: Q1
L120: 5903.072 | M120: 5842.998 | N120: 6064.648 | O120: 6073.98 | P120: 5920.094 | Q120: 5791.336 | R120: 5880.757 | S120: 5934.877 | T120: 5708.725 | W120: Q2
L121: 5964.41 | M121: 5862.772 | N121: 6135.957 | O121: 6194.62 | P121: 6060.097 | Q121: 5991.034 | R121: 6208.149 | S121: 6286.265 | T121: 5348.377 | W121: Q3
L122: 6056.1744 | M122: 5885.48464 | N122: 6220.35759 | O122: 6278.67575 | P122: 6190.97392 | Q122: 6170.01987 | R122: 5841.51047 | S122: 5711.15206 | T122: 5652.73697 | W122: Yearly
C123: =IFERROR(C122/C55,IFERROR(C121/C54,IFERROR(C120/C53,IFERROR(C119/C52,"-")))) -> - | D123: - | E123: - | F123: - | G123: - | H123: - | I123: - | J123: - | K123: - | L123: 0.7020591796 | M123: 0.719780613 | N123: 0.8092108058 | O123: 0.8479482273 | P123: 0.8711988499 | Q123: 0.8353994005 | R123: 0.8107369597 | S123: 0.8065010899 | T123: =IFERROR(T122/T55,IFERROR(T121/T54,IFERROR(T120/T53,IFERROR(T119/T52,"-")))) -> 0.8324436039 | U123: 0.8241388907 | W123: %Common Size
C124: Revenue Structure
C125: Revenue From Operations
A126: PL | B126: Revenue From Operations | L126: 1488.115 | M126: 1321.547 | N126: 1319.363 | O126: 1285.404 | P126: 1287.782 | Q126: 1442.349 | R126: 1832.533 | S126: 2140.275 | T126: 1745.676 | U126: 1928.79 | W126: Q1
L127: 1438.92 | M127: 1332.996 | N127: 1645.087 | O127: 1370.028 | P127: 1492.708 | Q127: 1616.456 | R127: 2029.718 | S127: 2304.154 | T127: 2263.57 | W127: Q2
L128: 1455.903 | M128: 1237.156 | N128: 1135.36 | O128: 1222.123 | P128: 1158.892 | Q128: 1664.216 | R128: 2076.642 | S128: 2141.846 | T128: 2134.993 | W128: Q3
L129: 1304.57293 | M129: 1312.28943 | N129: 1234.40419 | O129: 1221.74062 | P129: 1288.87563 | Q129: 1617.34188 | R129: 2111.0116 | S129: 2008.11562 | T129: 1942.00934 | W129: Q4
C130: =IF(COUNT(C126:C129)=4,SUM(C126:C129),IF(COUNT(C126:C129)=0,"",SUM(C126:C129)*4/COUNT(C126:C129))) ->  | L130: 5687.51093 | M130: 5203.98843 | N130: 5334.21419 | O130: 5099.29562 | P130: 5228.25763 | Q130: 6340.36288 | R130: =IF(COUNT(R126:R129)=4,SUM(R126:R129),IF(COUNT(R126:R129)=0,"",SUM(R126:R129)*4/COUNT(R126:R129))) -> 8049.9046 | S130: =IF(COUNT(S126:S129)=4,SUM(S126:S129),IF(COUNT(S126:S129)=0,"",SUM(S126:S129)*4/COUNT(S126:S129))) -> 8594.39062 | T130: =IF(COUNT(T126:T129)=4,SUM(T126:T129),IF(COUNT(T126:T129)=0,"",SUM(T126:T129)*4/COUNT(T126:T129))) -> 8086.24834 | U130: =IF(COUNT(U126:U129)=4,SUM(U126:U129),IF(COUNT(U126:U129)=0,"",SUM(U126:U129)*4/COUNT(U126:U129))) -> 7715.16 | W130: Yearly
C131: =IFERROR((C130-B130)/B130,"-") -> - | D131: =IFERROR((D130-C130)/C130,"-") -> - | E131: - | F131: - | G131: - | H131: - | I131: - | J131: - | K131: - | L131: - | M131: -0.08501478168 | N131: 0.02502422166 | O131: -0.04403995821 | P131: =IFERROR((P130-O130)/O130,"-") -> 0.02529016155 | Q131: 0.2127104915 | R131: 0.2696283718 | S131: 0.06763881649 | T131: -0.05912487603 | U131: -0.04589128659 | W131: %YoY Growth
C132: Other Income
A133: PL | B133: Other Income | L133: 3.534 | M133: 3.855 | N133: 3.566 | O133: 2.625 | P133: 1.362 | Q133: 5.484 | R133: 7.972 | S133: 8.84 | T133: 4.858 | U133: 11.841 | W133: Q1
L134: 8.419 | M134: 2.195 | N134: 2.895 | O134: 3.894 | P134: 2.726 | Q134: 3.709 | R134: 10.533 | S134: 38.032 | T134: 124.639 | W134: Q2
L135: 2.319 | M135: 3.318 | N135: 2.697 | O135: 1.142 | P135: 2.431 | Q135: 11.578 | R135: 4.616 | S135: 5.673 | T135: 7.674 | W135: Q3
L136: 16.31556 | M136: 2.10387 | N136: 3.76864 | O136: 0.7556 | P136: 15.8274 | Q136: -2.46248 | R136: 4.37518 | S136: 6.26849 | T136: 4.45461 | W136: Q4
C137: =IF(COUNT(C133:C136)=4,SUM(C133:C136),IF(COUNT(C133:C136)=0,"",SUM(C133:C136)*4/COUNT(C133:C136))) ->  | D137: =IF(COUNT(D133:D136)=4,SUM(D133:D136),IF(COUNT(D133:D136)=0,"",SUM(D133:D136)*4/COUNT(D133:D136))) ->  | L137: 30.58756 | M137: 11.47187 | N137: 12.92664 | O137: 8.4166 | P137: 22.3464 | Q137: 18.30852 | R137: =IF(COUNT(R133:R136)=4,SUM(R133:R136),IF(COUNT(R133:R136)=0,"",SUM(R133:R136)*4/COUNT(R133:R136))) -> 27.49618 | S137: =IF(COUNT(S133:S136)=4,SUM(S133:S136),IF(COUNT(S133:S136)=0,"",SUM(S133:S136)*4/COUNT(S133:S136))) -> 58.81349 | T137: =IF(COUNT(T133:T136)=4,SUM(T133:T136),IF(COUNT(T133:T136)=0,"",SUM(T133:T136)*4/COUNT(T133:T136))) -> 141.62561 | U137: =IF(COUNT(U133:U136)=4,SUM(U133:U136),IF(COUNT(U133:U136)=0,"",SUM(U133:U136)*4/COUNT(U133:U136))) -> 47.364 | W137: Yearly
C138: Interest And Dividend Income
A139: PL | B139: Interest And Dividend Income | L139: 0 | M139: 0 | N139: 0 | O139: 0 | P139: 0 | Q139: 0 | R139: 0.776 | S139: 4.791 | T139: 3.483 | U139: 1.733 | W139: Q1
L140: 0.455 | M140: 0.396 | N140: 0.298 | O140: 0.18 | P140: 0.096 | Q140: 0.1 | R140: 1.252 | S140: 3.528 | T140: 3.748 | W140: Q2
L141: 0.001 | M141: 0 | N141: 0 | O141: 0 | P141: 0 | Q141: 0.176 | R141: 0.538 | S141: 2.397 | T141: 1.903 | W141: Q3
L142: 0.47121 | M142: 0.36331 | N142: 0.27421 | O142: 0.07118 | P142: 0.06525 | Q142: 0.65342 | R142: 5.0775 | S142: 7.22299 | T142: 2.85496 | W142: Q4
C143: =IF(COUNT(C139:C142)=4,SUM(C139:C142),IF(COUNT(C139:C142)=0,"",SUM(C139:C142)*4/COUNT(C139:C142))) ->  | D143: =IF(COUNT(D139:D142)=4,SUM(D139:D142),IF(COUNT(D139:D142)=0,"",SUM(D139:D142)*4/COUNT(D139:D142))) ->  | L143: 0.92721 | M143: 0.75931 | N143: 0.57221 | O143: 0.25118 | P143: 0.16125 | Q143: 0.92942 | R143: =IF(COUNT(R139:R142)=4,SUM(R139:R142),IF(COUNT(R139:R142)=0,"",SUM(R139:R142)*4/COUNT(R139:R142))) -> 7.6435 | S143: =IF(COUNT(S139:S142)=4,SUM(S139:S142),IF(COUNT(S139:S142)=0,"",SUM(S139:S142)*4/COUNT(S139:S142))) -> 17.93899 | T143: =IF(COUNT(T139:T142)=4,SUM(T139:T142),IF(COUNT(T139:T142)=0,"",SUM(T139:T142)*4/COUNT(T139:T142))) -> 11.98896 | U143: =IF(COUNT(U139:U142)=4,SUM(U139:U142),IF(COUNT(U139:U142)=0,"",SUM(U139:U142)*4/COUNT(U139:U142))) -> 6.932 | W143: Yearly
C144: Total Revenue
A145: PL | B145: Total Revenue | L145: 1491.649 | M145: 1325.402 | N145: 1322.929 | O145: 1288.029 | P145: 1289.144 | Q145: 1447.833 | R145: 1841.281 | S145: 2153.906 | T145: 1754.017 | U145: 1942.364 | W145: Q1
L146: 1447.794 | M146: 1335.587 | N146: 1648.28 | O146: 1374.102 | P146: 1495.53 | Q146: 1620.265 | R146: 2041.503 | S146: 2345.714 | T146: 2391.957 | W146: Q2
L147: 1458.223 | M147: 1240.474 | N147: 1138.057 | O147: 1223.265 | P147: 1161.323 | Q147: 1675.97 | R147: 2081.796 | S147: 2149.916 | T147: 2144.57 | W147: Q3
L148: 1321.3597 | M148: 1314.7566 | N148: 1238.44704 | O148: 1222.56739 | P148: 1304.76827 | Q148: 1615.53281 | R148: 2120.46429 | S148: 2021.6071 | T148: 1949.3189 | W148: Q4
C149: =IF(COUNT(C145:C148)=4,SUM(C145:C148),IF(COUNT(C145:C148)=0,"",SUM(C145:C148)*4/COUNT(C145:C148))) ->  | D149: =IF(COUNT(D145:D148)=4,SUM(D145:D148),IF(COUNT(D145:D148)=0,"",SUM(D145:D148)*4/COUNT(D145:D148))) ->  | L149: 5719.0257 | M149: 5216.2196 | N149: 5347.71304 | O149: 5107.96339 | P149: 5250.76527 | Q149: 6359.60081 | R149: =IF(COUNT(R145:R148)=4,SUM(R145:R148),IF(COUNT(R145:R148)=0,"",SUM(R145:R148)*4/COUNT(R145:R148))) -> 8085.04429 | S149: =IF(COUNT(S145:S148)=4,SUM(S145:S148),IF(COUNT(S145:S148)=0,"",SUM(S145:S148)*4/COUNT(S145:S148))) -> 8671.1431 | T149: =IF(COUNT(T145:T148)=4,SUM(T145:T148),IF(COUNT(T145:T148)=0,"",SUM(T145:T148)*4/COUNT(T145:T148))) -> 8239.8629 | U149: =IF(COUNT(U145:U148)=4,SUM(U145:U148),IF(COUNT(U145:U148)=0,"",SUM(U145:U148)*4/COUNT(U145:U148))) -> 7769.456 | W149: Yearly
C150: COGS Breakdown
C151: Costs
A152: PL | B152: Costs | L152: 1135.127 | M152: 1095.892 | N152: 1060.453 | O152: 1033.055 | P152: 1065.565 | Q152: 1229.962 | R152: 1452 | S152: 1582.347 | T152: 1334.403 | U152: 1463.8 | W152: Q1
L153: 1110.018 | M153: 1119.279 | N153: 1326.761 | O153: 1075.93 | P153: 1174.809 | Q153: 1325.32 | R153: 1563.65 | S153: 1694.755 | T153: 1721.209 | W153: Q2
L154: 1107.592 | M154: 1074.348 | N154: 931.36 | O154: 981.008 | P154: 925.853 | Q154: 1338.895 | R154: 1553.967 | S154: 1591.736 | T154: 1583.9 | W154: Q3
L155: 981.91701 | M155: 1141.72966 | N155: 1024.38107 | O155: 1003.6111 | P155: 1054.65269 | Q155: 1259.61347 | R155: 1593.59834 | S155: 1513.3858 | T155: 1484.98214 | W155: Q4
C156: =IF(COUNT(C152:C155)=4,SUM(C152:C155),IF(COUNT(C152:C155)=0,"",SUM(C152:C155)*4/COUNT(C152:C155))) ->  | L156: 4334.65401 | M156: 4431.24866 | N156: 4342.95507 | O156: 4093.6041 | P156: 4220.87969 | Q156: 5153.79047 | R156: 6163.21534 | S156: =IF(COUNT(S152:S155)=4,SUM(S152:S155),IF(COUNT(S152:S155)=0,"",SUM(S152:S155)*4/COUNT(S152:S155))) -> 6382.2238 | T156: =IF(COUNT(T152:T155)=4,SUM(T152:T155),IF(COUNT(T152:T155)=0,"",SUM(T152:T155)*4/COUNT(T152:T155))) -> 6124.49414 | U156: =IF(COUNT(U152:U155)=4,SUM(U152:U155),IF(COUNT(U152:U155)=0,"",SUM(U152:U155)*4/COUNT(U152:U155))) -> 5855.2 | W156: Yearly
C157: =IFERROR(C156/C130, "-") -> - | D157: - | E157: - | F157: - | G157: - | H157: - | I157: - | J157: - | K157: - | L157: 0.7621355042 | M157: 0.8515100907 | N157: 0.8141696069 | O157: 0.8027783453 | P157: 0.8073205241 | Q157: 0.81285418 | R157: 0.7656258858 | S157: 0.7426034122 | T157: =IFERROR(T156/T130, "-") -> 0.7573962464 | U157: 0.7589213963 | W157: %Common Size
C158: =IFERROR((C156-B156)/B156,"-") -> - | D158: - | E158: - | F158: - | G158: - | H158: - | I158: - | J158: - | K158: - | L158: - | M158: 0.02228428146 | N158: -0.01992521674 | O158: -0.05741504712 | P158: 0.03109132854 | Q158: 0.2210228314 | R158: 0.195860673 | S158: 0.03553477332 | T158: -0.04038242282 | U158: -0.04397002166 | W158: %YoY Growth
C159: Gross Profit
C160: =IF(AND(ISBLANK(C126),ISBLANK(C152)),"",C126-C152) ->  | L160: 352.988 | M160: 225.655 | N160: 258.91 | O160: 252.349 | P160: 222.217 | Q160: 212.387 | R160: 380.533 | S160: 557.928 | T160: =IF(AND(ISBLANK(T126),ISBLANK(T152)),"",T126-T152) -> 411.273 | U160: 464.99 | W160: Q1
L161: 328.902 | M161: 213.717 | N161: 318.326 | O161: 294.098 | P161: 317.899 | Q161: 291.136 | R161: 466.068 | S161: 609.399 | T161: =IF(AND(ISBLANK(T127),ISBLANK(T153)),"",T127-T153) -> 542.361 | W161: Q2
L162: 348.311 | M162: 162.808 | N162: 204 | O162: 241.115 | P162: 233.039 | Q162: 325.321 | R162: 522.675 | S162: 550.11 | T162: =IF(AND(ISBLANK(T128),ISBLANK(T154)),"",T128-T154) -> 551.093 | W162: Q3
L163: 322.65592 | M163: 170.55977 | N163: 210.02312 | O163: 218.12952 | P163: 234.22294 | Q163: 357.72841 | R163: 517.41326 | S163: 494.72982 | T163: =IF(AND(ISBLANK(T129),ISBLANK(T155)),"",T129-T155) -> 457.0272 | W163: Q4
C164: =IF(COUNT(C160:C163)=4,SUM(C160:C163),IF(COUNT(C160:C163)=0,"",SUM(C160:C163)*4/COUNT(C160:C163))) ->  | D164: =IF(COUNT(D160:D163)=4,SUM(D160:D163),IF(COUNT(D160:D163)=0,"",SUM(D160:D163)*4/COUNT(D160:D163))) ->  | G164: =IF(COUNT(G160:G163)=4,SUM(G160:G163),IF(COUNT(G160:G163)=0,"",SUM(G160:G163)*4/COUNT(G160:G163))) ->  | H164: =IF(COUNT(H160:H163)=4,SUM(H160:H163),IF(COUNT(H160:H163)=0,"",SUM(H160:H163)*4/COUNT(H160:H163))) ->  | I164: =IF(COUNT(I160:I163)=4,SUM(I160:I163),IF(COUNT(I160:I163)=0,"",SUM(I160:I163)*4/COUNT(I160:I163))) ->  | L164: 1352.85692 | M164: 772.73977 | N164: 991.25912 | O164: 1005.69152 | P164: 1007.37794 | Q164: 1186.57241 | R164: 1886.68926 | S164: =IF(COUNT(S160:S163)=4,SUM(S160:S163),IF(COUNT(S160:S163)=0,"",SUM(S160:S163)*4/COUNT(S160:S163))) -> 2212.16682 | T164: =IF(COUNT(T160:T163)=4,SUM(T160:T163),IF(COUNT(T160:T163)=0,"",SUM(T160:T163)*4/COUNT(T160:T163))) -> 1961.7542 | U164: =IF(COUNT(U160:U163)=4,SUM(U160:U163),IF(COUNT(U160:U163)=0,"",SUM(U160:U163)*4/COUNT(U160:U163))) -> 1859.96 | W164: Yearly
C165: =IFERROR(C164/C130, "-") -> - | D165: - | E165: - | F165: - | G165: - | H165: - | I165: - | J165: - | K165: - | L165: 0.2378644958 | M165: 0.1484899093 | N165: 0.1858303931 | O165: 0.1972216547 | P165: 0.1926794759 | Q165: 0.18714582 | R165: 0.2343741142 | S165: 0.2573965878 | T165: =IFERROR(T164/T130, "-") -> 0.2426037536 | U165: 0.2410786037 | W165: %GPM
C166: =IFERROR((C164-B164)/B164,"-") -> - | D166: - | E166: - | F166: - | G166: - | H166: - | I166: =IFERROR((I164-H164)/H164,"-") -> - | J166: - | K166: - | L166: - | M166: -0.428808946 | N166: 0.2827851736 | O166: 0.01455966428 | P166: 0.001676876027 | Q166: 0.1778820668 | R166: 0.5900329757 | S166: 0.1725125419 | T166: -0.1131978916 | U166: -0.05188937534 | W166: %YoY Growth
C167: SG&A
C168: Selling Expenses
A169: PL | B169: Selling Expenses | L169: 201.756 | M169: 141.602 | N169: 95.506 | O169: 62.412 | P169: 62.741 | Q169: 57.749 | R169: 83.39 | S169: 91.984 | T169: 81.008 | U169: 94.23 | W169: Q1
L170: 175.122 | M170: 168.315 | N170: 144.758 | O170: 72.893 | P170: 89.271 | Q170: 74.626 | R170: 111.456 | S170: 112.209 | T170: 107.706 | W170: Q2
L171: 198.614 | M171: 102.79 | N171: 91.162 | O171: 63.821 | P171: 53.747 | Q171: 73.445 | R171: 83.282 | S171: 70.283 | T171: 88.954 | W171: Q3
L172: 135.90996 | M172: 101.92053 | N172: 75.74652 | O172: 93.82433 | P172: 71.26298 | Q172: 87.16273 | R172: 103.28487 | S172: 108.91343 | T172: 87.34357 | W172: Q4
C173: =IF(COUNT(C169:C172)=4,SUM(C169:C172),IF(COUNT(C169:C172)=0,"",SUM(C169:C172)*4/COUNT(C169:C172))) ->  | D173: =IF(COUNT(D169:D172)=4,SUM(D169:D172),IF(COUNT(D169:D172)=0,"",SUM(D169:D172)*4/COUNT(D169:D172))) ->  | L173: 711.40196 | M173: 514.62753 | N173: 407.17252 | O173: 292.95033 | P173: 277.02198 | Q173: 292.98273 | R173: 381.41287 | S173: =IF(COUNT(S169:S172)=4,SUM(S169:S172),IF(COUNT(S169:S172)=0,"",SUM(S169:S172)*4/COUNT(S169:S172))) -> 383.38943 | T173: =IF(COUNT(T169:T172)=4,SUM(T169:T172),IF(COUNT(T169:T172)=0,"",SUM(T169:T172)*4/COUNT(T169:T172))) -> 365.01157 | U173: =IF(COUNT(U169:U172)=4,SUM(U169:U172),IF(COUNT(U169:U172)=0,"",SUM(U169:U172)*4/COUNT(U169:U172))) -> 376.92 | W173: Yearly
C174: =IFERROR(C173/C130, "-") -> - | D174: - | E174: - | F174: - | G174: - | H174: - | I174: - | J174: - | K174: - | L174: 0.1250814229 | M174: 0.09889098274 | N174: 0.07633224042 | O174: 0.0574491757 | P174: 0.05298552589 | Q174: 0.04620914221 | R174: 0.04738104225 | S174: 0.04460926283 | T174: =IFERROR(T173/T130, "-") -> 0.04513979223 | U174: 0.04885446316 | W174: %Common Size
C175: =IFERROR((C173-B173)/B173,"-") -> - | D175: - | E175: - | F175: - | G175: - | H175: - | I175: - | J175: - | K175: - | L175: - | M175: -0.2766009107 | N175: -0.208801519 | O175: -0.2805252918 | P175: -0.05437218658 | Q175: 0.0576154643 | R175: 0.3018271418 | S175: 0.005182205834 | T175: -0.04793522868 | U175: 0.03262480145 | W175: %YoY Growth
C176: Administrative Expenses
A177: PL | B177: Administrative Expenses | L177: 43.992 | M177: 31.692 | N177: 36.535 | O177: 42.998 | P177: 33.882 | Q177: 38.803 | R177: 36.445 | S177: 38.707 | T177: 39.584 | U177: 52.726 | W177: Q1
L178: 38.548 | M178: 39.031 | N178: 40.573 | O178: 41.3 | P178: 43.576 | Q178: 43.925 | R178: 46.751 | S178: 68.008 | T178: 56.048 | W178: Q2
L179: 37.676 | M179: 31.366 | N179: 38.215 | O179: 39.867 | P179: 38.678 | Q179: 41.692 | R179: 35.756 | S179: 41.953 | T179: 46.638 | W179: Q3
L180: 64.54816 | M180: 37.19233 | N180: 54.11381 | O180: 41.05789 | P180: 52.2099 | Q180: 47.77543 | R180: 49.2139 | S180: 56.12664 | T180: 122.4675 | W180: Q4
C181: =IF(COUNT(C177:C180)=4,SUM(C177:C180),IF(COUNT(C177:C180)=0,"",SUM(C177:C180)*4/COUNT(C177:C180))) ->  | D181: =IF(COUNT(D177:D180)=4,SUM(D177:D180),IF(COUNT(D177:D180)=0,"",SUM(D177:D180)*4/COUNT(D177:D180))) ->  | L181: 184.76416 | M181: 139.28133 | N181: 169.43681 | O181: 165.22289 | P181: 168.3459 | Q181: 172.19543 | R181: 168.1659 | S181: =IF(COUNT(S177:S180)=4,SUM(S177:S180),IF(COUNT(S177:S180)=0,"",SUM(S177:S180)*4/COUNT(S177:S180))) -> 204.79464 | T181: =IF(COUNT(T177:T180)=4,SUM(T177:T180),IF(COUNT(T177:T180)=0,"",SUM(T177:T180)*4/COUNT(T177:T180))) -> 264.7375 | U181: =IF(COUNT(U177:U180)=4,SUM(U177:U180),IF(COUNT(U177:U180)=0,"",SUM(U177:U180)*4/COUNT(U177:U180))) -> 210.904 | W181: Yearly
C182: =IFERROR(C181/C130, "-") -> - | D182: - | E182: - | F182: - | G182: - | H182: - | I182: - | J182: - | K182: - | L182: 0.03248594372 | M182: 0.02676434275 | N182: 0.03176415569 | O182: 0.03240112014 | P182: 0.03219923575 | Q182: 0.02715860799 | R182: 0.02089042148 | S182: 0.0238288727 | T182: =IFERROR(T181/T130, "-") -> 0.03273922453 | U182: 0.02733630929 | W182: %Common Size
C183: =IFERROR((C181-B181)/B181,"-") -> - | D183: - | E183: - | F183: - | G183: - | H183: - | I183: - | J183: - | K183: - | L183: - | M183: -0.2461669514 | N183: 0.216507697 | O183: -0.02487015661 | P183: 0.01890179987 | Q183: 0.02286678796 | R183: -0.02340091139 | S183: 0.2178131238 | T183: 0.2926974065 | U183: -0.2033467114 | W183: %YoY Growth
C184: Selling And Administrative Expenses
A185: PL | B185: Selling And Administrative Expenses | L185: 245.748 | M185: 173.294 | N185: 132.041 | O185: 105.41 | P185: 96.623 | Q185: 96.552 | R185: 119.835 | S185: 130.691 | T185: 120.592 | U185: 146.956 | W185: Q1
L186: 213.67 | M186: 207.346 | N186: 185.331 | O186: 114.193 | P186: 132.847 | Q186: 118.551 | R186: 158.207 | S186: 180.217 | T186: 163.754 | W186: Q2
L187: 236.29 | M187: 134.156 | N187: 129.377 | O187: 103.688 | P187: 92.425 | Q187: 115.137 | R187: 119.038 | S187: 112.236 | T187: 135.592 | W187: Q3
L188: 200.45812 | M188: 139.11286 | N188: 129.86033 | O188: 134.88223 | P188: 123.47288 | Q188: 134.93817 | R188: 152.49878 | S188: 165.04007 | T188: 209.81107 | W188: Q4
C189: =IF(COUNT(C185:C188)=4,SUM(C185:C188),IF(COUNT(C185:C188)=0,"",SUM(C185:C188)*4/COUNT(C185:C188))) ->  | D189: =IF(COUNT(D185:D188)=4,SUM(D185:D188),IF(COUNT(D185:D188)=0,"",SUM(D185:D188)*4/COUNT(D185:D188))) ->  | L189: 896.16612 | M189: 653.90886 | N189: 576.60933 | O189: 458.17323 | P189: 445.36788 | Q189: 465.17817 | R189: 549.57878 | S189: =IF(COUNT(S185:S188)=4,SUM(S185:S188),IF(COUNT(S185:S188)=0,"",SUM(S185:S188)*4/COUNT(S185:S188))) -> 588.18407 | T189: =IF(COUNT(T185:T188)=4,SUM(T185:T188),IF(COUNT(T185:T188)=0,"",SUM(T185:T188)*4/COUNT(T185:T188))) -> 629.74907 | U189: =IF(COUNT(U185:U188)=4,SUM(U185:U188),IF(COUNT(U185:U188)=0,"",SUM(U185:U188)*4/COUNT(U185:U188))) -> 587.824 | W189: Yearly
C190: =IFERROR(C189/C130, "-") -> - | D190: - | E190: - | F190: - | G190: - | H190: - | I190: - | J190: - | K190: - | L190: 0.1575673666 | M190: 0.1256553255 | N190: 0.1080963961 | O190: 0.08985029779 | P190: 0.08518476164 | Q190: 0.07336775178 | R190: 0.06827146498 | S190: =IFERROR(S189/S130, "-") -> 0.06843813552 | T190: =IFERROR(T189/T130, "-") -> 0.07787901676 | U190: =IFERROR(U189/U130, "-") -> 0.07619077245 | W190: %Common Size
C191: =IFERROR((C189-B189)/B189,"-") -> - | D191: - | E191: - | F191: - | G191: - | H191: - | I191: - | J191: - | K191: - | L191: - | M191: -0.2703262873 | N191: -0.1182114737 | O191: -0.2054009428 | P191: -0.0279487084 | Q191: 0.04448073355 | R191: 0.1814371685 | S191: 0.070245234 | T191: 0.07066665372 | U191: -0.06657424679 | W191: %YoY Growth
C192: Other Gains (Losses)
A193: PL | B193: Other Gains (Losses) | L193: 0 | M193: 0 | N193: 0 | O193: 0 | P193: 0 | Q193: 0 | R193: 0 | S193: 0 | T193: 0 | U193: 0 | W193: Q1
L194: 20.528 | M194: 0 | N194: 0 | O194: 0 | P194: 0 | Q194: 0 | R194: 0 | S194: 0 | T194: 0 | W194: Q2
L195: 0 | M195: 0 | N195: 0 | O195: 0 | P195: 0 | Q195: 0 | R195: 0 | S195: 0 | T195: 0 | W195: Q3
L196: 0 | M196: 0 | N196: 0 | O196: 0 | P196: 0 | Q196: 0 | R196: 0 | S196: 0 | T196: 0 | W196: Q4
C197: =IF(COUNT(C193:C196)=4,SUM(C193:C196),IF(COUNT(C193:C196)=0,"",SUM(C193:C196)*4/COUNT(C193:C196))) ->  | D197: =IF(COUNT(D193:D196)=4,SUM(D193:D196),IF(COUNT(D193:D196)=0,"",SUM(D193:D196)*4/COUNT(D193:D196))) ->  | L197: 20.528 | M197: 0 | N197: 0 | O197: 0 | P197: 0 | Q197: 0 | R197: =IF(COUNT(R193:R196)=4,SUM(R193:R196),IF(COUNT(R193:R196)=0,"",SUM(R193:R196)*4/COUNT(R193:R196))) -> 0 | S197: =IF(COUNT(S193:S196)=4,SUM(S193:S196),IF(COUNT(S193:S196)=0,"",SUM(S193:S196)*4/COUNT(S193:S196))) -> 0 | T197: =IF(COUNT(T193:T196)=4,SUM(T193:T196),IF(COUNT(T193:T196)=0,"",SUM(T193:T196)*4/COUNT(T193:T196))) -> 0 | U197: =IF(COUNT(U193:U196)=4,SUM(U193:U196),IF(COUNT(U193:U196)=0,"",SUM(U193:U196)*4/COUNT(U193:U196))) -> 0 | W197: Yearly
C198: EBIT
C199: =IFERROR(C160+C133-C185, "") ->  | L199: 110.774 | M199: 56.216 | N199: 130.435 | O199: 149.564 | P199: 126.956 | Q199: 121.319 | R199: 268.67 | S199: 436.077 | T199: =IFERROR(T160+T133-T185, "") -> 295.539 | U199: 329.875 | W199: Q1
L200: 123.651 | M200: 8.566 | N200: 135.89 | O200: 183.799 | P200: 187.778 | Q200: 176.294 | R200: 318.394 | S200: 467.214 | T200: =IFERROR(T161+T134-T186, "") -> 503.246 | W200: Q2
... 145 more rows

Sheet HMPRO
C1: 2008 | D1: 2009 | E1: 2010 | F1: 2011 | G1: 2012 | H1: 2013 | I1: 2014 | J1: 2015 | K1: 2016 | L1: 2017 | M1: 2018 | N1: 2019 | O1: 2020 | P1: 2021 | Q1: 2022 | R1: 2023 | S1: 2024 | T1: 2025 | U1: 2026
C2: Asset
C3: Cash And Cash Equivalents
A4: BS | B4: Cash And Cash Equivalents | C4: 120.5 | D4: 846.68 | E4: 1424.493 | F4: 1923.023 | G4: 2998.028 | H4: 742.939 | I4: 977.99 | J4: 3678.742 | K4: 3071.707 | L4: 2271.91 | M4: 4946.712 | N4: 7575.867 | O4: 10455.518 | P4: 5479.041 | Q4: 4685.599 | R4: 3943.903 | S4: 4985.112 | T4: 5197.15 | U4: 3144.494 | W4: Q1
C5: 138.141 | D5: 87.174 | E5: 1472.501 | F5: 1483.973 | G5: 410.007 | H5: 491.697 | I5: 396.531 | J5: 3082.351 | K5: 1972.726 | L5: 4768.577 | M5: 3916.39 | N5: 6730.456 | O5: 3708.9 | P5: 3200.372 | Q5: 4165.796 | R5: 2004.688 | S5: 3561.993 | T5: 1418.189 | U5: 1699.74 | W5: Q2
C6: 166.784 | D6: 345.825 | E6: 1164.091 | F6: 1736.715 | G6: 363.174 | H6: 3224.751 | I6: 821.276 | J6: 1732.112 | K6: 1464.734 | L6: 1588.363 | M6: 897.636 | N6: 2314.88 | O6: 3205.908 | P6: 2263.43 | Q6: 5759.867 | R6: 1513.294 | S6: 3052.277 | T6: 2381.906 | W6: Q3
C7: 603.788 | D7: 846.331 | E7: 1417.24511 | F7: 1977.32415 | G7: 1290.61868 | H7: 807.45937 | I7: 2434.76338 | J7: 2698.06277 | K7: 3720.58448 | L7: 2504.91254 | M7: 6237.75223 | N7: 2859.9786 | O7: 3282.6911 | P7: 4545.96629 | Q7: 5420.29782 | R7: 6428.67395 | S7: 5553.72313 | T7: 4487.99043 | W7: Yearly
C8: =IFERROR(C7/C55,IFERROR(C6/C54,IFERROR(C5/C53,IFERROR(C4/C52,"-")))) -> 0.04516304497 | D8: 0.06103629677 | E8: 0.08541742896 | F8: 0.09562451928 | G8: 0.05002204415 | H8: 0.02246581962 | I8: 0.05494489963 | J8: 0.05741654259 | K8: 0.07190058738 | L8: 0.04916476297 | M8: 0.1138040145 | N8: 0.05494785619 | O8: 0.05852461848 | P8: 0.07759429502 | Q8: 0.08315285854 | R8: 0.09310456871 | S8: 0.07972057099 | T8: =IFERROR(T7/T55,IFERROR(T6/T54,IFERROR(T5/T53,IFERROR(T4/T52,"-")))) -> 0.06352565148 | U8: 0.02517601616 | W8: %Common Size
C9: Short-Term Investments - Net
A10: BS | B10: Short-Term Investments - Net | W10: Q1
W11: Q2
W12: Q3
W13: Yearly
C14: =IFERROR(C13/C55,IFERROR(C12/C54,IFERROR(C11/C53,IFERROR(C10/C52,"-")))) -> 0 | D14: 0 | E14: 0 | F14: 0 | G14: 0 | H14: 0 | I14: 0 | J14: 0 | K14: 0 | L14: 0 | M14: 0 | N14: 0 | O14: 0 | P14: 0 | Q14: 0 | R14: 0 | S14: 0 | T14: =IFERROR(T13/T55,IFERROR(T12/T54,IFERROR(T11/T53,IFERROR(T10/T52,"-")))) -> 0 | U14: 0 | W14: %Common Size
C15: Trade And Other Receivables - Current - Net
A16: BS | B16: Trade And Other Receivables - Current - Net | C16: 110.281 | D16: 135.989 | E16: 481.833 | F16: 617.076 | G16: 945.796 | H16: 1000.125 | I16: 1115.102 | J16: 1412.582 | K16: 1313.14 | L16: 1410.539 | M16: 1569.737 | N16: 1732.175 | O16: 1157.755 | P16: 1318.551 | Q16: 1332.722 | R16: 1717.054 | S16: 2004.875 | T16: 1761.654 | U16: 1902.759 | W16: Q1
C17: 80.58 | D17: 353.787 | E17: 476.314 | F17: 615.51 | G17: 861.648 | H17: 1128.015 | I17: 1196.298 | J17: 1393.4 | K17: 1316.248 | L17: 1476.973 | M17: 1699.468 | N17: 1748.511 | O17: 1414.57 | P17: 1409.439 | Q17: 1449.555 | R17: 1616.761 | S17: 1745.505 | T17: 1683.41 | U17: 1843.204 | W17: Q2
C18: 126.931 | D18: 330.82 | E18: 513.477 | F18: 598.359 | G18: 930.472 | H18: 1177.137 | I18: 1274.19 | J18: 1395.024 | K18: 1354.254 | L18: 1646.027 | M18: 1654.589 | N18: 1558.756 | O18: 1328.78 | P18: 1192.19 | Q18: 1515.984 | R18: 1648.072 | S18: 1513.255 | T18: 1670.44 | W18: Q3
C19: 134.983 | D19: 485.579 | E19: 642.41813 | F19: 986.43611 | G19: 1251.62059 | H19: 1410.78349 | I19: 1620.15673 | J19: 1704.10136 | K19: 1895.47982 | L19: 1796.55726 | M19: 1998.61912 | N19: 1912.40428 | O19: 1769.38341 | P19: 1674.87328 | Q19: 2068.89415 | R19: 2114.68554 | S19: 2007.8733 | T19: 2358.33402 | W19: Yearly
C20: =IFERROR(C19/C55,IFERROR(C18/C54,IFERROR(C17/C53,IFERROR(C16/C52,"-")))) -> 0.01009666191 | D20: 0.03501932926 | E20: 0.03871857069 | F20: 0.04770461071 | G20: 0.04851054876 | H20: 0.03925201513 | I20: 0.03656180705 | J20: 0.03626439288 | K20: 0.03663029644 | L20: 0.03526163506 | M20: 0.03646359632 | N20: 0.03674241316 | O20: 0.03154499947 | P20: 0.02858811595 | Q20: 0.03173893175 | R20: 0.03062636038 | S20: 0.02882189159 | T20: =IFERROR(T19/T55,IFERROR(T18/T54,IFERROR(T17/T53,IFERROR(T16/T52,"-")))) -> 0.03338124432 | U20: 0.02730095996 | W20: %Common Size
C21: Inventories - Net
A22: BS | B22: Inventories - Net | C22: 2749.762 | D22: 2814.46 | E22: 2986.96 | F22: 3853.442 | G22: 4386.809 | H22: 5417.437 | I22: 7277.481 | J22: 8045.684 | K22: 8836.427 | L22: 10472.189 | M22: 9868.586 | N22: 10386.759 | O22: 10935.099 | P22: 11612.727 | Q22: 12875.13 | R22: 14257.47 | S22: 14518.295 | T22: 15192.775 | U22: 15591.017 | W22: Q1
C23: 2719.972 | D23: 2536.435 | E23: 3319.169 | F23: 4248.731 | G23: 5552.803 | H23: 5391.626 | I23: 8162.134 | J23: 7798.799 | K23: 9224.19 | L23: 10352.09 | M23: 9598.517 | N23: 10298.027 | O23: 9362.626 | P23: 11684.485 | Q23: 12525.498 | R23: 14070.642 | S23: 14585.427 | T23: 14257.665 | U23: 15518.135 | W23: Q2
C24: 2835.988 | D24: 2724.099 | E24: 3692.907 | F24: 4237.349 | G24: 5563.43 | H24: 5948.783 | I24: 8029.907 | J24: 8027.042 | K24: 9329.467 | L24: 10453.758 | M24: 9699.425 | N24: 9838.022 | O24: 9877.175 | P24: 11779.663 | Q24: 13004.907 | R24: 13496.691 | S24: 14264.064 | T24: 14250.413 | W24: Q3
C25: 2728.079 | D25: 2905.138 | E25: 3714.23176 | F25: 4382.49628 | G25: 5352.53767 | H25: 6505.63878 | I25: 8030.81588 | J25: 8364.75775 | K25: 9671.54497 | L25: 10342.98978 | M25: 10245.44917 | N25: 10421.26307 | O25: 10344.55976 | P25: 12572.20154 | Q25: 13630.07873 | R25: 13965.27444 | S25: 14899.72896 | T25: 15190.38039 | W25: Yearly
C26: =IFERROR(C25/C55,IFERROR(C24/C54,IFERROR(C23/C53,IFERROR(C22/C52,"-")))) -> 0.2040589653 | D26: 0.209514794 | E26: 0.2238569216 | F26: 0.2119400099 | G26: 0.2074546725 | H26: 0.1810054013 | I26: 0.1812300842 | J26: 0.1780075226 | K26: 0.1869033664 | L26: 0.2030053476 | M26: 0.1869220198 | N26: 0.2002204018 | O26: 0.1844253373 | P26: 0.2145926857 | Q26: 0.209099213 | R26: 0.2022549073 | S26: 0.2138772266 | T26: =IFERROR(T25/T55,IFERROR(T24/T54,IFERROR(T23/T53,IFERROR(T22/T52,"-")))) -> 0.2150135624 | U26: 0.229849752 | W26: %Common Size
C27: Total Current Assets
A28: BS | B28: Total Current Assets | C28: 3228.473 | D28: 4116.5 | E28: 4974.367 | F28: 6499.284 | G28: 8460.069 | H28: 7355.236 | I28: 9937.646 | J28: 13804.886 | K28: 13827.693 | L28: 14754.023 | M28: 16974.265 | N28: 20232.189 | O28: 23043.855 | P28: 18856.915 | Q28: 19045.593 | R28: 20278.612 | S28: 21744.968 | T28: 22352.632 | U28: 20852.172 | W28: Q1
C29: 3230.875 | D29: 3037.707 | E29: 5376.393 | F29: 6511.666 | G29: 7133.345 | H29: 7311.044 | I29: 10407.965 | J29: 12818.898 | K29: 13093.759 | L29: 17277.942 | M29: 15890.346 | N29: 19346.679 | O29: 14927.387 | P29: 16721.549 | Q29: 18343.748 | R29: 17999.195 | S29: 20097.98 | T29: 17598.184 | U29: 19293.775 | W29: Q2
C30: 3471.352 | D30: 3459.876 | E30: 5530.27 | F30: 6734.113 | G30: 7089.83 | H30: 10769.076 | I30: 10817.643 | J30: 11839.434 | K30: 12712.728 | L30: 14326.089 | M30: 12803.562 | N30: 14214.725 | O30: 14887.338 | P30: 15606.81 | Q30: 20591.224 | R30: 16869.559 | S30: 18994.914 | T30: 18471.16 | W30: Q3
C31: 3846.478 | D31: 4301.099 | E31: 5889.46048 | F31: 7454.52488 | G31: 8132.09252 | H31: 9220.82318 | I31: 12790.71087 | J31: 13367.21377 | K31: 15900.17902 | L31: 15241.67946 | M31: 19006.25904 | N31: 15689.84428 | O31: 15828.31851 | P31: 18920.21022 | Q31: 21429.97033 | R31: 22658.94741 | S31: 22649.57711 | T31: 22207.5686 | W31: Yearly
C32: =IFERROR(C31/C55,IFERROR(C30/C54,IFERROR(C29/C53,IFERROR(C28/C52,"-")))) -> 0.2877146596 | D32: 0.3101896953 | E32: 0.3549580581 | F32: 0.3605050584 | G32: 0.3151851878 | H32: 0.2565495652 | I32: 0.2886458416 | J32: 0.2844630626 | K32: 0.3072722088 | L32: 0.2991535816 | M32: 0.346757694 | N32: 0.3014439713 | O32: 0.2821911273 | P32: 0.3229457237 | Q32: 0.3287574503 | R32: 0.3281627817 | S32: 0.3251219367 | T32: =IFERROR(T31/T55,IFERROR(T30/T54,IFERROR(T29/T53,IFERROR(T28/T52,"-")))) -> 0.3143389642 | U32: 0.2857733484 | W32: %Common Size
C33: Property, Plant And Equipment - Net
A34: BS | B34: Property, Plant And Equipment - Net | C34: 8350.148 | D34: 8838.942 | E34: 9683.266 | F34: 9918.247 | G34: 12314.063 | H34: 18107.295 | I34: 26142.446 | J34: 28677.722 | K34: 30230.372 | L34: 31553.798 | M34: 32000.918 | N34: 32305.534 | O34: 29318.345 | P34: 28284.088 | Q34: 27387.528 | R34: 30023.34 | S34: 31049.933 | T34: 32051.68 | U34: 32716.347 | W34: Q1
C35: 8345.721 | D35: 9555.149 | E35: 9710.261 | F35: 10280.766 | G35: 13513.17 | H35: 19658.265 | I35: 26134.019 | J35: 29115.687 | K35: 30466.144 | L35: 31427.066 | M35: 32117.261 | N35: 32075.963 | O35: 29092.879 | P35: 28009.659 | Q35: 27832.083 | R35: 30362.747 | S35: 31113.969 | T35: 32212.95 | U35: 32698.584 | W35: Q2
C36: 8333.211 | D36: 9482.786 | E36: 10139.166 | F36: 11201.303 | G36: 14661.746 | H36: 22004.569 | I36: 27053.515 | J36: 29653.216 | K36: 30884.9 | L36: 31143.859 | M36: 32086.118 | N36: 32793.065 | O36: 28899.447 | P36: 27768.43 | Q36: 27841.355 | R36: 30885.86 | S36: 31542.868 | T36: 32497.911 | W36: Q3
C37: 8613.171 | D37: 9413.587 | E37: 10504.21478 | F37: 11871.78225 | G37: 16027.21728 | H37: 24767.39353 | I37: 28319.22922 | J37: 29813.03719 | K37: 32057.13375 | L37: 32042.0593 | M37: 32300.44409 | N37: 32806.18007 | O37: 28741.15663 | P37: 27584.17229 | Q37: 29468.56388 | R37: 31178.91448 | S37: 31940.69378 | T37: 32857.88395 | W37: Yearly
C38: =IFERROR(C37/C55,IFERROR(C36/C54,IFERROR(C35/C53,IFERROR(C34/C52,"-")))) -> 0.644260948 | D38: 0.6788957155 | E38: 0.6330895153 | F38: 0.5741261344 | G38: 0.6211859341 | H38: 0.6890994348 | I38: 0.6390753285 | J38: 0.6344409547 | K38: 0.6195066283 | L38: 0.628900301 | M38: 0.5893020549 | N38: 0.6302946688 | O38: 0.5124043583 | P38: 0.4708293608 | Q38: 0.4520776173 | R38: 0.4515549253 | S38: 0.4584906893 | T38: =IFERROR(T37/T55,IFERROR(T36/T54,IFERROR(T35/T53,IFERROR(T34/T52,"-")))) -> 0.4650897806 | U38: 0.484321178 | W38: %Common Size
C39: Intangible Assets - Net
A40: BS | B40: Intangible Assets - Net | C40: 619.871 | D40: 841.949 | E40: 0 | F40: 142.911 | G40: 192.687 | H40: 184.444 | I40: 237.661 | J40: 252.81 | K40: 349.276 | L40: 421.379 | M40: 496.157 | N40: 482.176 | O40: 473.015 | P40: 480.817 | Q40: 500.262 | R40: 458.764 | S40: 467.03 | T40: 416.99 | U40: 409.68 | W40: Q1
C41: 610.396 | D41: 117.843 | E41: 101.045 | F41: 163.595 | G41: 197.45 | H41: 203.587 | I41: 232.974 | J41: 291.98 | K41: 370.765 | L41: 420.974 | M41: 520.626 | N41: 502.614 | O41: 458.062 | P41: 507.005 | Q41: 484.3 | R41: 461.231 | S41: 457.06 | T41: 406.534 | U41: 388.583 | W41: Q2
C42: 647.307 | D42: 110.411 | E42: 111.836 | F42: 177.959 | G42: 196.047 | H42: 197.818 | I42: 234.702 | J42: 359.184 | K42: 364.792 | L42: 445.969 | M42: 528.928 | N42: 493.267 | O42: 466.495 | P42: 513.189 | Q42: 472.385 | R42: 472.586 | S42: 441.049 | T42: 394.582 | W42: Q3
C43: 853.126 | D43: 92.116 | E43: 130.20148 | F43: 189.54795 | G43: 189.82944 | H43: 241.57167 | I43: 246.25633 | J43: 352.13262 | K43: 426.03638 | L43: 491.29128 | M43: 483.03108 | N43: 476.02955 | O43: 488.87031 | P43: 505.15916 | Q43: 470.91591 | R43: 484.25606 | S43: 436.26912 | T43: 430.86882 | W43: Yearly
C44: =IFERROR(C43/C55,IFERROR(C42/C54,IFERROR(C41/C53,IFERROR(C40/C52,"-")))) -> 0.06381340455 | D44: 0.006643286744 | E44: 0.007847249279 | F44: 0.00916664655 | G44: 0.007357445522 | H44: 0.006721211946 | I44: 0.005557225579 | J44: 0.00749361275 | K44: 0.008233186515 | L44: 0.009642739594 | M44: 0.008812609734 | N44: 0.009145803837 | O44: 0.008715699256 | P44: 0.008622472405 | Q44: 0.007224327029 | R44: 0.007013336181 | S44: 0.006262397771 | T44: =IFERROR(T43/T55,IFERROR(T42/T54,IFERROR(T41/T53,IFERROR(T40/T52,"-")))) -> 0.006098770245 | U44: 0.005755569609 | W44: %Common Size
C45: Total Non-Current Assets
A46: BS | B46: Total Non-Current Assets | C46: 9018.8 | D46: 9738.311 | E46: 9743.138 | F46: 11274.037 | G46: 13706.257 | H46: 19831.864 | I46: 28146.544 | J46: 32155.525 | K46: 34063.121 | L46: 35298.987 | M46: 35642.828 | N46: 35832.475 | O46: 39844.613 | P46: 39709.98 | Q46: 39551.841 | R46: 44595.203 | S46: 46104.155 | T46: 47221.247 | U46: 48304.492 | W46: Q1
C47: 9007.852 | D47: 9732.181 | E47: 9870.955 | F47: 11632.659 | G47: 14943.94 | H47: 21445.197 | I47: 29326.161 | J47: 32770.984 | K47: 34189.988 | L47: 35097.949 | M47: 35759.25 | N47: 35622.926 | O47: 39510.636 | P47: 39859.331 | Q47: 40527.23 | R47: 45151.255 | S47: 46350.619 | T47: 47274.442 | U47: 48220.481 | W47: Q2
C48: 9033.704 | D48: 9652.546 | E48: 10317.794 | F48: 12545.682 | G48: 16215.45 | H48: 23782.764 | I48: 30366.01 | J48: 33478.745 | K48: 34564.376 | L48: 34807.581 | M48: 35706.345 | N48: 36327.45 | O48: 39847.296 | P48: 39485.103 | Q48: 41827.414 | R48: 46291.91 | S48: 46592.895 | T48: 47695.545 | W48: Q3
C49: 9522.594 | D49: 9564.929 | E49: 10702.52931 | F49: 13223.47868 | G49: 17668.90586 | H49: 26720.85995 | I49: 31522.10791 | J49: 33623.82136 | K49: 35846.05304 | L49: 35707.66696 | M49: 35805.09589 | N49: 36359.11265 | O49: 40262.45467 | P49: 39666.13674 | Q49: 43754.77394 | R49: 46388.94185 | S49: 47015.29183 | T49: 48440.90685 | W49: Yearly
C50: =IFERROR(C49/C55,IFERROR(C48/C54,IFERROR(C47/C53,IFERROR(C46/C52,"-")))) -> 0.7122853404 | D50: 0.6898103047 | E50: 0.6450419413 | F50: 0.6394949416 | G50: 0.6848148122 | H50: 0.7434504348 | I50: 0.7113541584 | J50: 0.7155369374 | K50: 0.6927277912 | L50: 0.7008464184 | M50: 0.653242306 | N50: 0.6985560287 | O50: 0.7178088729 | P50: 0.6770542763 | Q50: 0.6712425495 | R50: 0.6718372183 | S50: 0.6748780633 | T50: =IFERROR(T49/T55,IFERROR(T48/T54,IFERROR(T47/T53,IFERROR(T46/T52,"-")))) -> 0.6856610356 | U50: 0.7142266516 | W50: %Common Size
C51: Total Assets
A52: BS | B52: Total Assets | C52: 12247.273 | D52: 13854.811 | E52: 14717.505 | F52: 17773.321 | G52: 22166.326 | H52: 27187.1 | I52: 38084.19 | J52: 45960.411 | K52: 47890.814 | L52: 50053.01 | M52: 52617.093 | N52: 56064.664 | O52: 62888.468 | P52: 58566.895 | Q52: 58597.434 | R52: 64873.815 | S52: 67849.123 | T52: 69573.879 | U52: 69156.664 | W52: Q1
C53: 12238.727 | D53: 12769.888 | E53: 15247.348 | F53: 18144.325 | G53: 22077.285 | H53: 28756.241 | I53: 39734.126 | J53: 45589.882 | K53: 47283.747 | L53: 52375.891 | M53: 51649.596 | N53: 54969.605 | O53: 54438.023 | P53: 56580.88 | Q53: 58870.978 | R53: 63150.45 | S53: 66448.599 | T53: 64872.626 | U53: 67514.256 | W53: Q2
C54: 12505.056 | D54: 13112.422 | E54: 15848.064 | F54: 19279.795 | G54: 23305.28 | H54: 34551.84 | I54: 41183.653 | J54: 45318.179 | K54: 47277.104 | L54: 49133.67 | M54: 48509.907 | N54: 50542.175 | O54: 54734.634 | P54: 55091.913 | Q54: 62418.638 | R54: 63161.469 | S54: 65587.809 | T54: 66166.705 | W54: Q3
C55: 13369.072 | D55: 13866.028 | E55: 16591.9898 | F55: 20678.00356 | G55: 25800.99838 | H55: 35941.68313 | I55: 44312.81878 | J55: 46991.03513 | K55: 51746.23206 | L55: 50949.34642 | M55: 54811.35493 | N55: 52048.95693 | O55: 56090.77317 | P55: 58586.34696 | Q55: 65184.74428 | R55: 69047.88926 | S55: 69664.86894 | T55: 70648.47546 | W55: Yearly
C56: Liabilities
C57: Trade And Other Payables - Current
A58: BS | B58: Trade And Other Payables - Current | C58: 3355.023 | D58: 3929.88 | E58: 4748.942 | F58: 5796.265 | G58: 7819.387 | H58: 8990.783 | I58: 11369.03 | J58: 11610.823 | K58: 12718.792 | L58: 13590.737 | M58: 13126.802 | N58: 13859.613 | O58: 12965.75 | P58: 13651.183 | Q58: 13085.697 | R58: 15650.024 | S58: 16170.055 | T58: 15627.759 | U58: 14348.417 | W58: Q1
C59: 3359.357 | D59: 3704.137 | E59: 4948.156 | F59: 6091.84 | G59: 8476.158 | H59: 9253.13 | I59: 12113.087 | J59: 12142.219 | K59: 13742.489 | L59: 13268.455 | M59: 13895.007 | N59: 14397.687 | O59: 11966.788 | P59: 13573.636 | Q59: 13468.871 | R59: 15517.782 | S59: 15123.238 | T59: 13223.959 | U59: 13975.444 | W59: Q2
C60: 3529.712 | D60: 4008.188 | E60: 5207.954 | F60: 5758.567 | G60: 7811.199 | H60: 10189.627 | I60: 10654.005 | J60: 12254.644 | K60: 13190.807 | L60: 13499.519 | M60: 14030.417 | N60: 13448.971 | O60: 13376.078 | P60: 11713.614 | Q60: 14446.533 | R60: 14157.78 | S60: 13583.56 | T60: 13729.932 | W60: Q3
C61: 3697.158 | D61: 4533.349 | E61: 5378.00315 | F61: 7291.77854 | G61: 8091.3322 | H61: 11056.71538 | I61: 12075.36515 | J61: 12773.31264 | K61: 14031.57729 | L61: 14084.93276 | M61: 14370.53022 | N61: 14069.08079 | O61: 13050.30928 | P61: 13972.61855 | Q61: 15811.87763 | R61: 15224.70114 | S61: 15458.7169 | T61: 15312.70205 | W61: Yearly
C62: =IFERROR(C61/C55,"-") -> 0.2765455972 | D62: 0.3269392648 | E62: 0.324132501 | F62: 0.3526345529 | G62: 0.3136053916 | H62: 0.3076293155 | I62: 0.2725027539 | J62: 0.2718244577 | K62: 0.2711613335 | L62: 0.2764497241 | M62: 0.2621816271 | N62: 0.2703047596 | O62: 0.2326641004 | P62: 0.2384961561 | Q62: 0.242570218 | R62: 0.2204948088 | S62: =IFERROR(S61/S55,"-") -> 0.221901184 | T62: =IFERROR(T61/T55,"-") -> 0.216744975 | U62: =IFERROR(U61/U55,"-") -> - | W62: %Common Size
C63: Total Current Liabilities
A64: BS | B64: Total Current Liabilities | C64: 6167.458 | D64: 6531.335 | E64: 6763.014 | F64: 8395.298 | G64: 10662.434 | H64: 12206.492 | I64: 14689.571 | J64: 16735.343 | K64: 20475.807 | L64: 20782.383 | M64: 18833.291 | N64: 23463.71 | O64: 27317.5 | P64: 19765.094 | Q64: 21892.226 | R64: 22346.163 | S64: 20639.111 | T64: 26104.457 | U64: 23595.238 | W64: Q1
C65: 6045.709 | D65: 5990.318 | E65: 6535.607 | F65: 8331.691 | G65: 11789.492 | H65: 12497.673 | I65: 15968.398 | J65: 16790.534 | K65: 21217.597 | L65: 20164.165 | M65: 19071.622 | N65: 27432.303 | O65: 20708.995 | P65: 18432.917 | Q65: 22962.424 | R65: 21790.439 | S65: 20409.271 | T65: 24395.358 | U65: 23501.622 | W65: Q2
C66: 6199.157 | D66: 5916.294 | E66: 6816.401 | F66: 8022.314 | G66: 11047.199 | H66: 13544.586 | I66: 15140.068 | J66: 18568.886 | K66: 22204.711 | L66: 19928.765 | M66: 19227.436 | N66: 23708.604 | O66: 20963.026 | P66: 17673.892 | Q66: 23855.28 | R66: 20302.722 | S66: 21678.697 | T66: 25420.955 | W66: Q3
C67: 6203.551 | D67: 6441.688 | E67: 7634.16965 | F67: 9115.89803 | G67: 11587.85437 | H67: 14331.29603 | I67: 16776.56185 | J67: 19474.34855 | K67: 22491.41405 | L67: 20377.78034 | M67: 23651.21019 | N67: 22289.26895 | O67: 20610.00499 | P67: 20510.68354 | Q67: 24485.03102 | R67: 23579.25981 | S67: 25949.09146 | T67: 30283.81427 | W67: Yearly
C68: =IFERROR(C67/C55,IFERROR(C66/C54,IFERROR(C65/C53,IFERROR(C64/C52,"-")))) -> 0.4640225589 | D68: 0.4645662045 | E68: 0.4601117613 | F68: 0.4408500078 | G68: 0.4491242625 | H68: 0.3987374764 | I68: 0.3785938767 | J68: 0.4144268901 | K68: 0.4346483436 | L68: 0.3999615652 | M68: 0.4315020167 | N68: 0.4282366115 | O68: 0.3674402014 | P68: 0.3500932317 | Q68: 0.3756251757 | R68: 0.3414913919 | S68: 0.3724846089 | T68: =IFERROR(T67/T55,IFERROR(T66/T54,IFERROR(T65/T53,IFERROR(T64/T52,"-")))) -> 0.4286548871 | U68: 0.3480986593 | W68: %Common Size
C69: Bank Overdrafts And Short-Term Borrowings From Financial Institutions
A70: BS | B70: Bank Overdrafts And Short-Term Borrowings From Financial Institutions | C70: 498.56 | D70: 295.611 | E70: 0 | F70: 0 | G70: 0 | H70: 0 | I70: 1000 | J70: 0 | K70: 0 | L70: 22.031 | M70: 294.78 | N70: 309.641 | O70: 4272.977 | P70: 1748.424 | Q70: 197.573 | R70: 61.726 | S70: 22.6 | T70: 1005.341 | U70: 2005.692 | W70: Q1
C71: 438.687 | D71: 577.911 | E71: 0 | F71: 0 | G71: 0 | H71: 1300 | I71: 1850 | J71: 0 | K71: 0 | L71: 353.857 | M71: 374.128 | N71: 277.31 | O71: 2759.651 | P71: 723.312 | Q71: 1055.974 | R71: 60.762 | S71: 1013.25 | T71: 2005.387 | U71: 2505.719 | W71: Q2
C72: 237.603 | D72: 0 | E72: 0 | F72: 0 | G72: 0 | H72: 1500 | I72: 0 | J72: 0 | K72: 2509.117 | L72: 391.881 | M72: 326.787 | N72: 283.144 | O72: 1754.942 | P72: 2234.279 | Q72: 1077.506 | R72: 68.446 | S72: 3013.327 | T72: 4005.354 | W72: Q3
C73: 124.824 | D73: 0 | E73: 0 | F73: 0 | G73: 0 | H73: 1360 | I73: 0 | J73: 0 | K73: 1507.40464 | L73: 341.13753 | M73: 340.17742 | N73: 280.74191 | O73: 1248.7144 | P73: 1231.8289 | Q73: 1074.19975 | R73: 2039.9465 | S73: 3012.90555 | T73: 6005.43851 | W73: Yearly
C74: =IFERROR(C73/C55,IFERROR(C72/C54,IFERROR(C71/C53,IFERROR(C70/C52,"-")))) -> 0.009336773712 | D74: 0 | E74: 0 | F74: 0 | G74: 0 | H74: 0.03783907379 | I74: 0 | J74: 0 | K74: 0.0291307131 | L74: 0.006695621317 | M74: 0.00620633116 | N74: 0.005393804728 | O74: 0.02226238523 | P74: 0.02102586974 | Q74: 0.01647931217 | R74: 0.02954393714 | S74: 0.0432485641 | T74: =IFERROR(T73/T55,IFERROR(T72/T54,IFERROR(T71/T53,IFERROR(T70/T52,"-")))) -> 0.08500450252 | U74: 0.0371139245 | W74: %Common Size
C75: Current Portion Of Long-Term Debts
A76: BS | B76: Current Portion Of Long-Term Debts | C76: 912.237 | D76: 646.24 | E76: 318.76 | F76: 690 | G76: 1000 | H76: 1300 | I76: 500 | J76: 3000 | K76: 5700 | L76: 4750 | M76: 2800 | N76: 6805.79 | O76: 8288.909 | P76: 2069.96 | Q76: 6324.248 | R76: 4005.784 | S76: 2030.214 | T76: 7023.958 | U76: 4725.534 | W76: Q1
C77: 1071.831 | D77: 613.44 | E77: 217.2 | F77: 630 | G77: 2000 | H77: 500 | I77: 500 | J77: 3000 | K77: 5700 | L77: 4600 | M77: 2705.662 | N77: 10795.699 | O77: 4013.263 | P77: 2066.326 | Q77: 6323.166 | R77: 4017.485 | S77: 2031.553 | T77: 7024.166 | U77: 4725.655 | W77: Q2
C78: 1037.901 | D78: 646.24 | E78: 140 | F78: 630 | G78: 2000 | H78: 500 | I78: 3000 | J78: 4700 | K78: 4750 | L78: 4050 | M78: 2910.793 | N78: 8089.063 | O78: 4080.551 | P78: 2064.09 | Q78: 6345.726 | R78: 4030.865 | S78: 3031.724 | T78: 5724.014 | W78: Q3
C79: 960 | D79: 646.24 | E79: 730 | F79: 300 | G79: 2000 | H79: 500 | I79: 3000 | J79: 4700 | K79: 4750 | L79: 3800 | M79: 6907.63856 | N79: 6020.20691 | O79: 4075.16698 | P79: 3182.50422 | Q79: 5173.68826 | R79: 4019.89796 | S79: 5025.5579 | T79: 6724.3956 | W79: Yearly
C80: =IFERROR(C79/C55,IFERROR(C78/C54,IFERROR(C77/C53,IFERROR(C76/C52,"-")))) -> 0.0718075271 | D80: 0.04660599272 | E80: 0.04399713409 | F80: 0.01450817044 | G80: 0.0775163802 | H80: 0.01391142419 | I80: 0.06770050027 | J80: 0.1000190778 | K80: 0.09179412318 | L80: 0.07458388119 | M80: 0.1260256852 | N80: 0.1156643142 | O80: 0.07265307197 | P80: 0.05432160196 | Q80: 0.07936961811 | R80: 0.058218984 | S80: 0.07213905626 | T80: =IFERROR(T79/T55,IFERROR(T78/T54,IFERROR(T77/T53,IFERROR(T76/T52,"-")))) -> 0.09518104327 | U80: 0.06999492078 | W80: %Common Size
C81: Short-Term Debts
C82: =IF(AND(ISBLANK(C76), ISBLANK(C70)), "", C76 + C70) -> 1410.797 | D82: 941.851 | E82: 318.76 | F82: 690 | G82: 1000 | H82: =IF(AND(ISBLANK(H76), ISBLANK(H70)), "", H76 + H70) -> 1300 | I82: =IF(AND(ISBLANK(I76), ISBLANK(I70)), "", I76 + I70) -> 1500 | J82: 3000 | K82: 5700 | L82: 4772.031 | M82: 3094.78 | N82: 7115.431 | O82: 12561.886 | P82: 3818.384 | Q82: 6521.821 | R82: 4067.51 | S82: =IF(AND(ISBLANK(S76), ISBLANK(S70)), "", S76 + S70) -> 2052.814 | T82: =IF(AND(ISBLANK(T76), ISBLANK(T70)), "", T76 + T70) -> 8029.299 | U82: =IF(AND(ISBLANK(U76), ISBLANK(U70)), "", U76 + U70) -> 6731.226 | W82: Q1
C83: 1510.518 | D83: 1191.351 | E83: 217.2 | F83: 630 | G83: 2000 | H83: 1800 | I83: 2350 | J83: 3000 | K83: 5700 | L83: 4953.857 | M83: 3079.79 | N83: 11073.009 | O83: 6772.914 | P83: 2789.638 | Q83: 7379.14 | R83: 4078.247 | S83: =IF(AND(ISBLANK(S77), ISBLANK(S71)), "", S77 + S71) -> 3044.803 | T83: 9029.553 | U83: =IF(AND(ISBLANK(U77), ISBLANK(U71)), "", U77 + U71) -> 7231.374 | W83: Q2
C84: 1275.504 | D84: 646.24 | E84: 140 | F84: 630 | G84: 2000 | H84: 2000 | I84: 3000 | J84: 4700 | K84: 7259.117 | L84: 4441.881 | M84: 3237.58 | N84: 8372.207 | O84: 5835.493 | P84: 4298.369 | Q84: 7423.232 | R84: 4099.311 | S84: 6045.051 | T84: 9729.368 | U84: =IF(AND(ISBLANK(U78), ISBLANK(U72)), "", U78 + U72) ->  | W84: Q3
C85: 1084.824 | D85: 646.24 | E85: 730 | F85: 300 | G85: 2000 | H85: 1860 | I85: 3000 | J85: 4700 | K85: 6257.40464 | L85: 4141.13753 | M85: 7247.81598 | N85: 6300.94882 | O85: 5323.88138 | P85: 4414.33312 | Q85: 6247.88801 | R85: 6059.84446 | S85: 8038.46345 | T85: 12729.83411 | U85: =IF(AND(ISBLANK(U79), ISBLANK(U73)), "", U79 + U73) ->  | W85: Yearly
C86: =IFERROR(C85/C55,IFERROR(C84/C54,IFERROR(C83/C53,IFERROR(C82/C52,"-")))) -> 0.08114430082 | D86: 0.04660599272 | E86: 0.04399713409 | F86: 0.01450817044 | G86: 0.0775163802 | H86: 0.05175049797 | I86: 0.06770050027 | J86: 0.1000190778 | K86: 0.1209248363 | L86: 0.08127950251 | M86: 0.1322320163 | N86: 0.121058119 | O86: 0.0949154572 | P86: 0.07534747171 | Q86: 0.09584893028 | R86: 0.08776292114 | S86: 0.1153876204 | T86: =IFERROR(T85/T55,IFERROR(T84/T54,IFERROR(T83/T53,IFERROR(T82/T52,"-")))) -> 0.1801855458 | U86: 0.1071088453 | W86: %Common Size
C87: Long-Term Debts
A88: BS | B88: Non-Current Portion Of Long-Term Debts | C88: 910.864 | D88: 1463.76 | E88: 1690 | F88: 2000 | G88: 2000 | H88: 3500 | I88: 8900 | J88: 11850 | K88: 8650 | L88: 9699.493 | M88: 12917.171 | N88: 10000 | O88: 12430.105 | P88: 10006.696 | Q88: 5868.633 | R88: 9089.587 | S88: 11742.017 | T88: 6610.311 | U88: 9615.899 | W88: Q1
C89: 1173.856 | D89: 1335 | E89: 2630 | F89: 2000 | G89: 1000 | H89: 4150 | I89: 8650 | J89: 11500 | K89: 8300 | L89: 13509.102 | M89: 12807.574 | N89: 6000 | O89: 8114.475 | P89: 10044.839 | Q89: 5885.368 | R89: 9086.963 | S89: 11744.451 | T89: 6624.168 | U89: 9662.812 | W89: Q2
C90: 1056.754 | D90: 1685.64 | E90: 2630 | F90: 3000 | G90: 2300 | H90: 8150 | I90: 10200 | J90: 10000 | K90: 7950 | L90: 11008.875 | M90: 10097.137 | N90: 6000 | O90: 8078.408 | P90: 10083.401 | Q90: 9030.375 | R90: 10725.653 | S90: 10586.043 | T90: 7776.164 | W90: Q3
C91: 1565 | D91: 1524.08 | E91: 2000 | F91: 2700 | G91: 3500 | H91: 7900 | I91: 10850 | J91: 9650 | K91: 10200 | L91: 10911.16776 | M91: 10000 | N91: 7071.65227 | O91: 8055.58745 | P91: 8943.36838 | Q91: 9055.76477 | R91: 11742.51582 | S91: 8596.84393 | T91: 5758.01774 | W91: Yearly
C92: =IFERROR(C91/C55,IFERROR(C90/C54,IFERROR(C89/C53,IFERROR(C88/C52,"-")))) -> 0.1170612291 | D92: 0.1099146778 | E92: 0.1205400934 | F92: 0.130573534 | G92: 0.1356536654 | H92: 0.2198005021 | I92: 0.2448501427 | J92: 0.2053583194 | K92: 0.1971158014 | L92: 0.2141571684 | M92: 0.1824439482 | N92: 0.1358653984 | O92: 0.14361698 | P92: 0.152652774 | Q92: 0.1389246038 | R92: 0.1700633567 | S92: 0.123402858 | T92: =IFERROR(T91/T55,IFERROR(T90/T54,IFERROR(T89/T53,IFERROR(T88/T52,"-")))) -> 0.08150236367 | U92: 0.1431225429 | W92: %Common Size
C93: Total Debts
C94: =IF(AND(ISBLANK(C76), ISBLANK(C70), ISBLANK(C88)), "", C76 + C70+C88) -> 2321.661 | D94: 2405.611 | E94: 2008.76 | F94: 2690 | G94: 3000 | H94: 4800 | I94: 10400 | J94: 14850 | K94: 14350 | L94: 14471.524 | M94: 16011.951 | N94: 17115.431 | O94: 24991.991 | P94: 13825.08 | Q94: 12390.454 | R94: 13157.097 | S94: =IF(AND(ISBLANK(S76), ISBLANK(S70), ISBLANK(S88)), "", S76 + S70+S88) -> 13794.831 | T94: =IF(AND(ISBLANK(T76), ISBLANK(T70), ISBLANK(T88)), "", T76 + T70+T88) -> 14639.61 | U94: =IF(AND(ISBLANK(U76), ISBLANK(U70), ISBLANK(U88)), "", U76 + U70+U88) -> 16347.125 | W94: Q1
C95: 2684.374 | D95: 2526.351 | E95: 2847.2 | F95: 2630 | G95: 3000 | H95: 5950 | I95: 11000 | J95: 14500 | K95: 14000 | L95: 18462.959 | M95: 15887.364 | N95: 17073.009 | O95: 14887.389 | P95: 12834.477 | Q95: 13264.508 | R95: 13165.21 | S95: =IF(AND(ISBLANK(S77), ISBLANK(S71), ISBLANK(S89)), "", S77 + S71+S89) -> 14789.254 | T95: 15653.721 | U95: =IF(AND(ISBLANK(U77), ISBLANK(U71), ISBLANK(U89)), "", U77 + U71+U89) -> 16894.186 | W95: Q2
C96: 2332.258 | D96: 2331.88 | E96: 2770 | F96: 3630 | G96: 4300 | H96: 10150 | I96: 13200 | J96: 14700 | K96: 15209.117 | L96: 15450.756 | M96: 13334.717 | N96: 14372.207 | O96: 13913.901 | P96: 14381.77 | Q96: 16453.607 | R96: 14824.964 | S96: 16631.094 | T96: 17505.532 | U96: =IF(AND(ISBLANK(U78), ISBLANK(U72), ISBLANK(U90)), "", U78 + U72+U90) ->  | W96: Q3
C97: 2649.824 | D97: 2170.32 | E97: 2730 | F97: 3000 | G97: 5500 | H97: 9760 | I97: 13850 | J97: 14350 | K97: 16457.40464 | L97: 15052.30529 | M97: 17247.81598 | N97: 13372.60109 | O97: 13379.46883 | P97: 13357.7015 | Q97: =IF(AND(ISBLANK(Q79), ISBLANK(Q73), ISBLANK(Q91)), "", Q79 + Q73+Q91) -> 15303.65278 | R97: 17802.36028 | S97: 16635.30738 | T97: 18487.85185 | U97: =IF(AND(ISBLANK(U79), ISBLANK(U73), ISBLANK(U91)), "", U79 + U73+U91) ->  | W97: Yearly
C98: =IFERROR(C97/C122,IFERROR(C96/C121,IFERROR(C95/C120,IFERROR(C94/C119,"-")))) -> 0.5346473484 | D98: 0.411557329 | E98: 0.4376259002 | F98: 0.3693993285 | G98: 0.5578153427 | H98: 0.7675140699 | I98: 0.8820743924 | J98: 0.8489807416 | K98: 0.940941162 | L98: 0.8077529498 | M98: 0.8661110869 | N98: 0.6326309049 | O98: 0.6204182691 | P98: 0.5835496162 | Q98: 0.6311857181 | R98: 0.6965260921 | S98: =IFERROR(S97/S122,IFERROR(S96/S121,IFERROR(S95/S120,IFERROR(S94/S119,"-")))) -> 0.6206640271 | T98: =IFERROR(T97/T122,IFERROR(T96/T121,IFERROR(T95/T120,IFERROR(T94/T119,"-")))) -> 0.7084221811 | U98: =IFERROR(U97/U122,IFERROR(U96/U121,IFERROR(U95/U120,IFERROR(U94/U119,"-")))) -> 0.6529959813 | W98: D/E Ratio
C99: Total Non-Current Liabilities
A100: BS | B100: Total Non-Current Liabilities | C100: 1569.466 | D100: 2125.152 | E100: 2332.031 | F100: 2728.383 | G100: 2770.617 | H100: 4359.37 | I100: 9952.41 | J100: 12846.223 | K100: 9614.152 | L100: 10734.371 | M100: 13901.098 | N100: 11262.394 | O100: 13821.195 | P100: 15852.49 | Q100: 12300.755 | R100: 16671.826 | S100: 19936.533 | T100: 14959.079 | U100: 18128.083 | W100: Q1
C101: 1810.546 | D101: 1991.973 | E101: 3345.765 | F101: 2735.743 | G101: 1801.923 | H101: 5035.807 | I101: 9683.796 | J101: 12501.635 | K101: 9260.985 | L101: 14518.223 | M101: 13747.851 | N101: 7308.712 | O101: 13797.553 | P101: 16393.992 | Q101: 12612.154 | R101: 16646.307 | S101: 20033.535 | T101: 14973.956 | U101: 18140.826 | W101: Q2
C102: 1692.337 | D102: 2325.88 | E102: 3338.138 | F102: 3756.107 | G102: 3149.766 | H102: 9064.317 | I102: 11203.526 | J102: 10964.447 | K102: 8901.119 | L102: 12091.964 | M102: 11061.409 | N102: 7357.654 | O102: 13754.572 | P102: 16368.626 | Q102: 15966.912 | R102: 18977.159 | S102: 18829.727 | T102: 16252.218 | W102: Q3
C103: 2209.31 | D103: 2150.904 | E103: 2719.6108 | F103: 3440.80974 | G103: 4353.24414 | H103: 8894.00331 | I103: 11834.62331 | J103: 10614.0575 | K103: 11764.44909 | L103: 11936.77406 | M103: 11246.04898 | N103: 8621.60687 | O103: 13915.52523 | P103: 15185.23063 | Q103: 16453.83161 | R103: 19909.84271 | S103: 16913.3403 | T103: 14267.43634 | W103: Yearly
C104: =IFERROR(C103/C55,IFERROR(C102/C54,IFERROR(C101/C53,IFERROR(C100/C52,"-")))) -> 0.1652552997 | D104: 0.1551204137 | E104: 0.1639110699 | F104: 0.1663995139 | G104: 0.1687238639 | H104: 0.2474565055 | I104: 0.2670699729 | J104: 0.2258740943 | K104: 0.2273489029 | L104: 0.234287089 | M104: 0.2051773578 | N104: 0.1656441815 | O104: 0.2480893816 | P104: 0.2591940173 | Q104: 0.2524184423 | R104: 0.2883483177 | S104: 0.2427814845 | T104: =IFERROR(T103/T55,IFERROR(T102/T54,IFERROR(T101/T53,IFERROR(T100/T52,"-")))) -> 0.2019496705 | U104: 0.2686962291 | W104: %Common Size
C105: Total Liabilities
A106: BS | B106: Total Liabilities | C106: 7736.924 | D106: 8656.487 | E106: 9095.045 | F106: 11123.681 | G106: 13433.051 | H106: 16565.862 | I106: 24641.981 | J106: 29581.566 | K106: 30089.959 | L106: 31516.754 | M106: 32734.389 | N106: 34726.104 | O106: 41138.695 | P106: 35617.584 | Q106: 34192.981 | R106: 39017.989 | S106: 40575.644 | T106: 41063.536 | U106: 41723.321 | W106: Q1
C107: 7856.255 | D107: 7982.291 | E107: 9881.372 | F107: 11067.434 | G107: 13591.415 | H107: 17533.48 | I107: 25652.194 | J107: 29292.169 | K107: 30478.582 | L107: 34682.388 | M107: 32819.473 | N107: 34741.015 | O107: 34506.548 | P107: 34826.909 | Q107: 35574.578 | R107: 38436.746 | S107: 40442.806 | T107: 39369.314 | U107: 41642.448 | W107: Q2
C108: 7891.494 | D108: 8242.174 | E108: 10154.539 | F108: 11778.421 | G108: 14196.965 | H108: 22608.903 | I108: 26343.594 | J108: 29533.333 | K108: 31105.83 | L108: 32020.729 | M108: 30288.845 | N108: 31066.258 | O108: 34717.598 | P108: 34042.518 | Q108: 39822.192 | R108: 39279.881 | S108: 40508.424 | T108: 41673.173 | W108: Q3
C109: 8412.861 | D109: 8592.592 | E109: 10353.78045 | F109: 12556.70777 | G109: 15941.09852 | H109: 23225.29934 | I109: 28611.18515 | J109: 30088.40606 | K109: 34255.86314 | L109: 32314.5544 | M109: 34897.25917 | N109: 30910.87582 | O109: 34525.53021 | P109: 35695.91417 | Q109: 40938.86264 | R109: 43489.10253 | S109: 42862.43177 | T109: 44551.25061 | W109: Yearly
C110: =IFERROR(C109/C55,IFERROR(C108/C54,IFERROR(C107/C53,IFERROR(C106/C52,"-")))) -> 0.6292778586 | D110: 0.6196866183 | E110: 0.6240228312 | F110: 0.6072495216 | G110: 0.6178481269 | H110: 0.646193982 | I110: 0.6456638494 | J110: 0.6403009846 | K110: 0.6619972465 | L110: 0.6342486542 | M110: 0.6366793745 | N110: 0.5938807931 | O110: 0.6155295828 | P110: 0.609287249 | Q110: 0.6280436181 | R110: 0.6298397097 | S110: 0.6152660935 | T110: =IFERROR(T109/T55,IFERROR(T108/T54,IFERROR(T107/T53,IFERROR(T106/T52,"-")))) -> 0.6306045576 | U110: 0.6167948885 | W110: %Common Size
C111: Equity
C112: Retained Earnings (Deficits) - Unappropriated
A113: BS | B113: Retained Earnings (Deficits) - Unappropriated | C113: 1889.673 | D113: 2507.252 | E113: 1062.494 | F113: 1334.56 | G113: 1810.173 | H113: 2340.222 | I113: 2462.364 | J113: 2524.162 | K113: 2944.085 | L113: 3481.238 | M113: 4837.223 | N113: 6281.337 | O113: 6695.831 | P113: 7870.577 | Q113: 9316.837 | R113: 10769.162 | S113: 12183.636 | T113: 13421.842 | U113: 12337.152 | W113: Q1
C114: 1733.325 | D114: 2072.825 | E114: 759.321 | F114: 979.901 | G114: 1496.855 | H114: 1734.194 | I114: 1692.652 | J114: 1577.093 | K114: 1913.785 | L114: 2637.219 | M114: 3782.576 | N114: 5178.024 | O114: 4877.709 | P114: 6673.275 | Q114: 8206.668 | R114: 9627.375 | S114: 10912.373 | T114: 10414.536 | U114: 10774.908 | W114: Q2
C115: 1951.922 | D115: 379.347 | E115: 434.179 | F115: 643.213 | G115: 2086.252 | H115: 2415.581 | I115: 2420.017 | J115: 1025.271 | K115: 1236.988 | L115: 2062.791 | M115: 3175.721 | N115: 4424.833 | O115: 4963.123 | P115: 5965.546 | Q115: 7504.298 | R115: 8793.361 | S115: 9987.282 | T115: 9405.784 | W115: Q3
C116: 2277.394 | D116: 739.79 | E116: 946.60607 | F116: 1230.13971 | G116: 1621.25879 | H116: 1773.235 | I116: 1872.69135 | J116: 2120.20436 | K116: 2487.31103 | L116: 3588.74917 | M116: 4861.4962 | N116: 6085.85879 | O116: 6508.1072 | P116: 7805.89185 | Q116: 9158.04198 | R116: 10470.79932 | S116: 11714.46616 | T116: 11007.67824 | W116: Yearly
C117: =IFERROR(C116/C55,IFERROR(C115/C54,IFERROR(C114/C53,IFERROR(C113/C52,"-")))) -> 0.1703479494 | D117: 0.05335269769 | E117: 0.05705199204 | F117: 0.05949025526 | G117: 0.06283705639 | H117: 0.04933644853 | I117: 0.04226071375 | J117: 0.04511933721 | K117: 0.04806748107 | L117: 0.07043758992 | M117: 0.08869505609 | N117: 0.1169256629 | O117: 0.1160281243 | P117: 0.1332373881 | Q117: 0.1404936397 | R117: 0.1516454657 | S117: 0.1681545711 | T117: =IFERROR(T116/T55,IFERROR(T115/T54,IFERROR(T114/T53,IFERROR(T113/T52,"-")))) -> 0.1558091405 | U117: 0.1595945603 | W117: %Common Size
C118: Equity Attributable To Owners Of The Parent
A119: BS | B119: Equity Attributable To Owners Of The Parent | C119: 4510.347 | D119: 5198.322 | E119: 5622.456 | F119: 6649.635 | G119: 8733.271 | H119: 10621.231 | I119: 13442.199 | J119: 16378.837 | K119: 17800.848 | L119: 18536.252 | M119: 19882.7 | N119: 21338.556 | O119: 21749.769 | P119: 22949.308 | Q119: 24404.45 | R119: 25855.824 | S119: 27273.477 | T119: 28510.341 | U119: 27433.342 | W119: Q1
C120: 4382.47 | D120: 4787.595 | E120: 5365.972 | F120: 7076.885 | G120: 8485.865 | H120: 11222.756 | I120: 14081.922 | J120: 16297.705 | K120: 16805.158 | L120: 17693.499 | M120: 18830.119 | N120: 20228.586 | O120: 19931.472 | P120: 21753.968 | Q120: 23296.397 | R120: 24713.702 | S120: 26005.791 | T120: 25503.31 | U120: 25871.807 | W120: Q2
C121: 4613.559 | D121: 4870.246 | E121: 5693.521 | F121: 7501.368 | G121: 9108.31 | H121: 11942.934 | I121: 14840.049 | J121: 15784.838 | K121: 16171.267 | L121: 17112.937 | M121: 18221.058 | N121: 19475.913 | O121: 20017.033 | P121: 21049.392 | Q121: 22596.444 | R121: 23881.586 | S121: 25079.383 | T121: 24493.53 | W121: Q3
C122: 4956.209 | D122: 5273.433 | E122: 6238.20482 | F122: 8121.29251 | G122: 9859.89373 | H122: 12716.37926 | I122: 15701.62349 | J122: 16902.62134 | K122: 17490.36529 | L122: 18634.78839 | M122: 19914.09213 | N122: 21138.07749 | O122: 21565.23993 | P122: 22890.42976 | Q122: 24245.87937 | R122: 25558.78449 | S122: 26802.43522 | T122: 26097.2233 | W122: Yearly
C123: =IFERROR(C122/C55,IFERROR(C121/C54,IFERROR(C120/C53,IFERROR(C119/C52,"-")))) -> 0.3707219918 | D123: 0.3803131654 | E123: 0.3759768958 | F123: 0.3927503198 | G123: 0.3821516356 | H123: 0.353805892 | I123: 0.3543359218 | J123: 0.3596988509 | K123: 0.3380026834 | L123: 0.3657512745 | M123: 0.3633205593 | N123: 0.4061191374 | O123: 0.3844703631 | P123: 0.3907126993 | Q123: 0.3719563471 | R123: 0.3701602578 | S123: 0.3847338785 | T123: =IFERROR(T122/T55,IFERROR(T121/T54,IFERROR(T120/T53,IFERROR(T119/T52,"-")))) -> 0.3693954205 | U123: 0.3832050967 | W123: %Common Size
C124: Revenue Structure
C125: Revenue From Operations
A126: PL | B126: Revenue From Operations | C126: 4377.856 | D126: 5068.174 | E126: 5826.552 | F126: 6830.134 | G126: 8657.567 | H126: 9664.819 | I126: 11390.611 | J126: 12619.984 | K126: 14078.637 | L126: 14270.687 | M126: 15373.83 | N126: 16057.708 | O126: 14927.583 | P126: 15376.954 | Q126: 16171.842 | R126: 17700.458 | S126: 18114.663 | T126: 18018.73 | U126: 16513.99 | W126: Q1
C127: 4590.958 | D127: 4944.965 | E127: 5981.386 | F127: 7120.457 | G127: 8146.316 | H127: 9991.036 | I127: 12294.69 | J127: 13603.895 | K127: 15008.72 | L127: 15219.388 | M127: 15889.447 | N127: 17054.093 | O127: 13824.166 | P127: 16456.734 | Q127: 16723.319 | R127: 18252.427 | S127: 17856.183 | T127: 16866.53 | U127: 17403.266 | W127: Q2
C128: 4811.796 | D128: 5021.927 | E128: 6013.489 | F128: 7283.239 | G128: 8649.792 | H128: 10174.49 | I128: 12154.859 | J128: 13227.903 | K128: 14241.086 | L128: 15578.468 | M128: 15894.182 | N128: 15886.094 | O128: 15064.306 | P128: 13387.226 | Q128: 16337.216 | R128: 16824.393 | S128: 16397.241 | T128: 16099.583 | W128: Q3
C129: 5369.784 | D129: 5978.287 | E129: 7019.02673 | F129: 7943.0416 | G129: 9981.29265 | H129: 11279.9305 | I129: 13315.4063 | J129: 14538.17288 | K129: 15305.78386 | L129: 14338.71592 | M129: 16398.58229 | N129: 16255.41673 | O129: 15357.94084 | P129: 16570.15265 | Q129: 17579.09195 | R129: 17388.26415 | S129: 17438.29916 | T129: 16902.75227 | W129: Q4
C130: =IF(COUNT(C126:C129)=4,SUM(C126:C129),IF(COUNT(C126:C129)=0,"",SUM(C126:C129)*4/COUNT(C126:C129))) -> 19150.394 | D130: 21013.353 | E130: 24840.45373 | F130: 29176.8716 | G130: 35434.96765 | H130: 41110.2755 | I130: 49155.5663 | J130: 53989.95488 | K130: 58634.22686 | L130: 59407.25892 | M130: 63556.04129 | N130: 65253.31173 | O130: 59173.99584 | P130: 61791.06665 | Q130: 66811.46895 | R130: =IF(COUNT(R126:R129)=4,SUM(R126:R129),IF(COUNT(R126:R129)=0,"",SUM(R126:R129)*4/COUNT(R126:R129))) -> 70165.54215 | S130: =IF(COUNT(S126:S129)=4,SUM(S126:S129),IF(COUNT(S126:S129)=0,"",SUM(S126:S129)*4/COUNT(S126:S129))) -> 69806.38616 | T130: =IF(COUNT(T126:T129)=4,SUM(T126:T129),IF(COUNT(T126:T129)=0,"",SUM(T126:T129)*4/COUNT(T126:T129))) -> 67887.59527 | U130: =IF(COUNT(U126:U129)=4,SUM(U126:U129),IF(COUNT(U126:U129)=0,"",SUM(U126:U129)*4/COUNT(U126:U129))) -> 67834.512 | W130: Yearly
C131: =IFERROR((C130-B130)/B130,"-") -> - | D131: =IFERROR((D130-C130)/C130,"-") -> 0.09728045282 | E131: 0.1821270851 | F131: 0.1745707996 | G131: 0.2144882473 | H131: 0.1601612257 | I131: 0.1957002404 | J131: 0.0983487516 | K131: 0.08602103836 | L131: 0.01318397294 | M131: 0.06983628677 | N131: 0.02670510003 | O131: -0.09316486365 | P131: =IFERROR((P130-O130)/O130,"-") -> 0.04422670419 | Q131: 0.08124802778 | R131: 0.05020205741 | S131: -0.005118694718 | T131: -0.02748732595 | U131: -0.0007819288603 | W131: %YoY Growth
C132: Other Income
A133: PL | B133: Other Income | C133: 123.731 | D133: 172.202 | E133: 229.436 | F133: 264.929 | G133: 330.522 | H133: 361.099 | I133: 435.554 | J133: 476.294 | K133: 533.172 | L133: 1001.879 | M133: 526.501 | N133: 495.301 | O133: 405.706 | P133: 455.607 | Q133: 500.675 | R133: 551.413 | S133: 672.913 | T133: 635.734 | U133: 635.055 | W133: Q1
C134: 138.97 | D134: 152.768 | E134: 223.155 | F134: 276.383 | G134: 316.784 | H134: 374.889 | I134: 493.551 | J134: 515.117 | K134: 626.5 | L134: 554.085 | M134: 575.273 | N134: 511.319 | O134: 557.708 | P134: 497.561 | Q134: 584.237 | R134: 650.244 | S134: 679.068 | T134: 590.283 | U134: 651.603 | W134: Q2
C135: 146.602 | D135: 152.493 | E135: 235.049 | F135: 307.328 | G135: 340.607 | H135: 388.357 | I135: 460.875 | J135: 527.041 | K135: 567.442 | L135: 577.927 | M135: 599.771 | N135: 489.375 | O135: 953.357 | P135: 389.61 | Q135: 604.281 | R135: 666.203 | S135: 615.384 | T135: 616.185 | W135: Q3
C136: 267.405 | D136: 309.432 | E136: 386.80767 | F136: 476.91924 | G136: 549.53703 | H136: 595.61322 | I136: 663.04293 | J136: 734.76705 | K136: 782.73087 | L136: 2694.49718 | M136: 792.32185 | N136: 674.56912 | O136: 666.61035 | P136: 791.94444 | Q136: 888.76897 | R136: 788.36791 | S136: 844.28482 | T136: 839.97735 | W136: Q4
C137: =IF(COUNT(C133:C136)=4,SUM(C133:C136),IF(COUNT(C133:C136)=0,"",SUM(C133:C136)*4/COUNT(C133:C136))) -> 676.708 | D137: =IF(COUNT(D133:D136)=4,SUM(D133:D136),IF(COUNT(D133:D136)=0,"",SUM(D133:D136)*4/COUNT(D133:D136))) -> 786.895 | E137: 1074.44767 | F137: 1325.55924 | G137: 1537.45003 | H137: 1719.95822 | I137: 2053.02293 | J137: 2253.21905 | K137: 2509.84487 | L137: 4828.38818 | M137: 2493.86685 | N137: 2170.56412 | O137: 2583.38135 | P137: 2134.72244 | Q137: 2577.96197 | R137: =IF(COUNT(R133:R136)=4,SUM(R133:R136),IF(COUNT(R133:R136)=0,"",SUM(R133:R136)*4/COUNT(R133:R136))) -> 2656.22791 | S137: =IF(COUNT(S133:S136)=4,SUM(S133:S136),IF(COUNT(S133:S136)=0,"",SUM(S133:S136)*4/COUNT(S133:S136))) -> 2811.64982 | T137: =IF(COUNT(T133:T136)=4,SUM(T133:T136),IF(COUNT(T133:T136)=0,"",SUM(T133:T136)*4/COUNT(T133:T136))) -> 2682.17935 | U137: =IF(COUNT(U133:U136)=4,SUM(U133:U136),IF(COUNT(U133:U136)=0,"",SUM(U133:U136)*4/COUNT(U133:U136))) -> 2573.316 | W137: Yearly
C138: Interest And Dividend Income
A139: PL | B139: Interest And Dividend Income | C139: 0 | D139: 0 | E139: 0 | F139: 0 | G139: 0 | H139: 0 | I139: 0 | J139: 0 | K139: 0 | L139: 0 | M139: 0 | N139: 0 | O139: 0 | P139: 2.825 | Q139: 1.939 | R139: 0 | S139: 7.962 | T139: 5.646 | U139: 4.574 | W139: Q1
C140: 0 | D140: 0 | E140: 0 | F140: 0 | G140: 0 | H140: 0 | I140: 0 | J140: 0 | K140: 0 | L140: 0 | M140: 0 | N140: 0 | O140: 8.009 | P140: 1.797 | Q140: 1.736 | R140: 0 | S140: 22.802 | T140: 22.718 | U140: 4.304 | W140: Q2
C141: 0 | D141: 0 | E141: 0 | F141: 0 | G141: 0 | H141: 0 | I141: 0 | J141: 0 | K141: 0 | L141: 0 | M141: 0 | N141: 0 | O141: 1.822 | P141: 1.169 | Q141: 0 | R141: 0 | S141: 5.518 | T141: 6.325 | W141: Q3
C142: 0 | D142: 0 | E142: 0 | F142: 0 | G142: 0 | H142: 0 | I142: 0 | J142: 0 | K142: 0 | L142: 0 | M142: 0 | N142: 0 | O142: 0.78928 | P142: 0 | Q142: 0 | R142: 0 | S142: 25.66893 | T142: 5.06395 | W142: Q4
C143: =IF(COUNT(C139:C142)=4,SUM(C139:C142),IF(COUNT(C139:C142)=0,"",SUM(C139:C142)*4/COUNT(C139:C142))) -> 0 | D143: =IF(COUNT(D139:D142)=4,SUM(D139:D142),IF(COUNT(D139:D142)=0,"",SUM(D139:D142)*4/COUNT(D139:D142))) -> 0 | E143: 0 | F143: 0 | G143: 0 | H143: 0 | I143: 0 | J143: 0 | K143: 0 | L143: 0 | M143: 0 | N143: 0 | O143: 10.62028 | P143: 5.791 | Q143: 3.675 | R143: =IF(COUNT(R139:R142)=4,SUM(R139:R142),IF(COUNT(R139:R142)=0,"",SUM(R139:R142)*4/COUNT(R139:R142))) -> 0 | S143: =IF(COUNT(S139:S142)=4,SUM(S139:S142),IF(COUNT(S139:S142)=0,"",SUM(S139:S142)*4/COUNT(S139:S142))) -> 61.95093 | T143: =IF(COUNT(T139:T142)=4,SUM(T139:T142),IF(COUNT(T139:T142)=0,"",SUM(T139:T142)*4/COUNT(T139:T142))) -> 39.75295 | U143: =IF(COUNT(U139:U142)=4,SUM(U139:U142),IF(COUNT(U139:U142)=0,"",SUM(U139:U142)*4/COUNT(U139:U142))) -> 17.756 | W143: Yearly
C144: Total Revenue
A145: PL | B145: Total Revenue | C145: 4501.587 | D145: 5240.376 | E145: 6055.988 | F145: 7095.063 | G145: 8988.089 | H145: 10025.918 | I145: 11826.165 | J145: 13096.278 | K145: 14611.809 | L145: 15272.566 | M145: 15900.331 | N145: 16553.009 | O145: 15333.289 | P145: 15835.386 | Q145: 16674.456 | R145: 18251.871 | S145: 18795.538 | T145: 18660.11 | U145: 17153.619 | W145: Q1
C146: 4729.928 | D146: 5097.733 | E146: 6204.541 | F146: 7396.84 | G146: 8463.1 | H146: 10365.925 | I146: 12788.241 | J146: 14119.012 | K146: 15635.22 | L146: 15773.473 | M146: 16464.72 | N146: 17565.412 | O146: 14389.883 | P146: 16956.092 | Q146: 17309.292 | R146: 18902.671 | S146: 18558.053 | T146: 17479.531 | U146: 18059.173 | W146: Q2
C147: 4958.398 | D147: 5174.42 | E147: 6248.538 | F147: 7590.567 | G147: 8990.399 | H147: 10562.847 | I147: 12615.734 | J147: 13754.944 | K147: 14808.528 | L147: 16156.395 | M147: 16493.953 | N147: 16375.469 | O147: 16019.485 | P147: 13778.005 | Q147: 16941.497 | R147: 17490.596 | S147: 17018.143 | T147: 16722.093 | W147: Q3
C148: 5637.189 | D148: 6287.719 | E148: 7405.8344 | F148: 8419.96084 | G148: 10530.82968 | H148: 11875.54372 | I148: 13978.44923 | J148: 15272.93994 | K148: 16088.51473 | L148: 17033.2131 | M148: 17190.90413 | N148: 16929.98585 | O148: 16025.34047 | P148: 17356.30608 | Q148: 18467.86092 | R148: 18176.63206 | S148: 18308.2529 | T148: 17747.79357 | W148: Q4
C149: =IF(COUNT(C145:C148)=4,SUM(C145:C148),IF(COUNT(C145:C148)=0,"",SUM(C145:C148)*4/COUNT(C145:C148))) -> 19827.102 | D149: =IF(COUNT(D145:D148)=4,SUM(D145:D148),IF(COUNT(D145:D148)=0,"",SUM(D145:D148)*4/COUNT(D145:D148))) -> 21800.248 | E149: 25914.9014 | F149: 30502.43084 | G149: 36972.41768 | H149: 42830.23372 | I149: 51208.58923 | J149: 56243.17394 | K149: 61144.07173 | L149: 64235.6471 | M149: 66049.90813 | N149: 67423.87585 | O149: 61767.99747 | P149: 63925.78908 | Q149: 69393.10592 | R149: =IF(COUNT(R145:R148)=4,SUM(R145:R148),IF(COUNT(R145:R148)=0,"",SUM(R145:R148)*4/COUNT(R145:R148))) -> 72821.77006 | S149: =IF(COUNT(S145:S148)=4,SUM(S145:S148),IF(COUNT(S145:S148)=0,"",SUM(S145:S148)*4/COUNT(S145:S148))) -> 72679.9869 | T149: =IF(COUNT(T145:T148)=4,SUM(T145:T148),IF(COUNT(T145:T148)=0,"",SUM(T145:T148)*4/COUNT(T145:T148))) -> 70609.52757 | U149: =IF(COUNT(U145:U148)=4,SUM(U145:U148),IF(COUNT(U145:U148)=0,"",SUM(U145:U148)*4/COUNT(U145:U148))) -> 70425.584 | W149: Yearly
C150: COGS Breakdown
C151: Costs
A152: PL | B152: Costs | C152: 3206.549 | D152: 3733.576 | E152: 4276.381 | F152: 4989.708 | G152: 6324.281 | H152: 6953.406 | I152: 8191.275 | J152: 9105.82 | K152: 10218.992 | L152: 10559.291 | M152: 10884.239 | N152: 11724.689 | O152: 10956.372 | P152: 11341.854 | Q152: 11819.543 | R152: 12924.262 | S152: 13224.861 | T152: 13160.577 | U152: 11971.098 | W152: Q1
C153: 3428.139 | D153: 3626.765 | E153: 4366.957 | F153: 5160.839 | G153: 5848.961 | H153: 7118.781 | I153: 8850.29 | J153: 9867.807 | K153: 10911.087 | L153: 10954.58 | M153: 11275.59 | N153: 12515.617 | O153: 10655.877 | P153: 12244.987 | Q153: 12299.061 | R153: 13309.53 | S153: 13034.217 | T153: 12364.396 | U153: 12438.908 | W153: Q2
C154: 3553.118 | D154: 3664.507 | E154: 4331.145 | F154: 5244.878 | G154: 6232.265 | H154: 7258.508 | I154: 8779.231 | J154: 9547.593 | K154: 10307.094 | L154: 11132.991 | M154: 11157.781 | N154: 11440.706 | O154: 11314.974 | P154: 9995.912 | Q154: 11822.612 | R154: 12210.659 | S154: 11820.944 | T154: 11640.648 | W154: Q3
C155: 3958.923 | D155: 4370.222 | E155: 5077.73799 | F155: 5678.55241 | G155: 7153.88431 | H155: 8015.36531 | I155: 9652.08552 | J155: 10478.51008 | K155: 10967.47746 | L155: 11402.89924 | M155: 11326.60166 | N155: 11618.13696 | O155: 11224.66102 | P155: 11951.42013 | Q155: 12841.43115 | R155: 12459.57529 | S155: 12464.87801 | T155: 11986.03901 | W155: Q4
C156: =IF(COUNT(C152:C155)=4,SUM(C152:C155),IF(COUNT(C152:C155)=0,"",SUM(C152:C155)*4/COUNT(C152:C155))) -> 14146.729 | D156: 15395.07 | E156: 18052.22099 | F156: 21073.97741 | G156: 25559.39131 | H156: 29346.06031 | I156: 35472.88152 | J156: 38999.73008 | K156: 42404.65046 | L156: 44049.76124 | M156: 44644.21166 | N156: 47299.14896 | O156: 44151.88402 | P156: 45534.17313 | Q156: 48782.64715 | R156: 50904.02629 | S156: =IF(COUNT(S152:S155)=4,SUM(S152:S155),IF(COUNT(S152:S155)=0,"",SUM(S152:S155)*4/COUNT(S152:S155))) -> 50544.90001 | T156: =IF(COUNT(T152:T155)=4,SUM(T152:T155),IF(COUNT(T152:T155)=0,"",SUM(T152:T155)*4/COUNT(T152:T155))) -> 49151.66001 | U156: =IF(COUNT(U152:U155)=4,SUM(U152:U155),IF(COUNT(U152:U155)=0,"",SUM(U152:U155)*4/COUNT(U152:U155))) -> 48820.012 | W156: Yearly
C157: =IFERROR(C156/C130, "-") -> 0.7387173862 | D157: 0.7326327217 | E157: 0.726726701 | F157: 0.7222836533 | G157: 0.721304209 | H157: 0.7138375979 | I157: 0.721645262 | J157: 0.7223515961 | K157: 0.7232064398 | L157: 0.7414878592 | M157: 0.7024385212 | N157: 0.7248543822 | O157: 0.7461365992 | P157: 0.7369054396 | Q157: 0.7301537882 | R157: 0.7254846856 | S157: 0.7240727216 | T157: =IFERROR(T156/T130, "-") -> 0.7240153347 | U157: 0.7196928313 | W157: %Common Size
C158: =IFERROR((C156-B156)/B156,"-") -> - | D158: 0.08824237744 | E158: 0.1725975257 | F158: 0.1673897313 | G158: 0.2128413547 | H158: 0.1481517675 | I158: 0.2087783214 | J158: 0.09942379668 | K158: 0.08730625502 | L158: 0.03879552743 | M158: 0.01349497485 | N158: 0.05946879117 | O158: -0.06653956803 | P158: 0.03130759062 | Q158: 0.07134145185 | R158: 0.04348634738 | S158: -0.007054968068 | T158: -0.02756440313 | U158: -0.00674744271 | W158: %YoY Growth
C159: Gross Profit
C160: =IF(AND(ISBLANK(C126),ISBLANK(C152)),"",C126-C152) -> 1171.307 | D160: 1334.598 | E160: 1550.171 | F160: 1840.426 | G160: 2333.286 | H160: 2711.413 | I160: 3199.336 | J160: 3514.164 | K160: 3859.645 | L160: 3711.396 | M160: 4489.591 | N160: 4333.019 | O160: 3971.211 | P160: 4035.1 | Q160: 4352.299 | R160: 4776.196 | S160: 4889.802 | T160: =IF(AND(ISBLANK(T126),ISBLANK(T152)),"",T126-T152) -> 4858.153 | U160: 4542.892 | W160: Q1
C161: 1162.819 | D161: 1318.2 | E161: 1614.429 | F161: 1959.618 | G161: 2297.355 | H161: 2872.255 | I161: 3444.4 | J161: 3736.088 | K161: 4097.633 | L161: 4264.808 | M161: 4613.857 | N161: 4538.476 | O161: 3168.289 | P161: 4211.747 | Q161: 4424.258 | R161: 4942.897 | S161: 4821.966 | T161: =IF(AND(ISBLANK(T127),ISBLANK(T153)),"",T127-T153) -> 4502.134 | U161: 4964.358 | W161: Q2
C162: 1258.678 | D162: 1357.42 | E162: 1682.344 | F162: 2038.361 | G162: 2417.527 | H162: 2915.982 | I162: 3375.628 | J162: 3680.31 | K162: 3933.992 | L162: 4445.477 | M162: 4736.401 | N162: 4445.388 | O162: 3749.332 | P162: 3391.314 | Q162: 4514.604 | R162: 4613.734 | S162: 4576.297 | T162: =IF(AND(ISBLANK(T128),ISBLANK(T154)),"",T128-T154) -> 4458.935 | W162: Q3
C163: 1410.861 | D163: 1608.065 | E163: 1941.28874 | F163: 2264.48919 | G163: 2827.40834 | H163: 3264.56519 | I163: 3663.32078 | J163: 4059.6628 | K163: 4338.3064 | L163: 2935.81668 | M163: 5071.98063 | N163: 4637.27977 | O163: 4133.27982 | P163: 4618.73252 | Q163: 4737.6608 | R163: 4928.68886 | S163: 4973.42115 | T163: =IF(AND(ISBLANK(T129),ISBLANK(T155)),"",T129-T155) -> 4916.71326 | W163: Q4
C164: =IF(COUNT(C160:C163)=4,SUM(C160:C163),IF(COUNT(C160:C163)=0,"",SUM(C160:C163)*4/COUNT(C160:C163))) -> 5003.665 | D164: =IF(COUNT(D160:D163)=4,SUM(D160:D163),IF(COUNT(D160:D163)=0,"",SUM(D160:D163)*4/COUNT(D160:D163))) -> 5618.283 | E164: 6788.23274 | F164: 8102.89419 | G164: =IF(COUNT(G160:G163)=4,SUM(G160:G163),IF(COUNT(G160:G163)=0,"",SUM(G160:G163)*4/COUNT(G160:G163))) -> 9875.57634 | H164: =IF(COUNT(H160:H163)=4,SUM(H160:H163),IF(COUNT(H160:H163)=0,"",SUM(H160:H163)*4/COUNT(H160:H163))) -> 11764.21519 | I164: =IF(COUNT(I160:I163)=4,SUM(I160:I163),IF(COUNT(I160:I163)=0,"",SUM(I160:I163)*4/COUNT(I160:I163))) -> 13682.68478 | J164: 14990.2248 | K164: 16229.5764 | L164: 15357.49768 | M164: 18911.82963 | N164: 17954.16277 | O164: 15022.11182 | P164: 16256.89352 | Q164: 18028.8218 | R164: 19261.51586 | S164: =IF(COUNT(S160:S163)=4,SUM(S160:S163),IF(COUNT(S160:S163)=0,"",SUM(S160:S163)*4/COUNT(S160:S163))) -> 19261.48615 | T164: =IF(COUNT(T160:T163)=4,SUM(T160:T163),IF(COUNT(T160:T163)=0,"",SUM(T160:T163)*4/COUNT(T160:T163))) -> 18735.93526 | U164: =IF(COUNT(U160:U163)=4,SUM(U160:U163),IF(COUNT(U160:U163)=0,"",SUM(U160:U163)*4/COUNT(U160:U163))) -> 19014.5 | W164: Yearly
C165: =IFERROR(C164/C130, "-") -> 0.2612826138 | D165: 0.2673672783 | E165: 0.273273299 | F165: 0.2777163467 | G165: 0.278695791 | H165: 0.2861624021 | I165: 0.278354738 | J165: 0.2776484039 | K165: 0.2767935602 | L165: 0.2585121408 | M165: 0.2975614788 | N165: 0.2751456178 | O165: 0.2538634008 | P165: 0.2630945604 | Q165: 0.2698462118 | R165: 0.2745153144 | S165: 0.2759272784 | T165: =IFERROR(T164/T130, "-") -> 0.2759846653 | U165: 0.2803071687 | W165: %GPM
C166: =IFERROR((C164-B164)/B164,"-") -> - | D166: 0.122833563 | E166: 0.2082397309 | F166: 0.1936677042 | G166: 0.2187714795 | H166: 0.1912434054 | I166: =IFERROR((I164-H164)/H164,"-") -> 0.1630767169 | J166: 0.09556165628 | K166: 0.08267731916 | L166: -0.05373391754 | M166: 0.2314395238 | N166: -0.05063850927 | O166: -0.1633075843 | P166: 0.08219761075 | Q166: 0.1089955026 | R166: 0.06837352289 | S166: -1.542453886e-06 | T166: -0.0272850644 | U166: 0.01486793886 | W166: %YoY Growth
C167: SG&A
C168: Selling Expenses
A169: PL | B169: Selling Expenses | C169: 0 | D169: 0 | E169: 1032.659 | F169: 1228.421 | G169: 1571.182 | H169: 1862.708 | I169: 2272.009 | J169: 2557.672 | K169: 2723.299 | L169: 2892.937 | M169: 2962.986 | N169: 0 | O169: 2217.773 | P169: 2202.814 | Q169: 2304.264 | R169: 2566.565 | S169: 2678.022 | T169: 2643.865 | U169: 2671.382 | W169: Q1
C170: 0 | D170: 887.002 | E170: 1021.649 | F170: 1270.384 | G170: 1607.898 | H170: 1945.436 | I170: 2439.634 | J170: 2679.136 | K170: 2792.999 | L170: 2867.623 | M170: 2987.472 | N170: 2521.912 | O170: 2002.344 | P170: 2343.806 | Q170: 2475.322 | R170: 2797.703 | S170: 2718.886 | T170: 2637.028 | U170: 2891.498 | W170: Q2
C171: 0 | D171: 909.995 | E171: 1120.008 | F171: 1355.239 | G171: 1696.925 | H171: 2026.055 | I171: 2388.368 | J171: 2659.252 | K171: 2779.291 | L171: 2976.318 | M171: 3065.776 | N171: 2571.877 | O171: 2426.622 | P171: 2093.949 | Q171: 2542.997 | R171: 2726.171 | S171: 2657.528 | T171: 2758.77 | W171: Q3
C172: 0 | D172: 1061.978 | E172: 1294.19252 | F172: 1531.64108 | G172: 1914.99002 | H172: 2261.29765 | I172: 2525.35272 | J172: 2751.74521 | K172: 2913.88154 | L172: 3079.32963 | M172: 3011.82525 | N172: 2593.5578 | O172: 2400.40224 | P172: 2614.37299 | Q172: 2925.06168 | R172: 2873.64091 | S172: 2925.90251 | T172: 2983.86075 | W172: Q4
C173: =IF(COUNT(C169:C172)=4,SUM(C169:C172),IF(COUNT(C169:C172)=0,"",SUM(C169:C172)*4/COUNT(C169:C172))) -> 0 | D173: =IF(COUNT(D169:D172)=4,SUM(D169:D172),IF(COUNT(D169:D172)=0,"",SUM(D169:D172)*4/COUNT(D169:D172))) -> 2858.975 | E173: 4468.50852 | F173: 5385.68508 | G173: 6790.99502 | H173: 8095.49665 | I173: 9625.36372 | J173: 10647.80521 | K173: 11209.47054 | L173: 11816.20763 | M173: 12028.05925 | N173: 7687.3468 | O173: 9047.14124 | P173: 9254.94199 | Q173: 10247.64468 | R173: 10964.07991 | S173: =IF(COUNT(S169:S172)=4,SUM(S169:S172),IF(COUNT(S169:S172)=0,"",SUM(S169:S172)*4/COUNT(S169:S172))) -> 10980.33851 | T173: =IF(COUNT(T169:T172)=4,SUM(T169:T172),IF(COUNT(T169:T172)=0,"",SUM(T169:T172)*4/COUNT(T169:T172))) -> 11023.52375 | U173: =IF(COUNT(U169:U172)=4,SUM(U169:U172),IF(COUNT(U169:U172)=0,"",SUM(U169:U172)*4/COUNT(U169:U172))) -> 11125.76 | W173: Yearly
C174: =IFERROR(C173/C130, "-") -> 0 | D174: 0.136055155 | E174: 0.1798883615 | F174: 0.1845874758 | G174: 0.1916467114 | H174: 0.1969214886 | I174: 0.1958143186 | J174: 0.1972182647 | K174: 0.1911762317 | L174: 0.1989017478 | M174: 0.1892512341 | N174: 0.1178077648 | O174: 0.1528904904 | P174: 0.1497779937 | Q174: 0.1533815203 | R174: 0.1562601752 | S174: 0.1572970485 | T174: =IFERROR(T173/T130, "-") -> 0.1623790577 | U174: 0.1640132681 | W174: %Common Size
C175: =IFERROR((C173-B173)/B173,"-") -> - | D175: - | E175: 0.5629757238 | F175: 0.2052533985 | G175: 0.2609342951 | H175: 0.1920928562 | I175: 0.1889775435 | J175: 0.1062236732 | K175: 0.05274939942 | L175: 0.05412718539 | M175: 0.01792890127 | N175: -0.3608821972 | O175: 0.1768873547 | P175: 0.0229686643 | Q175: 0.107261903 | R175: 0.06991218493 | S175: 0.00148289689 | T175: 0.003932960715 | U175: 0.009274371092 | W175: %YoY Growth
C176: Administrative Expenses
A177: PL | B177: Administrative Expenses | C177: 0 | D177: 0 | E177: 226.046 | F177: 236.945 | G177: 260.52 | H177: 283.639 | I177: 324.027 | J177: 372.894 | K177: 458.394 | L177: 408.056 | M177: 421.128 | N177: 0 | O177: 480.538 | P177: 483.659 | Q177: 565.567 | R177: 625.82 | S177: 595.302 | T177: 548.561 | U177: 591.016 | W177: Q1
C178: 0 | D178: 190.526 | E178: 211.346 | F178: 230.347 | G178: 210.916 | H178: 317.088 | I178: 394.956 | J178: 391.745 | K178: 551.735 | L178: 445.339 | M178: 485.569 | N178: 534.688 | O178: 459.432 | P178: 515.331 | Q178: 550.66 | R178: 667.999 | S178: 620.319 | T178: 555.015 | U178: 595.255 | W178: Q2
C179: 0 | D179: 194.344 | E179: 190.494 | F179: 235.558 | G179: 212.669 | H179: 288.368 | I179: 335.781 | J179: 381.744 | K179: 387.255 | L179: 472.043 | M179: 470.606 | N179: 428.991 | O179: 464.242 | P179: 465.795 | Q179: 587.364 | R179: 510.386 | S179: 545.064 | T179: 534.089 | W179: Q3
C180: 0 | D180: 211.638 | E180: 254.16369 | F180: 217.00992 | G180: 281.32259 | H180: 316.4506 | I180: 378.19532 | J180: 465.72411 | K180: 522.06213 | L180: 603.93686 | M180: 634.30759 | N180: 478.22084 | O180: 505.17234 | P180: 605.86524 | Q180: 567.66265 | R180: 632.97596 | S180: 599.14195 | T180: 647.56938 | W180: Q4
C181: =IF(COUNT(C177:C180)=4,SUM(C177:C180),IF(COUNT(C177:C180)=0,"",SUM(C177:C180)*4/COUNT(C177:C180))) -> 0 | D181: =IF(COUNT(D177:D180)=4,SUM(D177:D180),IF(COUNT(D177:D180)=0,"",SUM(D177:D180)*4/COUNT(D177:D180))) -> 596.508 | E181: 882.04969 | F181: 919.85992 | G181: 965.42759 | H181: 1205.5456 | I181: 1432.95932 | J181: 1612.10711 | K181: 1919.44613 | L181: 1929.37486 | M181: 2011.61059 | N181: 1441.89984 | O181: 1909.38434 | P181: 2070.65024 | Q181: 2271.25365 | R181: 2437.18096 | S181: =IF(COUNT(S177:S180)=4,SUM(S177:S180),IF(COUNT(S177:S180)=0,"",SUM(S177:S180)*4/COUNT(S177:S180))) -> 2359.82695 | T181: =IF(COUNT(T177:T180)=4,SUM(T177:T180),IF(COUNT(T177:T180)=0,"",SUM(T177:T180)*4/COUNT(T177:T180))) -> 2285.23438 | U181: =IF(COUNT(U177:U180)=4,SUM(U177:U180),IF(COUNT(U177:U180)=0,"",SUM(U177:U180)*4/COUNT(U177:U180))) -> 2372.542 | W181: Yearly
C182: =IFERROR(C181/C130, "-") -> 0 | D182: 0.02838709272 | E182: 0.03550859818 | F182: 0.03152702362 | G182: 0.02724505352 | H182: 0.02932467821 | I182: 0.02915151686 | J182: 0.02985938984 | K182: 0.03273593314 | L182: 0.03247708942 | M182: 0.03165097368 | N182: 0.02209696032 | O182: 0.03226728756 | P182: 0.03351051135 | Q182: 0.03399496652 | R182: 0.03473472712 | S182: 0.0338053161 | T182: =IFERROR(T181/T130, "-") -> 0.03366203164 | U182: 0.03497544141 | W182: %Common Size
C183: =IFERROR((C181-B181)/B181,"-") -> - | D183: - | E183: 0.4786887854 | F183: 0.0428663265 | G183: 0.04953761873 | H183: 0.2487167474 | I183: 0.1886396666 | J183: 0.1250194528 | K183: 0.1906442929 | L183: 0.005172705733 | M183: 0.0426229924 | N183: -0.2832112501 | O183: 0.3242142672 | P183: 0.08445963268 | Q183: 0.09687942759 | R183: 0.07305538507 | S183: -0.03173913274 | T183: -0.03160933898 | U183: 0.03820510525 | W183: %YoY Growth
C184: Selling And Administrative Expenses
A185: PL | B185: Selling And Administrative Expenses | C185: 985.614 | D185: 1116.276 | E185: 1258.705 | F185: 1465.366 | G185: 1831.702 | H185: 2146.347 | I185: 2596.036 | J185: 2930.566 | K185: 3181.693 | L185: 3300.993 | M185: 3384.114 | N185: 2968.668 | O185: 2698.311 | P185: 2686.473 | Q185: 2869.831 | R185: 3192.385 | S185: 3273.324 | T185: 3192.426 | U185: 3262.398 | W185: Q1
C186: 979.102 | D186: 1077.528 | E186: 1232.995 | F186: 1500.731 | G186: 1818.814 | H186: 2262.524 | I186: 2834.59 | J186: 3070.881 | K186: 3344.734 | L186: 3312.962 | M186: 3473.041 | N186: 3056.6 | O186: 2461.776 | P186: 2859.137 | Q186: 3025.982 | R186: 3465.702 | S186: 3339.205 | T186: 3192.043 | U186: 3486.753 | W186: Q2
C187: 1039.655 | D187: 1104.339 | E187: 1310.502 | F187: 1590.797 | G187: 1909.594 | H187: 2314.423 | I187: 2724.149 | J187: 3040.996 | K187: 3166.546 | L187: 3448.361 | M187: 3536.382 | N187: 3000.868 | O187: 2890.864 | P187: 2559.744 | Q187: 3130.361 | R187: 3236.557 | S187: 3202.592 | T187: 3292.859 | W187: Q3
C188: 1160.135 | D188: 1273.616 | E188: 1548.35621 | F188: 1748.65101 | G188: 2196.31261 | H188: 2577.74825 | I188: 2903.54804 | J188: 3217.46932 | K188: 3435.94367 | L188: 3683.26649 | M188: 3646.13284 | N188: 3071.77864 | O188: 2905.57458 | P188: 3220.23822 | Q188: 3492.72432 | R188: 3506.61687 | S188: 3525.04446 | T188: 3631.43012 | W188: Q4
C189: =IF(COUNT(C185:C188)=4,SUM(C185:C188),IF(COUNT(C185:C188)=0,"",SUM(C185:C188)*4/COUNT(C185:C188))) -> 4164.506 | D189: =IF(COUNT(D185:D188)=4,SUM(D185:D188),IF(COUNT(D185:D188)=0,"",SUM(D185:D188)*4/COUNT(D185:D188))) -> 4571.759 | E189: 5350.55821 | F189: 6305.54501 | G189: 7756.42261 | H189: 9301.04225 | I189: 11058.32304 | J189: 12259.91232 | K189: 13128.91667 | L189: 13745.58249 | M189: 14039.66984 | N189: 12097.91464 | O189: 10956.52558 | P189: 11325.59222 | Q189: 12518.89832 | R189: 13401.26087 | S189: =IF(COUNT(S185:S188)=4,SUM(S185:S188),IF(COUNT(S185:S188)=0,"",SUM(S185:S188)*4/COUNT(S185:S188))) -> 13340.16546 | T189: =IF(COUNT(T185:T188)=4,SUM(T185:T188),IF(COUNT(T185:T188)=0,"",SUM(T185:T188)*4/COUNT(T185:T188))) -> 13308.75812 | U189: =IF(COUNT(U185:U188)=4,SUM(U185:U188),IF(COUNT(U185:U188)=0,"",SUM(U185:U188)*4/COUNT(U185:U188))) -> 13498.302 | W189: Yearly
C190: =IFERROR(C189/C130, "-") -> 0.2174632021 | D190: 0.2175644696 | E190: 0.2153969597 | F190: 0.2161144997 | G190: 0.218891765 | H190: 0.2262461668 | I190: 0.2249658355 | J190: 0.2270776545 | K190: 0.2239121648 | L190: 0.2313788372 | M190: 0.2209022078 | N190: 0.1853992436 | O190: 0.1851577779 | P190: 0.1832885049 | Q190: 0.1873764867 | R190: 0.1909949023 | S190: =IFERROR(S189/S130, "-") -> 0.1911023646 | T190: =IFERROR(T189/T130, "-") -> 0.1960410892 | U190: =IFERROR(U189/U130, "-") -> 0.1989887095 | W190: %Common Size
C191: =IFERROR((C189-B189)/B189,"-") -> - | D191: 0.09779143072 | E191: 0.1703500141 | F191: 0.1784835829 | G191: 0.2300955108 | H191: 0.1991407273 | I191: 0.1889337499 | J191: 0.1086592674 | K191: 0.07088177528 | L191: 0.04697004601 | M191: 0.02139504457 | N191: -0.1383049048 | O191: -0.09434593432 | P191: 0.03368464184 | Q191: 0.1053636823 | R191: 0.07048244402 | S191: -0.004558929984 | T191: -0.002354344112 | U191: 0.01424204109 | W191: %YoY Growth
C192: Other Gains (Losses)
A193: PL | B193: Other Gains (Losses) | W193: Q1
W194: Q2
W195: Q3
W196: Q4
C197: =IF(COUNT(C193:C196)=4,SUM(C193:C196),IF(COUNT(C193:C196)=0,"",SUM(C193:C196)*4/COUNT(C193:C196))) ->  | D197: =IF(COUNT(D193:D196)=4,SUM(D193:D196),IF(COUNT(D193:D196)=0,"",SUM(D193:D196)*4/COUNT(D193:D196))) ->  | R197: =IF(COUNT(R193:R196)=4,SUM(R193:R196),IF(COUNT(R193:R196)=0,"",SUM(R193:R196)*4/COUNT(R193:R196))) ->  | S197: =IF(COUNT(S193:S196)=4,SUM(S193:S196),IF(COUNT(S193:S196)=0,"",SUM(S193:S196)*4/COUNT(S193:S196))) ->  | T197: =IF(COUNT(T193:T196)=4,SUM(T193:T196),IF(COUNT(T193:T196)=0,"",SUM(T193:T196)*4/COUNT(T193:T196))) ->  | U197: =IF(COUNT(U193:U196)=4,SUM(U193:U196),IF(COUNT(U193:U196)=0,"",SUM(U193:U196)*4/COUNT(U193:U196))) ->  | W197: Yearly
C198: EBIT
C199: =IFERROR(C160+C133-C185, "") -> 309.424 | D199: 390.524 | E199: 520.902 | F199: 639.989 | G199: 832.106 | H199: 926.165 | I199: 1038.854 | J199: 1059.892 | K199: 1211.124 | L199: 1412.282 | M199: 1631.978 | N199: 1859.652 | O199: 1678.606 | P199: 1804.234 | Q199: 1983.143 | R199: 2135.224 | S199: 2289.391 | T199: =IFERROR(T160+T133-T185, "") -> 2301.461 | U199: 1915.549 | W199: Q1
C200: 322.687 | D200: 393.44 | E200: 604.589 | F200: 735.27 | G200: 795.325 | H200: 984.62 | I200: 1103.361 | J200: 1180.324 | K200: 1379.399 | L200: 1505.931 | M200: 1716.089 | N200: 1993.195 | O200: 1264.221 | P200: 1850.171 | Q200: 1982.513 | R200: 2127.439 | S200: 2161.829 | T200: =IFERROR(T161+T134-T186, "") -> 1900.374 | U200: 2129.208 | W200: Q2
... 145 more rows

Sheet DOHOME
C1: 2008 | D1: 2009 | E1: 2010 | F1: 2011 | G1: 2012 | H1: 2013 | I1: 2014 | J1: 2015 | K1: 2016 | L1: 2017 | M1: 2018 | N1: 2019 | O1: 2020 | P1: 2021 | Q1: 2022 | R1: 2023 | S1: 2024 | T1: 2025 | U1: 2026
C2: Asset
C3: Cash And Cash Equivalents
A4: BS | B4: Cash And Cash Equivalents | N4: 167.27513 | O4: 80.4245 | P4: 223.019 | Q4: 124.274 | R4: 153.863 | S4: 202.362 | T4: 141.212 | U4: 124.393 | W4: Q1
N5: 133.66995 | O5: 260.93311 | P5: 148.155 | Q5: 128.836 | R5: 152.836 | S5: 208.559 | T5: 302.369 | U5: 165.793 | W5: Q2
N6: 143.14085 | O6: 176.93645 | P6: 139.701 | Q6: 146.023 | R6: 158.372 | S6: 202.674 | T6: 145.725 | W6: Q3
M7: 167.13592 | N7: 204.01641 | O7: 99.51849 | P7: 301.04651 | Q7: 160.31929 | R7: 296.04399 | S7: 124.36772 | T7: 144.84084 | W7: Yearly
C8: =IFERROR(C7/C55,IFERROR(C6/C54,IFERROR(C5/C53,IFERROR(C4/C52,"-")))) -> - | D8: - | E8: - | F8: - | G8: - | H8: - | I8: - | J8: - | K8: - | L8: - | M8: 0.0100233635 | N8: 0.01123951287 | O8: 0.004792568684 | P8: 0.01105710964 | Q8: 0.004811787382 | R8: 0.008711597986 | S8: 0.003705167443 | T8: =IFERROR(T7/T55,IFERROR(T6/T54,IFERROR(T5/T53,IFERROR(T4/T52,"-")))) -> 0.004222001195 | U8: 0.004766154345 | W8: %Common Size
C9: Short-Term Investments - Net
A10: BS | B10: Short-Term Investments - Net | N10: 0.06522 | O10: 0.06586 | P10: 0 | Q10: 0 | R10: 0 | S10: 0 | T10: 0 | U10: 0 | W10: Q1
N11: 0.06551 | O11: 0 | P11: 0 | Q11: 0 | R11: 0 | S11: 0 | T11: 0 | U11: 0 | W11: Q2
N12: 0.06554 | O12: 0 | P12: 0 | Q12: 0 | R12: 0 | S12: 0 | T12: 0 | W12: Q3
M13: 0.06518 | N13: 0.06583 | O13: 0 | P13: 0 | Q13: 0 | R13: 0 | S13: 0 | T13: 0 | W13: Yearly
C14: =IFERROR(C13/C55,IFERROR(C12/C54,IFERROR(C11/C53,IFERROR(C10/C52,"-")))) -> - | D14: - | E14: - | F14: - | G14: - | H14: - | I14: - | J14: - | K14: - | L14: - | M14: 3.908931323e-06 | N14: 3.626654993e-06 | O14: 0 | P14: 0 | Q14: 0 | R14: 0 | S14: 0 | T14: =IFERROR(T13/T55,IFERROR(T12/T54,IFERROR(T11/T53,IFERROR(T10/T52,"-")))) -> 0 | U14: 0 | W14: %Common Size
C15: Trade And Other Receivables - Current - Net
A16: BS | B16: Trade And Other Receivables - Current - Net | N16: 979.20349 | O16: 901.01467 | P16: 1095.904 | Q16: 1744.39 | R16: 1615.372 | S16: 1341.293 | T16: 1690.944 | U16: 1883.161 | W16: Q1
N17: 961.39432 | O17: 832.75257 | P17: 1113.785 | Q17: 1555.887 | R17: 1359.604 | S17: 1559.806 | T17: 1494.673 | U17: 1589.332 | W17: Q2
N18: 903.84838 | O18: 889.566 | P18: 1179.55 | Q18: 1304.303 | R18: 1297.718 | S18: 1500.064 | T18: 1420.208 | W18: Q3
M19: 836.36757 | N19: 859.89909 | O19: 996.44691 | P19: 1570.85274 | Q19: 1463.41625 | R19: 1325.86397 | S19: 1586.72393 | T19: 1389.70215 | W19: Yearly
C20: =IFERROR(C19/C55,IFERROR(C18/C54,IFERROR(C17/C53,IFERROR(C16/C52,"-")))) -> - | D20: - | E20: - | F20: - | G20: - | H20: - | I20: - | J20: - | K20: - | L20: - | M20: 0.05015807597 | N20: 0.04737288969 | O20: 0.04798646218 | P20: 0.05769570613 | Q20: 0.04392264865 | R20: 0.03901580266 | S20: 0.04727173455 | T20: =IFERROR(T19/T55,IFERROR(T18/T54,IFERROR(T17/T53,IFERROR(T16/T52,"-")))) -> 0.04050876906 | U20: 0.04568951414 | W20: %Common Size
C21: Inventories - Net
A22: BS | B22: Inventories - Net | N22: 6656.71697 | O22: 7046.36969 | P22: 9523.454 | Q22: 13753.571 | R22: 14112.686 | S22: 13293.988 | T22: 12359.402 | U22: 12797.623 | W22: Q1
N23: 6790.63175 | O23: 7262.70403 | P23: 10411.632 | Q23: 14761.586 | R23: 13466.792 | S23: 13584.735 | T23: 11779.404 | U23: 13095.913 | W23: Q2
N24: 6679.70532 | O24: 8582.82791 | P24: 11972.383 | Q24: 14106.721 | R24: 12906.166 | S24: 13277.4 | T24: 12187.362 | W24: Q3
M25: 6260.19863 | N25: 7048.15603 | O25: 8559.7143 | P25: 11796.05143 | Q25: 13760.73395 | R25: 13264.44017 | S25: 12411.6788 | T25: 12674.03198 | W25: Yearly
C26: =IFERROR(C25/C55,IFERROR(C24/C54,IFERROR(C23/C53,IFERROR(C22/C52,"-")))) -> - | D26: - | E26: - | F26: - | G26: - | H26: - | I26: - | J26: - | K26: - | L26: - | M26: 0.3754324411 | N26: 0.3882915123 | O26: 0.4122150437 | P26: 0.4332560904 | Q26: 0.4130115969 | R26: 0.3903287153 | S26: 0.3697691668 | T26: =IFERROR(T25/T55,IFERROR(T24/T54,IFERROR(T23/T53,IFERROR(T22/T52,"-")))) -> 0.369438469 | U26: 0.3764763449 | W26: %Common Size
C27: Total Current Assets
A28: BS | B28: Total Current Assets | N28: 7866.63848 | O28: 8095.30813 | P28: 11108.276 | Q28: 16093.228 | R28: 16194.909 | S28: 14985.583 | T28: 14451.862 | U28: 14905.021 | W28: Q1
N29: 7960.18328 | O29: 8446.92691 | P29: 11886.078 | Q29: 16703.521 | R29: 15162.156 | S29: 15570.221 | T29: 13842.806 | U29: 14948.92 | W29: Q2
N30: 7803.10127 | O30: 9732.49327 | P30: 13614.386 | Q30: 15778.06 | R30: 14705.042 | S30: 15101.707 | T30: 13921.098 | W30: Q3
M31: 7330.82543 | N31: 8203.57021 | O31: 9749.30701 | P31: 13973.57313 | Q31: 15658.58322 | R31: 15044.10489 | S31: 14442.178 | T31: 14298.41908 | W31: Yearly
C32: =IFERROR(C31/C55,IFERROR(C30/C54,IFERROR(C29/C53,IFERROR(C28/C52,"-")))) -> - | D32: - | E32: - | F32: - | G32: - | H32: - | I32: - | J32: - | K32: - | L32: - | M32: 0.4396393548 | N32: 0.4519446888 | O32: 0.4695029383 | P32: 0.5132340851 | Q32: 0.4699732213 | R32: 0.4426983769 | S32: 0.4302618696 | T32: =IFERROR(T31/T55,IFERROR(T30/T54,IFERROR(T29/T53,IFERROR(T28/T52,"-")))) -> 0.4167881272 | U32: 0.429745888 | W32: %Common Size
C33: Property, Plant And Equipment - Net
A34: BS | B34: Property, Plant And Equipment - Net | N34: 9187.31234 | O34: 9655.18785 | P34: 10690.046 | Q34: 13287.331 | R34: 16245.623 | S34: 17239.122 | T34: 17779.496 | U34: 18041.61 | W34: Q1
N35: 9176.6424 | O35: 9884.84024 | P35: 11051.589 | Q35: 14674.665 | R35: 17010.668 | S35: 17145.755 | T35: 18024.541 | U35: 17888.991 | W35: Q2
N36: 9532.70791 | O36: 10077.55571 | P36: 11530.413 | Q36: 15438.501 | R36: 17237.319 | S36: 17195.805 | T36: 18073.436 | W36: Q3
M37: 8874.38871 | N37: 9627.59914 | O37: 10414.51477 | P37: 12345.64524 | Q37: 16016.40481 | R37: 17355.82181 | S37: 17555.0653 | T37: 18180.55132 | W37: Yearly
C38: =IFERROR(C37/C55,IFERROR(C36/C54,IFERROR(C35/C53,IFERROR(C34/C52,"-")))) -> - | D38: - | E38: - | F38: - | G38: - | H38: - | I38: - | J38: - | K38: - | L38: - | M38: 0.5322088984 | N38: 0.5303961794 | O38: 0.5015377278 | P38: 0.453442071 | Q38: 0.4807127986 | R38: 0.5107245796 | S38: 0.5230011164 | T38: =IFERROR(T37/T55,IFERROR(T36/T54,IFERROR(T35/T53,IFERROR(T34/T52,"-")))) -> 0.5299493527 | U38: 0.5142659351 | W38: %Common Size
C39: Intangible Assets - Net
A40: BS | B40: Intangible Assets - Net | N40: 13.94113 | O40: 82.37683 | P40: 90.522 | Q40: 96.698 | R40: 122.386 | S40: 123.218 | T40: 127.711 | U40: 128.877 | W40: Q1
N41: 83.99427 | O41: 83.95217 | P41: 88.582 | Q41: 103.476 | R41: 121.349 | S41: 119.924 | T41: 128.973 | U41: 127.565 | W41: Q2
N42: 80.41118 | O42: 84.64309 | P42: 95.264 | Q42: 116.697 | R42: 123.75 | S42: 124.467 | T42: 133.687 | W42: Q3
M43: 16.3085 | N43: 77.69952 | O43: 89.81116 | P43: 89.91361 | Q43: 115.1029 | R43: 123.01913 | S43: 129.25453 | T43: 133.9389 | W43: Yearly
C44: =IFERROR(C43/C55,IFERROR(C42/C54,IFERROR(C41/C53,IFERROR(C40/C52,"-")))) -> - | D44: - | E44: - | F44: - | G44: - | H44: - | I44: - | J44: - | K44: - | L44: - | M44: 0.0009780424437 | N44: 0.004280561327 | O44: 0.004325087257 | P44: 0.00330242873 | Q44: 0.003454672746 | R44: 0.00362004716 | S44: 0.003850755456 | T44: =IFERROR(T43/T55,IFERROR(T42/T54,IFERROR(T41/T53,IFERROR(T40/T52,"-")))) -> 0.003904217871 | U44: 0.003667190285 | W44: %Common Size
C45: Total Non-Current Assets
A46: BS | B46: Total Non-Current Assets | N46: 9744.36506 | O46: 10062.46178 | P46: 11496.138 | Q46: 14413.092 | R46: 17892.316 | S46: 18822.537 | T46: 19548.742 | U46: 19918.829 | W46: Q1
N47: 9801.63558 | O47: 10326.69263 | P47: 11847.932 | Q47: 15802.413 | R47: 18594.485 | S47: 18740.099 | T47: 19824.171 | U47: 19836.567 | W47: Q2
N48: 10154.32529 | O48: 10669.19737 | P48: 12460.144 | Q48: 16681.64 | R48: 18827.414 | S48: 18786.909 | T48: 19905.364 | W48: Q3
M49: 9343.80879 | N49: 9948.14263 | O49: 11015.86018 | P49: 13252.93722 | Q49: 17659.44962 | R49: 18938.63748 | S49: 19123.84079 | T49: 20007.78627 | W49: Yearly
C50: =IFERROR(C49/C55,IFERROR(C48/C54,IFERROR(C47/C53,IFERROR(C46/C52,"-")))) -> - | D50: - | E50: - | F50: - | G50: - | H50: - | I50: - | J50: - | K50: - | L50: - | M50: 0.5603606452 | N50: 0.5480553112 | O50: 0.5304970617 | P50: 0.4867659149 | Q50: 0.5300267787 | R50: 0.5573016231 | S50: 0.5697381304 | T50: =IFERROR(T49/T55,IFERROR(T48/T54,IFERROR(T47/T53,IFERROR(T46/T52,"-")))) -> 0.5832118728 | U50: 0.570254112 | W50: %Common Size
C51: Total Assets
A52: BS | B52: Total Assets | N52: 17611.00354 | O52: 18157.76991 | P52: 22604.414 | Q52: 30506.32 | R52: 34087.225 | S52: 33808.12 | T52: 34000.604 | U52: 34823.85 | W52: Q1
N53: 17761.81886 | O53: 18773.61954 | P53: 23734.01 | Q53: 32505.934 | R53: 33756.641 | S53: 34310.32 | T53: 33666.977 | U53: 34785.487 | W53: Q2
N54: 17957.42656 | O54: 20401.69064 | P54: 26074.53 | Q54: 32459.7 | R54: 33532.456 | S54: 33888.616 | T54: 33826.462 | W54: Q3
M55: 16674.63422 | N55: 18151.71284 | O55: 20765.16719 | P55: 27226.51035 | Q55: 33318.03284 | R55: 33982.74237 | S55: 33566.01879 | T55: 34306.20535 | W55: Yearly
C56: Liabilities
C57: Trade And Other Payables - Current
A58: BS | B58: Trade And Other Payables - Current | N58: 3062.25263 | O58: 2658.33347 | P58: 3742.039 | Q58: 5909.373 | R58: 4297.346 | S58: 3756.801 | T58: 4227.456 | U58: 4087.597 | W58: Q1
N59: 2635.90732 | O59: 2912.1909 | P59: 3580.739 | Q59: 4500.14 | R59: 3320.201 | S59: 3636.005 | T59: 3598.576 | U59: 3758.865 | W59: Q2
N60: 1923.10406 | O60: 3264.74898 | P60: 3752.098 | Q60: 3538.793 | R60: 3552.773 | S60: 3136.059 | T60: 3802.725 | W60: Q3
M61: 2128.12672 | N61: 2488.17736 | O61: 2845.06023 | P61: 3896.67697 | Q61: 4482.52174 | R61: 3854.76395 | S61: 3181.91276 | T61: 3497.21324 | W61: Yearly
C62: =IFERROR(C61/C55,"-") -> - | D62: - | E62: - | F62: - | G62: - | H62: - | I62: - | J62: - | K62: - | L62: - | M62: 0.1276265909 | N62: 0.1370767256 | O62: 0.1370111882 | P62: 0.1431206908 | Q62: 0.1345374069 | R62: 0.1134329863 | S62: =IFERROR(S61/S55,"-") -> 0.09479565569 | T62: =IFERROR(T61/T55,"-") -> 0.1019411271 | U62: =IFERROR(U61/U55,"-") -> - | W62: %Common Size
C63: Total Current Liabilities
A64: BS | B64: Total Current Liabilities | N64: 10376.48628 | O64: 8879.97645 | P64: 12070.98 | Q64: 16070.252 | R64: 16494.612 | S64: 15709.721 | T64: 15681.861 | U64: 16326.4 | W64: Q1
N65: 13046.68005 | O65: 8722.1806 | P65: 12443.904 | Q65: 16841.624 | R65: 16240.07 | S65: 15437.867 | T65: 15662.082 | U65: 16274.236 | W65: Q2
N66: 8543.28479 | O66: 10434.58327 | P66: 12459.552 | Q66: 15951.002 | R66: 15483.721 | S66: 15555.425 | T66: 15642.21 | W66: Q3
M67: 9595.5441 | N67: 9065.72305 | O67: 10674.83664 | P67: 13325.29628 | Q67: 16456.01958 | R67: 15869.3307 | S67: 15331.95141 | T67: 15513.05876 | W67: Yearly
C68: =IFERROR(C67/C55,IFERROR(C66/C54,IFERROR(C65/C53,IFERROR(C64/C52,"-")))) -> - | D68: - | E68: - | F68: - | G68: - | H68: - | I68: - | J68: - | K68: - | L68: - | M68: 0.5754575467 | N68: 0.4994417403 | O68: 0.5140741966 | P68: 0.4894235842 | Q68: 0.4939072982 | R68: 0.4669820501 | S68: 0.45677003 | T68: =IFERROR(T67/T55,IFERROR(T66/T54,IFERROR(T65/T53,IFERROR(T64/T52,"-")))) -> 0.4521939574 | U68: 0.4678455702 | W68: %Common Size
C69: Bank Overdrafts And Short-Term Borrowings From Financial Institutions
A70: BS | B70: Bank Overdrafts And Short-Term Borrowings From Financial Institutions | N70: 6427.32848 | O70: 5139.51366 | P70: 7143.02 | Q70: 9171.178 | R70: 11307.27 | S70: 10731.991 | T70: 9859.01 | U70: 10727.897 | W70: Q1
N71: 6927.58766 | O71: 5209.42952 | P71: 7681.333 | Q71: 11340.645 | R71: 11953.312 | S71: 10509.568 | T71: 10569.837 | U71: 10942.231 | W71: Q2
N72: 5381.50403 | O72: 6404.20424 | P72: 7797.989 | Q72: 11640.625 | R72: 10947.423 | S72: 10856.579 | T72: 10692.068 | W72: Q3
M73: 6577.02753 | N73: 5731.70549 | O73: 6852.30893 | P73: 8494.21033 | Q73: 11161.4656 | R73: 10872.6286 | S73: 10588.50876 | T73: 10805.74762 | W73: Yearly
C74: =IFERROR(C73/C55,IFERROR(C72/C54,IFERROR(C71/C53,IFERROR(C70/C52,"-")))) -> - | D74: - | E74: - | F74: - | G74: - | H74: - | I74: - | J74: - | K74: - | L74: - | M74: 0.3944330918 | N74: 0.3157666464 | O74: 0.3299905494 | P74: 0.3119830717 | Q74: 0.3349977369 | R74: 0.3199455913 | S74: 0.3154532215 | T74: =IFERROR(T73/T55,IFERROR(T72/T54,IFERROR(T71/T53,IFERROR(T70/T52,"-")))) -> 0.3149793896 | U74: 0.3145631108 | W74: %Common Size
C75: Current Portion Of Long-Term Debts
A76: BS | B76: Current Portion Of Long-Term Debts | N76: 819.93209 | O76: 981.98541 | P76: 899.552 | Q76: 655.344 | R76: 786.948 | S76: 1090.152 | T76: 1469.309 | U76: 1389.83 | W76: Q1
N77: 862.11718 | O77: 490.66755 | P77: 830.42 | Q77: 740.711 | R77: 857.141 | S77: 1168.695 | T77: 1361.723 | U77: 1397.892 | W77: Q2
N78: 1207.34216 | O78: 689.28565 | P78: 761.297 | Q78: 716.49 | R78: 944.756 | S78: 1482.855 | T78: 1097.451 | W78: Q3
M79: 838.68209 | N79: 803.01817 | O79: 800.80998 | P79: 688.434 | Q79: 750.87966 | R79: 1071.48856 | S79: 1483.11195 | T79: 1152.22356 | W79: Yearly
C80: =IFERROR(C79/C55,IFERROR(C78/C54,IFERROR(C77/C53,IFERROR(C76/C52,"-")))) -> - | D80: - | E80: - | F80: - | G80: - | H80: - | I80: - | J80: - | K80: - | L80: - | M80: 0.05029688082 | N80: 0.04423925043 | O80: 0.03856506296 | P80: 0.02528542921 | Q80: 0.02253673449 | R80: 0.03153037352 | S80: 0.04418492283 | T80: =IFERROR(T79/T55,IFERROR(T78/T54,IFERROR(T77/T53,IFERROR(T76/T52,"-")))) -> 0.03358644736 | U80: 0.04018606955 | W80: %Common Size
C81: Short-Term Debts
C82: =IF(AND(ISBLANK(C76), ISBLANK(C70)), "", C76 + C70) ->  | H82: =IF(AND(ISBLANK(H76), ISBLANK(H70)), "", H76 + H70) ->  | I82: =IF(AND(ISBLANK(I76), ISBLANK(I70)), "", I76 + I70) ->  | N82: 7247.26057 | O82: 6121.49907 | P82: 8042.572 | Q82: 9826.522 | R82: 12094.218 | S82: =IF(AND(ISBLANK(S76), ISBLANK(S70)), "", S76 + S70) -> 11822.143 | T82: =IF(AND(ISBLANK(T76), ISBLANK(T70)), "", T76 + T70) -> 11328.319 | U82: =IF(AND(ISBLANK(U76), ISBLANK(U70)), "", U76 + U70) -> 12117.727 | W82: Q1
N83: 7789.70484 | O83: 5700.09707 | P83: 8511.753 | Q83: 12081.356 | R83: 12810.453 | S83: =IF(AND(ISBLANK(S77), ISBLANK(S71)), "", S77 + S71) -> 11678.263 | T83: =IF(AND(ISBLANK(T77), ISBLANK(T71)), "", T77 + T71) -> 11931.56 | U83: 12340.123 | W83: Q2
N84: 6588.84619 | O84: 7093.48989 | P84: 8559.286 | Q84: 12357.115 | R84: 11892.179 | S84: 12339.434 | T84: =IF(AND(ISBLANK(T78), ISBLANK(T72)), "", T78 + T72) -> 11789.519 | W84: Q3
M85: 7415.70962 | N85: 6534.72366 | O85: 7653.11891 | P85: 9182.64433 | Q85: 11912.34526 | R85: 11944.11716 | S85: 12071.62071 | T85: =IF(AND(ISBLANK(T79), ISBLANK(T73)), "", T79 + T73) -> 11957.97118 | W85: Yearly
C86: =IFERROR(C85/C55,IFERROR(C84/C54,IFERROR(C83/C53,IFERROR(C82/C52,"-")))) -> - | D86: - | E86: - | F86: - | G86: - | H86: - | I86: - | J86: - | K86: - | L86: - | M86: 0.4447299726 | N86: 0.3600058968 | O86: 0.3685556124 | P86: 0.3372685009 | Q86: 0.3575344714 | R86: 0.3514759648 | S86: 0.3596381443 | T86: =IFERROR(T85/T55,IFERROR(T84/T54,IFERROR(T83/T53,IFERROR(T82/T52,"-")))) -> 0.3485658369 | U86: 0.3547491803 | W86: %Common Size
C87: Long-Term Debts
A88: BS | B88: Non-Current Portion Of Long-Term Debts | N88: 2106.93367 | O88: 2477.0946 | P88: 2579.297 | Q88: 2762.586 | R88: 5089.61 | S88: 5007.467 | T88: 4428.773 | U88: 3851.35 | W88: Q1
N89: 1900.31721 | O89: 3130.20307 | P89: 2749.391 | Q89: 3702.311 | R89: 5010.071 | S89: 5579.837 | T89: 3939.086 | U89: 3493.832 | W89: Q2
N90: 3003.60582 | O90: 2822.12896 | P90: 2771.425 | Q90: 4499.146 | R90: 5435.795 | S90: 4984.109 | T90: 3969.179 | W90: Q3
M91: 2209.54281 | N91: 2536.12027 | O91: 2738.55675 | P91: 2737.15119 | Q91: 4646.78615 | R91: 5287.46926 | S91: 4710.69082 | T91: 4470.05145 | W91: Yearly
C92: =IFERROR(C91/C55,IFERROR(C90/C54,IFERROR(C89/C53,IFERROR(C88/C52,"-")))) -> - | D92: - | E92: - | F92: - | G92: - | H92: - | I92: - | J92: - | K92: - | L92: - | M92: 0.1325092221 | N92: 0.139717959 | O92: 0.1318822394 | P92: 0.1005325749 | Q92: 0.1394676022 | R92: 0.1555927771 | S92: 0.1403410649 | T92: =IFERROR(T91/T55,IFERROR(T90/T54,IFERROR(T89/T53,IFERROR(T88/T52,"-")))) -> 0.1302986269 | U92: 0.1004393585 | W92: %Common Size
C93: Total Debts
C94: =IF(AND(ISBLANK(C76), ISBLANK(C70), ISBLANK(C88)), "", C76 + C70+C88) ->  | N94: 9354.19424 | O94: 8598.59367 | P94: 10621.869 | Q94: 12589.108 | R94: 17183.828 | S94: =IF(AND(ISBLANK(S76), ISBLANK(S70), ISBLANK(S88)), "", S76 + S70+S88) -> 16829.61 | T94: =IF(AND(ISBLANK(T76), ISBLANK(T70), ISBLANK(T88)), "", T76 + T70+T88) -> 15757.092 | U94: =IF(AND(ISBLANK(U76), ISBLANK(U70), ISBLANK(U88)), "", U76 + U70+U88) -> 15969.077 | W94: Q1
N95: 9690.02205 | O95: 8830.30014 | P95: 11261.144 | Q95: 15783.667 | R95: 17820.524 | S95: =IF(AND(ISBLANK(S77), ISBLANK(S71), ISBLANK(S89)), "", S77 + S71+S89) -> 17258.1 | T95: =IF(AND(ISBLANK(T77), ISBLANK(T71), ISBLANK(T89)), "", T77 + T71+T89) -> 15870.646 | U95: 15833.955 | W95: Q2
N96: 9592.45201 | O96: 9915.61885 | P96: 11330.711 | Q96: 16856.261 | R96: 17327.974 | S96: 17323.543 | T96: =IF(AND(ISBLANK(T78), ISBLANK(T72), ISBLANK(T90)), "", T78 + T72+T90) -> 15758.698 | W96: Q3
M97: 9625.25243 | N97: 9070.84393 | O97: 10391.67566 | P97: 11919.79552 | Q97: =IF(AND(ISBLANK(Q79), ISBLANK(Q73), ISBLANK(Q91)), "", Q79 + Q73+Q91) -> 16559.13141 | R97: 17231.58642 | S97: 16782.31153 | T97: =IF(AND(ISBLANK(T79), ISBLANK(T73), ISBLANK(T91)), "", T79 + T73+T91) -> 16428.02263 | W97: Yearly
C98: =IFERROR(C97/C122,IFERROR(C96/C121,IFERROR(C95/C120,IFERROR(C94/C119,"-")))) -> - | D98: - | E98: - | F98: - | G98: - | H98: - | I98: - | J98: - | K98: - | L98: - | M98: 2.008454558 | N98: 1.40407524 | O98: 1.465731295 | P98: 1.095595243 | Q98: 1.427148161 | R98: 1.415253504 | S98: =IFERROR(S97/S122,IFERROR(S96/S121,IFERROR(S95/S120,IFERROR(S94/S119,"-")))) -> 1.308437777 | T98: =IFERROR(T97/T122,IFERROR(T96/T121,IFERROR(T95/T120,IFERROR(T94/T119,"-")))) -> 1.225244269 | U98: =IFERROR(U97/U122,IFERROR(U96/U121,IFERROR(U95/U120,IFERROR(U94/U119,"-")))) -> 1.134717687 | W98: D/E Ratio
C99: Total Non-Current Liabilities
A100: BS | B100: Total Non-Current Liabilities | N100: 2195.46705 | O100: 2697.50522 | P100: 2896.524 | Q100: 3092.06 | R100: 5724.286 | S100: 5674.071 | T100: 5244.186 | U100: 4832.105 | W100: Q1
N101: 1989.59573 | O101: 3332.65394 | P101: 3055.176 | Q101: 4045.763 | R101: 5621.671 | S101: 6271.764 | T101: 4792.993 | U101: 4557.154 | W101: Q2
N102: 3088.84631 | O102: 3093.18706 | P102: 3065.279 | Q102: 4841.204 | R102: 6059.805 | S102: 5673.64 | T102: 4868.004 | W102: Q3
M103: 2286.72211 | N103: 2625.62048 | O103: 3000.57533 | P103: 3021.47 | Q103: 5259.06061 | R103: 5937.79036 | S103: 5407.84268 | T103: 5385.18659 | W103: Yearly
C104: =IFERROR(C103/C55,IFERROR(C102/C54,IFERROR(C101/C53,IFERROR(C100/C52,"-")))) -> - | D104: - | E104: - | F104: - | G104: - | H104: - | I104: - | J104: - | K104: - | L104: - | M104: 0.1371377675 | N104: 0.1446486347 | O104: 0.1445004176 | P104: 0.1109752943 | Q104: 0.1578442712 | R104: 0.1747295817 | S104: 0.1611106373 | T104: =IFERROR(T103/T55,IFERROR(T102/T54,IFERROR(T101/T53,IFERROR(T100/T52,"-")))) -> 0.1569741257 | U104: 0.1310073365 | W104: %Common Size
C105: Total Liabilities
A106: BS | B106: Total Liabilities | N106: 12571.95333 | O106: 11577.48167 | P106: 14967.504 | Q106: 19162.312 | R106: 22218.898 | S106: 21383.792 | T106: 20926.047 | U106: 21158.505 | W106: Q1
N107: 15036.27578 | O107: 12054.83454 | P107: 15499.08 | Q107: 20887.387 | R107: 21861.741 | S107: 21709.631 | T107: 20455.075 | U107: 20831.39 | W107: Q2
N108: 11632.1311 | O108: 13527.77033 | P108: 15524.831 | Q108: 20792.206 | R108: 21543.526 | S108: 21229.065 | T108: 20510.214 | W108: Q3
M109: 11882.26621 | N109: 11691.34353 | O109: 13675.41197 | P109: 16346.76627 | Q109: 21715.08019 | R109: 21807.12106 | S109: 20739.79409 | T109: 20898.24535 | W109: Yearly
C110: =IFERROR(C109/C55,IFERROR(C108/C54,IFERROR(C107/C53,IFERROR(C106/C52,"-")))) -> - | D110: - | E110: - | F110: - | G110: - | H110: - | I110: - | J110: - | K110: - | L110: - | M110: 0.7125953141 | N110: 0.644090375 | O110: 0.6585746142 | P110: 0.6003988781 | Q110: 0.6517515693 | R110: 0.6417116318 | S110: 0.6178806673 | T110: =IFERROR(T109/T55,IFERROR(T108/T54,IFERROR(T107/T53,IFERROR(T106/T52,"-")))) -> 0.6091680831 | U110: 0.5988529067 | W110: %Common Size
C111: Equity
C112: Retained Earnings (Deficits) - Unappropriated
A113: BS | B113: Retained Earnings (Deficits) - Unappropriated | N113: 3556.67061 | O113: 1629.28777 | P113: 2340.493 | Q113: 3784.514 | R113: 3779.756 | S113: 4118.42 | T113: 4599.74 | U113: 5004.171 | W113: Q1
N114: 1243.16347 | O114: 1775.68091 | P114: 2741.292 | Q114: 3561.645 | R114: 3617.291 | S114: 4154.998 | T114: 4586.067 | U114: 5159.183 | W114: Q2
N115: 1377.13576 | O115: 1619.53454 | P115: 3081.685 | Q115: 3611.954 | R115: 3707.793 | S115: 4232.077 | T115: 4688.122 | W115: Q3
M116: 3309.98841 | N116: 1495.29931 | O116: 1800.1401 | P116: 3324.98328 | Q116: 3521.40803 | R116: 3874.0953 | S116: 4354.65631 | T116: 4753.43936 | W116: Yearly
C117: =IFERROR(C116/C55,IFERROR(C115/C54,IFERROR(C114/C53,IFERROR(C113/C52,"-")))) -> - | D117: - | E117: - | F117: - | G117: - | H117: - | I117: - | J117: - | K117: - | L117: - | M117: 0.1985044089 | N117: 0.0823778628 | O117: 0.08669037352 | P117: 0.1221230057 | Q117: 0.1056907545 | R117: 0.1140018442 | S117: 0.1297340723 | T117: =IFERROR(T116/T55,IFERROR(T115/T54,IFERROR(T114/T53,IFERROR(T113/T52,"-")))) -> 0.1385591706 | U117: 0.1483142381 | W117: %Common Size
C118: Equity Attributable To Owners Of The Parent
A119: BS | B119: Equity Attributable To Owners Of The Parent | N119: 5039.04974 | O119: 6580.28794 | P119: 7636.91 | Q119: 11344.007 | R119: 11868.326 | S119: 12424.325 | T119: 13074.554 | U119: 13665.341 | W119: Q1
N120: 2725.5426 | O120: 6718.7847 | P120: 8234.93 | Q120: 11618.546 | R120: 11894.899 | S120: 12600.688 | T120: 13211.9 | U120: 13954.092 | W120: Q2
N121: 6325.29499 | O121: 6873.92001 | P121: 10549.699 | Q121: 11667.493 | R121: 11988.926 | S121: 12659.548 | T121: 13316.245 | W121: Q3
M122: 4792.36754 | N122: 6460.36884 | O122: 7089.75492 | P122: 10879.74377 | Q122: 11602.95186 | R122: 12175.61827 | S122: 12826.22057 | T122: 13407.95713 | W122: Yearly
C123: =IFERROR(C122/C55,IFERROR(C121/C54,IFERROR(C120/C53,IFERROR(C119/C52,"-")))) -> - | D123: - | E123: - | F123: - | G123: - | H123: - | I123: - | J123: - | K123: - | L123: - | M123: 0.2874046577 | N123: 0.3559095991 | O123: 0.3414253714 | P123: 0.3996011105 | Q123: 0.348248407 | R123: 0.3582882787 | S123: 0.3821192096 | T123: =IFERROR(T122/T55,IFERROR(T121/T54,IFERROR(T120/T53,IFERROR(T119/T52,"-")))) -> 0.3908318333 | U123: 0.4011469496 | W123: %Common Size
C124: Revenue Structure
C125: Revenue From Operations
A126: PL | B126: Revenue From Operations | N126: 4909.47055 | O126: 4543.27802 | P126: 6109.946 | Q126: 8317.848 | R126: 8461.59 | S126: 7958.819 | T126: 8079.33 | U126: 8098.452 | W126: Q1
N127: 4442.82768 | O127: 4571.6201 | P127: 6365.84 | Q127: 7884.561 | R127: 7994.504 | S127: 8015.976 | T127: 7282.774 | U127: 7793.654 | W127: Q2
N128: 4086.34955 | O128: 4707.37322 | P128: 6034.604 | Q128: 7475.433 | R128: 7430.76 | S128: 7393.105 | T128: 6752.668 | W128: Q3
M129: 4573.32403 | N129: 4291.70207 | O129: 4795.48724 | P129: 7274.21255 | Q129: 7642.78424 | R129: 7331.29122 | S129: 7623.37253 | T129: 6995.53221 | W129: Q4
C130: =IF(COUNT(C126:C129)=4,SUM(C126:C129),IF(COUNT(C126:C129)=0,"",SUM(C126:C129)*4/COUNT(C126:C129))) ->  | M130: 18293.29612 | N130: 17730.34985 | O130: 18617.75858 | P130: 25784.60255 | Q130: 31320.62624 | R130: =IF(COUNT(R126:R129)=4,SUM(R126:R129),IF(COUNT(R126:R129)=0,"",SUM(R126:R129)*4/COUNT(R126:R129))) -> 31218.14522 | S130: =IF(COUNT(S126:S129)=4,SUM(S126:S129),IF(COUNT(S126:S129)=0,"",SUM(S126:S129)*4/COUNT(S126:S129))) -> 30991.27253 | T130: =IF(COUNT(T126:T129)=4,SUM(T126:T129),IF(COUNT(T126:T129)=0,"",SUM(T126:T129)*4/COUNT(T126:T129))) -> 29110.30421 | U130: =IF(COUNT(U126:U129)=4,SUM(U126:U129),IF(COUNT(U126:U129)=0,"",SUM(U126:U129)*4/COUNT(U126:U129))) -> 31784.212 | W130: Yearly
C131: =IFERROR((C130-B130)/B130,"-") -> - | D131: =IFERROR((D130-C130)/C130,"-") -> - | E131: - | F131: - | G131: - | H131: - | I131: - | J131: - | K131: - | L131: - | M131: - | N131: -0.03077336453 | O131: 0.05005026621 | P131: =IFERROR((P130-O130)/O130,"-") -> 0.3849466594 | Q131: 0.2147026963 | R131: -0.003271997795 | S131: -0.007267334058 | T131: -0.06069348453 | U131: 0.09185434033 | W131: %YoY Growth
C132: Other Income
A133: PL | B133: Other Income | N133: 70.76767 | O133: 78.51082 | P133: 22.087 | Q133: 42.055 | R133: 57.064 | S133: 63.98 | T133: 56.214 | U133: 67.699 | W133: Q1
N134: 67.77626 | O134: 68.69532 | P134: 31.572 | Q134: 58.375 | R134: 60.479 | S134: 79.62 | T134: 81.374 | U134: 58.502 | W134: Q2
N135: 63.05139 | O135: 72.17919 | P135: 28.174 | Q135: 47.786 | R135: 77.331 | S135: 115.419 | T135: 84.309 | W135: Q3
M136: 60.46957 | N136: 43.37297 | O136: 87.67791 | P136: 51.34538 | Q136: 74.53932 | R136: 190.0971 | S136: 94.21917 | T136: 76.92717 | W136: Q4
C137: =IF(COUNT(C133:C136)=4,SUM(C133:C136),IF(COUNT(C133:C136)=0,"",SUM(C133:C136)*4/COUNT(C133:C136))) ->  | D137: =IF(COUNT(D133:D136)=4,SUM(D133:D136),IF(COUNT(D133:D136)=0,"",SUM(D133:D136)*4/COUNT(D133:D136))) ->  | M137: 241.87828 | N137: 244.96829 | O137: 307.06324 | P137: 133.17838 | Q137: 222.75532 | R137: =IF(COUNT(R133:R136)=4,SUM(R133:R136),IF(COUNT(R133:R136)=0,"",SUM(R133:R136)*4/COUNT(R133:R136))) -> 384.9711 | S137: =IF(COUNT(S133:S136)=4,SUM(S133:S136),IF(COUNT(S133:S136)=0,"",SUM(S133:S136)*4/COUNT(S133:S136))) -> 353.23817 | T137: =IF(COUNT(T133:T136)=4,SUM(T133:T136),IF(COUNT(T133:T136)=0,"",SUM(T133:T136)*4/COUNT(T133:T136))) -> 298.82417 | U137: =IF(COUNT(U133:U136)=4,SUM(U133:U136),IF(COUNT(U133:U136)=0,"",SUM(U133:U136)*4/COUNT(U133:U136))) -> 252.402 | W137: Yearly
C138: Interest And Dividend Income
A139: PL | B139: Interest And Dividend Income | N139: 0 | O139: 0 | P139: 7.255 | Q139: 3.967 | R139: 0 | S139: 0 | T139: 0 | U139: 0 | W139: Q1
N140: 0 | O140: 0 | P140: 3.596 | Q140: 0 | R140: 0 | S140: 0 | T140: 0 | U140: 0 | W140: Q2
N141: 0 | O141: 0 | P141: 1.905 | Q141: 0 | R141: 0 | S141: 0 | T141: 0 | W141: Q3
M142: 0 | N142: 0 | O142: 0 | P142: 6.59093 | Q142: 0 | R142: 0 | S142: 0 | T142: 4.22894 | W142: Q4
C143: =IF(COUNT(C139:C142)=4,SUM(C139:C142),IF(COUNT(C139:C142)=0,"",SUM(C139:C142)*4/COUNT(C139:C142))) ->  | D143: =IF(COUNT(D139:D142)=4,SUM(D139:D142),IF(COUNT(D139:D142)=0,"",SUM(D139:D142)*4/COUNT(D139:D142))) ->  | M143: 0 | N143: 0 | O143: 0 | P143: 19.34693 | Q143: 3.967 | R143: =IF(COUNT(R139:R142)=4,SUM(R139:R142),IF(COUNT(R139:R142)=0,"",SUM(R139:R142)*4/COUNT(R139:R142))) -> 0 | S143: =IF(COUNT(S139:S142)=4,SUM(S139:S142),IF(COUNT(S139:S142)=0,"",SUM(S139:S142)*4/COUNT(S139:S142))) -> 0 | T143: =IF(COUNT(T139:T142)=4,SUM(T139:T142),IF(COUNT(T139:T142)=0,"",SUM(T139:T142)*4/COUNT(T139:T142))) -> 4.22894 | U143: =IF(COUNT(U139:U142)=4,SUM(U139:U142),IF(COUNT(U139:U142)=0,"",SUM(U139:U142)*4/COUNT(U139:U142))) -> 0 | W143: Yearly
C144: Total Revenue
A145: PL | B145: Total Revenue | N145: 4980.23823 | O145: 4621.78883 | P145: 6139.288 | Q145: 8363.87 | R145: 8518.654 | S145: 8022.799 | T145: 8135.544 | U145: 8166.151 | W145: Q1
N146: 4510.60393 | O146: 4640.31541 | P146: 6401.008 | Q146: 7942.936 | R146: 8054.983 | S146: 8095.596 | T146: 7364.148 | U146: 7852.156 | W146: Q2
N147: 4149.40094 | O147: 4779.55241 | P147: 6064.683 | Q147: 7523.219 | R147: 7508.091 | S147: 7508.524 | T147: 6836.977 | W147: Q3
M148: 4633.79359 | N148: 4335.07504 | O148: 4883.16515 | P148: 7332.14886 | Q148: 7717.32355 | R148: 7521.38833 | S148: 7717.5917 | T148: 7089.37515 | W148: Q4
C149: =IF(COUNT(C145:C148)=4,SUM(C145:C148),IF(COUNT(C145:C148)=0,"",SUM(C145:C148)*4/COUNT(C145:C148))) ->  | D149: =IF(COUNT(D145:D148)=4,SUM(D145:D148),IF(COUNT(D145:D148)=0,"",SUM(D145:D148)*4/COUNT(D145:D148))) ->  | M149: 18535.17436 | N149: 17975.31814 | O149: 18924.8218 | P149: 25937.12786 | Q149: 31547.34855 | R149: =IF(COUNT(R145:R148)=4,SUM(R145:R148),IF(COUNT(R145:R148)=0,"",SUM(R145:R148)*4/COUNT(R145:R148))) -> 31603.11633 | S149: =IF(COUNT(S145:S148)=4,SUM(S145:S148),IF(COUNT(S145:S148)=0,"",SUM(S145:S148)*4/COUNT(S145:S148))) -> 31344.5107 | T149: =IF(COUNT(T145:T148)=4,SUM(T145:T148),IF(COUNT(T145:T148)=0,"",SUM(T145:T148)*4/COUNT(T145:T148))) -> 29426.04415 | U149: =IF(COUNT(U145:U148)=4,SUM(U145:U148),IF(COUNT(U145:U148)=0,"",SUM(U145:U148)*4/COUNT(U145:U148))) -> 32036.614 | W149: Yearly
C150: COGS Breakdown
C151: Costs
A152: PL | B152: Costs | N152: 4139.24393 | O152: 3871.54725 | P152: 4786.044 | Q152: 6852.9 | R152: 7064.932 | S152: 6542.468 | T152: 6660.316 | U152: 6673.881 | W152: Q1
N153: 3736.52362 | O153: 3926.68812 | P153: 4921.029 | Q153: 6559.172 | R153: 6875.763 | S153: 6615.431 | T153: 5971.709 | U153: 6252.78 | W153: Q2
N154: 3442.03032 | O154: 3951.18013 | P154: 4850.971 | Q154: 6427.543 | R154: 6282.543 | S154: 6179.853 | T154: 5558.169 | W154: Q3
M155: 3940.21666 | N155: 3592.94468 | O155: 3987.88285 | P155: 6019.96982 | Q155: 6594.08043 | R155: 6093.78606 | S155: 6345.05894 | T155: 5864.38364 | W155: Q4
C156: =IF(COUNT(C152:C155)=4,SUM(C152:C155),IF(COUNT(C152:C155)=0,"",SUM(C152:C155)*4/COUNT(C152:C155))) ->  | M156: 15760.86664 | N156: 14910.74255 | O156: 15737.29835 | P156: 20578.01382 | Q156: 26433.69543 | R156: 26317.02406 | S156: =IF(COUNT(S152:S155)=4,SUM(S152:S155),IF(COUNT(S152:S155)=0,"",SUM(S152:S155)*4/COUNT(S152:S155))) -> 25682.81094 | T156: =IF(COUNT(T152:T155)=4,SUM(T152:T155),IF(COUNT(T152:T155)=0,"",SUM(T152:T155)*4/COUNT(T152:T155))) -> 24054.57764 | U156: =IF(COUNT(U152:U155)=4,SUM(U152:U155),IF(COUNT(U152:U155)=0,"",SUM(U152:U155)*4/COUNT(U152:U155))) -> 25853.322 | W156: Yearly
C157: =IFERROR(C156/C130, "-") -> - | D157: - | E157: - | F157: - | G157: - | H157: - | I157: - | J157: - | K157: - | L157: - | M157: 0.8615651623 | N157: 0.8409728334 | O157: 0.8452842635 | P157: 0.7980737256 | Q157: 0.8439708462 | R157: 0.8430040886 | S157: 0.8287110804 | T157: =IFERROR(T156/T130, "-") -> 0.8263251894 | U157: 0.8134013831 | W157: %Common Size
C158: =IFERROR((C156-B156)/B156,"-") -> - | D158: - | E158: - | F158: - | G158: - | H158: - | I158: - | J158: - | K158: - | L158: - | M158: - | N158: -0.05393891779 | O158: 0.05543357732 | P158: 0.3075950752 | Q158: 0.2845600971 | R158: -0.004413736638 | S158: -0.02409896797 | T158: -0.06339778398 | U158: 0.07477763222 | W158: %YoY Growth
C159: Gross Profit
C160: =IF(AND(ISBLANK(C126),ISBLANK(C152)),"",C126-C152) ->  | N160: 770.22662 | O160: 671.73077 | P160: 1323.902 | Q160: 1464.948 | R160: 1396.658 | S160: 1416.351 | T160: =IF(AND(ISBLANK(T126),ISBLANK(T152)),"",T126-T152) -> 1419.014 | U160: 1424.571 | W160: Q1
N161: 706.30406 | O161: 644.93198 | P161: 1444.811 | Q161: 1325.389 | R161: 1118.741 | S161: 1400.545 | T161: =IF(AND(ISBLANK(T127),ISBLANK(T153)),"",T127-T153) -> 1311.065 | U161: 1540.874 | W161: Q2
N162: 644.31923 | O162: 756.19309 | P162: 1183.633 | Q162: 1047.89 | R162: 1148.217 | S162: 1213.252 | T162: =IF(AND(ISBLANK(T128),ISBLANK(T154)),"",T128-T154) -> 1194.499 | W162: Q3
M163: 633.10737 | N163: 698.75739 | O163: 807.60439 | P163: 1254.24273 | Q163: 1048.70381 | R163: 1237.50516 | S163: 1278.31359 | T163: =IF(AND(ISBLANK(T129),ISBLANK(T155)),"",T129-T155) -> 1131.14857 | W163: Q4
C164: =IF(COUNT(C160:C163)=4,SUM(C160:C163),IF(COUNT(C160:C163)=0,"",SUM(C160:C163)*4/COUNT(C160:C163))) ->  | D164: =IF(COUNT(D160:D163)=4,SUM(D160:D163),IF(COUNT(D160:D163)=0,"",SUM(D160:D163)*4/COUNT(D160:D163))) ->  | G164: =IF(COUNT(G160:G163)=4,SUM(G160:G163),IF(COUNT(G160:G163)=0,"",SUM(G160:G163)*4/COUNT(G160:G163))) ->  | H164: =IF(COUNT(H160:H163)=4,SUM(H160:H163),IF(COUNT(H160:H163)=0,"",SUM(H160:H163)*4/COUNT(H160:H163))) ->  | I164: =IF(COUNT(I160:I163)=4,SUM(I160:I163),IF(COUNT(I160:I163)=0,"",SUM(I160:I163)*4/COUNT(I160:I163))) ->  | M164: 2532.42948 | N164: 2819.6073 | O164: 2880.46023 | P164: 5206.58873 | Q164: 4886.93081 | R164: 4901.12116 | S164: =IF(COUNT(S160:S163)=4,SUM(S160:S163),IF(COUNT(S160:S163)=0,"",SUM(S160:S163)*4/COUNT(S160:S163))) -> 5308.46159 | T164: =IF(COUNT(T160:T163)=4,SUM(T160:T163),IF(COUNT(T160:T163)=0,"",SUM(T160:T163)*4/COUNT(T160:T163))) -> 5055.72657 | U164: =IF(COUNT(U160:U163)=4,SUM(U160:U163),IF(COUNT(U160:U163)=0,"",SUM(U160:U163)*4/COUNT(U160:U163))) -> 5930.89 | W164: Yearly
C165: =IFERROR(C164/C130, "-") -> - | D165: - | E165: - | F165: - | G165: - | H165: - | I165: - | J165: - | K165: - | L165: - | M165: 0.1384348377 | N165: 0.1590271666 | O165: 0.1547157365 | P165: 0.2019262744 | Q165: 0.1560291538 | R165: 0.1569959114 | S165: 0.1712889196 | T165: =IFERROR(T164/T130, "-") -> 0.1736748106 | U165: 0.1865986169 | W165: %GPM
C166: =IFERROR((C164-B164)/B164,"-") -> - | D166: - | E166: - | F166: - | G166: - | H166: - | I166: =IFERROR((I164-H164)/H164,"-") -> - | J166: - | K166: - | L166: - | M166: - | N166: 0.1134001252 | O166: 0.02158205861 | P166: 0.8075544581 | Q166: -0.06139488571 | R166: 0.002903734583 | S166: 0.08311168337 | T166: -0.04760984246 | U166: 0.1731033943 | W166: %YoY Growth
C167: SG&A
C168: Selling Expenses
A169: PL | B169: Selling Expenses | N169: 361.33543 | O169: 365.06448 | P169: 458.858 | Q169: 644.423 | R169: 785.881 | S169: 826.564 | T169: 819.898 | U169: 867.817 | W169: Q1
N170: 358.22266 | O170: 383.66476 | P170: 525.912 | Q170: 707.616 | R170: 769.182 | S170: 872.473 | T170: 840.428 | U170: 921.876 | W170: Q2
N171: 369.92177 | O171: 422.86095 | P171: 543.548 | Q171: 749.561 | R171: 766.672 | S171: 850.664 | T171: 844.504 | W171: Q3
M172: 384.34278 | N172: 383.86725 | O172: 423.78757 | P172: 643.63434 | Q172: 764.58742 | R172: 799.2413 | S172: 817.55952 | T172: 841.57029 | W172: Q4
C173: =IF(COUNT(C169:C172)=4,SUM(C169:C172),IF(COUNT(C169:C172)=0,"",SUM(C169:C172)*4/COUNT(C169:C172))) ->  | D173: =IF(COUNT(D169:D172)=4,SUM(D169:D172),IF(COUNT(D169:D172)=0,"",SUM(D169:D172)*4/COUNT(D169:D172))) ->  | M173: 1537.37112 | N173: 1473.34711 | O173: 1595.37776 | P173: 2171.95234 | Q173: 2866.18742 | R173: 3120.9763 | S173: =IF(COUNT(S169:S172)=4,SUM(S169:S172),IF(COUNT(S169:S172)=0,"",SUM(S169:S172)*4/COUNT(S169:S172))) -> 3367.26052 | T173: =IF(COUNT(T169:T172)=4,SUM(T169:T172),IF(COUNT(T169:T172)=0,"",SUM(T169:T172)*4/COUNT(T169:T172))) -> 3346.40029 | U173: =IF(COUNT(U169:U172)=4,SUM(U169:U172),IF(COUNT(U169:U172)=0,"",SUM(U169:U172)*4/COUNT(U169:U172))) -> 3579.386 | W173: Yearly
C174: =IFERROR(C173/C130, "-") -> - | D174: - | E174: - | F174: - | G174: - | H174: - | I174: - | J174: - | K174: - | L174: - | M174: 0.08404013743 | N174: 0.08309746409 | O174: 0.08569118313 | P174: 0.08423447039 | Q174: 0.09151117855 | R174: 0.09997314953 | S174: 0.108651896 | T174: =IFERROR(T173/T130, "-") -> 0.1149558681 | U174: 0.1126152192 | W174: %Common Size
C175: =IFERROR((C173-B173)/B173,"-") -> - | D175: - | E175: - | F175: - | G175: - | H175: - | I175: - | J175: - | K175: - | L175: - | M175: - | N175: -0.0416451234 | O175: 0.08282545856 | P175: 0.3614031701 | Q175: 0.3196364244 | R175: 0.08889470319 | S175: 0.07891255695 | T175: -0.006195015169 | U175: 0.06962278562 | W175: %YoY Growth
C176: Administrative Expenses
A177: PL | B177: Administrative Expenses | N177: 92.08899 | O177: 99.05344 | P177: 147.04 | Q177: 229.908 | R177: 214.799 | S177: 197.499 | T177: 226.364 | U177: 234.683 | W177: Q1
N178: 97.23948 | O178: 90.80157 | P178: 148.115 | Q178: 199.139 | R178: 223.439 | S178: 226.157 | T178: 253.516 | U178: 231.784 | W178: Q2
N179: 114.40484 | O179: 112.91421 | P179: 177.312 | Q179: 192.452 | R179: 206.421 | S179: 236.727 | T179: 211.24 | W179: Q3
M180: 92.40725 | N180: 102.00428 | O180: 139.6489 | P180: 191.12593 | Q180: 240.61224 | R180: 222.09559 | S180: 227.86613 | T180: 176.57646 | W180: Q4
C181: =IF(COUNT(C177:C180)=4,SUM(C177:C180),IF(COUNT(C177:C180)=0,"",SUM(C177:C180)*4/COUNT(C177:C180))) ->  | D181: =IF(COUNT(D177:D180)=4,SUM(D177:D180),IF(COUNT(D177:D180)=0,"",SUM(D177:D180)*4/COUNT(D177:D180))) ->  | M181: 369.629 | N181: 405.73759 | O181: 442.41812 | P181: 663.59293 | Q181: 862.11124 | R181: 866.75459 | S181: =IF(COUNT(S177:S180)=4,SUM(S177:S180),IF(COUNT(S177:S180)=0,"",SUM(S177:S180)*4/COUNT(S177:S180))) -> 888.24913 | T181: =IF(COUNT(T177:T180)=4,SUM(T177:T180),IF(COUNT(T177:T180)=0,"",SUM(T177:T180)*4/COUNT(T177:T180))) -> 867.69646 | U181: =IF(COUNT(U177:U180)=4,SUM(U177:U180),IF(COUNT(U177:U180)=0,"",SUM(U177:U180)*4/COUNT(U177:U180))) -> 932.934 | W181: Yearly
C182: =IFERROR(C181/C130, "-") -> - | D182: - | E182: - | F182: - | G182: - | H182: - | I182: - | J182: - | K182: - | L182: - | M182: 0.02020570801 | N182: 0.02288378929 | O182: 0.02376323219 | P182: 0.02573601547 | Q182: 0.02752535129 | R182: 0.02776444865 | S182: 0.02866126679 | T182: =IFERROR(T181/T130, "-") -> 0.02980719314 | U182: 0.02935211985 | W182: %Common Size
C183: =IFERROR((C181-B181)/B181,"-") -> - | D183: - | E183: - | F183: - | G183: - | H183: - | I183: - | J183: - | K183: - | L183: - | M183: - | N183: 0.09768873654 | O183: 0.09040456419 | P183: 0.4999225845 | Q183: 0.2991567586 | R183: 0.005386021878 | S183: 0.02479887646 | T183: -0.02313840713 | U183: 0.07518474836 | W183: %YoY Growth
C184: Selling And Administrative Expenses
A185: PL | B185: Selling And Administrative Expenses | N185: 453.42441 | O185: 464.11792 | P185: 605.898 | Q185: 874.331 | R185: 1000.68 | S185: 1024.063 | T185: 1046.262 | U185: 1102.5 | W185: Q1
N186: 455.46214 | O186: 474.46633 | P186: 674.027 | Q186: 906.755 | R186: 992.621 | S186: 1098.63 | T186: 1093.944 | U186: 1153.66 | W186: Q2
N187: 484.32661 | O187: 535.77515 | P187: 720.86 | Q187: 942.013 | R187: 973.093 | S187: 1087.391 | T187: 1055.744 | W187: Q3
M188: 476.75003 | N188: 485.87153 | O188: 563.43647 | P188: 834.76027 | Q188: 1005.19967 | R188: 1021.33689 | S188: 1045.42565 | T188: 1018.14675 | W188: Q4
C189: =IF(COUNT(C185:C188)=4,SUM(C185:C188),IF(COUNT(C185:C188)=0,"",SUM(C185:C188)*4/COUNT(C185:C188))) ->  | D189: =IF(COUNT(D185:D188)=4,SUM(D185:D188),IF(COUNT(D185:D188)=0,"",SUM(D185:D188)*4/COUNT(D185:D188))) ->  | M189: 1907.00012 | N189: 1879.08469 | O189: 2037.79587 | P189: 2835.54527 | Q189: 3728.29867 | R189: 3987.73089 | S189: =IF(COUNT(S185:S188)=4,SUM(S185:S188),IF(COUNT(S185:S188)=0,"",SUM(S185:S188)*4/COUNT(S185:S188))) -> 4255.50965 | T189: =IF(COUNT(T185:T188)=4,SUM(T185:T188),IF(COUNT(T185:T188)=0,"",SUM(T185:T188)*4/COUNT(T185:T188))) -> 4214.09675 | U189: =IF(COUNT(U185:U188)=4,SUM(U185:U188),IF(COUNT(U185:U188)=0,"",SUM(U185:U188)*4/COUNT(U185:U188))) -> 4512.32 | W189: Yearly
C190: =IFERROR(C189/C130, "-") -> - | D190: - | E190: - | F190: - | G190: - | H190: - | I190: - | J190: - | K190: - | L190: - | M190: 0.1042458454 | N190: 0.1059812528 | O190: 0.1094544148 | P190: 0.1099704859 | Q190: 0.1190365302 | R190: 0.1277375982 | S190: =IFERROR(S189/S130, "-") -> 0.1373131628 | T190: =IFERROR(T189/T130, "-") -> 0.1447630612 | U190: =IFERROR(U189/U130, "-") -> 0.141967339 | W190: %Common Size
C191: =IFERROR((C189-B189)/B189,"-") -> - | D191: - | E191: - | F191: - | G191: - | H191: - | I191: - | J191: - | K191: - | L191: - | M191: - | N191: -0.01463839971 | O191: 0.08446196217 | P191: 0.3914766006 | Q191: 0.314843642 | R191: 0.06958461297 | S191: 0.06715065971 | T191: -0.009731595838 | U191: 0.07076801215 | W191: %YoY Growth
C192: Other Gains (Losses)
A193: PL | B193: Other Gains (Losses) | W193: Q1
W194: Q2
W195: Q3
W196: Q4
C197: =IF(COUNT(C193:C196)=4,SUM(C193:C196),IF(COUNT(C193:C196)=0,"",SUM(C193:C196)*4/COUNT(C193:C196))) ->  | D197: =IF(COUNT(D193:D196)=4,SUM(D193:D196),IF(COUNT(D193:D196)=0,"",SUM(D193:D196)*4/COUNT(D193:D196))) ->  | R197: =IF(COUNT(R193:R196)=4,SUM(R193:R196),IF(COUNT(R193:R196)=0,"",SUM(R193:R196)*4/COUNT(R193:R196))) ->  | S197: =IF(COUNT(S193:S196)=4,SUM(S193:S196),IF(COUNT(S193:S196)=0,"",SUM(S193:S196)*4/COUNT(S193:S196))) ->  | T197: =IF(COUNT(T193:T196)=4,SUM(T193:T196),IF(COUNT(T193:T196)=0,"",SUM(T193:T196)*4/COUNT(T193:T196))) ->  | U197: =IF(COUNT(U193:U196)=4,SUM(U193:U196),IF(COUNT(U193:U196)=0,"",SUM(U193:U196)*4/COUNT(U193:U196))) ->  | W197: Yearly
C198: EBIT
C199: =IFERROR(C160+C133-C185, "") ->  | N199: 387.56988 | O199: 286.12367 | P199: 740.091 | Q199: 632.672 | R199: 453.042 | S199: 456.268 | T199: =IFERROR(T160+T133-T185, "") -> 428.966 | U199: 389.77 | W199: Q1
N200: 318.61818 | O200: 239.16097 | P200: 802.356 | Q200: 477.009 | R200: 186.599 | S200: 381.535 | T200: =IFERROR(T161+T134-T186, "") -> 298.495 | U200: 445.716 | W200: Q2
... 145 more rows

Sheet WASH
C1: 2008 | D1: 2009 | E1: 2010 | F1: 2011 | G1: 2012 | H1: 2013 | I1: 2014 | J1: 2015 | K1: 2016 | L1: 2017 | M1: 2018 | N1: 2019 | O1: 2020 | P1: 2021 | Q1: 2022 | R1: 2023 | S1: 2024 | T1: 2025 | U1: 2026
C2: Asset
C3: Cash And Cash Equivalents
A4: BS | B4: Cash And Cash Equivalents | W4: Q1
W5: Q2
W6: Q3
W7: Yearly
C8: =IFERROR(C7/C55,IFERROR(C6/C54,IFERROR(C5/C53,IFERROR(C4/C52,"-")))) -> - | D8: - | E8: - | F8: - | G8: - | H8: - | I8: - | J8: - | K8: - | L8: - | M8: - | N8: - | O8: - | P8: - | Q8: - | R8: - | S8: - | T8: - | U8: - | W8: %Common Size
C9: Short-Term Investments - Net
A10: BS | B10: Short-Term Investments - Net | W10: Q1
W11: Q2
W12: Q3
W13: Yearly
C14: =IFERROR(C13/C55,IFERROR(C12/C54,IFERROR(C11/C53,IFERROR(C10/C52,"-")))) -> - | D14: - | E14: - | F14: - | G14: - | H14: - | I14: - | J14: - | K14: - | L14: - | M14: - | N14: - | O14: - | P14: - | Q14: - | R14: - | S14: - | T14: - | U14: - | W14: %Common Size
C15: Trade And Other Receivables - Current - Net
A16: BS | B16: Trade And Other Receivables - Current - Net | W16: Q1
W17: Q2
W18: Q3
W19: Yearly
C20: =IFERROR(C19/C55,IFERROR(C18/C54,IFERROR(C17/C53,IFERROR(C16/C52,"-")))) -> - | D20: - | E20: - | F20: - | G20: - | H20: - | I20: - | J20: - | K20: - | L20: - | M20: - | N20: - | O20: - | P20: - | Q20: - | R20: - | S20: - | T20: - | U20: - | W20: %Common Size
C21: Inventories - Net
A22: BS | B22: Inventories - Net | W22: Q1
W23: Q2
W24: Q3
W25: Yearly
C26: =IFERROR(C25/C55,IFERROR(C24/C54,IFERROR(C23/C53,IFERROR(C22/C52,"-")))) -> - | D26: - | E26: - | F26: - | G26: - | H26: - | I26: - | J26: - | K26: - | L26: - | M26: - | N26: - | O26: - | P26: - | Q26: - | R26: - | S26: - | T26: - | U26: - | W26: %Common Size
C27: Total Current Assets
A28: BS | B28: Total Current Assets | W28: Q1
W29: Q2
W30: Q3
W31: Yearly
C32: =IFERROR(C31/C55,IFERROR(C30/C54,IFERROR(C29/C53,IFERROR(C28/C52,"-")))) -> - | D32: - | E32: - | F32: - | G32: - | H32: - | I32: - | J32: - | K32: - | L32: - | M32: - | N32: - | O32: - | P32: - | Q32: - | R32: - | S32: - | T32: - | U32: - | W32: %Common Size
C33: Property, Plant And Equipment - Net
A34: BS | B34: Property, Plant And Equipment - Net | W34: Q1
W35: Q2
W36: Q3
W37: Yearly
C38: =IFERROR(C37/C55,IFERROR(C36/C54,IFERROR(C35/C53,IFERROR(C34/C52,"-")))) -> - | D38: - | E38: - | F38: - | G38: - | H38: - | I38: - | J38: - | K38: - | L38: - | M38: - | N38: - | O38: - | P38: - | Q38: - | R38: - | S38: - | T38: - | U38: - | W38: %Common Size
C39: Intangible Assets - Net
A40: BS | B40: Intangible Assets - Net | W40: Q1
W41: Q2
W42: Q3
W43: Yearly
C44: =IFERROR(C43/C55,IFERROR(C42/C54,IFERROR(C41/C53,IFERROR(C40/C52,"-")))) -> - | D44: - | E44: - | F44: - | G44: - | H44: - | I44: - | J44: - | K44: - | L44: - | M44: - | N44: - | O44: - | P44: - | Q44: - | R44: - | S44: - | T44: - | U44: - | W44: %Common Size
C45: Total Non-Current Assets
A46: BS | B46: Total Non-Current Assets | W46: Q1
W47: Q2
W48: Q3
W49: Yearly
C50: =IFERROR(C49/C55,IFERROR(C48/C54,IFERROR(C47/C53,IFERROR(C46/C52,"-")))) -> - | D50: - | E50: - | F50: - | G50: - | H50: - | I50: - | J50: - | K50: - | L50: - | M50: - | N50: - | O50: - | P50: - | Q50: - | R50: - | S50: - | T50: - | U50: - | W50: %Common Size
C51: Total Assets
A52: BS | B52: Total Assets | W52: Q1
W53: Q2
W54: Q3
W55: Yearly
C56: Liabilities
C57: Trade And Other Payables - Current
A58: BS | B58: Trade And Other Payables - Current | W58: Q1
W59: Q2
W60: Q3
W61: Yearly
C62: =IFERROR(C61/C55,"-") -> - | D62: - | E62: - | F62: - | G62: - | H62: - | I62: - | J62: - | K62: - | L62: - | M62: - | N62: - | O62: - | P62: - | Q62: - | R62: - | S62: =IFERROR(S61/S55,"-") -> - | T62: =IFERROR(T61/T55,"-") -> - | U62: - | W62: %Common Size
C63: Total Current Liabilities
A64: BS | B64: Total Current Liabilities | W64: Q1
W65: Q2
W66: Q3
W67: Yearly
C68: =IFERROR(C67/C55,IFERROR(C66/C54,IFERROR(C65/C53,IFERROR(C64/C52,"-")))) -> - | D68: - | E68: - | F68: - | G68: - | H68: - | I68: - | J68: - | K68: - | L68: - | M68: - | N68: - | O68: - | P68: - | Q68: - | R68: - | S68: - | T68: - | U68: - | W68: %Common Size
C69: Bank Overdrafts And Short-Term Borrowings From Financial Institutions
A70: BS | B70: Bank Overdrafts And Short-Term Borrowings From Financial Institutions | W70: Q1
W71: Q2
W72: Q3
W73: Yearly
C74: =IFERROR(C73/C55,IFERROR(C72/C54,IFERROR(C71/C53,IFERROR(C70/C52,"-")))) -> - | D74: - | E74: - | F74: - | G74: - | H74: - | I74: - | J74: - | K74: - | L74: - | M74: - | N74: - | O74: - | P74: - | Q74: - | R74: - | S74: - | T74: - | U74: - | W74: %Common Size
C75: Current Portion Of Long-Term Debts
A76: BS | B76: Current Portion Of Long-Term Debts | W76: Q1
W77: Q2
W78: Q3
W79: Yearly
C80: =IFERROR(C79/C55,IFERROR(C78/C54,IFERROR(C77/C53,IFERROR(C76/C52,"-")))) -> - | D80: - | E80: - | F80: - | G80: - | H80: - | I80: - | J80: - | K80: - | L80: - | M80: - | N80: - | O80: - | P80: - | Q80: - | R80: - | S80: - | T80: - | U80: - | W80: %Common Size
C81: Short-Term Debts
C82: =IF(AND(ISBLANK(C76), ISBLANK(C70)), "", C76 + C70) ->  | H82: =IF(AND(ISBLANK(H76), ISBLANK(H70)), "", H76 + H70) ->  | I82: =IF(AND(ISBLANK(I76), ISBLANK(I70)), "", I76 + I70) ->  | S82: =IF(AND(ISBLANK(S76), ISBLANK(S70)), "", S76 + S70) ->  | T82: =IF(AND(ISBLANK(T76), ISBLANK(T70)), "", T76 + T70) ->  | W82: Q1
S83: =IF(AND(ISBLANK(S77), ISBLANK(S71)), "", S77 + S71) ->  | W83: Q2
W84: Q3
W85: Yearly
C86: =IFERROR(C85/C55,IFERROR(C84/C54,IFERROR(C83/C53,IFERROR(C82/C52,"-")))) -> - | D86: - | E86: - | F86: - | G86: - | H86: - | I86: - | J86: - | K86: - | L86: - | M86: - | N86: - | O86: - | P86: - | Q86: - | R86: - | S86: - | T86: - | U86: - | W86: %Common Size
C87: Long-Term Debts
A88: BS | B88: Non-Current Portion Of Long-Term Debts | W88: Q1
W89: Q2
W90: Q3
W91: Yearly
C92: =IFERROR(C91/C55,IFERROR(C90/C54,IFERROR(C89/C53,IFERROR(C88/C52,"-")))) -> - | D92: - | E92: - | F92: - | G92: - | H92: - | I92: - | J92: - | K92: - | L92: - | M92: - | N92: - | O92: - | P92: - | Q92: - | R92: - | S92: - | T92: - | U92: - | W92: %Common Size
C93: Total Debts
C94: =IF(AND(ISBLANK(C76), ISBLANK(C70), ISBLANK(C88)), "", C76 + C70+C88) ->  | S94: =IF(AND(ISBLANK(S76), ISBLANK(S70), ISBLANK(S88)), "", S76 + S70+S88) ->  | T94: =IF(AND(ISBLANK(T76), ISBLANK(T70), ISBLANK(T88)), "", T76 + T70+T88) ->  | W94: Q1
S95: =IF(AND(ISBLANK(S77), ISBLANK(S71), ISBLANK(S89)), "", S77 + S71+S89) ->  | W95: Q2
W96: Q3
Q97: =IF(AND(ISBLANK(Q79), ISBLANK(Q73), ISBLANK(Q91)), "", Q79 + Q73+Q91) ->  | W97: Yearly
C98: =IFERROR(C97/C122,IFERROR(C96/C121,IFERROR(C95/C120,IFERROR(C94/C119,"-")))) -> - | D98: - | E98: - | F98: - | G98: - | H98: - | I98: - | J98: - | K98: - | L98: - | M98: - | N98: - | O98: - | P98: - | Q98: - | R98: - | S98: =IFERROR(S97/S122,IFERROR(S96/S121,IFERROR(S95/S120,IFERROR(S94/S119,"-")))) -> - | T98: =IFERROR(T97/T122,IFERROR(T96/T121,IFERROR(T95/T120,IFERROR(T94/T119,"-")))) -> - | U98: - | W98: D/E Ratio
C99: Total Non-Current Liabilities
A100: BS | B100: Total Non-Current Liabilities | W100: Q1
W101: Q2
W102: Q3
W103: Yearly
C104: =IFERROR(C103/C55,IFERROR(C102/C54,IFERROR(C101/C53,IFERROR(C100/C52,"-")))) -> - | D104: - | E104: - | F104: - | G104: - | H104: - | I104: - | J104: - | K104: - | L104: - | M104: - | N104: - | O104: - | P104: - | Q104: - | R104: - | S104: - | T104: - | U104: - | W104: %Common Size
C105: Total Liabilities
A106: BS | B106: Total Liabilities | W106: Q1
W107: Q2
W108: Q3
W109: Yearly
C110: =IFERROR(C109/C55,IFERROR(C108/C54,IFERROR(C107/C53,IFERROR(C106/C52,"-")))) -> - | D110: - | E110: - | F110: - | G110: - | H110: - | I110: - | J110: - | K110: - | L110: - | M110: - | N110: - | O110: - | P110: - | Q110: - | R110: - | S110: - | T110: - | U110: - | W110: %Common Size
C111: Equity
C112: Retained Earnings (Deficits) - Unappropriated
A113: BS | B113: Retained Earnings (Deficits) - Unappropriated | W113: Q1
W114: Q2
W115: Q3
W116: Yearly
C117: =IFERROR(C116/C55,IFERROR(C115/C54,IFERROR(C114/C53,IFERROR(C113/C52,"-")))) -> - | D117: - | E117: - | F117: - | G117: - | H117: - | I117: - | J117: - | K117: - | L117: - | M117: - | N117: - | O117: - | P117: - | Q117: - | R117: - | S117: - | T117: - | U117: - | W117: %Common Size
C118: Equity Attributable To Owners Of The Parent
A119: BS | B119: Equity Attributable To Owners Of The Parent | W119: Q1
W120: Q2
W121: Q3
W122: Yearly
C123: =IFERROR(C122/C55,IFERROR(C121/C54,IFERROR(C120/C53,IFERROR(C119/C52,"-")))) -> - | D123: - | E123: - | F123: - | G123: - | H123: - | I123: - | J123: - | K123: - | L123: - | M123: - | N123: - | O123: - | P123: - | Q123: - | R123: - | S123: - | T123: - | U123: - | W123: %Common Size
C124: Revenue Structure
C125: Revenue From Operations
A126: PL | B126: Revenue From Operations | W126: Q1
W127: Q2
W128: Q3
W129: Q4
C130: =IF(COUNT(C126:C129)=4,SUM(C126:C129),IF(COUNT(C126:C129)=0,"",SUM(C126:C129)*4/COUNT(C126:C129))) ->  | R130: =IF(COUNT(R126:R129)=4,SUM(R126:R129),IF(COUNT(R126:R129)=0,"",SUM(R126:R129)*4/COUNT(R126:R129))) ->  | S130: =IF(COUNT(S126:S129)=4,SUM(S126:S129),IF(COUNT(S126:S129)=0,"",SUM(S126:S129)*4/COUNT(S126:S129))) ->  | T130: =IF(COUNT(T126:T129)=4,SUM(T126:T129),IF(COUNT(T126:T129)=0,"",SUM(T126:T129)*4/COUNT(T126:T129))) ->  | W130: Yearly
C131: =IFERROR((C130-B130)/B130,"-") -> - | D131: =IFERROR((D130-C130)/C130,"-") -> - | E131: - | F131: - | G131: - | H131: - | I131: - | J131: - | K131: - | L131: - | M131: - | N131: - | O131: - | P131: =IFERROR((P130-O130)/O130,"-") -> - | Q131: =IFERROR((Q130-P130)/P130,"-") -> - | R131: =IFERROR((R130-Q130)/Q130,"-") -> - | S131: =IFERROR((S130-R130)/R130,"-") -> - | T131: =IFERROR((T130-S130)/S130,"-") -> - | U131: - | W131: %YoY Growth
C132: Other Income
A133: PL | B133: Other Income | W133: Q1
W134: Q2
W135: Q3
W136: Q4
C137: =IF(COUNT(C133:C136)=4,SUM(C133:C136),IF(COUNT(C133:C136)=0,"",SUM(C133:C136)*4/COUNT(C133:C136))) ->  | R137: =IF(COUNT(R133:R136)=4,SUM(R133:R136),IF(COUNT(R133:R136)=0,"",SUM(R133:R136)*4/COUNT(R133:R136))) ->  | S137: =IF(COUNT(S133:S136)=4,SUM(S133:S136),IF(COUNT(S133:S136)=0,"",SUM(S133:S136)*4/COUNT(S133:S136))) ->  | T137: =IF(COUNT(T133:T136)=4,SUM(T133:T136),IF(COUNT(T133:T136)=0,"",SUM(T133:T136)*4/COUNT(T133:T136))) ->  | W137: Yearly
C138: Interest And Dividend Income
A139: PL | B139: Interest And Dividend Income | W139: Q1
W140: Q2
W141: Q3
W142: Q4
C143: =IF(COUNT(C139:C142)=4,SUM(C139:C142),IF(COUNT(C139:C142)=0,"",SUM(C139:C142)*4/COUNT(C139:C142))) ->  | R143: =IF(COUNT(R139:R142)=4,SUM(R139:R142),IF(COUNT(R139:R142)=0,"",SUM(R139:R142)*4/COUNT(R139:R142))) ->  | S143: =IF(COUNT(S139:S142)=4,SUM(S139:S142),IF(COUNT(S139:S142)=0,"",SUM(S139:S142)*4/COUNT(S139:S142))) ->  | T143: =IF(COUNT(T139:T142)=4,SUM(T139:T142),IF(COUNT(T139:T142)=0,"",SUM(T139:T142)*4/COUNT(T139:T142))) ->  | W143: Yearly
C144: Total Revenue
A145: PL | B145: Total Revenue | W145: Q1
W146: Q2
W147: Q3
W148: Q4
C149: =IF(COUNT(C145:C148)=4,SUM(C145:C148),IF(COUNT(C145:C148)=0,"",SUM(C145:C148)*4/COUNT(C145:C148))) ->  | R149: =IF(COUNT(R145:R148)=4,SUM(R145:R148),IF(COUNT(R145:R148)=0,"",SUM(R145:R148)*4/COUNT(R145:R148))) ->  | S149: =IF(COUNT(S145:S148)=4,SUM(S145:S148),IF(COUNT(S145:S148)=0,"",SUM(S145:S148)*4/COUNT(S145:S148))) ->  | T149: =IF(COUNT(T145:T148)=4,SUM(T145:T148),IF(COUNT(T145:T148)=0,"",SUM(T145:T148)*4/COUNT(T145:T148))) ->  | W149: Yearly
C150: COGS Breakdown
C151: Costs
A152: PL | B152: Costs | W152: Q1
W153: Q2
W154: Q3
W155: Q4
C156: =IF(COUNT(C152:C155)=4,SUM(C152:C155),IF(COUNT(C152:C155)=0,"",SUM(C152:C155)*4/COUNT(C152:C155))) ->  | S156: =IF(COUNT(S152:S155)=4,SUM(S152:S155),IF(COUNT(S152:S155)=0,"",SUM(S152:S155)*4/COUNT(S152:S155))) ->  | T156: =IF(COUNT(T152:T155)=4,SUM(T152:T155),IF(COUNT(T152:T155)=0,"",SUM(T152:T155)*4/COUNT(T152:T155))) ->  | W156: Yearly
C157: =IFERROR(C156/C130, "-") -> - | D157: - | E157: - | F157: - | G157: - | H157: - | I157: - | J157: - | K157: - | L157: - | M157: - | N157: - | O157: - | P157: - | Q157: - | R157: - | S157: - | T157: - | U157: - | W157: %Common Size
C158: =IFERROR((C156-B156)/B156,"-") -> - | D158: - | E158: - | F158: - | G158: - | H158: - | I158: - | J158: - | K158: - | L158: - | M158: - | N158: - | O158: - | P158: - | Q158: - | R158: - | S158: - | T158: - | U158: - | W158: %YoY Growth
C159: Gross Profit
C160: =IF(AND(ISBLANK(C126),ISBLANK(C152)),"",C126-C152) ->  | W160: Q1
W161: Q2
W162: Q3
W163: Q4
C164: =IF(COUNT(C160:C163)=4,SUM(C160:C163),IF(COUNT(C160:C163)=0,"",SUM(C160:C163)*4/COUNT(C160:C163))) ->  | G164: =IF(COUNT(G160:G163)=4,SUM(G160:G163),IF(COUNT(G160:G163)=0,"",SUM(G160:G163)*4/COUNT(G160:G163))) ->  | H164: =IF(COUNT(H160:H163)=4,SUM(H160:H163),IF(COUNT(H160:H163)=0,"",SUM(H160:H163)*4/COUNT(H160:H163))) ->  | S164: =IF(COUNT(S160:S163)=4,SUM(S160:S163),IF(COUNT(S160:S163)=0,"",SUM(S160:S163)*4/COUNT(S160:S163))) ->  | T164: =IF(COUNT(T160:T163)=4,SUM(T160:T163),IF(COUNT(T160:T163)=0,"",SUM(T160:T163)*4/COUNT(T160:T163))) ->  | W164: Yearly
C165: =IFERROR(C164/C130, "-") -> - | D165: - | E165: - | F165: - | G165: - | H165: - | I165: - | J165: - | K165: - | L165: - | M165: - | N165: - | O165: - | P165: - | Q165: - | R165: - | S165: - | T165: - | U165: - | W165: %GPM
C166: =IFERROR((C164-B164)/B164,"-") -> - | D166: - | E166: - | F166: - | G166: - | H166: - | I166: =IFERROR((I164-H164)/H164,"-") -> - | J166: - | K166: - | L166: - | M166: - | N166: - | O166: - | P166: - | Q166: - | R166: - | S166: - | T166: - | U166: - | W166: %YoY Growth
C167: SG&A
C168: Selling Expenses
A169: PL | B169: Selling Expenses | W169: Q1
W170: Q2
W171: Q3
W172: Q4
C173: =IF(COUNT(C169:C172)=4,SUM(C169:C172),IF(COUNT(C169:C172)=0,"",SUM(C169:C172)*4/COUNT(C169:C172))) ->  | S173: =IF(COUNT(S169:S172)=4,SUM(S169:S172),IF(COUNT(S169:S172)=0,"",SUM(S169:S172)*4/COUNT(S169:S172))) ->  | T173: =IF(COUNT(T169:T172)=4,SUM(T169:T172),IF(COUNT(T169:T172)=0,"",SUM(T169:T172)*4/COUNT(T169:T172))) ->  | W173: Yearly
C174: =IFERROR(C173/C130, "-") -> - | D174: - | E174: - | F174: - | G174: - | H174: - | I174: - | J174: - | K174: - | L174: - | M174: - | N174: - | O174: - | P174: - | Q174: - | R174: - | S174: - | T174: - | U174: - | W174: %Common Size
C175: =IFERROR((C173-B173)/B173,"-") -> - | D175: - | E175: - | F175: - | G175: - | H175: - | I175: - | J175: - | K175: - | L175: - | M175: - | N175: - | O175: - | P175: - | Q175: - | R175: - | S175: - | T175: - | U175: - | W175: %YoY Growth
C176: Administrative Expenses
A177: PL | B177: Administrative Expenses | W177: Q1
W178: Q2
W179: Q3
W180: Q4
C181: =IF(COUNT(C177:C180)=4,SUM(C177:C180),IF(COUNT(C177:C180)=0,"",SUM(C177:C180)*4/COUNT(C177:C180))) ->  | S181: =IF(COUNT(S177:S180)=4,SUM(S177:S180),IF(COUNT(S177:S180)=0,"",SUM(S177:S180)*4/COUNT(S177:S180))) ->  | T181: =IF(COUNT(T177:T180)=4,SUM(T177:T180),IF(COUNT(T177:T180)=0,"",SUM(T177:T180)*4/COUNT(T177:T180))) ->  | W181: Yearly
C182: =IFERROR(C181/C130, "-") -> - | D182: - | E182: - | F182: - | G182: - | H182: - | I182: - | J182: - | K182: - | L182: - | M182: - | N182: - | O182: - | P182: - | Q182: - | R182: - | S182: - | T182: - | U182: - | W182: %Common Size
C183: =IFERROR((C181-B181)/B181,"-") -> - | D183: - | E183: - | F183: - | G183: - | H183: - | I183: - | J183: - | K183: - | L183: - | M183: - | N183: - | O183: - | P183: - | Q183: - | R183: - | S183: - | T183: - | U183: - | W183: %YoY Growth
C184: Selling And Administrative Expenses
A185: PL | B185: Selling And Administrative Expenses | W185: Q1
W186: Q2
W187: Q3
W188: Q4
C189: =IF(COUNT(C185:C188)=4,SUM(C185:C188),IF(COUNT(C185:C188)=0,"",SUM(C185:C188)*4/COUNT(C185:C188))) ->  | S189: =IF(COUNT(S185:S188)=4,SUM(S185:S188),IF(COUNT(S185:S188)=0,"",SUM(S185:S188)*4/COUNT(S185:S188))) ->  | T189: =IF(COUNT(T185:T188)=4,SUM(T185:T188),IF(COUNT(T185:T188)=0,"",SUM(T185:T188)*4/COUNT(T185:T188))) ->  | W189: Yearly
C190: =IFERROR(C189/C130, "-") -> - | D190: - | E190: - | F190: - | G190: - | H190: - | I190: - | J190: - | K190: - | L190: - | M190: - | N190: - | O190: - | P190: - | Q190: - | R190: - | S190: =IFERROR(S189/S130, "-") -> - | T190: =IFERROR(T189/T130, "-") -> - | U190: - | W190: %Common Size
C191: =IFERROR((C189-B189)/B189,"-") -> - | D191: - | E191: - | F191: - | G191: - | H191: - | I191: - | J191: - | K191: - | L191: - | M191: - | N191: - | O191: - | P191: - | Q191: - | R191: - | S191: - | T191: - | U191: - | W191: %YoY Growth
C192: Other Gains (Losses)
A193: PL | B193: Other Gains (Losses) | W193: Q1
W194: Q2
W195: Q3
W196: Q4
C197: =IF(COUNT(C193:C196)=4,SUM(C193:C196),IF(COUNT(C193:C196)=0,"",SUM(C193:C196)*4/COUNT(C193:C196))) ->  | R197: =IF(COUNT(R193:R196)=4,SUM(R193:R196),IF(COUNT(R193:R196)=0,"",SUM(R193:R196)*4/COUNT(R193:R196))) ->  | S197: =IF(COUNT(S193:S196)=4,SUM(S193:S196),IF(COUNT(S193:S196)=0,"",SUM(S193:S196)*4/COUNT(S193:S196))) ->  | T197: =IF(COUNT(T193:T196)=4,SUM(T193:T196),IF(COUNT(T193:T196)=0,"",SUM(T193:T196)*4/COUNT(T193:T196))) ->  | W197: Yearly
C198: EBIT
C199: =IFERROR(C160+C133-C185, "") ->  | W199: Q1
W200: Q2
... 145 more rows

Sheet TURBO
C1: 2008 | D1: 2009 | E1: 2010 | F1: 2011 | G1: 2012 | H1: 2013 | I1: 2014 | J1: 2015 | K1: 2016 | L1: 2017 | M1: 2018 | N1: 2019 | O1: 2020 | P1: 2021 | Q1: 2022 | R1: 2023 | S1: 2024
C2: Asset
C3: Cash And Cash Equivalents
A4: BS | B4: Cash And Cash Equivalents | U4: Q1
U5: Q2
U6: Q3
U7: Yearly
C8: =IFERROR(C7/C55,IFERROR(C6/C54,IFERROR(C5/C53,IFERROR(C4/C52,"-")))) -> - | D8: - | E8: - | F8: - | G8: - | H8: - | I8: - | J8: - | K8: - | L8: - | M8: - | N8: - | O8: - | P8: - | Q8: - | R8: - | S8: - | U8: %Common Size
C9: Short-Term Investments - Net
A10: BS | B10: Short-Term Investments - Net | U10: Q1
U11: Q2
U12: Q3
U13: Yearly
C14: =IFERROR(C13/C55,IFERROR(C12/C54,IFERROR(C11/C53,IFERROR(C10/C52,"-")))) -> - | D14: - | E14: - | F14: - | G14: - | H14: - | I14: - | J14: - | K14: - | L14: - | M14: - | N14: - | O14: - | P14: - | Q14: - | R14: - | S14: - | U14: %Common Size
C15: Trade And Other Receivables - Current - Net
A16: BS | B16: Trade And Other Receivables - Current - Net | U16: Q1
U17: Q2
U18: Q3
U19: Yearly
C20: =IFERROR(C19/C55,IFERROR(C18/C54,IFERROR(C17/C53,IFERROR(C16/C52,"-")))) -> - | D20: - | E20: - | F20: - | G20: - | H20: - | I20: - | J20: - | K20: - | L20: - | M20: - | N20: - | O20: - | P20: - | Q20: - | R20: - | S20: - | U20: %Common Size
C21: Inventories - Net
A22: BS | B22: Inventories - Net | U22: Q1
U23: Q2
U24: Q3
U25: Yearly
C26: =IFERROR(C25/C55,IFERROR(C24/C54,IFERROR(C23/C53,IFERROR(C22/C52,"-")))) -> - | D26: - | E26: - | F26: - | G26: - | H26: - | I26: - | J26: - | K26: - | L26: - | M26: - | N26: - | O26: - | P26: - | Q26: - | R26: - | S26: - | U26: %Common Size
C27: Total Current Assets
A28: BS | B28: Total Current Assets | U28: Q1
U29: Q2
U30: Q3
U31: Yearly
C32: =IFERROR(C31/C55,IFERROR(C30/C54,IFERROR(C29/C53,IFERROR(C28/C52,"-")))) -> - | D32: - | E32: - | F32: - | G32: - | H32: - | I32: - | J32: - | K32: - | L32: - | M32: - | N32: - | O32: - | P32: - | Q32: - | R32: - | S32: - | U32: %Common Size
C33: Property, Plant And Equipment - Net
A34: BS | B34: Property, Plant And Equipment - Net | U34: Q1
U35: Q2
U36: Q3
U37: Yearly
C38: =IFERROR(C37/C55,IFERROR(C36/C54,IFERROR(C35/C53,IFERROR(C34/C52,"-")))) -> - | D38: - | E38: - | F38: - | G38: - | H38: - | I38: - | J38: - | K38: - | L38: - | M38: - | N38: - | O38: - | P38: - | Q38: - | R38: - | S38: - | U38: %Common Size
C39: Intangible Assets - Net
A40: BS | B40: Intangible Assets - Net | U40: Q1
U41: Q2
U42: Q3
U43: Yearly
C44: =IFERROR(C43/C55,IFERROR(C42/C54,IFERROR(C41/C53,IFERROR(C40/C52,"-")))) -> - | D44: - | E44: - | F44: - | G44: - | H44: - | I44: - | J44: - | K44: - | L44: - | M44: - | N44: - | O44: - | P44: - | Q44: - | R44: - | S44: - | U44: %Common Size
C45: Total Non-Current Assets
A46: BS | B46: Total Non-Current Assets | U46: Q1
U47: Q2
U48: Q3
U49: Yearly
C50: =IFERROR(C49/C55,IFERROR(C48/C54,IFERROR(C47/C53,IFERROR(C46/C52,"-")))) -> - | D50: - | E50: - | F50: - | G50: - | H50: - | I50: - | J50: - | K50: - | L50: - | M50: - | N50: - | O50: - | P50: - | Q50: - | R50: - | S50: - | U50: %Common Size
C51: Total Assets
A52: BS | B52: Total Assets | U52: Q1
U53: Q2
U54: Q3
U55: Yearly
C56: Liabilities
C57: Trade And Other Payables - Current
A58: BS | B58: Trade And Other Payables - Current | U58: Q1
U59: Q2
U60: Q3
U61: Yearly
C62: =IFERROR(C61/C55,"-") -> - | D62: - | E62: - | F62: - | G62: - | H62: - | I62: - | J62: - | K62: - | L62: - | M62: - | N62: - | O62: - | P62: - | Q62: - | R62: - | S62: =IFERROR(S61/S55,"-") -> - | U62: %Common Size
C63: Total Current Liabilities
A64: BS | B64: Total Current Liabilities | U64: Q1
U65: Q2
U66: Q3
U67: Yearly
C68: =IFERROR(C67/C55,IFERROR(C66/C54,IFERROR(C65/C53,IFERROR(C64/C52,"-")))) -> - | D68: - | E68: - | F68: - | G68: - | H68: - | I68: - | J68: - | K68: - | L68: - | M68: - | N68: - | O68: - | P68: - | Q68: - | R68: - | S68: - | U68: %Common Size
C69: Bank Overdrafts And Short-Term Borrowings From Financial Institutions
A70: BS | B70: Bank Overdrafts And Short-Term Borrowings From Financial Institutions | U70: Q1
U71: Q2
U72: Q3
U73: Yearly
C74: =IFERROR(C73/C55,IFERROR(C72/C54,IFERROR(C71/C53,IFERROR(C70/C52,"-")))) -> - | D74: - | E74: - | F74: - | G74: - | H74: - | I74: - | J74: - | K74: - | L74: - | M74: - | N74: - | O74: - | P74: - | Q74: - | R74: - | S74: - | U74: %Common Size
C75: Current Portion Of Long-Term Debts
A76: BS | B76: Current Portion Of Long-Term Debts | U76: Q1
U77: Q2
U78: Q3
U79: Yearly
C80: =IFERROR(C79/C55,IFERROR(C78/C54,IFERROR(C77/C53,IFERROR(C76/C52,"-")))) -> - | D80: - | E80: - | F80: - | G80: - | H80: - | I80: - | J80: - | K80: - | L80: - | M80: - | N80: - | O80: - | P80: - | Q80: - | R80: - | S80: - | U80: %Common Size
C81: Short-Term Debts
C82: =IF(AND(ISBLANK(C76), ISBLANK(C70)), "", C76 + C70) ->  | H82: =IF(AND(ISBLANK(H76), ISBLANK(H70)), "", H76 + H70) ->  | I82: =IF(AND(ISBLANK(I76), ISBLANK(I70)), "", I76 + I70) ->  | S82: =IF(AND(ISBLANK(S76), ISBLANK(S70)), "", S76 + S70) ->  | U82: Q1
S83: =IF(AND(ISBLANK(S77), ISBLANK(S71)), "", S77 + S71) ->  | U83: Q2
U84: Q3
U85: Yearly
C86: =IFERROR(C85/C55,IFERROR(C84/C54,IFERROR(C83/C53,IFERROR(C82/C52,"-")))) -> - | D86: - | E86: - | F86: - | G86: - | H86: - | I86: - | J86: - | K86: - | L86: - | M86: - | N86: - | O86: - | P86: - | Q86: - | R86: - | S86: - | U86: %Common Size
C87: Long-Term Debts
A88: BS | B88: Non-Current Portion Of Long-Term Debts | U88: Q1
U89: Q2
U90: Q3
U91: Yearly
C92: =IFERROR(C91/C55,IFERROR(C90/C54,IFERROR(C89/C53,IFERROR(C88/C52,"-")))) -> - | D92: - | E92: - | F92: - | G92: - | H92: - | I92: - | J92: - | K92: - | L92: - | M92: - | N92: - | O92: - | P92: - | Q92: - | R92: - | S92: - | U92: %Common Size
C93: Total Debts
C94: =IF(AND(ISBLANK(C76), ISBLANK(C70), ISBLANK(C88)), "", C76 + C70+C88) ->  | S94: =IF(AND(ISBLANK(S76), ISBLANK(S70), ISBLANK(S88)), "", S76 + S70+S88) ->  | U94: Q1
S95: =IF(AND(ISBLANK(S77), ISBLANK(S71), ISBLANK(S89)), "", S77 + S71+S89) ->  | U95: Q2
U96: Q3
Q97: =IF(AND(ISBLANK(Q79), ISBLANK(Q73), ISBLANK(Q91)), "", Q79 + Q73+Q91) ->  | U97: Yearly
C98: =IFERROR(C97/C122,IFERROR(C96/C121,IFERROR(C95/C120,IFERROR(C94/C119,"-")))) -> - | D98: - | E98: - | F98: - | G98: - | H98: - | I98: - | J98: - | K98: - | L98: - | M98: - | N98: - | O98: - | P98: - | Q98: - | R98: - | S98: =IFERROR(S97/S122,IFERROR(S96/S121,IFERROR(S95/S120,IFERROR(S94/S119,"-")))) -> - | U98: D/E Ratio
C99: Total Non-Current Liabilities
A100: BS | B100: Total Non-Current Liabilities | U100: Q1
U101: Q2
U102: Q3
U103: Yearly
C104: =IFERROR(C103/C55,IFERROR(C102/C54,IFERROR(C101/C53,IFERROR(C100/C52,"-")))) -> - | D104: - | E104: - | F104: - | G104: - | H104: - | I104: - | J104: - | K104: - | L104: - | M104: - | N104: - | O104: - | P104: - | Q104: - | R104: - | S104: - | U104: %Common Size
C105: Total Liabilities
A106: BS | B106: Total Liabilities | U106: Q1
U107: Q2
U108: Q3
U109: Yearly
C110: =IFERROR(C109/C55,IFERROR(C108/C54,IFERROR(C107/C53,IFERROR(C106/C52,"-")))) -> - | D110: - | E110: - | F110: - | G110: - | H110: - | I110: - | J110: - | K110: - | L110: - | M110: - | N110: - | O110: - | P110: - | Q110: - | R110: - | S110: - | U110: %Common Size
C111: Equity
C112: Retained Earnings (Deficits) - Unappropriated
A113: BS | B113: Retained Earnings (Deficits) - Unappropriated | U113: Q1
U114: Q2
U115: Q3
U116: Yearly
C117: =IFERROR(C116/C55,IFERROR(C115/C54,IFERROR(C114/C53,IFERROR(C113/C52,"-")))) -> - | D117: - | E117: - | F117: - | G117: - | H117: - | I117: - | J117: - | K117: - | L117: - | M117: - | N117: - | O117: - | P117: - | Q117: - | R117: - | S117: - | U117: %Common Size
C118: Equity Attributable To Owners Of The Parent
A119: BS | B119: Equity Attributable To Owners Of The Parent | U119: Q1
U120: Q2
U121: Q3
U122: Yearly
C123: =IFERROR(C122/C55,IFERROR(C121/C54,IFERROR(C120/C53,IFERROR(C119/C52,"-")))) -> - | D123: - | E123: - | F123: - | G123: - | H123: - | I123: - | J123: - | K123: - | L123: - | M123: - | N123: - | O123: - | P123: - | Q123: - | R123: - | S123: - | U123: %Common Size
C124: Revenue Structure
C125: Revenue From Operations
A126: PL | B126: Revenue From Operations | U126: Q1
U127: Q2
U128: Q3
U129: Q4
C130: =IF(COUNT(C126:C129)=4,SUM(C126:C129),IF(COUNT(C126:C129)=0,"",SUM(C126:C129)*4/COUNT(C126:C129))) ->  | R130: =IF(COUNT(R126:R129)=4,SUM(R126:R129),IF(COUNT(R126:R129)=0,"",SUM(R126:R129)*4/COUNT(R126:R129))) ->  | S130: =IF(COUNT(S126:S129)=4,SUM(S126:S129),IF(COUNT(S126:S129)=0,"",SUM(S126:S129)*4/COUNT(S126:S129))) ->  | U130: Yearly
C131: =IFERROR((C130-B130)/B130,"-") -> - | D131: =IFERROR((D130-C130)/C130,"-") -> - | E131: - | F131: - | G131: - | H131: - | I131: - | J131: - | K131: - | L131: - | M131: - | N131: - | O131: - | P131: =IFERROR((P130-O130)/O130,"-") -> - | Q131: =IFERROR((Q130-P130)/P130,"-") -> - | R131: =IFERROR((R130-Q130)/Q130,"-") -> - | S131: =IFERROR((S130-R130)/R130,"-") -> - | U131: %YoY Growth
C132: Other Income
A133: PL | B133: Other Income | U133: Q1
U134: Q2
U135: Q3
U136: Q4
C137: =IF(COUNT(C133:C136)=4,SUM(C133:C136),IF(COUNT(C133:C136)=0,"",SUM(C133:C136)*4/COUNT(C133:C136))) ->  | D137: =IF(COUNT(D133:D136)=4,SUM(D133:D136),IF(COUNT(D133:D136)=0,"",SUM(D133:D136)*4/COUNT(D133:D136))) ->  | R137: =IF(COUNT(R133:R136)=4,SUM(R133:R136),IF(COUNT(R133:R136)=0,"",SUM(R133:R136)*4/COUNT(R133:R136))) ->  | S137: =IF(COUNT(S133:S136)=4,SUM(S133:S136),IF(COUNT(S133:S136)=0,"",SUM(S133:S136)*4/COUNT(S133:S136))) ->  | U137: Yearly
C138: Interest And Dividend Income
A139: PL | B139: Interest And Dividend Income | U139: Q1
U140: Q2
U141: Q3
U142: Q4
C143: =IF(COUNT(C139:C142)=4,SUM(C139:C142),IF(COUNT(C139:C142)=0,"",SUM(C139:C142)*4/COUNT(C139:C142))) ->  | D143: =IF(COUNT(D139:D142)=4,SUM(D139:D142),IF(COUNT(D139:D142)=0,"",SUM(D139:D142)*4/COUNT(D139:D142))) ->  | R143: =IF(COUNT(R139:R142)=4,SUM(R139:R142),IF(COUNT(R139:R142)=0,"",SUM(R139:R142)*4/COUNT(R139:R142))) ->  | S143: =IF(COUNT(S139:S142)=4,SUM(S139:S142),IF(COUNT(S139:S142)=0,"",SUM(S139:S142)*4/COUNT(S139:S142))) ->  | U143: Yearly
C144: Total Revenue
A145: PL | B145: Total Revenue | U145: Q1
U146: Q2
U147: Q3
U148: Q4
C149: =IF(COUNT(C145:C148)=4,SUM(C145:C148),IF(COUNT(C145:C148)=0,"",SUM(C145:C148)*4/COUNT(C145:C148))) ->  | D149: =IF(COUNT(D145:D148)=4,SUM(D145:D148),IF(COUNT(D145:D148)=0,"",SUM(D145:D148)*4/COUNT(D145:D148))) ->  | R149: =IF(COUNT(R145:R148)=4,SUM(R145:R148),IF(COUNT(R145:R148)=0,"",SUM(R145:R148)*4/COUNT(R145:R148))) ->  | S149: =IF(COUNT(S145:S148)=4,SUM(S145:S148),IF(COUNT(S145:S148)=0,"",SUM(S145:S148)*4/COUNT(S145:S148))) ->  | U149: Yearly
C150: COGS Breakdown
C151: Costs
A152: PL | B152: Costs | U152: Q1
U153: Q2
U154: Q3
U155: Q4
C156: =IF(COUNT(C152:C155)=4,SUM(C152:C155),IF(COUNT(C152:C155)=0,"",SUM(C152:C155)*4/COUNT(C152:C155))) ->  | S156: =IF(COUNT(S152:S155)=4,SUM(S152:S155),IF(COUNT(S152:S155)=0,"",SUM(S152:S155)*4/COUNT(S152:S155))) ->  | U156: Yearly
C157: =IFERROR(C156/C130, "-") -> - | D157: - | E157: - | F157: - | G157: - | H157: - | I157: - | J157: - | K157: - | L157: - | M157: - | N157: - | O157: - | P157: - | Q157: - | R157: - | S157: - | U157: %Common Size
C158: =IFERROR((C156-B156)/B156,"-") -> - | D158: - | E158: - | F158: - | G158: - | H158: - | I158: - | J158: - | K158: - | L158: - | M158: - | N158: - | O158: - | P158: - | Q158: - | R158: - | S158: - | U158: %YoY Growth
C159: Gross Profit
C160: =IF(AND(ISBLANK(C126),ISBLANK(C152)),"",C126-C152) ->  | U160: Q1
U161: Q2
U162: Q3
U163: Q4
C164: =IF(COUNT(C160:C163)=4,SUM(C160:C163),IF(COUNT(C160:C163)=0,"",SUM(C160:C163)*4/COUNT(C160:C163))) ->  | D164: =IF(COUNT(D160:D163)=4,SUM(D160:D163),IF(COUNT(D160:D163)=0,"",SUM(D160:D163)*4/COUNT(D160:D163))) ->  | G164: =IF(COUNT(G160:G163)=4,SUM(G160:G163),IF(COUNT(G160:G163)=0,"",SUM(G160:G163)*4/COUNT(G160:G163))) ->  | H164: =IF(COUNT(H160:H163)=4,SUM(H160:H163),IF(COUNT(H160:H163)=0,"",SUM(H160:H163)*4/COUNT(H160:H163))) ->  | I164: =IF(COUNT(I160:I163)=4,SUM(I160:I163),IF(COUNT(I160:I163)=0,"",SUM(I160:I163)*4/COUNT(I160:I163))) ->  | S164: =IF(COUNT(S160:S163)=4,SUM(S160:S163),IF(COUNT(S160:S163)=0,"",SUM(S160:S163)*4/COUNT(S160:S163))) ->  | U164: Yearly
C165: =IFERROR(C164/C130, "-") -> - | D165: - | E165: - | F165: - | G165: - | H165: - | I165: - | J165: - | K165: - | L165: - | M165: - | N165: - | O165: - | P165: - | Q165: - | R165: - | S165: - | U165: %GPM
C166: =IFERROR((C164-B164)/B164,"-") -> - | D166: - | E166: - | F166: - | G166: - | H166: - | I166: =IFERROR((I164-H164)/H164,"-") -> - | J166: - | K166: - | L166: - | M166: - | N166: - | O166: - | P166: - | Q166: - | R166: - | S166: - | U166: %YoY Growth
C167: SG&A
C168: Selling Expenses
A169: PL | B169: Selling Expenses | U169: Q1
U170: Q2
U171: Q3
U172: Q4
C173: =IF(COUNT(C169:C172)=4,SUM(C169:C172),IF(COUNT(C169:C172)=0,"",SUM(C169:C172)*4/COUNT(C169:C172))) ->  | D173: =IF(COUNT(D169:D172)=4,SUM(D169:D172),IF(COUNT(D169:D172)=0,"",SUM(D169:D172)*4/COUNT(D169:D172))) ->  | S173: =IF(COUNT(S169:S172)=4,SUM(S169:S172),IF(COUNT(S169:S172)=0,"",SUM(S169:S172)*4/COUNT(S169:S172))) ->  | U173: Yearly
C174: =IFERROR(C173/C130, "-") -> - | D174: - | E174: - | F174: - | G174: - | H174: - | I174: - | J174: - | K174: - | L174: - | M174: - | N174: - | O174: - | P174: - | Q174: - | R174: - | S174: - | U174: %Common Size
C175: =IFERROR((C173-B173)/B173,"-") -> - | D175: - | E175: - | F175: - | G175: - | H175: - | I175: - | J175: - | K175: - | L175: - | M175: - | N175: - | O175: - | P175: - | Q175: - | R175: - | S175: - | U175: %YoY Growth
C176: Administrative Expenses
A177: PL | B177: Administrative Expenses | U177: Q1
U178: Q2
U179: Q3
U180: Q4
C181: =IF(COUNT(C177:C180)=4,SUM(C177:C180),IF(COUNT(C177:C180)=0,"",SUM(C177:C180)*4/COUNT(C177:C180))) ->  | D181: =IF(COUNT(D177:D180)=4,SUM(D177:D180),IF(COUNT(D177:D180)=0,"",SUM(D177:D180)*4/COUNT(D177:D180))) ->  | S181: =IF(COUNT(S177:S180)=4,SUM(S177:S180),IF(COUNT(S177:S180)=0,"",SUM(S177:S180)*4/COUNT(S177:S180))) ->  | U181: Yearly
C182: =IFERROR(C181/C130, "-") -> - | D182: - | E182: - | F182: - | G182: - | H182: - | I182: - | J182: - | K182: - | L182: - | M182: - | N182: - | O182: - | P182: - | Q182: - | R182: - | S182: - | U182: %Common Size
C183: =IFERROR((C181-B181)/B181,"-") -> - | D183: - | E183: - | F183: - | G183: - | H183: - | I183: - | J183: - | K183: - | L183: - | M183: - | N183: - | O183: - | P183: - | Q183: - | R183: - | S183: - | U183: %YoY Growth
C184: Selling And Administrative Expenses
A185: PL | B185: Selling And Administrative Expenses | U185: Q1
U186: Q2
U187: Q3
U188: Q4
C189: =IF(COUNT(C185:C188)=4,SUM(C185:C188),IF(COUNT(C185:C188)=0,"",SUM(C185:C188)*4/COUNT(C185:C188))) ->  | D189: =IF(COUNT(D185:D188)=4,SUM(D185:D188),IF(COUNT(D185:D188)=0,"",SUM(D185:D188)*4/COUNT(D185:D188))) ->  | S189: =IF(COUNT(S185:S188)=4,SUM(S185:S188),IF(COUNT(S185:S188)=0,"",SUM(S185:S188)*4/COUNT(S185:S188))) ->  | U189: Yearly
C190: =IFERROR(C189/C130, "-") -> - | D190: - | E190: - | F190: - | G190: - | H190: - | I190: - | J190: - | K190: - | L190: - | M190: - | N190: - | O190: - | P190: - | Q190: - | R190: - | S190: =IFERROR(S189/S130, "-") -> - | U190: %Common Size
C191: =IFERROR((C189-B189)/B189,"-") -> - | D191: - | E191: - | F191: - | G191: - | H191: - | I191: - | J191: - | K191: - | L191: - | M191: - | N191: - | O191: - | P191: - | Q191: - | R191: - | S191: - | U191: %YoY Growth
C192: Other Gains (Losses)
A193: PL | B193: Other Gains (Losses) | U193: Q1
U194: Q2
U195: Q3
U196: Q4
C197: =IF(COUNT(C193:C196)=4,SUM(C193:C196),IF(COUNT(C193:C196)=0,"",SUM(C193:C196)*4/COUNT(C193:C196))) ->  | D197: =IF(COUNT(D193:D196)=4,SUM(D193:D196),IF(COUNT(D193:D196)=0,"",SUM(D193:D196)*4/COUNT(D193:D196))) ->  | R197: =IF(COUNT(R193:R196)=4,SUM(R193:R196),IF(COUNT(R193:R196)=0,"",SUM(R193:R196)*4/COUNT(R193:R196))) ->  | S197: =IF(COUNT(S193:S196)=4,SUM(S193:S196),IF(COUNT(S193:S196)=0,"",SUM(S193:S196)*4/COUNT(S193:S196))) ->  | U197: Yearly
C198: EBIT
C199: =IFERROR(C160+C133-C185, "") ->  | U199: Q1
U200: Q2
... 145 more rows

Sheet 2
D1: 2008 | E1: 2009 | F1: 2010 | G1: 2011 | H1: 2012 | I1: 2013 | J1: 2014 | K1: 2015 | L1: 2016 | M1: 2017 | N1: 2018 | O1: 2019 | P1: 2020 | Q1: 2021 | R1: 2022 | S1: 2023 | T1: 2024 | U1: 2025 | V1: 2026
D2: Asset
D3: Cash And Cash Equivalents
A4: BS | B4: Cash And Cash Equivalents | C4: Cash | X4: Q1
X5: Q2
X6: Q3
X7: Yearly
D8: =IFERROR(D7/D80,IFERROR(D6/D79,IFERROR(D5/D78,IFERROR(D4/D77,"-")))) -> - | E8: - | F8: - | G8: - | H8: - | I8: - | J8: - | K8: - | L8: - | M8: - | N8: - | O8: - | P8: - | Q8: - | R8: - | S8: - | T8: - | U8: =IFERROR(U7/U80,IFERROR(U6/U79,IFERROR(U5/U78,IFERROR(U4/U77,"-")))) -> - | V8: - | X8: %Common Size
D9: Current Portion Of Trade And Loan Receivables - Net - Raw
A10: BS | B10: Current Portion Of Trade And Loan Receivables - Net | X10: Q1
X11: Q2
X12: Q3
X13: Yearly
D14: Current Portion Of Lease Receivables - Net - Raw
A15: BS | B15: Current Portion Of Lease Receivables - Net | X15: Q1
X16: Q2
X17: Q3
X18: Yearly
D19: Current Portion Of Trade And Loan Receivables - Net
D20: =IF(D10+D15 = 0, "", D10+D15) ->  | T20: =IF(T10+T15 = 0, "", T10+T15) ->  | U20: =IF(U10+U15 = 0, "", U10+U15) ->  | V20: =IF(V10+V15 = 0, "", V10+V15) ->  | X20: Q1
T21: =IF(T11+T16 = 0, "", T11+T16) ->  | V21: =IF(V11+V16 = 0, "", V11+V16) ->  | X21: Q2
V22: =IF(V12+V17 = 0, "", V12+V17) ->  | X22: Q3
V23: =IF(V13+V18 = 0, "", V13+V18) ->  | X23: Yearly
D24: =IFERROR(D23/D80,IFERROR(D22/D79,IFERROR(D21/D78,IFERROR(D20/D77,"-")))) -> - | E24: - | F24: - | G24: - | H24: - | I24: - | J24: - | K24: - | L24: - | M24: - | N24: - | O24: - | P24: - | Q24: - | R24: - | S24: - | T24: - | U24: =IFERROR(U23/U80,IFERROR(U22/U79,IFERROR(U21/U78,IFERROR(U20/U77,"-")))) -> - | V24: - | X24: %Common Size
D25: Total Current Assets
A26: BS | B26: Total Current Assets | X26: Q1
X27: Q2
X28: Q3
X29: Yearly
D30: =IFERROR(D29/D80,IFERROR(D28/D79,IFERROR(D27/D78,IFERROR(D26/D77,"-")))) -> - | E30: - | F30: - | G30: - | H30: - | I30: - | J30: - | K30: - | L30: - | M30: - | N30: - | O30: - | P30: - | Q30: - | R30: - | S30: - | T30: - | U30: =IFERROR(U29/U80,IFERROR(U28/U79,IFERROR(U27/U78,IFERROR(U26/U77,"-")))) -> - | V30: - | X30: %Common Size
D31: Non-Current Portion Of Trade And Loan Receivables - Net
A32: BS | B32: Non-Current Portion Of Trade And Loan Receivables - Net | X32: Q1
X33: Q2
X34: Q3
X35: Yearly
D36: Current Portion Of Lease Receivables - Net - Raw
A37: BS | B37: Non-Current Portion Of Lease Receivables - Net | X37: Q1
X38: Q2
X39: Q3
X40: Yearly
D41: Non-Current Portion Of Trade And Loan Receivables - Net
D42: =IF(D32+D37 = 0, "", D32+D37) ->  | O42: =IF(O32+O37 = 0, "", O32+O37) ->  | T42: =IF(T32+T37 = 0, "", T32+T37) ->  | U42: =IF(U32+U37 = 0, "", U32+U37) ->  | V42: =IF(V32+V37 = 0, "", V32+V37) ->  | X42: Q1
T43: =IF(T33+T38 = 0, "", T33+T38) ->  | V43: =IF(V33+V38 = 0, "", V33+V38) ->  | X43: Q2
V44: =IF(V34+V39 = 0, "", V34+V39) ->  | X44: Q3
V45: =IF(V35+V40 = 0, "", V35+V40) ->  | X45: Yearly
D46: =IFERROR(D45/D80,IFERROR(D44/D79,IFERROR(D43/D78,IFERROR(D42/D77,"-")))) -> - | E46: - | F46: - | G46: - | H46: - | I46: - | J46: - | K46: - | L46: - | M46: - | N46: - | O46: - | P46: - | Q46: - | R46: - | S46: - | T46: =IFERROR(T45/T80,IFERROR(T44/T79,IFERROR(T43/T78,IFERROR(T42/T77,"-")))) -> - | U46: =IFERROR(U45/U80,IFERROR(U44/U79,IFERROR(U43/U78,IFERROR(U42/U77,"-")))) -> - | V46: =IFERROR(V45/V80,IFERROR(V44/V79,IFERROR(V43/V78,IFERROR(V42/V77,"-")))) -> - | X46: %Common Size
D47: Total Loan Receivables - Old
A48: BS | C48: Loans To Customers And Accrued Interest Receivables - Net | X48: Q1
X49: Q2
X50: Q3
X51: Yearly
D52: Total Loan Receivables
D53: =IF(AND(D20="", D42=""), IF(D48="", "", D48), D20+D42) ->  | O53: =IF(AND(O20="", O42=""), IF(O48="", "", O48), O20+O42) ->  | P53: =IF(AND(P20="", P42=""), IF(P48="", "", P48), P20+P42) ->  | U53: =IF(AND(U20="", U42=""), IF(U48="", "", U48), U20+U42) ->  | X53: Q1
U54: =IF(AND(U21="", U43=""), IF(U49="", "", U49), U21+U43) ->  | X54: Q2
U55: =IF(AND(U22="", U44=""), IF(U50="", "", U50), U22+U44) ->  | X55: Q3
U56: =IF(AND(U23="", U45=""), IF(U51="", "", U51), U23+U45) ->  | X56: Yearly
D57: =IFERROR(D56/D80,IFERROR(D55/D79,IFERROR(D54/D78,IFERROR(D53/D77,"-")))) -> - | E57: - | F57: - | G57: - | H57: - | I57: - | J57: - | K57: - | L57: - | M57: - | N57: - | O57: - | P57: - | Q57: - | R57: - | S57: - | T57: =IFERROR(T56/T80,IFERROR(T55/T79,IFERROR(T54/T78,IFERROR(T53/T77,"-")))) -> - | U57: =IFERROR(U56/U80,IFERROR(U55/U79,IFERROR(U54/U78,IFERROR(U53/U77,"-")))) -> - | V57: =IFERROR(V56/V80,IFERROR(V55/V79,IFERROR(V54/V78,IFERROR(V53/V77,"-")))) -> - | X57: %Common Size
D58: Property, Plant And Equipment - Net
A59: BS | B59: Property, Plant And Equipment - Net | C59: Property, Plant And Equipment - Net | X59: Q1
X60: Q2
X61: Q3
X62: Yearly
D63: =IFERROR(D62/D80,IFERROR(D61/D79,IFERROR(D60/D78,IFERROR(D59/D77,"-")))) -> - | E63: - | F63: - | G63: - | H63: - | I63: - | J63: - | K63: - | L63: - | M63: - | N63: - | O63: - | P63: - | Q63: - | R63: - | S63: - | T63: - | U63: =IFERROR(U62/U80,IFERROR(U61/U79,IFERROR(U60/U78,IFERROR(U59/U77,"-")))) -> - | V63: - | X63: %Common Size
D64: Intangible Assets - Net
A65: BS | B65: Intangible Assets - Net | C65: Goodwill And Other Intangible Assets - Net | X65: Q1
X66: Q2
X67: Q3
X68: Yearly
D69: =IFERROR(D68/D80,IFERROR(D67/D79,IFERROR(D66/D78,IFERROR(D65/D77,"-")))) -> - | E69: - | F69: - | G69: - | H69: - | I69: - | J69: - | K69: - | L69: - | M69: - | N69: - | O69: - | P69: - | Q69: - | R69: - | S69: - | T69: - | U69: =IFERROR(U68/U80,IFERROR(U67/U79,IFERROR(U66/U78,IFERROR(U65/U77,"-")))) -> - | V69: - | X69: %Common Size
D70: Total Non-Current Assets
A71: BS | B71: Total Non-Current Assets | X71: Q1
X72: Q2
X73: Q3
X74: Yearly
D75: =IFERROR(D74/D80,IFERROR(D73/D79,IFERROR(D72/D78,IFERROR(D71/D77,"-")))) -> - | E75: - | F75: - | G75: - | H75: - | I75: - | J75: - | K75: - | L75: - | M75: - | N75: - | O75: - | P75: - | Q75: - | R75: - | S75: - | T75: - | U75: =IFERROR(U74/U80,IFERROR(U73/U79,IFERROR(U72/U78,IFERROR(U71/U77,"-")))) -> - | V75: - | X75: %Common Size
D76: Total Assets
A77: BS | B77: Total Assets | C77: Total Assets | X77: Q1
X78: Q2
X79: Q3
X80: Yearly
D81: Liabilities
D82: Bank Overdrafts And Short-Term Borrowings From Financial Institutions
A83: BS | B83: Bank Overdrafts And Short-Term Borrowings From Financial Institutions | X83: Q1
X84: Q2
X85: Q3
X86: Yearly
D87: =IFERROR(D86/D80,IFERROR(D85/D79,IFERROR(D84/D78,IFERROR(D83/D77,"-")))) -> - | E87: - | F87: - | G87: - | H87: - | I87: - | J87: - | K87: - | L87: - | M87: - | N87: - | O87: - | P87: - | Q87: - | R87: - | S87: - | T87: - | U87: =IFERROR(U86/U80,IFERROR(U85/U79,IFERROR(U84/U78,IFERROR(U83/U77,"-")))) -> - | V87: - | X87: %Common Size
D88: Current Portion Of Long-Term Debts
A89: BS | B89: Current Portion Of Long-Term Debts | X89: Q1
X90: Q2
X91: Q3
X92: Yearly
D93: =IFERROR(D92/D80,IFERROR(D91/D79,IFERROR(D90/D78,IFERROR(D89/D77,"-")))) -> - | E93: - | F93: - | G93: - | H93: - | I93: - | J93: - | K93: - | L93: - | M93: - | N93: - | O93: - | P93: - | Q93: - | R93: - | S93: - | T93: - | U93: =IFERROR(U92/U80,IFERROR(U91/U79,IFERROR(U90/U78,IFERROR(U89/U77,"-")))) -> - | V93: - | X93: %Common Size
D94: Short-Term Debts
D95: =IF(AND(ISBLANK(D89), ISBLANK(D83)), "", D89 + D83) ->  | J95: =IF(AND(ISBLANK(J89), ISBLANK(J83)), "", J89 + J83) ->  | P95: =IF(AND(ISBLANK(P89), ISBLANK(P83)), "", P89 + P83) ->  | T95: =IF(AND(ISBLANK(T89), ISBLANK(T83)), "", T89 + T83) ->  | U95: =IF(AND(ISBLANK(U89), ISBLANK(U83)), "", U89 + U83) ->  | V95: =IF(AND(ISBLANK(V89), ISBLANK(V83)), "", V89 + V83) ->  | X95: Q1
T96: =IF(AND(ISBLANK(T90), ISBLANK(T84)), "", T90 + T84) ->  | V96: =IF(AND(ISBLANK(V90), ISBLANK(V84)), "", V90 + V84) ->  | X96: Q2
V97: =IF(AND(ISBLANK(V91), ISBLANK(V85)), "", V91 + V85) ->  | X97: Q3
V98: =IF(AND(ISBLANK(V92), ISBLANK(V86)), "", V92 + V86) ->  | X98: Yearly
D99: =IFERROR(D98/D80,IFERROR(D97/D79,IFERROR(D96/D78,IFERROR(D95/D77,"-")))) -> - | E99: - | F99: - | G99: - | H99: - | I99: - | J99: - | K99: - | L99: - | M99: - | N99: - | O99: - | P99: - | Q99: - | R99: - | S99: - | T99: - | U99: =IFERROR(U98/U80,IFERROR(U97/U79,IFERROR(U96/U78,IFERROR(U95/U77,"-")))) -> - | V99: - | X99: %Common Size
D100: Long-Term Debts
A101: BS | B101: Non-Current Portion Of Long-Term Debts | X101: Q1
X102: Q2
X103: Q3
X104: Yearly
D105: =IFERROR(D104/D80,IFERROR(D103/D79,IFERROR(D102/D78,IFERROR(D101/D77,"-")))) -> - | E105: - | F105: - | G105: - | H105: - | I105: - | J105: - | K105: - | L105: - | M105: - | N105: - | O105: - | P105: - | Q105: - | R105: - | S105: - | T105: - | U105: =IFERROR(U104/U80,IFERROR(U103/U79,IFERROR(U102/U78,IFERROR(U101/U77,"-")))) -> - | V105: - | X105: %Common Size
D106: Debts Issued And Borrowings - Old
A107: BS | C107: Debts Issued And Borrowings | X107: Q1
X108: Q2
X109: Q3
X110: Yearly
D111: =IFERROR(D110/D86,IFERROR(D109/D85,IFERROR(D108/D84,IFERROR(D107/D83,"-")))) -> - | E111: - | F111: - | G111: - | H111: - | I111: - | J111: - | K111: - | L111: - | M111: - | N111: - | O111: - | P111: - | Q111: - | R111: - | S111: - | T111: - | U111: =IFERROR(U110/U86,IFERROR(U109/U85,IFERROR(U108/U84,IFERROR(U107/U83,"-")))) -> - | V111: - | X111: %Common Size
D112: Total Debts
D113: =IF(AND(ISBLANK(D89), ISBLANK(D83), ISBLANK(D101)), IF(ISBLANK(D107), "", D107), D89 + D83+D101) ->  | T113: =IF(AND(ISBLANK(T89), ISBLANK(T83), ISBLANK(T101)), IF(ISBLANK(T107), "", T107), T89 + T83+T101) ->  | U113: =IF(AND(ISBLANK(U89), ISBLANK(U83), ISBLANK(U101)), IF(ISBLANK(U107), "", U107), U89 + U83+U101) ->  | V113: =IF(AND(ISBLANK(V89), ISBLANK(V83), ISBLANK(V101)), IF(ISBLANK(V107), "", V107), V89 + V83+V101) ->  | X113: Q1
T114: =IF(AND(ISBLANK(T90), ISBLANK(T84), ISBLANK(T102)), IF(ISBLANK(T108), "", T108), T90 + T84+T102) ->  | V114: =IF(AND(ISBLANK(V90), ISBLANK(V84), ISBLANK(V102)), IF(ISBLANK(V108), "", V108), V90 + V84+V102) ->  | X114: Q2
V115: =IF(AND(ISBLANK(V91), ISBLANK(V85), ISBLANK(V103)), IF(ISBLANK(V109), "", V109), V91 + V85+V103) ->  | X115: Q3
V116: =IF(AND(ISBLANK(V92), ISBLANK(V86), ISBLANK(V104)), IF(ISBLANK(V110), "", V110), V92 + V86+V104) ->  | X116: Yearly
D117: =IFERROR(D116/D80,IFERROR(D115/D79,IFERROR(D114/D78,IFERROR(D113/D77,"-")))) -> - | E117: - | F117: - | G117: - | H117: - | I117: - | J117: - | K117: - | L117: - | M117: - | N117: - | O117: - | P117: - | Q117: - | R117: - | S117: - | T117: - | U117: =IFERROR(U116/U80,IFERROR(U115/U79,IFERROR(U114/U78,IFERROR(U113/U77,"-")))) -> - | V117: - | X117: %Common Size
D118: Total Liabilities
A119: BS | B119: Total Liabilities | C119: Total Liabilities | X119: Q1
X120: Q2
X121: Q3
X122: Yearly
D123: =IFERROR(D122/D80,IFERROR(D121/D79,IFERROR(D120/D78,IFERROR(D119/D77,"-")))) -> - | E123: - | F123: - | G123: - | H123: - | I123: - | J123: - | K123: - | L123: - | M123: - | N123: - | O123: - | P123: - | Q123: - | R123: - | S123: - | T123: - | U123: =IFERROR(U122/U80,IFERROR(U121/U79,IFERROR(U120/U78,IFERROR(U119/U77,"-")))) -> - | V123: - | X123: %Common Size
D124: Equity
D125: Retained Earnings (Deficits) - Unappropriated
A126: BS | B126: Retained Earnings (Deficits) - Unappropriated | C126: Retained Earnings (Deficits) - Unappropriated | X126: Q1
X127: Q2
X128: Q3
X129: Yearly
D130: =IFERROR(D129/D80,IFERROR(D128/D79,IFERROR(D127/D78,IFERROR(D126/D77,"-")))) -> - | E130: - | F130: - | G130: - | H130: - | I130: - | J130: - | K130: - | L130: - | M130: - | N130: - | O130: - | P130: - | Q130: - | R130: - | S130: - | T130: - | U130: =IFERROR(U129/U80,IFERROR(U128/U79,IFERROR(U127/U78,IFERROR(U126/U77,"-")))) -> - | V130: - | X130: %Common Size
D131: Equity Attributable To Owners Of The Parent
A132: BS | B132: Equity Attributable To Owners Of The Parent | C132: Equity Attributable To Owners Of The Parent | X132: Q1
X133: Q2
X134: Q3
X135: Yearly
D136: =IFERROR(D135/D80,IFERROR(D134/D79,IFERROR(D133/D78,IFERROR(D132/D77,"-")))) -> - | E136: - | F136: - | G136: - | H136: - | I136: - | J136: - | K136: - | L136: - | M136: - | N136: - | O136: - | P136: - | Q136: - | R136: - | S136: - | T136: - | U136: =IFERROR(U135/U80,IFERROR(U134/U79,IFERROR(U133/U78,IFERROR(U132/U77,"-")))) -> - | V136: - | X136: %Common Size
D137: Revenue Structure
D138: Interest Income
A139: PL | B139: Interest Income | C139: Interest Income | X139: Q1
X140: Q2
X141: Q3
X142: Q4
D143: =IF(COUNT(D139:D142)=4,SUM(D139:D142),IF(COUNT(D139:D142)=0,"",SUM(D139:D142)*4/COUNT(D139:D142))) ->  | S143: =IF(COUNT(S139:S142)=4,SUM(S139:S142),IF(COUNT(S139:S142)=0,"",SUM(S139:S142)*4/COUNT(S139:S142))) ->  | T143: =IF(COUNT(T139:T142)=4,SUM(T139:T142),IF(COUNT(T139:T142)=0,"",SUM(T139:T142)*4/COUNT(T139:T142))) ->  | U143: =IF(COUNT(U139:U142)=4,SUM(U139:U142),IF(COUNT(U139:U142)=0,"",SUM(U139:U142)*4/COUNT(U139:U142))) ->  | V143: =IF(COUNT(V139:V142)=4,SUM(V139:V142),IF(COUNT(V139:V142)=0,"",SUM(V139:V142)*4/COUNT(V139:V142))) ->  | X143: Yearly
D144: =IFERROR((D143-C143)/C143,"-") -> - | E144: - | F144: - | G144: - | H144: - | I144: - | J144: - | K144: - | L144: - | M144: - | N144: - | O144: - | P144: - | Q144: - | R144: - | S144: - | T144: =IFERROR((T143-S143)/S143,"-") -> - | U144: =IFERROR((U143-T143)/T143,"-") -> - | V144: =IFERROR((V143-U143)/U143,"-") -> - | X144: %YoY Growth
D145: =IFERROR(D143/D174, "") ->  | U145: =IFERROR(U143/U174, "") ->  | X145: %Common Size
D146: Fees And Service Income
A147: PL | B147: Fees And Service Income | C147: Fees And Service Income | X147: Q1
X148: Q2
X149: Q3
X150: Q4
D151: =IF(COUNT(D147:D150)=4,SUM(D147:D150),IF(COUNT(D147:D150)=0,"",SUM(D147:D150)*4/COUNT(D147:D150))) ->  | S151: =IF(COUNT(S147:S150)=4,SUM(S147:S150),IF(COUNT(S147:S150)=0,"",SUM(S147:S150)*4/COUNT(S147:S150))) ->  | T151: =IF(COUNT(T147:T150)=4,SUM(T147:T150),IF(COUNT(T147:T150)=0,"",SUM(T147:T150)*4/COUNT(T147:T150))) ->  | U151: =IF(COUNT(U147:U150)=4,SUM(U147:U150),IF(COUNT(U147:U150)=0,"",SUM(U147:U150)*4/COUNT(U147:U150))) ->  | V151: =IF(COUNT(V147:V150)=4,SUM(V147:V150),IF(COUNT(V147:V150)=0,"",SUM(V147:V150)*4/COUNT(V147:V150))) ->  | X151: Yearly
D152: =IFERROR((D151-B151)/B151,"-") -> - | E152: =IFERROR((E151-D151)/D151,"-") -> - | F152: - | G152: - | H152: - | I152: - | J152: - | K152: - | L152: - | M152: - | N152: - | O152: - | P152: - | Q152: - | R152: - | S152: - | T152: =IFERROR((T151-S151)/S151,"-") -> - | U152: =IFERROR((U151-T151)/T151,"-") -> - | V152: =IFERROR((V151-U151)/U151,"-") -> - | X152: %YoY Growth
D153: =IFERROR(D151/D174, "") ->  | U153: =IFERROR(U151/U174, "") ->  | X153: %Common Size
D154: Other Income
A155: PL | B155: Other Income | C155: Other Operating Income | X155: Q1
X156: Q2
X157: Q3
X158: Q4
D159: =IF(COUNT(D155:D158)=4,SUM(D155:D158),IF(COUNT(D155:D158)=0,"",SUM(D155:D158)*4/COUNT(D155:D158))) ->  | E159: =IF(COUNT(E155:E158)=4,SUM(E155:E158),IF(COUNT(E155:E158)=0,"",SUM(E155:E158)*4/COUNT(E155:E158))) ->  | S159: =IF(COUNT(S155:S158)=4,SUM(S155:S158),IF(COUNT(S155:S158)=0,"",SUM(S155:S158)*4/COUNT(S155:S158))) ->  | T159: =IF(COUNT(T155:T158)=4,SUM(T155:T158),IF(COUNT(T155:T158)=0,"",SUM(T155:T158)*4/COUNT(T155:T158))) ->  | U159: =IF(COUNT(U155:U158)=4,SUM(U155:U158),IF(COUNT(U155:U158)=0,"",SUM(U155:U158)*4/COUNT(U155:U158))) ->  | V159: =IF(COUNT(V155:V158)=4,SUM(V155:V158),IF(COUNT(V155:V158)=0,"",SUM(V155:V158)*4/COUNT(V155:V158))) ->  | X159: Yearly
D160: =IFERROR(D159/C159-1, "") ->  | T160: =IFERROR(T159/S159-1, "") ->  | U160: =IFERROR(U159/T159-1, "") ->  | V160: =IFERROR(V159/U159-1, "") ->  | X160: YoY Growth
D161: =IFERROR(D159/D174, "") ->  | U161: =IFERROR(U159/U174, "") ->  | X161: %Common Size
D162: Total Revenue - New
A163: PL | B163: Total Revenue | X163: Q1
X164: Q2
X165: Q3
X166: Q4
D167: =IF(COUNT(D163:D166)=4,SUM(D163:D166),IF(COUNT(D163:D166)=0,"",SUM(D163:D166)*4/COUNT(D163:D166))) ->  | E167: =IF(COUNT(E163:E166)=4,SUM(E163:E166),IF(COUNT(E163:E166)=0,"",SUM(E163:E166)*4/COUNT(E163:E166))) ->  | S167: =IF(COUNT(S163:S166)=4,SUM(S163:S166),IF(COUNT(S163:S166)=0,"",SUM(S163:S166)*4/COUNT(S163:S166))) ->  | T167: =IF(COUNT(T163:T166)=4,SUM(T163:T166),IF(COUNT(T163:T166)=0,"",SUM(T163:T166)*4/COUNT(T163:T166))) ->  | U167: =IF(COUNT(U163:U166)=4,SUM(U163:U166),IF(COUNT(U163:U166)=0,"",SUM(U163:U166)*4/COUNT(U163:U166))) ->  | V167: =IF(COUNT(V163:V166)=4,SUM(V163:V166),IF(COUNT(V163:V166)=0,"",SUM(V163:V166)*4/COUNT(V163:V166))) ->  | X167: Yearly
D168: =IFERROR(D167/C167-1, "") ->  | T168: =IFERROR(T167/S167-1, "") ->  | U168: =IFERROR(U167/T167-1, "") ->  | V168: =IFERROR(V167/U167-1, "") ->  | X168: %YoY Growth
D169: Total Revenue
D170: =IF(ISBLANK(D163), IF(D139+D147+D155 = 0, "", D139+D147+D155), D163) ->  | T170: =IF(ISBLANK(T163), IF(T139+T147+T155 = 0, "", T139+T147+T155), T163) ->  | U170: =IF(ISBLANK(U163), IF(U139+U147+U155 = 0, "", U139+U147+U155), U163) ->  | V170: =IF(ISBLANK(V163), IF(V139+V147+V155 = 0, "", V139+V147+V155), V163) ->  | X170: Q1
T171: =IF(ISBLANK(T164), IF(T140+T148+T156 = 0, "", T140+T148+T156), T164) ->  | V171: =IF(ISBLANK(V164), IF(V140+V148+V156 = 0, "", V140+V148+V156), V164) ->  | X171: Q2
V172: =IF(ISBLANK(V165), IF(V141+V149+V157 = 0, "", V141+V149+V157), V165) ->  | X172: Q3
V173: =IF(ISBLANK(V166), IF(V142+V150+V158 = 0, "", V142+V150+V158), V166) ->  | X173: Q4
D174: =IF(COUNT(D170:D173)=4,SUM(D170:D173),IF(COUNT(D170:D173)=0,"",SUM(D170:D173)*4/COUNT(D170:D173))) ->  | E174: =IF(COUNT(E170:E173)=4,SUM(E170:E173),IF(COUNT(E170:E173)=0,"",SUM(E170:E173)*4/COUNT(E170:E173))) ->  | S174: =IF(COUNT(S170:S173)=4,SUM(S170:S173),IF(COUNT(S170:S173)=0,"",SUM(S170:S173)*4/COUNT(S170:S173))) ->  | T174: =IF(COUNT(T170:T173)=4,SUM(T170:T173),IF(COUNT(T170:T173)=0,"",SUM(T170:T173)*4/COUNT(T170:T173))) ->  | U174: =IF(COUNT(U170:U173)=4,SUM(U170:U173),IF(COUNT(U170:U173)=0,"",SUM(U170:U173)*4/COUNT(U170:U173))) ->  | V174: =IF(COUNT(V170:V173)=4,SUM(V170:V173),IF(COUNT(V170:V173)=0,"",SUM(V170:V173)*4/COUNT(V170:V173))) ->  | X174: Yearly
D175: =IFERROR(D174/C174-1, "") ->  | T175: =IFERROR(T174/S174-1, "") ->  | U175: =IFERROR(U174/T174-1, "") ->  | V175: =IFERROR(V174/U174-1, "") ->  | X175: %YoY Growth
D176: COGS Breakdown
D177: Finance Costs
A178: PL | B178: Finance Costs | C178: Interest Expenses | X178: Q1
X179: Q2
X180: Q3
X181: Q4
D182: =IF(COUNT(D178:D181)=4,SUM(D178:D181),IF(COUNT(D178:D181)=0,"",SUM(D178:D181)*4/COUNT(D178:D181))) ->  | T182: =IF(COUNT(T178:T181)=4,SUM(T178:T181),IF(COUNT(T178:T181)=0,"",SUM(T178:T181)*4/COUNT(T178:T181))) ->  | U182: =IF(COUNT(U178:U181)=4,SUM(U178:U181),IF(COUNT(U178:U181)=0,"",SUM(U178:U181)*4/COUNT(U178:U181))) ->  | V182: =IF(COUNT(V178:V181)=4,SUM(V178:V181),IF(COUNT(V178:V181)=0,"",SUM(V178:V181)*4/COUNT(V178:V181))) ->  | X182: Yearly
D183: =IFERROR(D182/D143, "-") -> - | E183: - | F183: - | G183: - | H183: - | I183: - | J183: - | K183: - | L183: - | M183: - | N183: - | O183: - | P183: - | Q183: - | R183: - | S183: - | T183: =IFERROR(T182/T143, "-") -> - | U183: =IFERROR(U182/U143, "-") -> - | V183: =IFERROR(V182/V143, "-") -> - | X183: %Common Size
D184: =IFERROR((D182-B182)/B182,"-") -> - | E184: =IFERROR((E182-D182)/D182,"-") -> - | F184: - | G184: - | H184: - | I184: - | J184: - | K184: - | L184: - | M184: - | N184: - | O184: - | P184: - | Q184: - | R184: - | S184: =IFERROR((S182-R182)/R182,"-") -> - | T184: =IFERROR((T182-S182)/S182,"-") -> - | U184: =IFERROR((U182-T182)/T182,"-") -> - | V184: =IFERROR((V182-U182)/U182,"-") -> - | X184: %YoY Growth
D185: Net Interest Income
D186: =IF(AND(ISBLANK(D139),ISBLANK(D178)),"",D139-D178) ->  | U186: =IF(AND(ISBLANK(U139),ISBLANK(U178)),"",U139-U178) ->  | X186: Q1
U187: =IF(AND(ISBLANK(U140),ISBLANK(U179)),"",U140-U179) ->  | X187: Q2
U188: =IF(AND(ISBLANK(U141),ISBLANK(U180)),"",U141-U180) ->  | X188: Q3
U189: =IF(AND(ISBLANK(U142),ISBLANK(U181)),"",U142-U181) ->  | X189: Q4
D190: =IF(COUNT(D186:D189)=4,SUM(D186:D189),IF(COUNT(D186:D189)=0,"",SUM(D186:D189)*4/COUNT(D186:D189))) ->  | E190: =IF(COUNT(E186:E189)=4,SUM(E186:E189),IF(COUNT(E186:E189)=0,"",SUM(E186:E189)*4/COUNT(E186:E189))) ->  | H190: =IF(COUNT(H186:H189)=4,SUM(H186:H189),IF(COUNT(H186:H189)=0,"",SUM(H186:H189)*4/COUNT(H186:H189))) ->  | I190: =IF(COUNT(I186:I189)=4,SUM(I186:I189),IF(COUNT(I186:I189)=0,"",SUM(I186:I189)*4/COUNT(I186:I189))) ->  | J190: =IF(COUNT(J186:J189)=4,SUM(J186:J189),IF(COUNT(J186:J189)=0,"",SUM(J186:J189)*4/COUNT(J186:J189))) ->  | T190: =IF(COUNT(T186:T189)=4,SUM(T186:T189),IF(COUNT(T186:T189)=0,"",SUM(T186:T189)*4/COUNT(T186:T189))) ->  | U190: =IF(COUNT(U186:U189)=4,SUM(U186:U189),IF(COUNT(U186:U189)=0,"",SUM(U186:U189)*4/COUNT(U186:U189))) ->  | V190: =IF(COUNT(V186:V189)=4,SUM(V186:V189),IF(COUNT(V186:V189)=0,"",SUM(V186:V189)*4/COUNT(V186:V189))) ->  | X190: Yearly
D191: =IFERROR(D190/D143, "-") -> - | E191: - | F191: - | G191: - | H191: - | I191: - | J191: - | K191: - | L191: - | M191: - | N191: - | O191: - | P191: - | Q191: - | R191: - | S191: - | T191: - | U191: =IFERROR(U190/U143, "-") -> - | V191: - | X191: %GPM
D192: =IFERROR((D190-B190)/B190,"-") -> - | E192: =IFERROR((E190-D190)/D190,"-") -> - | F192: - | G192: - | H192: - | I192: - | J192: =IFERROR((J190-I190)/I190,"-") -> - | K192: - | L192: - | M192: - | N192: - | O192: - | P192: - | Q192: - | R192: - | S192: - | T192: - | U192: - | V192: - | X192: %YoY Growth
D193: Selling And Administrative Expenses
A194: PL | B194: Selling And Administrative Expenses | C194: Fees And Service Expenses | X194: Q1
X195: Q2
X196: Q3
X197: Q4
D198: =IF(COUNT(D194:D197)=4,SUM(D194:D197),IF(COUNT(D194:D197)=0,"",SUM(D194:D197)*4/COUNT(D194:D197))) ->  | U198: =IF(COUNT(U194:U197)=4,SUM(U194:U197),IF(COUNT(U194:U197)=0,"",SUM(U194:U197)*4/COUNT(U194:U197))) ->  | X198: Yearly
D199: =IFERROR(D198/D143, "-") -> - | E199: - | F199: - | G199: - | H199: - | I199: - | J199: - | K199: - | L199: - | M199: - | N199: - | O199: - | P199: - | Q199: - | R199: - | S199: - | T199: =IFERROR(T198/T143, "-") -> - | U199: =IFERROR(U198/U143, "-") -> - | V199: =IFERROR(V198/V143, "-") -> - | X199: %Common Size
D200: =IFERROR((D198-B198)/B198,"-") -> - | E200: =IFERROR((E198-D198)/D198,"-") -> - | F200: - | G200: - | H200: - | I200: - | J200: - | K200: - | L200: - | M200: - | N200: - | O200: - | P200: - | Q200: - | R200: - | S200: - | T200: - | U200: - | V200: - | X200: %YoY Growth
... 136 more rows

Sheet 1
C1: 2008 | D1: 2009 | E1: 2010 | F1: 2011 | G1: 2012 | H1: 2013 | I1: 2014 | J1: 2015 | K1: 2016 | L1: 2017 | M1: 2018 | N1: 2019 | O1: 2020 | P1: 2021 | Q1: 2022 | R1: 2023 | S1: 2024 | T1: 2025 | U1: 2026
C2: Asset
C3: Cash And Cash Equivalents
A4: BS | B4: Cash And Cash Equivalents | W4: Q1
W5: Q2
W6: Q3
W7: Yearly
C8: =IFERROR(C7/C55,IFERROR(C6/C54,IFERROR(C5/C53,IFERROR(C4/C52,"-")))) -> - | D8: - | E8: - | F8: - | G8: - | H8: - | I8: - | J8: - | K8: - | L8: - | M8: - | N8: - | O8: - | P8: - | Q8: - | R8: - | S8: - | T8: =IFERROR(T7/T55,IFERROR(T6/T54,IFERROR(T5/T53,IFERROR(T4/T52,"-")))) -> - | U8: - | W8: %Common Size
C9: Short-Term Investments - Net
A10: BS | B10: Short-Term Investments - Net | W10: Q1
W11: Q2
W12: Q3
W13: Yearly
C14: =IFERROR(C13/C55,IFERROR(C12/C54,IFERROR(C11/C53,IFERROR(C10/C52,"-")))) -> - | D14: - | E14: - | F14: - | G14: - | H14: - | I14: - | J14: - | K14: - | L14: - | M14: - | N14: - | O14: - | P14: - | Q14: - | R14: - | S14: - | T14: =IFERROR(T13/T55,IFERROR(T12/T54,IFERROR(T11/T53,IFERROR(T10/T52,"-")))) -> - | U14: - | W14: %Common Size
C15: Trade And Other Receivables - Current - Net
A16: BS | B16: Trade And Other Receivables - Current - Net | W16: Q1
W17: Q2
W18: Q3
W19: Yearly
C20: =IFERROR(C19/C55,IFERROR(C18/C54,IFERROR(C17/C53,IFERROR(C16/C52,"-")))) -> - | D20: - | E20: - | F20: - | G20: - | H20: - | I20: - | J20: - | K20: - | L20: - | M20: - | N20: - | O20: - | P20: - | Q20: - | R20: - | S20: - | T20: =IFERROR(T19/T55,IFERROR(T18/T54,IFERROR(T17/T53,IFERROR(T16/T52,"-")))) -> - | U20: - | W20: %Common Size
C21: Inventories - Net
A22: BS | B22: Inventories - Net | W22: Q1
W23: Q2
W24: Q3
W25: Yearly
C26: =IFERROR(C25/C55,IFERROR(C24/C54,IFERROR(C23/C53,IFERROR(C22/C52,"-")))) -> - | D26: - | E26: - | F26: - | G26: - | H26: - | I26: - | J26: - | K26: - | L26: - | M26: - | N26: - | O26: - | P26: - | Q26: - | R26: - | S26: - | T26: =IFERROR(T25/T55,IFERROR(T24/T54,IFERROR(T23/T53,IFERROR(T22/T52,"-")))) -> - | U26: - | W26: %Common Size
C27: Total Current Assets
A28: BS | B28: Total Current Assets | W28: Q1
W29: Q2
W30: Q3
W31: Yearly
C32: =IFERROR(C31/C55,IFERROR(C30/C54,IFERROR(C29/C53,IFERROR(C28/C52,"-")))) -> - | D32: - | E32: - | F32: - | G32: - | H32: - | I32: - | J32: - | K32: - | L32: - | M32: - | N32: - | O32: - | P32: - | Q32: - | R32: - | S32: - | T32: =IFERROR(T31/T55,IFERROR(T30/T54,IFERROR(T29/T53,IFERROR(T28/T52,"-")))) -> - | U32: - | W32: %Common Size
C33: Property, Plant And Equipment - Net
A34: BS | B34: Property, Plant And Equipment - Net | W34: Q1
W35: Q2
W36: Q3
W37: Yearly
C38: =IFERROR(C37/C55,IFERROR(C36/C54,IFERROR(C35/C53,IFERROR(C34/C52,"-")))) -> - | D38: - | E38: - | F38: - | G38: - | H38: - | I38: - | J38: - | K38: - | L38: - | M38: - | N38: - | O38: - | P38: - | Q38: - | R38: - | S38: - | T38: =IFERROR(T37/T55,IFERROR(T36/T54,IFERROR(T35/T53,IFERROR(T34/T52,"-")))) -> - | U38: - | W38: %Common Size
C39: Intangible Assets - Net
A40: BS | B40: Intangible Assets - Net | W40: Q1
W41: Q2
W42: Q3
W43: Yearly
C44: =IFERROR(C43/C55,IFERROR(C42/C54,IFERROR(C41/C53,IFERROR(C40/C52,"-")))) -> - | D44: - | E44: - | F44: - | G44: - | H44: - | I44: - | J44: - | K44: - | L44: - | M44: - | N44: - | O44: - | P44: - | Q44: - | R44: - | S44: - | T44: =IFERROR(T43/T55,IFERROR(T42/T54,IFERROR(T41/T53,IFERROR(T40/T52,"-")))) -> - | U44: - | W44: %Common Size
C45: Total Non-Current Assets
A46: BS | B46: Total Non-Current Assets | W46: Q1
W47: Q2
W48: Q3
W49: Yearly
C50: =IFERROR(C49/C55,IFERROR(C48/C54,IFERROR(C47/C53,IFERROR(C46/C52,"-")))) -> - | D50: - | E50: - | F50: - | G50: - | H50: - | I50: - | J50: - | K50: - | L50: - | M50: - | N50: - | O50: - | P50: - | Q50: - | R50: - | S50: - | T50: =IFERROR(T49/T55,IFERROR(T48/T54,IFERROR(T47/T53,IFERROR(T46/T52,"-")))) -> - | U50: - | W50: %Common Size
C51: Total Assets
A52: BS | B52: Total Assets | W52: Q1
W53: Q2
W54: Q3
W55: Yearly
C56: Liabilities
C57: Trade And Other Payables - Current
A58: BS | B58: Trade And Other Payables - Current | W58: Q1
W59: Q2
W60: Q3
W61: Yearly
C62: =IFERROR(C61/C55,"-") -> - | D62: - | E62: - | F62: - | G62: - | H62: - | I62: - | J62: - | K62: - | L62: - | M62: - | N62: - | O62: - | P62: - | Q62: - | R62: - | S62: =IFERROR(S61/S55,"-") -> - | T62: =IFERROR(T61/T55,"-") -> - | U62: =IFERROR(U61/U55,"-") -> - | W62: %Common Size
C63: Total Current Liabilities
A64: BS | B64: Total Current Liabilities | W64: Q1
W65: Q2
W66: Q3
W67: Yearly
C68: =IFERROR(C67/C55,IFERROR(C66/C54,IFERROR(C65/C53,IFERROR(C64/C52,"-")))) -> - | D68: - | E68: - | F68: - | G68: - | H68: - | I68: - | J68: - | K68: - | L68: - | M68: - | N68: - | O68: - | P68: - | Q68: - | R68: - | S68: - | T68: =IFERROR(T67/T55,IFERROR(T66/T54,IFERROR(T65/T53,IFERROR(T64/T52,"-")))) -> - | U68: - | W68: %Common Size
C69: Bank Overdrafts And Short-Term Borrowings From Financial Institutions
A70: BS | B70: Bank Overdrafts And Short-Term Borrowings From Financial Institutions | W70: Q1
W71: Q2
W72: Q3
W73: Yearly
C74: =IFERROR(C73/C55,IFERROR(C72/C54,IFERROR(C71/C53,IFERROR(C70/C52,"-")))) -> - | D74: - | E74: - | F74: - | G74: - | H74: - | I74: - | J74: - | K74: - | L74: - | M74: - | N74: - | O74: - | P74: - | Q74: - | R74: - | S74: - | T74: =IFERROR(T73/T55,IFERROR(T72/T54,IFERROR(T71/T53,IFERROR(T70/T52,"-")))) -> - | U74: - | W74: %Common Size
C75: Current Portion Of Long-Term Debts
A76: BS | B76: Current Portion Of Long-Term Debts | W76: Q1
W77: Q2
W78: Q3
W79: Yearly
C80: =IFERROR(C79/C55,IFERROR(C78/C54,IFERROR(C77/C53,IFERROR(C76/C52,"-")))) -> - | D80: - | E80: - | F80: - | G80: - | H80: - | I80: - | J80: - | K80: - | L80: - | M80: - | N80: - | O80: - | P80: - | Q80: - | R80: - | S80: - | T80: =IFERROR(T79/T55,IFERROR(T78/T54,IFERROR(T77/T53,IFERROR(T76/T52,"-")))) -> - | U80: - | W80: %Common Size
C81: Short-Term Debts
C82: =IF(AND(ISBLANK(C76), ISBLANK(C70)), "", C76 + C70) ->  | H82: =IF(AND(ISBLANK(H76), ISBLANK(H70)), "", H76 + H70) ->  | I82: =IF(AND(ISBLANK(I76), ISBLANK(I70)), "", I76 + I70) ->  | S82: =IF(AND(ISBLANK(S76), ISBLANK(S70)), "", S76 + S70) ->  | T82: =IF(AND(ISBLANK(T76), ISBLANK(T70)), "", T76 + T70) ->  | U82: =IF(AND(ISBLANK(U76), ISBLANK(U70)), "", U76 + U70) ->  | W82: Q1
S83: =IF(AND(ISBLANK(S77), ISBLANK(S71)), "", S77 + S71) ->  | U83: =IF(AND(ISBLANK(U77), ISBLANK(U71)), "", U77 + U71) ->  | W83: Q2
U84: =IF(AND(ISBLANK(U78), ISBLANK(U72)), "", U78 + U72) ->  | W84: Q3
U85: =IF(AND(ISBLANK(U79), ISBLANK(U73)), "", U79 + U73) ->  | W85: Yearly
C86: =IFERROR(C85/C55,IFERROR(C84/C54,IFERROR(C83/C53,IFERROR(C82/C52,"-")))) -> - | D86: - | E86: - | F86: - | G86: - | H86: - | I86: - | J86: - | K86: - | L86: - | M86: - | N86: - | O86: - | P86: - | Q86: - | R86: - | S86: - | T86: =IFERROR(T85/T55,IFERROR(T84/T54,IFERROR(T83/T53,IFERROR(T82/T52,"-")))) -> - | U86: - | W86: %Common Size
C87: Long-Term Debts
A88: BS | B88: Non-Current Portion Of Long-Term Debts | W88: Q1
W89: Q2
W90: Q3
W91: Yearly
C92: =IFERROR(C91/C55,IFERROR(C90/C54,IFERROR(C89/C53,IFERROR(C88/C52,"-")))) -> - | D92: - | E92: - | F92: - | G92: - | H92: - | I92: - | J92: - | K92: - | L92: - | M92: - | N92: - | O92: - | P92: - | Q92: - | R92: - | S92: - | T92: =IFERROR(T91/T55,IFERROR(T90/T54,IFERROR(T89/T53,IFERROR(T88/T52,"-")))) -> - | U92: - | W92: %Common Size
C93: Total Debts
C94: =IF(AND(ISBLANK(C76), ISBLANK(C70), ISBLANK(C88)), "", C76 + C70+C88) ->  | S94: =IF(AND(ISBLANK(S76), ISBLANK(S70), ISBLANK(S88)), "", S76 + S70+S88) ->  | T94: =IF(AND(ISBLANK(T76), ISBLANK(T70), ISBLANK(T88)), "", T76 + T70+T88) ->  | U94: =IF(AND(ISBLANK(U76), ISBLANK(U70), ISBLANK(U88)), "", U76 + U70+U88) ->  | W94: Q1
S95: =IF(AND(ISBLANK(S77), ISBLANK(S71), ISBLANK(S89)), "", S77 + S71+S89) ->  | U95: =IF(AND(ISBLANK(U77), ISBLANK(U71), ISBLANK(U89)), "", U77 + U71+U89) ->  | W95: Q2
U96: =IF(AND(ISBLANK(U78), ISBLANK(U72), ISBLANK(U90)), "", U78 + U72+U90) ->  | W96: Q3
Q97: =IF(AND(ISBLANK(Q79), ISBLANK(Q73), ISBLANK(Q91)), "", Q79 + Q73+Q91) ->  | U97: =IF(AND(ISBLANK(U79), ISBLANK(U73), ISBLANK(U91)), "", U79 + U73+U91) ->  | W97: Yearly
C98: =IFERROR(C97/C122,IFERROR(C96/C121,IFERROR(C95/C120,IFERROR(C94/C119,"-")))) -> - | D98: - | E98: - | F98: - | G98: - | H98: - | I98: - | J98: - | K98: - | L98: - | M98: - | N98: - | O98: - | P98: - | Q98: - | R98: - | S98: =IFERROR(S97/S122,IFERROR(S96/S121,IFERROR(S95/S120,IFERROR(S94/S119,"-")))) -> - | T98: =IFERROR(T97/T122,IFERROR(T96/T121,IFERROR(T95/T120,IFERROR(T94/T119,"-")))) -> - | U98: =IFERROR(U97/U122,IFERROR(U96/U121,IFERROR(U95/U120,IFERROR(U94/U119,"-")))) -> - | W98: D/E Ratio
C99: Total Non-Current Liabilities
A100: BS | B100: Total Non-Current Liabilities | W100: Q1
W101: Q2
W102: Q3
W103: Yearly
C104: =IFERROR(C103/C55,IFERROR(C102/C54,IFERROR(C101/C53,IFERROR(C100/C52,"-")))) -> - | D104: - | E104: - | F104: - | G104: - | H104: - | I104: - | J104: - | K104: - | L104: - | M104: - | N104: - | O104: - | P104: - | Q104: - | R104: - | S104: - | T104: =IFERROR(T103/T55,IFERROR(T102/T54,IFERROR(T101/T53,IFERROR(T100/T52,"-")))) -> - | U104: - | W104: %Common Size
C105: Total Liabilities
A106: BS | B106: Total Liabilities | W106: Q1
W107: Q2
W108: Q3
W109: Yearly
C110: =IFERROR(C109/C55,IFERROR(C108/C54,IFERROR(C107/C53,IFERROR(C106/C52,"-")))) -> - | D110: - | E110: - | F110: - | G110: - | H110: - | I110: - | J110: - | K110: - | L110: - | M110: - | N110: - | O110: - | P110: - | Q110: - | R110: - | S110: - | T110: =IFERROR(T109/T55,IFERROR(T108/T54,IFERROR(T107/T53,IFERROR(T106/T52,"-")))) -> - | U110: - | W110: %Common Size
C111: Equity
C112: Retained Earnings (Deficits) - Unappropriated
A113: BS | B113: Retained Earnings (Deficits) - Unappropriated | W113: Q1
W114: Q2
W115: Q3
W116: Yearly
C117: =IFERROR(C116/C55,IFERROR(C115/C54,IFERROR(C114/C53,IFERROR(C113/C52,"-")))) -> - | D117: - | E117: - | F117: - | G117: - | H117: - | I117: - | J117: - | K117: - | L117: - | M117: - | N117: - | O117: - | P117: - | Q117: - | R117: - | S117: - | T117: =IFERROR(T116/T55,IFERROR(T115/T54,IFERROR(T114/T53,IFERROR(T113/T52,"-")))) -> - | U117: - | W117: %Common Size
C118: Equity Attributable To Owners Of The Parent
A119: BS | B119: Equity Attributable To Owners Of The Parent | W119: Q1
W120: Q2
W121: Q3
W122: Yearly
C123: =IFERROR(C122/C55,IFERROR(C121/C54,IFERROR(C120/C53,IFERROR(C119/C52,"-")))) -> - | D123: - | E123: - | F123: - | G123: - | H123: - | I123: - | J123: - | K123: - | L123: - | M123: - | N123: - | O123: - | P123: - | Q123: - | R123: - | S123: - | T123: =IFERROR(T122/T55,IFERROR(T121/T54,IFERROR(T120/T53,IFERROR(T119/T52,"-")))) -> - | U123: - | W123: %Common Size
C124: Revenue Structure
C125: Revenue From Operations
A126: PL | B126: Revenue From Operations | W126: Q1
W127: Q2
W128: Q3
W129: Q4
C130: =IF(COUNT(C126:C129)=4,SUM(C126:C129),IF(COUNT(C126:C129)=0,"",SUM(C126:C129)*4/COUNT(C126:C129))) ->  | R130: =IF(COUNT(R126:R129)=4,SUM(R126:R129),IF(COUNT(R126:R129)=0,"",SUM(R126:R129)*4/COUNT(R126:R129))) ->  | S130: =IF(COUNT(S126:S129)=4,SUM(S126:S129),IF(COUNT(S126:S129)=0,"",SUM(S126:S129)*4/COUNT(S126:S129))) ->  | T130: =IF(COUNT(T126:T129)=4,SUM(T126:T129),IF(COUNT(T126:T129)=0,"",SUM(T126:T129)*4/COUNT(T126:T129))) ->  | U130: =IF(COUNT(U126:U129)=4,SUM(U126:U129),IF(COUNT(U126:U129)=0,"",SUM(U126:U129)*4/COUNT(U126:U129))) ->  | W130: Yearly
C131: =IFERROR((C130-B130)/B130,"-") -> - | D131: =IFERROR((D130-C130)/C130,"-") -> - | E131: - | F131: - | G131: - | H131: - | I131: - | J131: - | K131: - | L131: - | M131: - | N131: - | O131: - | P131: =IFERROR((P130-O130)/O130,"-") -> - | Q131: - | R131: - | S131: - | T131: - | U131: - | W131: %YoY Growth
C132: Other Income
A133: PL | B133: Other Income | W133: Q1
W134: Q2
W135: Q3
W136: Q4
C137: =IF(COUNT(C133:C136)=4,SUM(C133:C136),IF(COUNT(C133:C136)=0,"",SUM(C133:C136)*4/COUNT(C133:C136))) ->  | D137: =IF(COUNT(D133:D136)=4,SUM(D133:D136),IF(COUNT(D133:D136)=0,"",SUM(D133:D136)*4/COUNT(D133:D136))) ->  | R137: =IF(COUNT(R133:R136)=4,SUM(R133:R136),IF(COUNT(R133:R136)=0,"",SUM(R133:R136)*4/COUNT(R133:R136))) ->  | S137: =IF(COUNT(S133:S136)=4,SUM(S133:S136),IF(COUNT(S133:S136)=0,"",SUM(S133:S136)*4/COUNT(S133:S136))) ->  | T137: =IF(COUNT(T133:T136)=4,SUM(T133:T136),IF(COUNT(T133:T136)=0,"",SUM(T133:T136)*4/COUNT(T133:T136))) ->  | U137: =IF(COUNT(U133:U136)=4,SUM(U133:U136),IF(COUNT(U133:U136)=0,"",SUM(U133:U136)*4/COUNT(U133:U136))) ->  | W137: Yearly
C138: Interest And Dividend Income
A139: PL | B139: Interest And Dividend Income | W139: Q1
W140: Q2
W141: Q3
W142: Q4
C143: =IF(COUNT(C139:C142)=4,SUM(C139:C142),IF(COUNT(C139:C142)=0,"",SUM(C139:C142)*4/COUNT(C139:C142))) ->  | D143: =IF(COUNT(D139:D142)=4,SUM(D139:D142),IF(COUNT(D139:D142)=0,"",SUM(D139:D142)*4/COUNT(D139:D142))) ->  | R143: =IF(COUNT(R139:R142)=4,SUM(R139:R142),IF(COUNT(R139:R142)=0,"",SUM(R139:R142)*4/COUNT(R139:R142))) ->  | S143: =IF(COUNT(S139:S142)=4,SUM(S139:S142),IF(COUNT(S139:S142)=0,"",SUM(S139:S142)*4/COUNT(S139:S142))) ->  | T143: =IF(COUNT(T139:T142)=4,SUM(T139:T142),IF(COUNT(T139:T142)=0,"",SUM(T139:T142)*4/COUNT(T139:T142))) ->  | U143: =IF(COUNT(U139:U142)=4,SUM(U139:U142),IF(COUNT(U139:U142)=0,"",SUM(U139:U142)*4/COUNT(U139:U142))) ->  | W143: Yearly
C144: Total Revenue
A145: PL | B145: Total Revenue | W145: Q1
W146: Q2
W147: Q3
W148: Q4
C149: =IF(COUNT(C145:C148)=4,SUM(C145:C148),IF(COUNT(C145:C148)=0,"",SUM(C145:C148)*4/COUNT(C145:C148))) ->  | D149: =IF(COUNT(D145:D148)=4,SUM(D145:D148),IF(COUNT(D145:D148)=0,"",SUM(D145:D148)*4/COUNT(D145:D148))) ->  | R149: =IF(COUNT(R145:R148)=4,SUM(R145:R148),IF(COUNT(R145:R148)=0,"",SUM(R145:R148)*4/COUNT(R145:R148))) ->  | S149: =IF(COUNT(S145:S148)=4,SUM(S145:S148),IF(COUNT(S145:S148)=0,"",SUM(S145:S148)*4/COUNT(S145:S148))) ->  | T149: =IF(COUNT(T145:T148)=4,SUM(T145:T148),IF(COUNT(T145:T148)=0,"",SUM(T145:T148)*4/COUNT(T145:T148))) ->  | U149: =IF(COUNT(U145:U148)=4,SUM(U145:U148),IF(COUNT(U145:U148)=0,"",SUM(U145:U148)*4/COUNT(U145:U148))) ->  | W149: Yearly
C150: COGS Breakdown
C151: Costs
A152: PL | B152: Costs | W152: Q1
W153: Q2
W154: Q3
W155: Q4
C156: =IF(COUNT(C152:C155)=4,SUM(C152:C155),IF(COUNT(C152:C155)=0,"",SUM(C152:C155)*4/COUNT(C152:C155))) ->  | S156: =IF(COUNT(S152:S155)=4,SUM(S152:S155),IF(COUNT(S152:S155)=0,"",SUM(S152:S155)*4/COUNT(S152:S155))) ->  | T156: =IF(COUNT(T152:T155)=4,SUM(T152:T155),IF(COUNT(T152:T155)=0,"",SUM(T152:T155)*4/COUNT(T152:T155))) ->  | U156: =IF(COUNT(U152:U155)=4,SUM(U152:U155),IF(COUNT(U152:U155)=0,"",SUM(U152:U155)*4/COUNT(U152:U155))) ->  | W156: Yearly
C157: =IFERROR(C156/C130, "-") -> - | D157: - | E157: - | F157: - | G157: - | H157: - | I157: - | J157: - | K157: - | L157: - | M157: - | N157: - | O157: - | P157: - | Q157: - | R157: - | S157: - | T157: =IFERROR(T156/T130, "-") -> - | U157: - | W157: %Common Size
C158: =IFERROR((C156-B156)/B156,"-") -> - | D158: - | E158: - | F158: - | G158: - | H158: - | I158: - | J158: - | K158: - | L158: - | M158: - | N158: - | O158: - | P158: - | Q158: - | R158: - | S158: - | T158: - | U158: - | W158: %YoY Growth
C159: Gross Profit
C160: =IF(AND(ISBLANK(C126),ISBLANK(C152)),"",C126-C152) ->  | T160: =IF(AND(ISBLANK(T126),ISBLANK(T152)),"",T126-T152) ->  | W160: Q1
T161: =IF(AND(ISBLANK(T127),ISBLANK(T153)),"",T127-T153) ->  | W161: Q2
T162: =IF(AND(ISBLANK(T128),ISBLANK(T154)),"",T128-T154) ->  | W162: Q3
T163: =IF(AND(ISBLANK(T129),ISBLANK(T155)),"",T129-T155) ->  | W163: Q4
C164: =IF(COUNT(C160:C163)=4,SUM(C160:C163),IF(COUNT(C160:C163)=0,"",SUM(C160:C163)*4/COUNT(C160:C163))) ->  | D164: =IF(COUNT(D160:D163)=4,SUM(D160:D163),IF(COUNT(D160:D163)=0,"",SUM(D160:D163)*4/COUNT(D160:D163))) ->  | G164: =IF(COUNT(G160:G163)=4,SUM(G160:G163),IF(COUNT(G160:G163)=0,"",SUM(G160:G163)*4/COUNT(G160:G163))) ->  | H164: =IF(COUNT(H160:H163)=4,SUM(H160:H163),IF(COUNT(H160:H163)=0,"",SUM(H160:H163)*4/COUNT(H160:H163))) ->  | I164: =IF(COUNT(I160:I163)=4,SUM(I160:I163),IF(COUNT(I160:I163)=0,"",SUM(I160:I163)*4/COUNT(I160:I163))) ->  | S164: =IF(COUNT(S160:S163)=4,SUM(S160:S163),IF(COUNT(S160:S163)=0,"",SUM(S160:S163)*4/COUNT(S160:S163))) ->  | T164: =IF(COUNT(T160:T163)=4,SUM(T160:T163),IF(COUNT(T160:T163)=0,"",SUM(T160:T163)*4/COUNT(T160:T163))) ->  | U164: =IF(COUNT(U160:U163)=4,SUM(U160:U163),IF(COUNT(U160:U163)=0,"",SUM(U160:U163)*4/COUNT(U160:U163))) ->  | W164: Yearly
C165: =IFERROR(C164/C130, "-") -> - | D165: - | E165: - | F165: - | G165: - | H165: - | I165: - | J165: - | K165: - | L165: - | M165: - | N165: - | O165: - | P165: - | Q165: - | R165: - | S165: - | T165: =IFERROR(T164/T130, "-") -> - | U165: - | W165: %GPM
C166: =IFERROR((C164-B164)/B164,"-") -> - | D166: - | E166: - | F166: - | G166: - | H166: - | I166: =IFERROR((I164-H164)/H164,"-") -> - | J166: - | K166: - | L166: - | M166: - | N166: - | O166: - | P166: - | Q166: - | R166: - | S166: - | T166: - | U166: - | W166: %YoY Growth
C167: SG&A
C168: Selling Expenses
A169: PL | B169: Selling Expenses | W169: Q1
W170: Q2
W171: Q3
W172: Q4
C173: =IF(COUNT(C169:C172)=4,SUM(C169:C172),IF(COUNT(C169:C172)=0,"",SUM(C169:C172)*4/COUNT(C169:C172))) ->  | D173: =IF(COUNT(D169:D172)=4,SUM(D169:D172),IF(COUNT(D169:D172)=0,"",SUM(D169:D172)*4/COUNT(D169:D172))) ->  | S173: =IF(COUNT(S169:S172)=4,SUM(S169:S172),IF(COUNT(S169:S172)=0,"",SUM(S169:S172)*4/COUNT(S169:S172))) ->  | T173: =IF(COUNT(T169:T172)=4,SUM(T169:T172),IF(COUNT(T169:T172)=0,"",SUM(T169:T172)*4/COUNT(T169:T172))) ->  | U173: =IF(COUNT(U169:U172)=4,SUM(U169:U172),IF(COUNT(U169:U172)=0,"",SUM(U169:U172)*4/COUNT(U169:U172))) ->  | W173: Yearly
C174: =IFERROR(C173/C130, "-") -> - | D174: - | E174: - | F174: - | G174: - | H174: - | I174: - | J174: - | K174: - | L174: - | M174: - | N174: - | O174: - | P174: - | Q174: - | R174: - | S174: - | T174: =IFERROR(T173/T130, "-") -> - | U174: - | W174: %Common Size
C175: =IFERROR((C173-B173)/B173,"-") -> - | D175: - | E175: - | F175: - | G175: - | H175: - | I175: - | J175: - | K175: - | L175: - | M175: - | N175: - | O175: - | P175: - | Q175: - | R175: - | S175: - | T175: - | U175: - | W175: %YoY Growth
C176: Administrative Expenses
A177: PL | B177: Administrative Expenses | W177: Q1
W178: Q2
W179: Q3
W180: Q4
C181: =IF(COUNT(C177:C180)=4,SUM(C177:C180),IF(COUNT(C177:C180)=0,"",SUM(C177:C180)*4/COUNT(C177:C180))) ->  | D181: =IF(COUNT(D177:D180)=4,SUM(D177:D180),IF(COUNT(D177:D180)=0,"",SUM(D177:D180)*4/COUNT(D177:D180))) ->  | S181: =IF(COUNT(S177:S180)=4,SUM(S177:S180),IF(COUNT(S177:S180)=0,"",SUM(S177:S180)*4/COUNT(S177:S180))) ->  | T181: =IF(COUNT(T177:T180)=4,SUM(T177:T180),IF(COUNT(T177:T180)=0,"",SUM(T177:T180)*4/COUNT(T177:T180))) ->  | U181: =IF(COUNT(U177:U180)=4,SUM(U177:U180),IF(COUNT(U177:U180)=0,"",SUM(U177:U180)*4/COUNT(U177:U180))) ->  | W181: Yearly
C182: =IFERROR(C181/C130, "-") -> - | D182: - | E182: - | F182: - | G182: - | H182: - | I182: - | J182: - | K182: - | L182: - | M182: - | N182: - | O182: - | P182: - | Q182: - | R182: - | S182: - | T182: =IFERROR(T181/T130, "-") -> - | U182: - | W182: %Common Size
C183: =IFERROR((C181-B181)/B181,"-") -> - | D183: - | E183: - | F183: - | G183: - | H183: - | I183: - | J183: - | K183: - | L183: - | M183: - | N183: - | O183: - | P183: - | Q183: - | R183: - | S183: - | T183: - | U183: - | W183: %YoY Growth
C184: Selling And Administrative Expenses
A185: PL | B185: Selling And Administrative Expenses | W185: Q1
W186: Q2
W187: Q3
W188: Q4
C189: =IF(COUNT(C185:C188)=4,SUM(C185:C188),IF(COUNT(C185:C188)=0,"",SUM(C185:C188)*4/COUNT(C185:C188))) ->  | D189: =IF(COUNT(D185:D188)=4,SUM(D185:D188),IF(COUNT(D185:D188)=0,"",SUM(D185:D188)*4/COUNT(D185:D188))) ->  | S189: =IF(COUNT(S185:S188)=4,SUM(S185:S188),IF(COUNT(S185:S188)=0,"",SUM(S185:S188)*4/COUNT(S185:S188))) ->  | T189: =IF(COUNT(T185:T188)=4,SUM(T185:T188),IF(COUNT(T185:T188)=0,"",SUM(T185:T188)*4/COUNT(T185:T188))) ->  | U189: =IF(COUNT(U185:U188)=4,SUM(U185:U188),IF(COUNT(U185:U188)=0,"",SUM(U185:U188)*4/COUNT(U185:U188))) ->  | W189: Yearly
C190: =IFERROR(C189/C130, "-") -> - | D190: - | E190: - | F190: - | G190: - | H190: - | I190: - | J190: - | K190: - | L190: - | M190: - | N190: - | O190: - | P190: - | Q190: - | R190: - | S190: =IFERROR(S189/S130, "-") -> - | T190: =IFERROR(T189/T130, "-") -> - | U190: =IFERROR(U189/U130, "-") -> - | W190: %Common Size
C191: =IFERROR((C189-B189)/B189,"-") -> - | D191: - | E191: - | F191: - | G191: - | H191: - | I191: - | J191: - | K191: - | L191: - | M191: - | N191: - | O191: - | P191: - | Q191: - | R191: - | S191: - | T191: - | U191: - | W191: %YoY Growth
C192: Other Gains (Losses)
A193: PL | B193: Other Gains (Losses) | W193: Q1
W194: Q2
W195: Q3
W196: Q4
C197: =IF(COUNT(C193:C196)=4,SUM(C193:C196),IF(COUNT(C193:C196)=0,"",SUM(C193:C196)*4/COUNT(C193:C196))) ->  | D197: =IF(COUNT(D193:D196)=4,SUM(D193:D196),IF(COUNT(D193:D196)=0,"",SUM(D193:D196)*4/COUNT(D193:D196))) ->  | R197: =IF(COUNT(R193:R196)=4,SUM(R193:R196),IF(COUNT(R193:R196)=0,"",SUM(R193:R196)*4/COUNT(R193:R196))) ->  | S197: =IF(COUNT(S193:S196)=4,SUM(S193:S196),IF(COUNT(S193:S196)=0,"",SUM(S193:S196)*4/COUNT(S193:S196))) ->  | T197: =IF(COUNT(T193:T196)=4,SUM(T193:T196),IF(COUNT(T193:T196)=0,"",SUM(T193:T196)*4/COUNT(T193:T196))) ->  | U197: =IF(COUNT(U193:U196)=4,SUM(U193:U196),IF(COUNT(U193:U196)=0,"",SUM(U193:U196)*4/COUNT(U193:U196))) ->  | W197: Yearly
C198: EBIT
C199: =IFERROR(C160+C133-C185, "") ->  | T199: =IFERROR(T160+T133-T185, "") ->  | W199: Q1
T200: =IFERROR(T161+T134-T186, "") ->  | W200: Q2
... 145 more rows

Sheet ADVICE
C1: 2008 | D1: 2009 | E1: 2010 | F1: 2011 | G1: 2012 | H1: 2013 | I1: 2014 | J1: 2015 | K1: 2016 | L1: 2017 | M1: 2018 | N1: 2019 | O1: 2020 | P1: 2021 | Q1: 2022 | R1: 2023 | S1: 2024 | T1: 2025 | U1: 2026
C2: Asset
C3: Cash And Cash Equivalents
A4: BS | B4: Cash And Cash Equivalents | S4: 153.03685 | T4: 246.205 | W4: Q1
S5: 260.83078 | T5: 314.28 | W5: Q2
R6: 140.34965 | S6: 318.85397 | T6: 135.809 | W6: Q3
Q7: 122.52172 | R7: 99.84224 | S7: 195.08729 | T7: 218.146 | W7: Yearly
C8: =IFERROR(C7/C55,IFERROR(C6/C54,IFERROR(C5/C53,IFERROR(C4/C52,"-")))) -> - | D8: - | E8: - | F8: - | G8: - | H8: - | I8: - | J8: - | K8: - | L8: - | M8: - | N8: - | O8: - | P8: - | Q8: 0.04737432972 | R8: 0.03777116308 | S8: 0.06521587428 | T8: =IFERROR(T7/T55,IFERROR(T6/T54,IFERROR(T5/T53,IFERROR(T4/T52,"-")))) -> 0.05754047228 | W8: %Common Size
C9: Short-Term Investments - Net
A10: BS | B10: Short-Term Investments - Net | W10: Q1
W11: Q2
W12: Q3
W13: Yearly
C14: =IFERROR(C13/C55,IFERROR(C12/C54,IFERROR(C11/C53,IFERROR(C10/C52,"-")))) -> - | D14: - | E14: - | F14: - | G14: - | H14: - | I14: - | J14: - | K14: - | L14: - | M14: - | N14: - | O14: - | P14: - | Q14: 0 | R14: 0 | S14: 0 | T14: =IFERROR(T13/T55,IFERROR(T12/T54,IFERROR(T11/T53,IFERROR(T10/T52,"-")))) -> 0 | W14: %Common Size
C15: Trade And Other Receivables - Current - Net
A16: BS | B16: Trade And Other Receivables - Current - Net | S16: 352.21267 | T16: 422.904 | W16: Q1
S17: 377.03079 | T17: 374.713 | W17: Q2
R18: 278.26093 | S18: 372.572 | T18: 446.112 | W18: Q3
Q19: 284.00867 | R19: 273.08648 | S19: 360.17928 | T19: 496.696 | W19: Yearly
C20: =IFERROR(C19/C55,IFERROR(C18/C54,IFERROR(C17/C53,IFERROR(C16/C52,"-")))) -> - | D20: - | E20: - | F20: - | G20: - | H20: - | I20: - | J20: - | K20: - | L20: - | M20: - | N20: - | O20: - | P20: - | Q20: 0.1098149812 | R20: 0.103310923 | S20: 0.1204045976 | T20: =IFERROR(T19/T55,IFERROR(T18/T54,IFERROR(T17/T53,IFERROR(T16/T52,"-")))) -> 0.1310137358 | W20: %Common Size
C21: Inventories - Net
A22: BS | B22: Inventories - Net | S22: 1574.45703 | T22: 1703.174 | W22: Q1
S23: 1620.23159 | T23: 1876.886 | W23: Q2
R24: 1349.331 | S24: 1480.99156 | T24: 1957.048 | W24: Q3
Q25: 1232.67667 | R25: 1366.63784 | S25: 1619.36609 | T25: 2107.775 | W25: Yearly
C26: =IFERROR(C25/C55,IFERROR(C24/C54,IFERROR(C23/C53,IFERROR(C22/C52,"-")))) -> - | D26: - | E26: - | F26: - | G26: - | H26: - | I26: - | J26: - | K26: - | L26: - | M26: - | N26: - | O26: - | P26: - | Q26: 0.4766275808 | R26: 0.5170106432 | S26: 0.5413390864 | T26: =IFERROR(T25/T55,IFERROR(T24/T54,IFERROR(T23/T53,IFERROR(T22/T52,"-")))) -> 0.555968796 | W26: %Common Size
C27: Total Current Assets
A28: BS | B28: Total Current Assets | S28: 2079.70655 | T28: 2372.283 | W28: Q1
S29: 2258.09316 | T29: 2565.879 | W29: Q2
R30: 1767.94157 | S30: 2172.41753 | T30: 2538.969 | W30: Q3
Q31: 1689.20705 | R31: 1739.56656 | S31: 2174.63266 | T31: 2822.617 | W31: Yearly
C32: =IFERROR(C31/C55,IFERROR(C30/C54,IFERROR(C29/C53,IFERROR(C28/C52,"-")))) -> - | D32: - | E32: - | F32: - | G32: - | H32: - | I32: - | J32: - | K32: - | L32: - | M32: - | N32: - | O32: - | P32: - | Q32: 0.6531499211 | R32: 0.6580927293 | S32: 0.7269595582 | T32: =IFERROR(T31/T55,IFERROR(T30/T54,IFERROR(T29/T53,IFERROR(T28/T52,"-")))) -> 0.7445230041 | W32: %Common Size
C33: Property, Plant And Equipment - Net
A34: BS | B34: Property, Plant And Equipment - Net | S34: 454.14451 | T34: 505.32 | W34: Q1
S35: 457.46161 | T35: 519.209 | W35: Q2
R36: 452.91243 | S36: 473.75416 | T36: 558.293 | W36: Q3
Q37: 454.46782 | R37: 453.93265 | S37: 500.66128 | T37: 603.824 | W37: Yearly
C38: =IFERROR(C37/C55,IFERROR(C36/C54,IFERROR(C35/C53,IFERROR(C34/C52,"-")))) -> - | D38: - | E38: - | F38: - | G38: - | H38: - | I38: - | J38: - | K38: - | L38: - | M38: - | N38: - | O38: - | P38: - | Q38: 0.1757248294 | R38: 0.1717265573 | S38: 0.1673664291 | T38: =IFERROR(T37/T55,IFERROR(T36/T54,IFERROR(T35/T53,IFERROR(T34/T52,"-")))) -> 0.1592709384 | W38: %Common Size
C39: Intangible Assets - Net
A40: BS | B40: Intangible Assets - Net | S40: 5.71488 | T40: 16.245 | W40: Q1
S41: 15.47163 | T41: 38.051 | W41: Q2
R42: 6.20806 | S42: 15.23157 | T42: 40.05 | W42: Q3
Q43: 6.93209 | R43: 5.95979 | S43: 16.48759 | T43: 40.669 | W43: Yearly
C44: =IFERROR(C43/C55,IFERROR(C42/C54,IFERROR(C41/C53,IFERROR(C40/C52,"-")))) -> - | D44: - | E44: - | F44: - | G44: - | H44: - | I44: - | J44: - | K44: - | L44: - | M44: - | N44: - | O44: - | P44: - | Q44: 0.002680366528 | R44: 0.002254638918 | S44: 0.00551164864 | T44: =IFERROR(T43/T55,IFERROR(T42/T54,IFERROR(T41/T53,IFERROR(T40/T52,"-")))) -> 0.01072728112 | W44: %Common Size
C45: Total Non-Current Assets
A46: BS | B46: Total Non-Current Assets | S46: 857.5273 | T46: 800.106 | W46: Q1
S47: 871.67458 | T47: 824.282 | W47: Q2
R48: 895.79451 | S48: 763.543 | T48: 890.391 | W48: Q3
Q49: 897.03999 | R49: 903.77909 | S49: 816.77537 | T49: 968.558 | W49: Yearly
C50: =IFERROR(C49/C55,IFERROR(C48/C54,IFERROR(C47/C53,IFERROR(C46/C52,"-")))) -> - | D50: - | E50: - | F50: - | G50: - | H50: - | I50: - | J50: - | K50: - | L50: - | M50: - | N50: - | O50: - | P50: - | Q50: 0.3468500789 | R50: 0.3419072669 | S50: 0.2730404418 | T50: =IFERROR(T49/T55,IFERROR(T48/T54,IFERROR(T47/T53,IFERROR(T46/T52,"-")))) -> 0.2554769959 | W50: %Common Size
C51: Total Assets
A52: BS | B52: Total Assets | S52: 2937.23385 | T52: 3172.389 | W52: Q1
S53: 3129.76774 | T53: 3390.161 | W53: Q2
R54: 2663.73608 | S54: 2935.96053 | T54: 3429.36 | W54: Q3
Q55: 2586.24704 | R55: 2643.34566 | S55: 2991.40803 | T55: 3791.175 | W55: Yearly
C56: Liabilities
C57: Trade And Other Payables - Current
A58: BS | B58: Trade And Other Payables - Current | S58: 1435.22217 | T58: 1882.636 | W58: Q1
S59: 1955.96823 | T59: 2147.233 | W59: Q2
R60: 1758.88582 | S60: 1789.62312 | T60: 2199.097 | W60: Q3
Q61: 1630.47472 | R61: 1704.40162 | S61: 1759.80017 | T61: 2265.199 | W61: Yearly
C62: =IFERROR(C61/C55,"-") -> - | D62: - | E62: - | F62: - | G62: - | H62: - | I62: - | J62: - | K62: - | L62: - | M62: - | N62: - | O62: - | P62: - | Q62: 0.6304404393 | R62: 0.6447895354 | S62: =IFERROR(S61/S55,"-") -> 0.5882848987 | T62: =IFERROR(T61/T55,"-") -> 0.5974925979 | W62: %Common Size
C63: Total Current Liabilities
A64: BS | B64: Total Current Liabilities | S64: 1908.50332 | T64: 1989.59 | W64: Q1
S65: 2054.50164 | T65: 2245.87 | W65: Q2
R66: 2164.41425 | S66: 1879.09973 | T66: 2288.664 | W66: Q3
Q67: 2061.81551 | R67: 2156.85785 | S67: 1863.70594 | T67: 2554.38 | W67: Yearly
C68: =IFERROR(C67/C55,IFERROR(C66/C54,IFERROR(C65/C53,IFERROR(C64/C52,"-")))) -> - | D68: - | E68: - | F68: - | G68: - | H68: - | I68: - | J68: - | K68: - | L68: - | M68: - | N68: - | O68: - | P68: - | Q68: 0.7972229559 | R68: 0.8159575506 | S68: 0.6230196353 | T68: =IFERROR(T67/T55,IFERROR(T66/T54,IFERROR(T65/T53,IFERROR(T64/T52,"-")))) -> 0.6737700053 | W68: %Common Size
C69: Bank Overdrafts And Short-Term Borrowings From Financial Institutions
A70: BS | B70: Bank Overdrafts And Short-Term Borrowings From Financial Institutions | S70: 359.70696 | T70: 0 | W70: Q1
S71: 0 | T71: 0 | W71: Q2
R72: 302.54744 | S72: 0 | T72: 0 | W72: Q3
Q73: 321.94383 | R73: 344.2432 | S73: 0 | T73: 189.61 | W73: Yearly
C74: =IFERROR(C73/C55,IFERROR(C72/C54,IFERROR(C71/C53,IFERROR(C70/C52,"-")))) -> - | D74: - | E74: - | F74: - | G74: - | H74: - | I74: - | J74: - | K74: - | L74: - | M74: - | N74: - | O74: - | P74: - | Q74: 0.1244830154 | R74: 0.1302301115 | S74: 0 | T74: =IFERROR(T73/T55,IFERROR(T72/T54,IFERROR(T71/T53,IFERROR(T70/T52,"-")))) -> 0.05001351824 | W74: %Common Size
C75: Current Portion Of Long-Term Debts
A76: BS | B76: Current Portion Of Long-Term Debts | S76: 12.6628 | T76: 0 | W76: Q1
S77: 0 | T77: 0 | W77: Q2
R78: 18.1648 | S78: 0 | T78: 0 | W78: Q3
Q79: 18.1968 | R79: 15.4138 | S79: 0 | T79: 0 | W79: Yearly
C80: =IFERROR(C79/C55,IFERROR(C78/C54,IFERROR(C77/C53,IFERROR(C76/C52,"-")))) -> - | D80: - | E80: - | F80: - | G80: - | H80: - | I80: - | J80: - | K80: - | L80: - | M80: - | N80: - | O80: - | P80: - | Q80: 0.007035986786 | R80: 0.00583117079 | S80: 0 | T80: =IFERROR(T79/T55,IFERROR(T78/T54,IFERROR(T77/T53,IFERROR(T76/T52,"-")))) -> 0 | W80: %Common Size
C81: Short-Term Debts
C82: =IF(AND(ISBLANK(C76), ISBLANK(C70)), "", C76 + C70) ->  | H82: =IF(AND(ISBLANK(H76), ISBLANK(H70)), "", H76 + H70) ->  | I82: =IF(AND(ISBLANK(I76), ISBLANK(I70)), "", I76 + I70) ->  | S82: =IF(AND(ISBLANK(S76), ISBLANK(S70)), "", S76 + S70) -> 372.36976 | T82: =IF(AND(ISBLANK(T76), ISBLANK(T70)), "", T76 + T70) -> 0 | W82: Q1
S83: =IF(AND(ISBLANK(S77), ISBLANK(S71)), "", S77 + S71) -> 0 | T83: 0 | W83: Q2
R84: 320.71224 | S84: 0 | T84: 0 | W84: Q3
Q85: 340.14063 | R85: 359.657 | S85: 0 | T85: 189.61 | W85: Yearly
C86: =IFERROR(C85/C55,IFERROR(C84/C54,IFERROR(C83/C53,IFERROR(C82/C52,"-")))) -> - | D86: - | E86: - | F86: - | G86: - | H86: - | I86: - | J86: - | K86: - | L86: - | M86: - | N86: - | O86: - | P86: - | Q86: 0.1315190021 | R86: 0.1360612823 | S86: 0 | T86: =IFERROR(T85/T55,IFERROR(T84/T54,IFERROR(T83/T53,IFERROR(T82/T52,"-")))) -> 0.05001351824 | W86: %Common Size
C87: Long-Term Debts
A88: BS | B88: Non-Current Portion Of Long-Term Debts | S88: 12.93753 | T88: 0 | W88: Q1
S89: 0 | T89: 0 | W89: Q2
R90: 16.53393 | S90: 0 | T90: 0 | W90: Q3
Q91: 30.14953 | R91: 14.73573 | S91: 0 | T91: 0 | W91: Yearly
C92: =IFERROR(C91/C55,IFERROR(C90/C54,IFERROR(C89/C53,IFERROR(C88/C52,"-")))) -> - | D92: - | E92: - | F92: - | G92: - | H92: - | I92: - | J92: - | K92: - | L92: - | M92: - | N92: - | O92: - | P92: - | Q92: 0.01165763732 | R92: 0.005574651179 | S92: 0 | T92: =IFERROR(T91/T55,IFERROR(T90/T54,IFERROR(T89/T53,IFERROR(T88/T52,"-")))) -> 0 | W92: %Common Size
C93: Total Debts
C94: =IF(AND(ISBLANK(C76), ISBLANK(C70), ISBLANK(C88)), "", C76 + C70+C88) ->  | S94: =IF(AND(ISBLANK(S76), ISBLANK(S70), ISBLANK(S88)), "", S76 + S70+S88) -> 385.30729 | T94: =IF(AND(ISBLANK(T76), ISBLANK(T70), ISBLANK(T88)), "", T76 + T70+T88) -> 0 | W94: Q1
S95: =IF(AND(ISBLANK(S77), ISBLANK(S71), ISBLANK(S89)), "", S77 + S71+S89) -> 0 | T95: 0 | W95: Q2
R96: 337.24617 | S96: 0 | T96: 0 | W96: Q3
Q97: =IF(AND(ISBLANK(Q79), ISBLANK(Q73), ISBLANK(Q91)), "", Q79 + Q73+Q91) -> 370.29016 | R97: 374.39273 | S97: 0 | T97: 189.61 | W97: Yearly
C98: =IFERROR(C97/C122,IFERROR(C96/C121,IFERROR(C95/C120,IFERROR(C94/C119,"-")))) -> - | D98: - | E98: - | F98: - | G98: - | H98: - | I98: - | J98: - | K98: - | L98: - | M98: - | N98: - | O98: - | P98: - | Q98: 1.19149876 | R98: 1.20468218 | S98: =IFERROR(S97/S122,IFERROR(S96/S121,IFERROR(S95/S120,IFERROR(S94/S119,"-")))) -> 0 | T98: =IFERROR(T97/T122,IFERROR(T96/T121,IFERROR(T95/T120,IFERROR(T94/T119,"-")))) -> 0.1909675886 | W98: D/E Ratio
C99: Total Non-Current Liabilities
A100: BS | B100: Total Non-Current Liabilities | S100: 170.62084 | T100: 179.199 | W100: Q1
S101: 155.83906 | T101: 174.034 | W101: Q2
R102: 187.00828 | S102: 168.19727 | T102: 207.161 | W102: Q3
Q103: 213.65474 | R103: 175.70648 | S103: 187.52871 | T103: 243.904 | W103: Yearly
C104: =IFERROR(C103/C55,IFERROR(C102/C54,IFERROR(C101/C53,IFERROR(C100/C52,"-")))) -> - | D104: - | E104: - | F104: - | G104: - | H104: - | I104: - | J104: - | K104: - | L104: - | M104: - | N104: - | O104: - | P104: - | Q104: 0.08261188382 | R104: 0.06647124614 | S104: 0.06268911099 | T104: =IFERROR(T103/T55,IFERROR(T102/T54,IFERROR(T101/T53,IFERROR(T100/T52,"-")))) -> 0.06433467197 | W104: %Common Size
C105: Total Liabilities
A106: BS | B106: Total Liabilities | S106: 2079.12416 | T106: 2168.789 | W106: Q1
S107: 2210.3407 | T107: 2419.904 | W107: Q2
R108: 2351.42253 | S108: 2047.297 | T108: 2495.825 | W108: Q3
Q109: 2275.47025 | R109: 2332.56433 | S109: 2051.23466 | T109: 2798.284 | W109: Yearly
C110: =IFERROR(C109/C55,IFERROR(C108/C54,IFERROR(C107/C53,IFERROR(C106/C52,"-")))) -> - | D110: - | E110: - | F110: - | G110: - | H110: - | I110: - | J110: - | K110: - | L110: - | M110: - | N110: - | O110: - | P110: - | Q110: 0.8798348398 | R110: 0.8824287967 | S110: 0.6857087497 | T110: =IFERROR(T109/T55,IFERROR(T108/T54,IFERROR(T107/T53,IFERROR(T106/T52,"-")))) -> 0.7381046773 | W110: %Common Size
C111: Equity
C112: Retained Earnings (Deficits) - Unappropriated
A113: BS | B113: Retained Earnings (Deficits) - Unappropriated | S113: 79.75893 | T113: 225.249 | W113: Q1
S114: 141.07628 | T114: 191.906 | W114: Q2
R115: 76.7388 | S115: 110.31278 | T115: 155.184 | W115: Q3
Q116: 75.20204 | R116: 75.20657 | S116: 161.82261 | T116: 214.54 | W116: Yearly
C117: =IFERROR(C116/C55,IFERROR(C115/C54,IFERROR(C114/C53,IFERROR(C113/C52,"-")))) -> - | D117: - | E117: - | F117: - | G117: - | H117: - | I117: - | J117: - | K117: - | L117: - | M117: - | N117: - | O117: - | P117: - | Q117: 0.02907767079 | R117: 0.02845128094 | S117: 0.05409579983 | T117: =IFERROR(T116/T55,IFERROR(T115/T54,IFERROR(T114/T53,IFERROR(T113/T52,"-")))) -> 0.05658931598 | W117: %Common Size
C118: Equity Attributable To Owners Of The Parent
A119: BS | B119: Equity Attributable To Owners Of The Parent | S119: 858.10969 | T119: 1003.6 | W119: Q1
S120: 919.42704 | T120: 970.257 | W120: Q2
R121: 312.31356 | S121: 888.66353 | T121: 933.535 | W121: Q3
Q122: 310.77679 | R122: 310.78133 | S122: 940.17337 | T122: 992.891 | W122: Yearly
C123: =IFERROR(C122/C55,IFERROR(C121/C54,IFERROR(C120/C53,IFERROR(C119/C52,"-")))) -> - | D123: - | E123: - | F123: - | G123: - | H123: - | I123: - | J123: - | K123: - | L123: - | M123: - | N123: - | O123: - | P123: - | Q123: 0.1201651602 | R123: 0.1175712033 | S123: 0.3142912503 | T123: =IFERROR(T122/T55,IFERROR(T121/T54,IFERROR(T120/T53,IFERROR(T119/T52,"-")))) -> 0.2618953227 | W123: %Common Size
C124: Revenue Structure
C125: Revenue From Operations
A126: PL | B126: Revenue From Operations | S126: 3567.39892 | T126: 3989.641 | W126: Q1
S127: 3405.45292 | T127: 4009.638 | W127: Q2
R128: 3586.38845 | S128: 3747.81875 | T128: 4287.909 | W128: Q3
Q129: 3597.05822 | R129: 3182.22037 | S129: 3488.10979 | T129: 4293.163 | W129: Q4
C130: =IF(COUNT(C126:C129)=4,SUM(C126:C129),IF(COUNT(C126:C129)=0,"",SUM(C126:C129)*4/COUNT(C126:C129))) ->  | Q130: 14388.23288 | R130: =IF(COUNT(R126:R129)=4,SUM(R126:R129),IF(COUNT(R126:R129)=0,"",SUM(R126:R129)*4/COUNT(R126:R129))) -> 13537.21764 | S130: =IF(COUNT(S126:S129)=4,SUM(S126:S129),IF(COUNT(S126:S129)=0,"",SUM(S126:S129)*4/COUNT(S126:S129))) -> 14208.78038 | T130: =IF(COUNT(T126:T129)=4,SUM(T126:T129),IF(COUNT(T126:T129)=0,"",SUM(T126:T129)*4/COUNT(T126:T129))) -> 16580.351 | W130: Yearly
C131: =IFERROR((C130-B130)/B130,"-") -> - | D131: =IFERROR((D130-C130)/C130,"-") -> - | E131: - | F131: - | G131: - | H131: - | I131: - | J131: - | K131: - | L131: - | M131: - | N131: - | O131: - | P131: =IFERROR((P130-O130)/O130,"-") -> - | Q131: =IFERROR((Q130-P130)/P130,"-") -> - | R131: =IFERROR((R130-Q130)/Q130,"-") -> -0.05914661287 | S131: =IFERROR((S130-R130)/R130,"-") -> 0.04960862401 | T131: =IFERROR((T130-S130)/S130,"-") -> 0.1669088097 | W131: %YoY Growth
C132: Other Income
A133: PL | B133: Other Income | S133: 0.97791 | T133: 3.1 | W133: Q1
S134: 0.8687 | T134: 1.688 | W134: Q2
R135: 1.19432 | S135: 0.75047 | T135: 2.068 | W135: Q3
Q136: 1.70069 | R136: 1.76664 | S136: 5.13587 | T136: 2.471 | W136: Q4
C137: =IF(COUNT(C133:C136)=4,SUM(C133:C136),IF(COUNT(C133:C136)=0,"",SUM(C133:C136)*4/COUNT(C133:C136))) ->  | D137: =IF(COUNT(D133:D136)=4,SUM(D133:D136),IF(COUNT(D133:D136)=0,"",SUM(D133:D136)*4/COUNT(D133:D136))) ->  | Q137: 6.80276 | R137: =IF(COUNT(R133:R136)=4,SUM(R133:R136),IF(COUNT(R133:R136)=0,"",SUM(R133:R136)*4/COUNT(R133:R136))) -> 5.92192 | S137: =IF(COUNT(S133:S136)=4,SUM(S133:S136),IF(COUNT(S133:S136)=0,"",SUM(S133:S136)*4/COUNT(S133:S136))) -> 7.73295 | T137: =IF(COUNT(T133:T136)=4,SUM(T133:T136),IF(COUNT(T133:T136)=0,"",SUM(T133:T136)*4/COUNT(T133:T136))) -> 9.327 | W137: Yearly
C138: Interest And Dividend Income
A139: PL | B139: Interest And Dividend Income | S139: 0.25531 | T139: 0 | W139: Q1
S140: 0.84281 | T140: 0.518 | W140: Q2
R141: 0.23943 | S141: 0.05488 | T141: 0 | W141: Q3
Q142: 1.47509 | R142: 0.70636 | S142: 0.70159 | T142: 0.289 | W142: Q4
C143: =IF(COUNT(C139:C142)=4,SUM(C139:C142),IF(COUNT(C139:C142)=0,"",SUM(C139:C142)*4/COUNT(C139:C142))) ->  | D143: =IF(COUNT(D139:D142)=4,SUM(D139:D142),IF(COUNT(D139:D142)=0,"",SUM(D139:D142)*4/COUNT(D139:D142))) ->  | Q143: 5.90036 | R143: =IF(COUNT(R139:R142)=4,SUM(R139:R142),IF(COUNT(R139:R142)=0,"",SUM(R139:R142)*4/COUNT(R139:R142))) -> 1.89158 | S143: =IF(COUNT(S139:S142)=4,SUM(S139:S142),IF(COUNT(S139:S142)=0,"",SUM(S139:S142)*4/COUNT(S139:S142))) -> 1.85459 | T143: =IF(COUNT(T139:T142)=4,SUM(T139:T142),IF(COUNT(T139:T142)=0,"",SUM(T139:T142)*4/COUNT(T139:T142))) -> 0.807 | W143: Yearly
C144: Total Revenue
A145: PL | B145: Total Revenue | S145: 3568.63215 | T145: 3992.741 | W145: Q1
S146: 3407.16443 | T146: 4011.844 | W146: Q2
R147: 3587.8222 | S147: 3748.62411 | T147: 4289.977 | W147: Q3
Q148: 3600.23399 | R148: 3184.69337 | S148: 3493.94725 | T148: 4295.923 | W148: Q4
C149: =IF(COUNT(C145:C148)=4,SUM(C145:C148),IF(COUNT(C145:C148)=0,"",SUM(C145:C148)*4/COUNT(C145:C148))) ->  | D149: =IF(COUNT(D145:D148)=4,SUM(D145:D148),IF(COUNT(D145:D148)=0,"",SUM(D145:D148)*4/COUNT(D145:D148))) ->  | Q149: 14400.93596 | R149: =IF(COUNT(R145:R148)=4,SUM(R145:R148),IF(COUNT(R145:R148)=0,"",SUM(R145:R148)*4/COUNT(R145:R148))) -> 13545.03114 | S149: =IF(COUNT(S145:S148)=4,SUM(S145:S148),IF(COUNT(S145:S148)=0,"",SUM(S145:S148)*4/COUNT(S145:S148))) -> 14218.36794 | T149: =IF(COUNT(T145:T148)=4,SUM(T145:T148),IF(COUNT(T145:T148)=0,"",SUM(T145:T148)*4/COUNT(T145:T148))) -> 16590.485 | W149: Yearly
C150: COGS Breakdown
C151: Costs
A152: PL | B152: Costs | S152: 3233.15291 | T152: 3580.258 | W152: Q1
S153: 3090.81657 | T153: 3593.689 | W153: Q2
R154: 3271.76042 | S154: 3407.15271 | T154: 3851.162 | W154: Q3
Q155: 3289.7638 | R155: 2882.3879 | S155: 3139.34867 | T155: 3843.587 | W155: Q4
C156: =IF(COUNT(C152:C155)=4,SUM(C152:C155),IF(COUNT(C152:C155)=0,"",SUM(C152:C155)*4/COUNT(C152:C155))) ->  | Q156: 13159.0552 | R156: 12308.29664 | S156: =IF(COUNT(S152:S155)=4,SUM(S152:S155),IF(COUNT(S152:S155)=0,"",SUM(S152:S155)*4/COUNT(S152:S155))) -> 12870.47086 | T156: =IF(COUNT(T152:T155)=4,SUM(T152:T155),IF(COUNT(T152:T155)=0,"",SUM(T152:T155)*4/COUNT(T152:T155))) -> 14868.696 | W156: Yearly
C157: =IFERROR(C156/C130, "-") -> - | D157: - | E157: - | F157: - | G157: - | H157: - | I157: - | J157: - | K157: - | L157: - | M157: - | N157: - | O157: - | P157: - | Q157: 0.9145706293 | R157: 0.9092190853 | S157: 0.9058110912 | T157: =IFERROR(T156/T130, "-") -> 0.8967660576 | W157: %Common Size
C158: =IFERROR((C156-B156)/B156,"-") -> - | D158: - | E158: - | F158: - | G158: - | H158: - | I158: - | J158: - | K158: - | L158: - | M158: - | N158: - | O158: - | P158: - | Q158: - | R158: -0.06465194857 | S158: 0.04567441267 | T158: 0.1552565684 | W158: %YoY Growth
C159: Gross Profit
C160: =IF(AND(ISBLANK(C126),ISBLANK(C152)),"",C126-C152) ->  | S160: 334.24601 | T160: =IF(AND(ISBLANK(T126),ISBLANK(T152)),"",T126-T152) -> 409.383 | W160: Q1
S161: 314.63635 | T161: =IF(AND(ISBLANK(T127),ISBLANK(T153)),"",T127-T153) -> 415.949 | W161: Q2
R162: 314.62803 | S162: 340.66604 | T162: =IF(AND(ISBLANK(T128),ISBLANK(T154)),"",T128-T154) -> 436.747 | W162: Q3
Q163: 307.29442 | R163: 299.83247 | S163: 348.76112 | T163: =IF(AND(ISBLANK(T129),ISBLANK(T155)),"",T129-T155) -> 449.576 | W163: Q4
C164: =IF(COUNT(C160:C163)=4,SUM(C160:C163),IF(COUNT(C160:C163)=0,"",SUM(C160:C163)*4/COUNT(C160:C163))) ->  | D164: =IF(COUNT(D160:D163)=4,SUM(D160:D163),IF(COUNT(D160:D163)=0,"",SUM(D160:D163)*4/COUNT(D160:D163))) ->  | G164: =IF(COUNT(G160:G163)=4,SUM(G160:G163),IF(COUNT(G160:G163)=0,"",SUM(G160:G163)*4/COUNT(G160:G163))) ->  | H164: =IF(COUNT(H160:H163)=4,SUM(H160:H163),IF(COUNT(H160:H163)=0,"",SUM(H160:H163)*4/COUNT(H160:H163))) ->  | I164: =IF(COUNT(I160:I163)=4,SUM(I160:I163),IF(COUNT(I160:I163)=0,"",SUM(I160:I163)*4/COUNT(I160:I163))) ->  | Q164: 1229.17768 | R164: 1228.921 | S164: =IF(COUNT(S160:S163)=4,SUM(S160:S163),IF(COUNT(S160:S163)=0,"",SUM(S160:S163)*4/COUNT(S160:S163))) -> 1338.30952 | T164: =IF(COUNT(T160:T163)=4,SUM(T160:T163),IF(COUNT(T160:T163)=0,"",SUM(T160:T163)*4/COUNT(T160:T163))) -> 1711.655 | W164: Yearly
C165: =IFERROR(C164/C130, "-") -> - | D165: - | E165: - | F165: - | G165: - | H165: - | I165: - | J165: - | K165: - | L165: - | M165: - | N165: - | O165: - | P165: - | Q165: 0.08542937067 | R165: 0.09078091471 | S165: 0.09418890884 | T165: =IFERROR(T164/T130, "-") -> 0.1032339424 | W165: %GPM
C166: =IFERROR((C164-B164)/B164,"-") -> - | D166: - | E166: - | F166: - | G166: - | H166: - | I166: =IFERROR((I164-H164)/H164,"-") -> - | J166: - | K166: - | L166: - | M166: - | N166: - | O166: - | P166: - | Q166: - | R166: -0.0002088225357 | S166: 0.08901184047 | T166: 0.2789679625 | W166: %YoY Growth
C167: SG&A
C168: Selling Expenses
A169: PL | B169: Selling Expenses | S169: 159.5768 | T169: 224.238 | W169: Q1
S170: 132.76765 | T170: 215.976 | W170: Q2
R171: 159.16643 | S171: 156.53279 | T171: 250.645 | W171: Q3
Q172: 152.03808 | R172: 158.06296 | S172: 184.55561 | T172: 271.299 | W172: Q4
C173: =IF(COUNT(C169:C172)=4,SUM(C169:C172),IF(COUNT(C169:C172)=0,"",SUM(C169:C172)*4/COUNT(C169:C172))) ->  | D173: =IF(COUNT(D169:D172)=4,SUM(D169:D172),IF(COUNT(D169:D172)=0,"",SUM(D169:D172)*4/COUNT(D169:D172))) ->  | Q173: 608.15232 | R173: 634.45878 | S173: =IF(COUNT(S169:S172)=4,SUM(S169:S172),IF(COUNT(S169:S172)=0,"",SUM(S169:S172)*4/COUNT(S169:S172))) -> 633.43285 | T173: =IF(COUNT(T169:T172)=4,SUM(T169:T172),IF(COUNT(T169:T172)=0,"",SUM(T169:T172)*4/COUNT(T169:T172))) -> 962.158 | W173: Yearly
C174: =IFERROR(C173/C130, "-") -> - | D174: - | E174: - | F174: - | G174: - | H174: - | I174: - | J174: - | K174: - | L174: - | M174: - | N174: - | O174: - | P174: - | Q174: 0.04226733923 | R174: 0.04686773877 | S174: 0.0445803815 | T174: =IFERROR(T173/T130, "-") -> 0.05803001396 | W174: %Common Size
C175: =IFERROR((C173-B173)/B173,"-") -> - | D175: - | E175: - | F175: - | G175: - | H175: - | I175: - | J175: - | K175: - | L175: - | M175: - | N175: - | O175: - | P175: - | Q175: - | R175: 0.04325636709 | S175: -0.001617016002 | T175: 0.5189581658 | W175: %YoY Growth
C176: Administrative Expenses
A177: PL | B177: Administrative Expenses | S177: 105.98546 | T177: 107.629 | W177: Q1
S178: 104.05451 | T178: 107.162 | W178: Q2
R179: 88.26658 | S179: 105.81597 | T179: 103.674 | W179: Q3
Q180: 88.99511 | R180: 92.62953 | S180: 101.94612 | T180: 98.142 | W180: Q4
C181: =IF(COUNT(C177:C180)=4,SUM(C177:C180),IF(COUNT(C177:C180)=0,"",SUM(C177:C180)*4/COUNT(C177:C180))) ->  | D181: =IF(COUNT(D177:D180)=4,SUM(D177:D180),IF(COUNT(D177:D180)=0,"",SUM(D177:D180)*4/COUNT(D177:D180))) ->  | Q181: 355.98044 | R181: 361.79222 | S181: =IF(COUNT(S177:S180)=4,SUM(S177:S180),IF(COUNT(S177:S180)=0,"",SUM(S177:S180)*4/COUNT(S177:S180))) -> 417.80206 | T181: =IF(COUNT(T177:T180)=4,SUM(T177:T180),IF(COUNT(T177:T180)=0,"",SUM(T177:T180)*4/COUNT(T177:T180))) -> 416.607 | W181: Yearly
C182: =IFERROR(C181/C130, "-") -> - | D182: - | E182: - | F182: - | G182: - | H182: - | I182: - | J182: - | K182: - | L182: - | M182: - | N182: - | O182: - | P182: - | Q182: 0.02474108134 | R182: 0.02672574451 | S182: 0.0294044984 | T182: =IFERROR(T181/T130, "-") -> 0.02512654889 | W182: %Common Size
C183: =IFERROR((C181-B181)/B181,"-") -> - | D183: - | E183: - | F183: - | G183: - | H183: - | I183: - | J183: - | K183: - | L183: - | M183: - | N183: - | O183: - | P183: - | Q183: - | R183: 0.01632612174 | S183: 0.1548121737 | T183: -0.002860349707 | W183: %YoY Growth
C184: Selling And Administrative Expenses
A185: PL | B185: Selling And Administrative Expenses | S185: 265.56226 | T185: 331.867 | W185: Q1
S186: 236.82216 | T186: 323.138 | W186: Q2
R187: 247.43301 | S187: 262.34876 | T187: 354.319 | W187: Q3
Q188: 241.03319 | R188: 250.69249 | S188: 286.50174 | T188: 369.441 | W188: Q4
C189: =IF(COUNT(C185:C188)=4,SUM(C185:C188),IF(COUNT(C185:C188)=0,"",SUM(C185:C188)*4/COUNT(C185:C188))) ->  | D189: =IF(COUNT(D185:D188)=4,SUM(D185:D188),IF(COUNT(D185:D188)=0,"",SUM(D185:D188)*4/COUNT(D185:D188))) ->  | Q189: 964.13276 | R189: 996.251 | S189: =IF(COUNT(S185:S188)=4,SUM(S185:S188),IF(COUNT(S185:S188)=0,"",SUM(S185:S188)*4/COUNT(S185:S188))) -> 1051.23492 | T189: =IF(COUNT(T185:T188)=4,SUM(T185:T188),IF(COUNT(T185:T188)=0,"",SUM(T185:T188)*4/COUNT(T185:T188))) -> 1378.765 | W189: Yearly
C190: =IFERROR(C189/C130, "-") -> - | D190: - | E190: - | F190: - | G190: - | H190: - | I190: - | J190: - | K190: - | L190: - | M190: - | N190: - | O190: - | P190: - | Q190: 0.06700842056 | R190: 0.07359348328 | S190: =IFERROR(S189/S130, "-") -> 0.07398488061 | T190: =IFERROR(T189/T130, "-") -> 0.08315656285 | W190: %Common Size
C191: =IFERROR((C189-B189)/B189,"-") -> - | D191: - | E191: - | F191: - | G191: - | H191: - | I191: - | J191: - | K191: - | L191: - | M191: - | N191: - | O191: - | P191: - | Q191: - | R191: 0.03331308854 | S191: 0.05519083042 | T191: 0.3115669712 | W191: %YoY Growth
C192: Other Gains (Losses)
A193: PL | B193: Other Gains (Losses) | W193: Q1
W194: Q2
W195: Q3
W196: Q4
C197: =IF(COUNT(C193:C196)=4,SUM(C193:C196),IF(COUNT(C193:C196)=0,"",SUM(C193:C196)*4/COUNT(C193:C196))) ->  | D197: =IF(COUNT(D193:D196)=4,SUM(D193:D196),IF(COUNT(D193:D196)=0,"",SUM(D193:D196)*4/COUNT(D193:D196))) ->  | R197: =IF(COUNT(R193:R196)=4,SUM(R193:R196),IF(COUNT(R193:R196)=0,"",SUM(R193:R196)*4/COUNT(R193:R196))) ->  | S197: =IF(COUNT(S193:S196)=4,SUM(S193:S196),IF(COUNT(S193:S196)=0,"",SUM(S193:S196)*4/COUNT(S193:S196))) ->  | T197: =IF(COUNT(T193:T196)=4,SUM(T193:T196),IF(COUNT(T193:T196)=0,"",SUM(T193:T196)*4/COUNT(T193:T196))) ->  | W197: Yearly
C198: EBIT
C199: =IFERROR(C160+C133-C185, "") ->  | S199: 69.66166 | T199: =IFERROR(T160+T133-T185, "") -> 80.616 | W199: Q1
S200: 78.68289 | T200: =IFERROR(T161+T134-T186, "") -> 94.499 | W200: Q2
... 145 more rows

Sheet SABINA
C1: 2008 | D1: 2009 | E1: 2010 | F1: 2011 | G1: 2012 | H1: 2013 | I1: 2014 | J1: 2015 | K1: 2016 | L1: 2017 | M1: 2018 | N1: 2019 | O1: 2020 | P1: 2021 | Q1: 2022 | R1: 2023 | S1: 2024 | T1: 2025
C2: Asset
C3: Cash And Cash Equivalents
A4: BS | B4: Cash And Cash Equivalents | C4: 52.40801 | D4: 34.895 | E4: 31.2508 | F4: 22.38683 | G4: 29.4903 | H4: 31.65528 | I4: 31.91511 | J4: 40.30897 | K4: 33.63004 | L4: 41.49183 | M4: 38.07392 | N4: 52.44723 | O4: 48.65736 | P4: 48.90884 | Q4: 121.64923 | R4: 88.81517 | S4: 110.87901 | T4: 78.98102 | V4: Q1
C5: 38.8 | D5: 41.11754 | E5: 18.60053 | F5: 14.92686 | G5: 20.86857 | H5: 29.9811 | I5: 37.53812 | J5: 33.2349 | K5: 33.15101 | L5: 43.29049 | M5: 36.35019 | N5: 58.11076 | O5: 85.97349 | P5: 52.44387 | Q5: 103.76876 | R5: 85.18842 | S5: 102.08565 | T5: 128.48903 | V5: Q2
C6: 23.47567 | D6: 45.5754 | E6: 15.05771 | F6: 16.51941 | G6: 16.6121 | H6: 39.46647 | I6: 30.6207 | J6: 32.36567 | K6: 31.25315 | L6: 33.79138 | M6: 68.60945 | N6: 45.26233 | O6: 51.89533 | P6: 70.37952 | Q6: 103.63417 | R6: 114.16146 | S6: 86.75264 | V6: Q3
C7: 17.698 | D7: 25.15587 | E7: 15.60285 | F7: 23.1795 | G7: 23.88238 | H7: 44.19767 | I7: 43.94659 | J7: 39.38951 | K7: 40.93099 | L7: 43.88671 | M7: 60.41614 | N7: 65.14652 | O7: 62.88168 | P7: 79.82435 | Q7: 117.77491 | R7: 104.52586 | S7: 111.35346 | V7: Yearly
C8: =IFERROR(C7/C55,IFERROR(C6/C54,IFERROR(C5/C53,IFERROR(C4/C52,"-")))) -> 0.009838819697 | D8: 0.01236673394 | E8: 0.008239613626 | F8: 0.01085040158 | G8: 0.01101897888 | H8: 0.01927160759 | I8: 0.01904504001 | J8: 0.01777616402 | K8: 0.01828884034 | L8: 0.01838379923 | M8: 0.02321891627 | N8: 0.0215866527 | O8: 0.02242617433 | P8: 0.02952833133 | Q8: 0.0429855511 | R8: 0.03628748237 | S8: 0.04201373946 | T8: =IFERROR(T7/T55,IFERROR(T6/T54,IFERROR(T5/T53,IFERROR(T4/T52,"-")))) -> 0.05400828118 | V8: %Common Size
C9: Short-Term Investments - Net
A10: BS | B10: Short-Term Investments - Net | C10: 0 | D10: 17.007 | E10: 28.98858 | F10: 16.75549 | G10: 12.35292 | H10: 14.276 | I10: 77.90378 | J10: 91.95494 | K10: 76.17375 | L10: 144.03079 | M10: 391.13416 | N10: 215.5695 | O10: 0 | P10: 224.92113 | Q10: 340.73477 | R10: 433.00439 | S10: 360.07506 | T10: 444.90476 | V10: Q1
C11: 65.782 | D11: 10.06795 | E11: 56.09037 | F11: 2.37751 | G11: 1.8756 | H11: 60.1789 | I11: 87.53883 | J11: 91.52056 | K11: 90.09909 | L11: 164.29108 | M11: 234.1849 | N11: 179.91476 | O11: 0 | P11: 234.43206 | Q11: 392.38482 | R11: 347.77897 | S11: 315.08512 | T11: 327.25538 | V11: Q2
C12: 46.18698 | D12: 44.11378 | E12: 101.15144 | F12: 1.51718 | G12: 3.01172 | H12: 59.24235 | I12: 96.6575 | J12: 90.08045 | K12: 64.69156 | L12: 246.25336 | M12: 202.86989 | N12: 167.4067 | O12: 0 | P12: 140.65221 | Q12: 343.54644 | R12: 198.64919 | S12: 150.15066 | V12: Q3
C13: 11.424 | D13: 10.94174 | E13: 1.21409 | F13: 61.6534 | G13: 20.11932 | H13: 63.80163 | I13: 106.8257 | J13: 75.62107 | K13: 116.77073 | L13: 369.43891 | M13: 298.97233 | N13: 177.94553 | O13: 0 | P13: 273.83525 | Q13: 410.16453 | R13: 335.59763 | S13: 304.18443 | V13: Yearly
C14: =IFERROR(C13/C55,IFERROR(C12/C54,IFERROR(C11/C53,IFERROR(C10/C52,"-")))) -> 0.006350925315 | D14: 0.005379006467 | E14: 0.0006411413625 | F14: 0.02886016301 | G14: 0.009282758338 | H14: 0.02781956553 | I14: 0.04629482586 | J14: 0.034127171 | K14: 0.05217565561 | L14: 0.154755067 | M14: 0.1148999836 | N14: 0.05896321638 | O14: 0 | P14: 0.1012961332 | Q14: 0.1497020746 | R14: 0.1165069877 | S14: 0.1147690012 | T14: =IFERROR(T13/T55,IFERROR(T12/T54,IFERROR(T11/T53,IFERROR(T10/T52,"-")))) -> 0.1375564948 | V14: %Common Size
C15: Trade And Other Receivables - Current - Net
A16: BS | B16: Trade And Other Receivables - Current - Net | C16: 542.06816 | D16: 568.635 | E16: 578.97467 | F16: 610.00206 | G16: 529.23783 | H16: 477.86914 | I16: 312.5507 | J16: 248.10188 | K16: 302.04248 | L16: 328.71887 | M16: 409.48769 | N16: 518.61754 | O16: 396.36706 | P16: 423.07851 | Q16: 443.87919 | R16: 533.27616 | S16: 373.76449 | T16: 308.80479 | V16: Q1
C17: 583.141 | D17: 563.00032 | E17: 566.39605 | F17: 608.23711 | G17: 508.32827 | H17: 445.78751 | I17: 304.75074 | J17: 289.10283 | K17: 328.0601 | L17: 365.9968 | M17: 463.7969 | N17: 514.66403 | O17: 451.37817 | P17: 398.80197 | Q17: 447.78562 | R17: 452.25863 | S17: 351.63561 | T17: 310.22767 | V17: Q2
C18: 577.09547 | D18: 582.50012 | E18: 600.06985 | F18: 564.86854 | G18: 489.14593 | H18: 360.10591 | I18: 287.9306 | J18: 302.17941 | K18: 300.68492 | L18: 419.47818 | M18: 496.61612 | N18: 499.06979 | O18: 439.74664 | P18: 371.97617 | Q18: 456.54042 | R18: 452.89486 | S18: 367.30726 | V18: Q3
C19: 623.917 | D19: 596.40281 | E19: 602.18978 | F19: 532.85292 | G19: 493.06852 | H19: 368.1183 | I19: 309.15955 | J19: 334.16836 | K19: 318.82859 | L19: 350.54891 | M19: 465.58002 | N19: 491.63955 | O19: 436.31061 | P19: 445.46046 | Q19: 472.1866 | R19: 381.62753 | S19: 350.006 | V19: Yearly
C20: =IFERROR(C19/C55,IFERROR(C18/C54,IFERROR(C17/C53,IFERROR(C16/C52,"-")))) -> 0.3468531399 | D20: 0.2931941878 | E20: 0.3180067178 | F20: 0.2494302363 | G20: 0.2274945632 | H20: 0.1605114347 | I20: 0.1339798151 | J20: 0.1508074504 | K20: 0.1424594221 | L20: 0.1468421939 | M20: 0.1789300591 | N20: 0.1629074311 | O20: 0.1556061766 | P20: 0.1647831026 | Q20: 0.1723389236 | R20: 0.1324868532 | S20: 0.1320575121 | T20: =IFERROR(T19/T55,IFERROR(T18/T54,IFERROR(T17/T53,IFERROR(T16/T52,"-")))) -> 0.1303991728 | V20: %Common Size
C21: Inventories - Net
A22: BS | B22: Inventories - Net | C22: 528.65033 | D22: 659.736 | E22: 759.87281 | F22: 810.35262 | G22: 1102.89713 | H22: 1099.68837 | I22: 1209.28246 | J22: 1260.90266 | K22: 1138.41176 | L22: 1130.48891 | M22: 1010.22576 | N22: 1241.25481 | O22: 1644.06429 | P22: 1330.57798 | Q22: 1191.74648 | R22: 1132.70174 | S22: 1409.42398 | T22: 1181.87956 | V22: Q1
C23: 580.01 | D23: 756.41617 | E23: 747.94732 | F23: 946.0535 | G23: 1113.38284 | H23: 1076.08327 | I23: 1201.36193 | J23: 1213.53119 | K23: 1097.68517 | L23: 1045.7783 | M23: 1012.24888 | N23: 1385.55271 | O23: 1550.19529 | P23: 1337.24727 | Q23: 1083.12026 | R23: 1207.42125 | S23: 1414.08199 | T23: 1051.62138 | V23: Q2
C24: 620.32558 | D24: 835.44485 | E24: 727.14008 | F24: 1056.94413 | G24: 1143.18411 | H24: 1161.1431 | I24: 1233.69299 | J24: 1185.39447 | K24: 1154.51386 | L24: 984.21602 | M24: 984.48491 | N24: 1490.36806 | O24: 1453.09033 | P24: 1366.82254 | Q24: 1079.8078 | R24: 1303.17177 | S24: 1377.47035 | V24: Q3
C25: 657.061 | D25: 828.13628 | E25: 758.79989 | F25: 1070.42167 | G25: 1088.03854 | H25: 1182.02374 | I25: 1225.13729 | J25: 1147.59239 | K25: 1151.15604 | L25: 975.63611 | M25: 1117.50299 | N25: 1563.78787 | O25: 1403.95063 | P25: 1260.29681 | Q25: 1126.45167 | R25: 1379.78164 | S25: 1274.9405 | V25: Yearly
C26: =IFERROR(C25/C55,IFERROR(C24/C54,IFERROR(C23/C53,IFERROR(C22/C52,"-")))) -> 0.3652788286 | D26: 0.4071153588 | E26: 0.4007099929 | F26: 0.5010679684 | G26: 0.5020049798 | H26: 0.5154004199 | I26: 0.5309351354 | J26: 0.5178990688 | K26: 0.5143610997 | L26: 0.4086863282 | M26: 0.4294747787 | N26: 0.5181695913 | O26: 0.5007061132 | P26: 0.4662043822 | Q26: 0.4111329469 | R26: 0.4790087538 | S26: 0.4810359552 | T26: =IFERROR(T25/T55,IFERROR(T24/T54,IFERROR(T23/T53,IFERROR(T22/T52,"-")))) -> 0.4420320022 | V26: %Common Size
C27: Total Current Assets
A28: BS | B28: Total Current Assets | C28: 1148.4065 | D28: 1301.239 | E28: 1537.1828 | F28: 1548.02007 | G28: 1766.9572 | H28: 1743.28037 | I28: 1700.04968 | J28: 1708.04527 | K28: 1627.39524 | L28: 1723.96262 | M28: 1927.88064 | N28: 2124.08846 | O28: 2336.97015 | P28: 2106.77056 | Q28: 2180.31674 | R28: 2265.35353 | S28: 2326.96373 | T28: 2066.34029 | V28: Q1
C29: 1288.056 | D29: 1398.09754 | E29: 1520.89757 | F29: 1661.39627 | G29: 1733.9391 | H29: 1667.54564 | I29: 1696.95826 | J29: 1694.50412 | K29: 1627.00182 | L29: 1691.75319 | M29: 1823.10669 | N29: 2232.99436 | O29: 2294.92371 | P29: 2094.12031 | Q29: 2098.08827 | R29: 2171.93615 | S29: 2245.39594 | T29: 1860.5345 | V29: Q2
C30: 1312.98304 | D30: 1542.59183 | E30: 1478.99883 | F30: 1761.05417 | G30: 1797.78628 | H30: 1723.13882 | I30: 1751.07651 | J30: 1700.13196 | K30: 1651.54895 | L30: 1760.23342 | M30: 1879.95863 | N30: 2376.71268 | O30: 2180.69852 | P30: 2026.15347 | Q30: 2058.89398 | R30: 2149.11406 | S30: 2038.45383 | V30: Q3
C31: 1337.495 | D31: 1598.90215 | E31: 1463.22415 | F31: 1715.55217 | G31: 1738.68271 | H31: 1726.61314 | I31: 1757.01451 | J31: 1671.00176 | K31: 1705.74297 | L31: 1869.43704 | M31: 2029.03322 | N31: 2407.05773 | O31: 2162.66573 | P31: 2145.00707 | Q31: 2200.58306 | R31: 2284.07007 | S31: 2104.93148 | V31: Yearly
C32: =IFERROR(C31/C55,IFERROR(C30/C54,IFERROR(C29/C53,IFERROR(C28/C52,"-")))) -> 0.7435513703 | D32: 0.7860271771 | E32: 0.772705092 | F32: 0.8030557159 | G32: 0.8022026303 | H32: 0.7528589378 | I32: 0.7614336322 | J32: 0.7541094408 | K32: 0.7621623823 | L32: 0.7830925402 | M32: 0.779790838 | N32: 0.7975916326 | O32: 0.7712948936 | P32: 0.7934731628 | Q32: 0.8031700093 | R32: 0.7929439891 | S32: 0.7941921408 | T32: =IFERROR(T31/T55,IFERROR(T30/T54,IFERROR(T29/T53,IFERROR(T28/T52,"-")))) -> 0.7820455211 | V32: %Common Size
C33: Property, Plant And Equipment - Net
A34: BS | B34: Property, Plant And Equipment - Net | C34: 457.28523 | D34: 434.381 | E34: 390.93459 | F34: 386.28178 | G34: 373.34589 | H34: 366.01668 | I34: 398.9098 | J34: 368.54265 | K34: 353.51802 | L34: 320.47184 | M34: 300.25502 | N34: 293.81371 | O34: 283.88634 | P34: 261.3311 | Q34: 241.12755 | R34: 251.03867 | S34: 259.26299 | T34: 265.22506 | V34: Q1
C35: 449.799 | D35: 422.52775 | E35: 380.41367 | F35: 381.40454 | G35: 372.87445 | H35: 404.51996 | I35: 358.56504 | J35: 360.61372 | K35: 344.79115 | L35: 312.67605 | M35: 307.29416 | N35: 287.20286 | O35: 274.72878 | P35: 253.80292 | Q35: 237.07032 | R35: 254.76965 | S35: 257.4869 | T35: 270.67216 | V35: Q2
C36: 447.24057 | D36: 412.26994 | E36: 373.35616 | F36: 380.29969 | G36: 372.6797 | H36: 402.08344 | I36: 353.66491 | J36: 361.74116 | K36: 335.43063 | L36: 284.6025 | M36: 294.61339 | N36: 295.928 | O36: 334.82994 | P36: 245.92826 | Q36: 236.67584 | R36: 251.58163 | S36: 258.77618 | V36: Q3
C37: 440.372 | D37: 400.25324 | E37: 382.09193 | F37: 394.1467 | G37: 393.8353 | H37: 368.4358 | I37: 376.49892 | J37: 356.86622 | K37: 327.47703 | L37: 301.06789 | M37: 306.80391 | N37: 282.08755 | O37: 331.45248 | P37: 243.62559 | Q37: 240.5186 | R37: 250.47572 | S37: 258.46413 | V37: Yearly
C38: =IFERROR(C37/C55,IFERROR(C36/C54,IFERROR(C35/C53,IFERROR(C34/C52,"-")))) -> 0.2448152734 | D38: 0.1967662151 | E38: 0.2017765904 | F38: 0.1845013902 | G38: 0.181709815 | H38: 0.160649875 | I38: 0.1631625343 | J38: 0.1610508092 | K38: 0.1463237297 | L38: 0.126114982 | M38: 0.1179097886 | N38: 0.09347123948 | O38: 0.1182094864 | P38: 0.09012108638 | Q38: 0.08778461023 | R38: 0.08695583345 | S38: 0.09751869962 | T38: =IFERROR(T37/T55,IFERROR(T36/T54,IFERROR(T35/T53,IFERROR(T34/T52,"-")))) -> 0.1137726553 | V38: %Common Size
C39: Intangible Assets - Net
A40: BS | B40: Intangible Assets - Net | C40: 19.22693 | D40: 19.616 | E40: 26.88041 | F40: 33.37225 | G40: 8.78822 | H40: 7.37481 | I40: 7.38228 | J40: 6.44657 | K40: 5.10186 | L40: 4.2218 | M40: 3.50938 | N40: 8.66962 | O40: 10.62906 | P40: 13.25977 | Q40: 17.50708 | R40: 20.28119 | S40: 20.63819 | T40: 20.48527 | V40: Q1
C41: 18.2 | D41: 17.434 | E41: 24.91563 | F41: 31.45579 | G41: 8.43372 | H41: 7.24008 | I41: 7.37916 | J41: 6.11201 | K41: 5.26479 | L41: 3.87476 | M41: 3.96859 | N41: 9.19934 | O41: 10.35499 | P41: 13.73009 | Q41: 18.79054 | R41: 20.79825 | S41: 20.67282 | T41: 21.35162 | V41: Q2
C42: 17.53772 | D42: 29.63924 | E42: 35.6418 | F42: 29.28227 | G42: 8.07034 | H42: 6.93423 | I42: 7.11571 | J42: 5.77376 | K42: 4.91491 | L42: 3.52392 | M42: 5.65244 | N42: 8.95728 | O42: 10.355 | P42: 14.96864 | Q42: 19.07755 | R42: 20.67269 | S42: 20.27424 | V42: Q3
C43: 17.64 | D43: 28.84541 | E43: 33.96233 | F43: 8.88887 | G43: 7.71923 | H43: 7.54134 | I43: 6.77747 | J43: 5.43552 | K43: 4.56502 | L43: 3.54942 | M43: 8.60936 | N43: 8.68951 | O43: 13.53432 | P43: 15.92116 | Q43: 19.08402 | R43: 21.20586 | S43: 20.47135 | V43: Yearly
